Workbook

Sheet Overview

Sheet Select School
B3: =VLOOKUP(C3,SchList!$I$1:$J$499,2,FALSE) -> 9999 | C3: 1

Sheet Average Score Report
A2: Click here to return to the school and sheet selection interface
A3: ='Select School'!B3 -> 9999
A4: =TEXT(A3,"0000")&"-"&VLOOKUP(A3,SchList!$A$2:$B$504,2,FALSE) -> 9999-DISTRICT | Z4: =$A$4 -> 9999-DISTRICT | AL4: =$A$4 -> 9999-DISTRICT | AW4: =$A$4 -> 9999-DISTRICT | BH4: =$A$4 -> 9999-DISTRICT
Z5: Reading | AL5: Math | AW5: % 4-6 in Writing | BH5: Science
AA6: Average % Correct | AD6: Number of Proficient | AG6: Number Tested | AM6: Average % Correct | AP6: Number of Proficient | AS6: Number Tested | AX6: Average Score | BA6: Number of Proficient | BD6: Number Tested | BI6: Average % Correct | BL6: Number of Proficient | BO6: Number Tested
Z7: Group | AA7: Grade 3 | AB7: Grade 4 | AC7: Grade 5 | AD7: Grade 3 | AE7: Grade 4 | AF7: Grade 5 | AG7: Grade 3 | AH7: Grade 4 | AI7: Grade 5 | AL7: Group | AM7: Grade 3 | AN7: Grade 4 | AO7: Grade 5 | AP7: Grade 3 | AQ7: Grade 4 | AR7: Grade 5 | AS7: Grade 3 | AT7: Grade 4 | AU7: Grade 5 | AW7: Grade 5 | AX7: Expository | AZ7: Narrative | BA7: Grade 3 | BB7: Grade 4 | BC7: Grade 5 | BD7: Expository | BF7: Narrative | BH7: Group | BK7: Grade 5 | BN7: Grade 5 | BQ7: Grade 5
Z8: All | AA8: =IF(VLOOKUP($A$3,'G3-RALL'!$A$14:$AG$501,3,FALSE)>0,VLOOKUP($A$3,'G3-RALL'!$A$14:$AG$501,5,FALSE)*100,#N/A) -> 61 | AB8: =IF(VLOOKUP($A$3,'G4-RALL'!$A$14:$AG$501,3,FALSE)>0,VLOOKUP($A$3,'G4-RALL'!$A$14:$AG$501,5,FALSE)*100,#N/A) -> 65 | AC8: =IF(VLOOKUP($A$3,'G5-RALL'!$A$14:$AG$501,3,FALSE)>0,VLOOKUP($A$3,'G5-RALL'!$A$14:$AG$501,5,FALSE)*100,#N/A) -> 64 | AD8: =IFERROR(VLOOKUP($A$3,'G3-RALL'!$A$14:$AG$500,7,FALSE),"") -> 2209 | AE8: =IFERROR(VLOOKUP($A$3,'G4-RALL'!$A$14:$AG$500,7,FALSE),"") -> 2018 | AF8: =IFERROR(VLOOKUP($A$3,'G5-RALL'!$A$14:$AG$500,7,FALSE),"") -> 2583 | AG8: =IFERROR(VLOOKUP($A$3,'G3-RALL'!$A$14:$AG$500,3,FALSE),"") -> 25785 | AH8: =IFERROR(VLOOKUP($A$3,'G4-RALL'!$A$14:$AG$500,3,FALSE),"") -> 24043 | AI8: =IFERROR(VLOOKUP($A$3,'G5-RALL'!$A$14:$AG$500,3,FALSE),"") -> 24862 | AL8: All | AM8: =IF(VLOOKUP($A$3,'G3-MALL'!$A$14:$Q$501,3,FALSE)>0,VLOOKUP($A$3,'G3-MALL'!$A$14:$Q$501,5,FALSE)*100,#N/A) -> 51 | AN8: =IF(VLOOKUP($A$3,'G4-MALL'!$A$14:$O$501,3,FALSE)>0,VLOOKUP($A$3,'G4-MALL'!$A$14:$O$501,5,FALSE)*100,#N/A) -> 53 | AO8: =IF(VLOOKUP($A$3,'G5-MALL'!$A$14:$AG$501,3,FALSE)>0,VLOOKUP($A$3,'G5-MALL'!$A$14:$AG$501,5,FALSE)*100,#N/A) -> 62 | AP8: =IFERROR(VLOOKUP($A$3,'G3-MALL'!$A$14:$Q$500,7,FALSE),"") -> 2873 | AQ8: =IFERROR(VLOOKUP($A$3,'G4-MALL'!$A$14:$O$500,7,FALSE),"") -> 3079 | AR8: =IFERROR(VLOOKUP($A$3,'G5-MALL'!$A$14:$AA$500,7,FALSE),"") -> 2293 | AS8: =IFERROR(VLOOKUP($A$3,'G3-MALL'!$A$14:$Q$500,3,FALSE),"") -> 25246 | AT8: =IFERROR(VLOOKUP($A$3,'G4-MALL'!$A$14:$O$500,3,FALSE),"") -> 23358 | AU8: =IFERROR(VLOOKUP($A$3,'G5-MALL'!$A$14:$AA$500,3,FALSE),"") -> 24281 | AW8: All | AX8: =IF(VLOOKUP($A$3,'G4-WALL'!$A$14:$AG$500,3,FALSE)>0,VLOOKUP($A$3,'G4-WALL'!$A$14:$AG$500,4,FALSE),#N/A) -> 2.75585869 | AZ8: =IF(VLOOKUP($A$3,'G4-WALL'!$A$14:$AG$500,12,FALSE)>0,VLOOKUP($A$3,'G4-WALL'!$A$14:$AG$500,13,FALSE),#N/A) -> 2.838634728 | BD8: =IFERROR(VLOOKUP($A$3,'G4-WALL'!$A$14:$AG$500,3,FALSE),"") -> 19390 | BF8: =IFERROR(VLOOKUP($A$3,'G4-WALL'!$A$14:$AG$500,12,FALSE),"") -> 19366 | BH8: All | BK8: =IF(VLOOKUP($A$3,'G5-SALL'!$A$14:$AG$501,3,FALSE)>0,VLOOKUP($A$3,'G5-SALL'!$A$14:$AG$501,5,FALSE)*100,#N/A) -> 51 | BN8: =IFERROR(VLOOKUP($A$3,'G5-SALL'!$A$14:$AG$500,7,FALSE),"") -> 2790 | BQ8: =IFERROR(VLOOKUP($A$3,'G5-SALL'!$A$14:$AG$500,3,FALSE),"") -> 23655
Z9: FCAT L1 | AB9: =IF(VLOOKUP($A$3,'G4-RL1'!$A$14:$AG$501,3,FALSE)>0,VLOOKUP($A$3,'G4-RL1'!$A$14:$AG$501,5,FALSE)*100,#N/A) -> 41 | AC9: =IF(VLOOKUP($A$3,'G5-RL1'!$A$14:$AG$501,3,FALSE)>0,VLOOKUP($A$3,'G5-RL1'!$A$14:$AG$501,5,FALSE)*100,#N/A) -> 44 | AE9: =IFERROR(VLOOKUP($A$3,'G4-RL1'!$A$14:$AG$500,7,FALSE),"") -> 172 | AF9: =IFERROR(VLOOKUP($A$3,'G5-RL1'!$A$14:$AG$500,7,FALSE),"") -> 273 | AH9: =IFERROR(VLOOKUP($A$3,'G4-RL1'!$A$14:$AG$500,3,FALSE),"") -> 3063 | AI9: =IFERROR(VLOOKUP($A$3,'G5-RL1'!$A$14:$AG$500,3,FALSE),"") -> 4113 | AL9: FCAT L1 | AN9: =IF(VLOOKUP($A$3,'G4-ML1'!$A$14:$AG$501,3,FALSE)>0,VLOOKUP($A$3,'G4-ML1'!$A$14:$AG$501,5,FALSE)*100,#N/A) -> 30 | AO9: =IF(VLOOKUP($A$3,'G5-ML1'!$A$14:$AG$501,3,FALSE)>0,VLOOKUP($A$3,'G5-ML1'!$A$14:$AG$501,5,FALSE)*100,#N/A) -> 40 | AQ9: =IFERROR(VLOOKUP($A$3,'G4-ML1'!$A$14:$AG$500,7,FALSE),"") -> 105 | AR9: =IFERROR(VLOOKUP($A$3,'G5-ML1'!$A$14:$AG$500,7,FALSE),"") -> 77 | AT9: =IFERROR(VLOOKUP($A$3,'G4-ML1'!$A$14:$AG$500,3,FALSE),"") -> 1295 | AU9: =IFERROR(VLOOKUP($A$3,'G5-ML1'!$A$14:$AG$500,3,FALSE),"") -> 2147 | AW9: White | AX9: =IF(VLOOKUP($A$3,'G4-WW'!$A$14:$AG$500,3,FALSE)>0,VLOOKUP($A$3,'G4-WW'!$A$14:$AG$500,4,FALSE),#N/A) -> 2.893132438 | AZ9: =IF(VLOOKUP($A$3,'G4-WW'!$A$14:$AG$500,12,FALSE)>0,VLOOKUP($A$3,'G4-WW'!$A$14:$AG$500,13,FALSE),#N/A) -> 3.01466764 | BD9: =IFERROR(VLOOKUP($A$3,'G4-WW'!$A$14:$AG$485,3,FALSE),"") -> 1427 | BF9: =IFERROR(VLOOKUP($A$3,'G4-WW'!$A$14:$AG$485,12,FALSE),"") -> 1384
Z10: FCAT L2 | AB10: =IF(VLOOKUP($A$3,'G4-RL2'!$A$14:$AG$501,3,FALSE)>0,VLOOKUP($A$3,'G4-RL2'!$A$14:$AG$501,5,FALSE)*100,#N/A) -> 53 | AC10: =IF(VLOOKUP($A$3,'G5-RL2'!$A$14:$AG$501,3,FALSE)>0,VLOOKUP($A$3,'G5-RL2'!$A$14:$AG$501,5,FALSE)*100,#N/A) -> 56 | AE10: =IFERROR(VLOOKUP($A$3,'G4-RL2'!$A$14:$AG$500,7,FALSE),"") -> 408 | AF10: =IFERROR(VLOOKUP($A$3,'G5-RL2'!$A$14:$AG$500,7,FALSE),"") -> 472 | AH10: =IFERROR(VLOOKUP($A$3,'G4-RL2'!$A$14:$AG$500,3,FALSE),"") -> 2988 | AI10: =IFERROR(VLOOKUP($A$3,'G5-RL2'!$A$14:$AG$500,3,FALSE),"") -> 3079 | AL10: FCAT L2 | AN10: =IF(VLOOKUP($A$3,'G4-ML2'!$A$14:$AG$501,3,FALSE)>0,VLOOKUP($A$3,'G4-ML2'!$A$14:$AG$501,5,FALSE)*100,#N/A) -> 36 | AO10: =IF(VLOOKUP($A$3,'G5-ML2'!$A$14:$AG$501,3,FALSE)>0,VLOOKUP($A$3,'G5-ML2'!$A$14:$AG$501,5,FALSE)*100,#N/A) -> 49 | AQ10: =IFERROR(VLOOKUP($A$3,'G4-ML2'!$A$14:$AG$500,7,FALSE),"") -> 354 | AR10: =IFERROR(VLOOKUP($A$3,'G5-ML2'!$A$14:$AG$500,7,FALSE),"") -> 342 | AT10: =IFERROR(VLOOKUP($A$3,'G4-ML2'!$A$14:$AG$500,3,FALSE),"") -> 2364 | AU10: =IFERROR(VLOOKUP($A$3,'G5-ML2'!$A$14:$AG$500,3,FALSE),"") -> 3385 | AW10: Black | AX10: =IF(VLOOKUP($A$3,'G4-WB'!$A$14:$AG$500,3,FALSE)>0,VLOOKUP($A$3,'G4-WB'!$A$14:$AG$500,4,FALSE),#N/A) -> 2.660660778 | AZ10: =IF(VLOOKUP($A$3,'G4-WB'!$A$14:$AG$500,12,FALSE)>0,VLOOKUP($A$3,'G4-WB'!$A$14:$AG$500,13,FALSE),#N/A) -> 2.796424237 | BD10: =IFERROR(VLOOKUP($A$3,'G4-WB'!$A$14:$AG$499,3,FALSE),"") -> 4873 | BF10: =IFERROR(VLOOKUP($A$3,'G4-WB'!$A$14:$AG$499,12,FALSE),"") -> 4950
Z11: FCAT L3 | AB11: =IF(VLOOKUP($A$3,'G4-RL3'!$A$14:$AG$501,3,FALSE)>0,VLOOKUP($A$3,'G4-RL3'!$A$14:$AG$501,5,FALSE)*100,#N/A) -> 65 | AC11: =IF(VLOOKUP($A$3,'G5-RL3'!$A$14:$AG$501,3,FALSE)>0,VLOOKUP($A$3,'G5-RL3'!$A$14:$AG$501,5,FALSE)*100,#N/A) -> 65 | AE11: =IFERROR(VLOOKUP($A$3,'G4-RL3'!$A$14:$AG$500,7,FALSE),"") -> 1131 | AF11: =IFERROR(VLOOKUP($A$3,'G5-RL3'!$A$14:$AG$500,7,FALSE),"") -> 1262 | AH11: =IFERROR(VLOOKUP($A$3,'G4-RL3'!$A$14:$AG$500,3,FALSE),"") -> 7991 | AI11: =IFERROR(VLOOKUP($A$3,'G5-RL3'!$A$14:$AG$500,3,FALSE),"") -> 7344 | AL11: FCAT L3 | AN11: =IF(VLOOKUP($A$3,'G4-ML3'!$A$14:$AG$501,3,FALSE)>0,VLOOKUP($A$3,'G4-ML3'!$A$14:$AG$501,5,FALSE)*100,#N/A) -> 44 | AO11: =IF(VLOOKUP($A$3,'G5-ML3'!$A$14:$AG$501,3,FALSE)>0,VLOOKUP($A$3,'G5-ML3'!$A$14:$AG$501,5,FALSE)*100,#N/A) -> 59 | AQ11: =IFERROR(VLOOKUP($A$3,'G4-ML3'!$A$14:$AG$500,7,FALSE),"") -> 1430 | AR11: =IFERROR(VLOOKUP($A$3,'G5-ML3'!$A$14:$AG$500,7,FALSE),"") -> 1158 | AT11: =IFERROR(VLOOKUP($A$3,'G4-ML3'!$A$14:$AG$500,3,FALSE),"") -> 6950 | AU11: =IFERROR(VLOOKUP($A$3,'G5-ML3'!$A$14:$AG$500,3,FALSE),"") -> 7831 | AW11: Hisp. | AX11: =IF(VLOOKUP($A$3,'G4-WH'!$A$14:$AG$500,3,FALSE)>0,VLOOKUP($A$3,'G4-WH'!$A$14:$AG$500,4,FALSE),#N/A) -> 2.766259452 | AZ11: =IF(VLOOKUP($A$3,'G4-WH'!$A$14:$AG$500,12,FALSE)>0,VLOOKUP($A$3,'G4-WH'!$A$14:$AG$500,13,FALSE),#N/A) -> 2.83057118 | BD11: =IFERROR(VLOOKUP($A$3,'G4-WH'!$A$14:$AG$499,3,FALSE),"") -> 12688 | BF11: =IFERROR(VLOOKUP($A$3,'G4-WH'!$A$14:$AG$499,12,FALSE),"") -> 12623
Z12: FCAT L4 | AB12: =IF(VLOOKUP($A$3,'G4-RL4'!$A$14:$AG$501,3,FALSE)>0,VLOOKUP($A$3,'G4-RL4'!$A$14:$AG$501,5,FALSE)*100,#N/A) -> 79 | AC12: =IF(VLOOKUP($A$3,'G5-RL4'!$A$14:$AG$501,3,FALSE)>0,VLOOKUP($A$3,'G5-RL4'!$A$14:$AG$501,5,FALSE)*100,#N/A) -> 75 | AE12: =IFERROR(VLOOKUP($A$3,'G4-RL4'!$A$14:$AG$500,7,FALSE),"") -> 215 | AF12: =IFERROR(VLOOKUP($A$3,'G5-RL4'!$A$14:$AG$500,7,FALSE),"") -> 472 | AH12: =IFERROR(VLOOKUP($A$3,'G4-RL4'!$A$14:$AG$500,3,FALSE),"") -> 7011 | AI12: =IFERROR(VLOOKUP($A$3,'G5-RL4'!$A$14:$AG$500,3,FALSE),"") -> 6714 | AL12: FCAT L4 | AN12: =IF(VLOOKUP($A$3,'G4-ML4'!$A$14:$AG$501,3,FALSE)>0,VLOOKUP($A$3,'G4-ML4'!$A$14:$AG$501,5,FALSE)*100,#N/A) -> 58 | AO12: =IF(VLOOKUP($A$3,'G5-ML4'!$A$14:$AG$501,3,FALSE)>0,VLOOKUP($A$3,'G5-ML4'!$A$14:$AG$501,5,FALSE)*100,#N/A) -> 72 | AQ12: =IFERROR(VLOOKUP($A$3,'G4-ML4'!$A$14:$AG$500,7,FALSE),"") -> 945 | AR12: =IFERROR(VLOOKUP($A$3,'G5-ML4'!$A$14:$AG$500,7,FALSE),"") -> 584 | AT12: =IFERROR(VLOOKUP($A$3,'G4-ML4'!$A$14:$AG$500,3,FALSE),"") -> 7515 | AU12: =IFERROR(VLOOKUP($A$3,'G5-ML4'!$A$14:$AG$500,3,FALSE),"") -> 6756 | AW12: ED | AX12: =IF(VLOOKUP($A$3,'G4-WED'!$A$14:$AG$500,3,FALSE)>0,VLOOKUP($A$3,'G4-WED'!$A$14:$AG$500,4,FALSE),#N/A) -> 2.675304193 | AZ12: =IF(VLOOKUP($A$3,'G4-WED'!$A$14:$AG$500,12,FALSE)>0,VLOOKUP($A$3,'G4-WED'!$A$14:$AG$500,13,FALSE),#N/A) -> 2.755153776 | BD12: =IFERROR(VLOOKUP($A$3,'G4-WED'!$A$14:$AG$499,3,FALSE),"") -> 14958 | BF12: =IFERROR(VLOOKUP($A$3,'G4-WED'!$A$14:$AG$499,12,FALSE),"") -> 14989
Z13: FCAT L5 | AB13: =IF(VLOOKUP($A$3,'G4-RL5'!$A$14:$AG$501,3,FALSE)>0,VLOOKUP($A$3,'G4-RL5'!$A$14:$AG$501,5,FALSE)*100,#N/A) -> 86 | AC13: =IF(VLOOKUP($A$3,'G5-RL5'!$A$14:$AG$501,3,FALSE)>0,VLOOKUP($A$3,'G5-RL5'!$A$14:$AG$501,5,FALSE)*100,#N/A) -> 82 | AE13: =IFERROR(VLOOKUP($A$3,'G4-RL5'!$A$14:$AG$500,7,FALSE),"") -> 9 | AF13: =IFERROR(VLOOKUP($A$3,'G5-RL5'!$A$14:$AG$500,7,FALSE),"") -> 15 | AH13: =IFERROR(VLOOKUP($A$3,'G4-RL5'!$A$14:$AG$500,3,FALSE),"") -> 1624 | AI13: =IFERROR(VLOOKUP($A$3,'G5-RL5'!$A$14:$AG$500,3,FALSE),"") -> 2424 | AL13: FCAT L5 | AN13: =IF(VLOOKUP($A$3,'G4-ML5'!$A$14:$AG$501,3,FALSE)>0,VLOOKUP($A$3,'G4-ML5'!$A$14:$AG$501,5,FALSE)*100,#N/A) -> 76 | AO13: =IF(VLOOKUP($A$3,'G5-ML5'!$A$14:$AG$501,3,FALSE)>0,VLOOKUP($A$3,'G5-ML5'!$A$14:$AG$501,5,FALSE)*100,#N/A) -> 84 | AQ13: =IFERROR(VLOOKUP($A$3,'G4-ML5'!$A$14:$AG$500,7,FALSE),"") -> 78 | AR13: =IFERROR(VLOOKUP($A$3,'G5-ML5'!$A$14:$AG$500,7,FALSE),"") -> 52 | AT13: =IFERROR(VLOOKUP($A$3,'G4-ML5'!$A$14:$AG$500,3,FALSE),"") -> 3898 | AU13: =IFERROR(VLOOKUP($A$3,'G5-ML5'!$A$14:$AG$500,3,FALSE),"") -> 3007 | AW13: ELL | AX13: =IF(VLOOKUP($A$3,'G4-WELL'!$A$14:$AG$500,3,FALSE)>0,VLOOKUP($A$3,'G4-WELL'!$A$14:$AG$500,4,FALSE),#N/A) -> 2.459041291 | AZ13: =IF(VLOOKUP($A$3,'G4-WELL'!$A$14:$AG$500,12,FALSE)>0,VLOOKUP($A$3,'G4-WELL'!$A$14:$AG$500,13,FALSE),#N/A) -> 2.523759014 | BD13: =IFERROR(VLOOKUP($A$3,'G4-WELL'!$A$14:$AG$492,3,FALSE),"") -> 6780 | BF13: =IFERROR(VLOOKUP($A$3,'G4-WELL'!$A$14:$AG$492,12,FALSE),"") -> 6789
Z14: White | AA14: =IF(VLOOKUP($A$3,'G3-RW'!$A$14:$AG$501,3,FALSE)>0,VLOOKUP($A$3,'G3-RW'!$A$14:$AG$501,5,FALSE)*100,#N/A) -> 70 | AB14: =IF(VLOOKUP($A$3,'G4-RW'!$A$14:$AG$501,3,FALSE)>0,VLOOKUP($A$3,'G4-RW'!$A$14:$AG$501,5,FALSE)*100,#N/A) -> 73 | AC14: =IF(VLOOKUP($A$3,'G5-RW'!$A$14:$AG$501,3,FALSE)>0,VLOOKUP($A$3,'G5-RW'!$A$14:$AG$501,5,FALSE)*100,#N/A) -> 71 | AD14: =IFERROR(VLOOKUP($A$3,'G3-RW'!$A$14:$AG$500,7,FALSE),"") -> 145 | AE14: =IFERROR(VLOOKUP($A$3,'G4-RW'!$A$14:$AG$500,7,FALSE),"") -> 112 | AF14: =IFERROR(VLOOKUP($A$3,'G5-RW'!$A$14:$AG$500,7,FALSE),"") -> 162 | AG14: =IFERROR(VLOOKUP($A$3,'G3-RW'!$A$14:$AG$500,3,FALSE),"") -> 2069 | AH14: =IFERROR(VLOOKUP($A$3,'G4-RW'!$A$14:$AG$500,3,FALSE),"") -> 1986 | AI14: =IFERROR(VLOOKUP($A$3,'G5-RW'!$A$14:$AG$500,3,FALSE),"") -> 2000 | AL14: White | AM14: =IF(VLOOKUP($A$3,'G3-MW'!$A$14:$AG$501,3,FALSE)>0,VLOOKUP($A$3,'G3-MW'!$A$14:$AG$501,5,FALSE)*100,#N/A) -> 58 | AN14: =IF(VLOOKUP($A$3,'G4-MW'!$A$14:$AG$501,3,FALSE)>0,VLOOKUP($A$3,'G4-MW'!$A$14:$AG$501,5,FALSE)*100,#N/A) -> 60 | AO14: =IF(VLOOKUP($A$3,'G5-MW'!$A$14:$AG$501,3,FALSE)>0,VLOOKUP($A$3,'G5-MW'!$A$14:$AG$501,5,FALSE)*100,#N/A) -> 69 | AP14: =IFERROR(VLOOKUP($A$3,'G3-MW'!$A$14:$AG$500,7,FALSE),"") -> 183 | AQ14: =IFERROR(VLOOKUP($A$3,'G4-MW'!$A$14:$AG$500,7,FALSE),"") -> 230 | AR14: =IFERROR(VLOOKUP($A$3,'G5-MW'!$A$14:$AG$500,7,FALSE),"") -> 181 | AS14: =IFERROR(VLOOKUP($A$3,'G3-MW'!$A$14:$AG$500,3,FALSE),"") -> 2041 | AT14: =IFERROR(VLOOKUP($A$3,'G4-MW'!$A$14:$AG$500,3,FALSE),"") -> 1961 | AU14: =IFERROR(VLOOKUP($A$3,'G5-MW'!$A$14:$AG$500,3,FALSE),"") -> 1947 | AW14: SWD | AX14: =IF(VLOOKUP($A$3,'G4-WSWD'!$A$14:$AG$500,3,FALSE)>0,VLOOKUP($A$3,'G4-WSWD'!$A$14:$AG$500,4,FALSE),#N/A) -> 2.088555719 | AZ14: =IF(VLOOKUP($A$3,'G4-WSWD'!$A$14:$AG$500,12,FALSE)>0,VLOOKUP($A$3,'G4-WSWD'!$A$14:$AG$500,13,FALSE),#N/A) -> 2.216937946 | BD14: =IFERROR(VLOOKUP($A$3,'G4-WSWD'!$A$14:$AG$499,3,FALSE),"") -> 2001 | BF14: =IFERROR(VLOOKUP($A$3,'G4-WSWD'!$A$14:$AG$499,12,FALSE),"") -> 1966
Z15: Black | AA15: =IF(VLOOKUP($A$3,'G3-RB'!$A$14:$AG$501,3,FALSE)>0,VLOOKUP($A$3,'G3-RB'!$A$14:$AG$501,5,FALSE)*100,#N/A) -> 55 | AB15: =IF(VLOOKUP($A$3,'G4-RB'!$A$14:$AG$501,3,FALSE)>0,VLOOKUP($A$3,'G4-RB'!$A$14:$AG$501,5,FALSE)*100,#N/A) -> 60 | AC15: =IF(VLOOKUP($A$3,'G5-RB'!$A$14:$AG$501,3,FALSE)>0,VLOOKUP($A$3,'G5-RB'!$A$14:$AG$501,5,FALSE)*100,#N/A) -> 61 | AD15: =IFERROR(VLOOKUP($A$3,'G3-RB'!$A$14:$AG$500,7,FALSE),"") -> 534 | AE15: =IFERROR(VLOOKUP($A$3,'G4-RB'!$A$14:$AG$500,7,FALSE),"") -> 540 | AF15: =IFERROR(VLOOKUP($A$3,'G5-RB'!$A$14:$AG$500,7,FALSE),"") -> 619 | AG15: =IFERROR(VLOOKUP($A$3,'G3-RB'!$A$14:$AG$500,3,FALSE),"") -> 6066 | AH15: =IFERROR(VLOOKUP($A$3,'G4-RB'!$A$14:$AG$500,3,FALSE),"") -> 5523 | AI15: =IFERROR(VLOOKUP($A$3,'G5-RB'!$A$14:$AG$500,3,FALSE),"") -> 5751 | AL15: Black | AM15: =IF(VLOOKUP($A$3,'G3-MB'!$A$14:$AG$501,3,FALSE)>0,VLOOKUP($A$3,'G3-MB'!$A$14:$AG$501,5,FALSE)*100,#N/A) -> 47 | AN15: =IF(VLOOKUP($A$3,'G4-MB'!$A$14:$AG$501,3,FALSE)>0,VLOOKUP($A$3,'G4-MB'!$A$14:$AG$501,5,FALSE)*100,#N/A) -> 48 | AO15: =IF(VLOOKUP($A$3,'G5-MB'!$A$14:$AG$501,3,FALSE)>0,VLOOKUP($A$3,'G5-MB'!$A$14:$AG$501,5,FALSE)*100,#N/A) -> 58 | AP15: =IFERROR(VLOOKUP($A$3,'G3-MB'!$A$14:$AG$500,7,FALSE),"") -> 731 | AQ15: =IFERROR(VLOOKUP($A$3,'G4-MB'!$A$14:$AG$500,7,FALSE),"") -> 759 | AR15: =IFERROR(VLOOKUP($A$3,'G5-MB'!$A$14:$AG$500,7,FALSE),"") -> 568 | AS15: =IFERROR(VLOOKUP($A$3,'G3-MB'!$A$14:$AG$500,3,FALSE),"") -> 6048 | AT15: =IFERROR(VLOOKUP($A$3,'G4-MB'!$A$14:$AG$500,3,FALSE),"") -> 5298 | AU15: =IFERROR(VLOOKUP($A$3,'G5-MB'!$A$14:$AG$500,3,FALSE),"") -> 5589
Z16: Hisp. | AA16: =IF(VLOOKUP($A$3,'G3-RH'!$A$14:$AG$501,3,FALSE)>0,VLOOKUP($A$3,'G3-RH'!$A$14:$AG$501,5,FALSE)*100,#N/A) -> 61 | AB16: =IF(VLOOKUP($A$3,'G4-RH'!$A$14:$AG$501,3,FALSE)>0,VLOOKUP($A$3,'G4-RH'!$A$14:$AG$501,5,FALSE)*100,#N/A) -> 66 | AC16: =IF(VLOOKUP($A$3,'G5-RH'!$A$14:$AG$501,3,FALSE)>0,VLOOKUP($A$3,'G5-RH'!$A$14:$AG$501,5,FALSE)*100,#N/A) -> 64 | AD16: =IFERROR(VLOOKUP($A$3,'G3-RH'!$A$14:$AG$500,7,FALSE),"") -> 1500 | AE16: =IFERROR(VLOOKUP($A$3,'G4-RH'!$A$14:$AG$500,7,FALSE),"") -> 1346 | AF16: =IFERROR(VLOOKUP($A$3,'G5-RH'!$A$14:$AG$500,7,FALSE),"") -> 1774 | AG16: =IFERROR(VLOOKUP($A$3,'G3-RH'!$A$14:$AG$500,3,FALSE),"") -> 17210 | AH16: =IFERROR(VLOOKUP($A$3,'G4-RH'!$A$14:$AG$500,3,FALSE),"") -> 16116 | AI16: =IFERROR(VLOOKUP($A$3,'G5-RH'!$A$14:$AG$500,3,FALSE),"") -> 16710 | AL16: Hisp. | AM16: =IF(VLOOKUP($A$3,'G3-MH'!$A$14:$AG$501,3,FALSE)>0,VLOOKUP($A$3,'G3-MH'!$A$14:$AG$501,5,FALSE)*100,#N/A) -> 51 | AN16: =IF(VLOOKUP($A$3,'G4-MH'!$A$14:$AG$501,3,FALSE)>0,VLOOKUP($A$3,'G4-MH'!$A$14:$AG$501,5,FALSE)*100,#N/A) -> 53 | AO16: =IF(VLOOKUP($A$3,'G5-MH'!$A$14:$AG$501,3,FALSE)>0,VLOOKUP($A$3,'G5-MH'!$A$14:$AG$501,5,FALSE)*100,#N/A) -> 63 | AP16: =IFERROR(VLOOKUP($A$3,'G3-MH'!$A$14:$AG$500,7,FALSE),"") -> 1945 | AQ16: =IFERROR(VLOOKUP($A$3,'G4-MH'!$A$14:$AG$500,7,FALSE),"") -> 2044 | AR16: =IFERROR(VLOOKUP($A$3,'G5-MH'!$A$14:$AG$500,7,FALSE),"") -> 1522 | AS16: =IFERROR(VLOOKUP($A$3,'G3-MH'!$A$14:$AG$500,3,FALSE),"") -> 16966 | AT16: =IFERROR(VLOOKUP($A$3,'G4-MH'!$A$14:$AG$500,3,FALSE),"") -> 15694 | AU16: =IFERROR(VLOOKUP($A$3,'G5-MH'!$A$14:$AG$500,3,FALSE),"") -> 16343
Z17: ED | AA17: =IF(VLOOKUP($A$3,'G3-RED'!$A$14:$AG$501,3,FALSE)>0,VLOOKUP($A$3,'G3-RED'!$A$14:$AG$501,5,FALSE)*100,#N/A) -> 58 | AB17: =IF(VLOOKUP($A$3,'G4-RED'!$A$14:$AG$501,3,FALSE)>0,VLOOKUP($A$3,'G4-RED'!$A$14:$AG$501,5,FALSE)*100,#N/A) -> 63 | AC17: =IF(VLOOKUP($A$3,'G5-RED'!$A$14:$AG$501,3,FALSE)>0,VLOOKUP($A$3,'G5-RED'!$A$14:$AG$501,5,FALSE)*100,#N/A) -> 62 | AD17: =IFERROR(VLOOKUP($A$3,'G3-RED'!$A$14:$AG$500,7,FALSE),"") -> 1790 | AE17: =IFERROR(VLOOKUP($A$3,'G4-RED'!$A$14:$AG$500,7,FALSE),"") -> 1671 | AF17: =IFERROR(VLOOKUP($A$3,'G5-RED'!$A$14:$AG$500,7,FALSE),"") -> 2109 | AG17: =IFERROR(VLOOKUP($A$3,'G3-RED'!$A$14:$AG$500,3,FALSE),"") -> 19849 | AH17: =IFERROR(VLOOKUP($A$3,'G4-RED'!$A$14:$AG$500,3,FALSE),"") -> 18254 | AI17: =IFERROR(VLOOKUP($A$3,'G5-RED'!$A$14:$AG$500,3,FALSE),"") -> 18994 | AL17: ED | AM17: =IF(VLOOKUP($A$3,'G3-MED'!$A$14:$AG$501,3,FALSE)>0,VLOOKUP($A$3,'G3-MED'!$A$14:$AG$501,5,FALSE)*100,#N/A) -> 49 | AN17: =IF(VLOOKUP($A$3,'G4-MED'!$A$14:$AG$501,3,FALSE)>0,VLOOKUP($A$3,'G4-MED'!$A$14:$AG$501,5,FALSE)*100,#N/A) -> 50 | AO17: =IF(VLOOKUP($A$3,'G5-MED'!$A$14:$AG$501,3,FALSE)>0,VLOOKUP($A$3,'G5-MED'!$A$14:$AG$501,5,FALSE)*100,#N/A) -> 60 | AP17: =IFERROR(VLOOKUP($A$3,'G3-MED'!$A$14:$AG$500,7,FALSE),"") -> 2330 | AQ17: =IFERROR(VLOOKUP($A$3,'G4-MED'!$A$14:$AG$500,7,FALSE),"") -> 2462 | AR17: =IFERROR(VLOOKUP($A$3,'G5-MED'!$A$14:$AG$500,7,FALSE),"") -> 1837 | AS17: =IFERROR(VLOOKUP($A$3,'G3-MED'!$A$14:$AG$500,3,FALSE),"") -> 19411 | AT17: =IFERROR(VLOOKUP($A$3,'G4-MED'!$A$14:$AG$500,3,FALSE),"") -> 17728 | AU17: =IFERROR(VLOOKUP($A$3,'G5-MED'!$A$14:$AG$500,3,FALSE),"") -> 18520
Z18: ELL | AA18: =IF(VLOOKUP($A$3,'G3-RELL'!$A$14:$AG$501,3,FALSE)>0,VLOOKUP($A$3,'G3-RELL'!$A$14:$AG$501,5,FALSE)*100,#N/A) -> 58 | AB18: =IF(VLOOKUP($A$3,'G4-RELL'!$A$14:$AG$501,3,FALSE)>0,VLOOKUP($A$3,'G4-RELL'!$A$14:$AG$501,5,FALSE)*100,#N/A) -> 59 | AC18: =IF(VLOOKUP($A$3,'G5-RELL'!$A$14:$AG$501,3,FALSE)>0,VLOOKUP($A$3,'G5-RELL'!$A$14:$AG$501,5,FALSE)*100,#N/A) -> 52 | AD18: =IFERROR(VLOOKUP($A$3,'G3-RELL'!$A$14:$AG$500,7,FALSE),"") -> 1117 | AE18: =IFERROR(VLOOKUP($A$3,'G4-RELL'!$A$14:$AG$500,7,FALSE),"") -> 850 | AF18: =IFERROR(VLOOKUP($A$3,'G5-RELL'!$A$14:$AG$500,7,FALSE),"") -> 517 | AG18: =IFERROR(VLOOKUP($A$3,'G3-RELL'!$A$14:$AG$500,3,FALSE),"") -> 12643 | AH18: =IFERROR(VLOOKUP($A$3,'G4-RELL'!$A$14:$AG$500,3,FALSE),"") -> 8631 | AI18: =IFERROR(VLOOKUP($A$3,'G5-RELL'!$A$14:$AG$500,3,FALSE),"") -> 4805 | AL18: ELL | AM18: =IF(VLOOKUP($A$3,'G3-MELL'!$A$14:$AG$501,3,FALSE)>0,VLOOKUP($A$3,'G3-MELL'!$A$14:$AG$501,5,FALSE)*100,#N/A) -> 49 | AN18: =IF(VLOOKUP($A$3,'G4-MELL'!$A$14:$AG$501,3,FALSE)>0,VLOOKUP($A$3,'G4-MELL'!$A$14:$AG$501,5,FALSE)*100,#N/A) -> 48 | AO18: =IF(VLOOKUP($A$3,'G5-MELL'!$A$14:$AG$501,3,FALSE)>0,VLOOKUP($A$3,'G5-MELL'!$A$14:$AG$501,5,FALSE)*100,#N/A) -> 53 | AP18: =IFERROR(VLOOKUP($A$3,'G3-MELL'!$A$14:$AG$500,7,FALSE),"") -> 1483 | AQ18: =IFERROR(VLOOKUP($A$3,'G4-MELL'!$A$14:$AG$500,7,FALSE),"") -> 1263 | AR18: =IFERROR(VLOOKUP($A$3,'G5-MELL'!$A$14:$AG$500,7,FALSE),"") -> 436 | AS18: =IFERROR(VLOOKUP($A$3,'G3-MELL'!$A$14:$AG$500,3,FALSE),"") -> 12522 | AT18: =IFERROR(VLOOKUP($A$3,'G4-MELL'!$A$14:$AG$500,3,FALSE),"") -> 8494 | AU18: =IFERROR(VLOOKUP($A$3,'G5-MELL'!$A$14:$AG$500,3,FALSE),"") -> 4737
Z19: SWD | AA19: =IF(VLOOKUP($A$3,'G3-RSWD'!$A$14:$AG$501,3,FALSE)>0,VLOOKUP($A$3,'G3-RSWD'!$A$14:$AG$501,5,FALSE)*100,#N/A) -> 43 | AB19: =IF(VLOOKUP($A$3,'G4-RSWD'!$A$14:$AG$501,3,FALSE)>0,VLOOKUP($A$3,'G4-RSWD'!$A$14:$AG$501,5,FALSE)*100,#N/A) -> 49 | AC19: =IF(VLOOKUP($A$3,'G5-RSWD'!$A$14:$AG$501,3,FALSE)>0,VLOOKUP($A$3,'G5-RSWD'!$A$14:$AG$501,5,FALSE)*100,#N/A) -> 49 | AD19: =IFERROR(VLOOKUP($A$3,'G3-RSWD'!$A$14:$AG$500,7,FALSE),"") -> 121 | AE19: =IFERROR(VLOOKUP($A$3,'G4-RSWD'!$A$14:$AG$500,7,FALSE),"") -> 178 | AF19: =IFERROR(VLOOKUP($A$3,'G5-RSWD'!$A$14:$AG$500,7,FALSE),"") -> 217 | AG19: =IFERROR(VLOOKUP($A$3,'G3-RSWD'!$A$14:$AG$500,3,FALSE),"") -> 2435 | AH19: =IFERROR(VLOOKUP($A$3,'G4-RSWD'!$A$14:$AG$500,3,FALSE),"") -> 2336 | AI19: =IFERROR(VLOOKUP($A$3,'G5-RSWD'!$A$14:$AG$500,3,FALSE),"") -> 2602 | AL19: SWD | AM19: =IF(VLOOKUP($A$3,'G3-MSWD'!$A$14:$AG$501,3,FALSE)>0,VLOOKUP($A$3,'G3-MSWD'!$A$14:$AG$501,5,FALSE)*100,#N/A) -> 41 | AN19: =IF(VLOOKUP($A$3,'G4-MSWD'!$A$14:$AG$501,3,FALSE)>0,VLOOKUP($A$3,'G4-MSWD'!$A$14:$AG$501,5,FALSE)*100,#N/A) -> 41 | AO19: =IF(VLOOKUP($A$3,'G5-MSWD'!$A$14:$AG$501,3,FALSE)>0,VLOOKUP($A$3,'G5-MSWD'!$A$14:$AG$501,5,FALSE)*100,#N/A) -> 49 | AP19: =IFERROR(VLOOKUP($A$3,'G3-MSWD'!$A$14:$AG$500,7,FALSE),"") -> 266 | AQ19: =IFERROR(VLOOKUP($A$3,'G4-MSWD'!$A$14:$AG$500,7,FALSE),"") -> 342 | AR19: =IFERROR(VLOOKUP($A$3,'G5-MSWD'!$A$14:$AG$500,7,FALSE),"") -> 194 | AS19: =IFERROR(VLOOKUP($A$3,'G3-MSWD'!$A$14:$AG$500,3,FALSE),"") -> 2387 | AT19: =IFERROR(VLOOKUP($A$3,'G4-MSWD'!$A$14:$AG$500,3,FALSE),"") -> 2282 | AU19: =IFERROR(VLOOKUP($A$3,'G5-MSWD'!$A$14:$AG$500,3,FALSE),"") -> 2494

Sheet % Performance Report
A2: Click here to return to the school and sheet selection interface
A3: ='Select School'!B3 -> 9999
A4: =TEXT(A3,"0000")&"-"&VLOOKUP(A3,SchList!$A$2:$B$504,2,FALSE) -> 9999-DISTRICT | Z4: =$A$4 -> 9999-DISTRICT | AL4: =$A$4 -> 9999-DISTRICT | AW4: =$A$4 -> 9999-DISTRICT | BH4: =$A$4 -> 9999-DISTRICT
Z5: Reading | AL5: Math | AW5: Writing | BH5: Science
AA6: % Profiecient | AD6: Number of Proficient | AG6: Number Tested | AM6: % Profiecient | AP6: Number of Proficient | AS6: Number Tested | AX6: %4-6 | BA6: Number of Proficient | BD6: Number Tested | BI6: % Profiecient | BL6: Number of Proficient | BO6: Number Tested
Z7: Group | AA7: Grade 3 | AB7: Grade 4 | AC7: Grade 5 | AD7: Grade 3 | AE7: Grade 4 | AF7: Grade 5 | AG7: Grade 3 | AH7: Grade 4 | AI7: Grade 5 | AL7: Group | AM7: Grade 3 | AN7: Grade 4 | AO7: Grade 5 | AP7: Grade 3 | AQ7: Grade 4 | AR7: Grade 5 | AS7: Grade 3 | AT7: Grade 4 | AU7: Grade 5 | AW7: Grade 5 | AX7: Expository | AZ7: Narrative | BA7: Grade 3 | BB7: Grade 4 | BC7: Grade 5 | BD7: Expository | BF7: Narrative | BH7: Group | BK7: Grade 5 | BN7: Grade 5 | BQ7: Grade 5
Z8: All | AA8: =IF(VLOOKUP($A$3,'G3-RALL'!$A$14:$AG$501,3,FALSE)>0,VLOOKUP($A$3,'G3-RALL'!$A$14:$AG$501,11,FALSE)*100,#N/A) -> 49.94 | AB8: =IF(VLOOKUP($A$3,'G4-RALL'!$A$14:$AG$501,3,FALSE)>0,VLOOKUP($A$3,'G4-RALL'!$A$14:$AG$501,11,FALSE)*100,#N/A) -> 57.83 | AC8: =IF(VLOOKUP($A$3,'G5-RALL'!$A$14:$AG$501,3,FALSE)>0,VLOOKUP($A$3,'G5-RALL'!$A$14:$AG$501,11,FALSE)*100,#N/A) -> 54.73 | AD8: =IFERROR(VLOOKUP($A$3,'G3-RALL'!$A$14:$AG$500,8,FALSE),"") -> 12876 | AE8: =IFERROR(VLOOKUP($A$3,'G4-RALL'!$A$14:$AG$500,8,FALSE),"") -> 13903 | AF8: =IFERROR(VLOOKUP($A$3,'G5-RALL'!$A$14:$AG$500,8,FALSE),"") -> 13608 | AG8: =IFERROR(VLOOKUP($A$3,'G3-RALL'!$A$14:$AG$500,3,FALSE),"") -> 25785 | AH8: =IFERROR(VLOOKUP($A$3,'G4-RALL'!$A$14:$AG$500,3,FALSE),"") -> 24043 | AI8: =IFERROR(VLOOKUP($A$3,'G5-RALL'!$A$14:$AG$500,3,FALSE),"") -> 24862 | AL8: All | AM8: =IF(VLOOKUP($A$3,'G3-MALL'!$A$14:$Q$501,3,FALSE)>0,VLOOKUP($A$3,'G3-MALL'!$A$14:$Q$501,11,FALSE)*100,#N/A) -> 56.6 | AN8: =IF(VLOOKUP($A$3,'G4-MALL'!$A$14:$O$501,3,FALSE)>0,VLOOKUP($A$3,'G4-MALL'!$A$14:$O$501,11,FALSE)*100,#N/A) -> 56.95 | AO8: =IF(VLOOKUP($A$3,'G5-MALL'!$A$14:$AG$501,3,FALSE)>0,VLOOKUP($A$3,'G5-MALL'!$A$14:$AG$501,11,FALSE)*100,#N/A) -> 51.58 | AP8: =IFERROR(VLOOKUP($A$3,'G3-MALL'!$A$14:$Q$500,8,FALSE),"") -> 14288 | AQ8: =IFERROR(VLOOKUP($A$3,'G4-MALL'!$A$14:$O$500,8,FALSE),"") -> 13302 | AR8: =IFERROR(VLOOKUP($A$3,'G5-MALL'!$A$14:$AA$500,8,FALSE),"") -> 12525 | AS8: =IFERROR(VLOOKUP($A$3,'G3-MALL'!$A$14:$Q$500,3,FALSE),"") -> 25246 | AT8: =IFERROR(VLOOKUP($A$3,'G4-MALL'!$A$14:$O$500,3,FALSE),"") -> 23358 | AU8: =IFERROR(VLOOKUP($A$3,'G5-MALL'!$A$14:$AA$500,3,FALSE),"") -> 24281 | AW8: All | AX8: =IF(VLOOKUP($A$3,'G4-WALL'!$A$14:$AG$500,3,FALSE)>0,VLOOKUP($A$3,'G4-WALL'!$A$14:$AG$500,11,FALSE)*100,#N/A) -> 26.03919546 | AZ8: =IF(VLOOKUP($A$3,'G4-WALL'!$A$14:$AG$500,12,FALSE)>0,VLOOKUP($A$3,'G4-WALL'!$A$14:$AG$500,20,FALSE)*100,#N/A) -> 30.04750594 | BD8: =IFERROR(VLOOKUP($A$3,'G4-WALL'!$A$14:$AG$500,3,FALSE),"") -> 19390 | BF8: =IFERROR(VLOOKUP($A$3,'G4-WALL'!$A$14:$AG$500,12,FALSE),"") -> 19366 | BH8: All | BK8: =IF(VLOOKUP($A$3,'G5-SALL'!$A$14:$AG$501,3,FALSE)>0,VLOOKUP($A$3,'G5-SALL'!$A$14:$AG$501,9,FALSE)*100,#N/A) -> 11.79 | BN8: =IFERROR(VLOOKUP($A$3,'G5-SALL'!$A$14:$AG$500,7,FALSE),"") -> 2790 | BQ8: =IFERROR(VLOOKUP($A$3,'G5-SALL'!$A$14:$AG$500,3,FALSE),"") -> 23655
Z9: FCAT L1 | AB9: =IF(VLOOKUP($A$3,'G4-RL1'!$A$14:$AG$501,3,FALSE)>0,VLOOKUP($A$3,'G4-RL1'!$A$14:$AG$501,11,FALSE)*100,#N/A) -> 6.24 | AC9: =IF(VLOOKUP($A$3,'G5-RL1'!$A$14:$AG$501,3,FALSE)>0,VLOOKUP($A$3,'G5-RL1'!$A$14:$AG$501,11,FALSE)*100,#N/A) -> 7.05 | AE9: =IFERROR(VLOOKUP($A$3,'G4-RL1'!$A$14:$AG$500,8,FALSE),"") -> 191 | AF9: =IFERROR(VLOOKUP($A$3,'G5-RL1'!$A$14:$AG$500,8,FALSE),"") -> 290 | AH9: =IFERROR(VLOOKUP($A$3,'G4-RL1'!$A$14:$AG$500,3,FALSE),"") -> 3063 | AI9: =IFERROR(VLOOKUP($A$3,'G5-RL1'!$A$14:$AG$500,3,FALSE),"") -> 4113 | AL9: FCAT L1 | AN9: =IF(VLOOKUP($A$3,'G4-ML1'!$A$14:$AG$501,3,FALSE)>0,VLOOKUP($A$3,'G4-ML1'!$A$14:$AG$501,11,FALSE)*100,#N/A) -> 6.72 | AO9: =IF(VLOOKUP($A$3,'G5-ML1'!$A$14:$AG$501,3,FALSE)>0,VLOOKUP($A$3,'G5-ML1'!$A$14:$AG$501,11,FALSE)*100,#N/A) -> 4.8 | AQ9: =IFERROR(VLOOKUP($A$3,'G4-ML1'!$A$14:$AG$500,8,FALSE),"") -> 87 | AR9: =IFERROR(VLOOKUP($A$3,'G5-ML1'!$A$14:$AG$500,8,FALSE),"") -> 103 | AT9: =IFERROR(VLOOKUP($A$3,'G4-ML1'!$A$14:$AG$500,3,FALSE),"") -> 1295 | AU9: =IFERROR(VLOOKUP($A$3,'G5-ML1'!$A$14:$AG$500,3,FALSE),"") -> 2147 | AW9: White | AX9: =IF(VLOOKUP($A$3,'G4-WW'!$A$14:$AG$500,3,FALSE)>0,VLOOKUP($A$3,'G4-WW'!$A$14:$AG$500,11,FALSE)*100,#N/A) -> 28.66152768 | AZ9: =IF(VLOOKUP($A$3,'G4-WW'!$A$14:$AG$500,12,FALSE)>0,VLOOKUP($A$3,'G4-WW'!$A$14:$AG$500,20,FALSE)*100,#N/A) -> 35.62138728 | BD9: =IFERROR(VLOOKUP($A$3,'G4-WW'!$A$14:$AG$485,3,FALSE),"") -> 1427 | BF9: =IFERROR(VLOOKUP($A$3,'G4-WW'!$A$14:$AG$485,12,FALSE),"") -> 1384
Z10: FCAT L2 | AB10: =IF(VLOOKUP($A$3,'G4-RL2'!$A$14:$AG$501,3,FALSE)>0,VLOOKUP($A$3,'G4-RL2'!$A$14:$AG$501,11,FALSE)*100,#N/A) -> 18.78 | AC10: =IF(VLOOKUP($A$3,'G5-RL2'!$A$14:$AG$501,3,FALSE)>0,VLOOKUP($A$3,'G5-RL2'!$A$14:$AG$501,11,FALSE)*100,#N/A) -> 23.29 | AE10: =IFERROR(VLOOKUP($A$3,'G4-RL2'!$A$14:$AG$500,8,FALSE),"") -> 561 | AF10: =IFERROR(VLOOKUP($A$3,'G5-RL2'!$A$14:$AG$500,8,FALSE),"") -> 717 | AH10: =IFERROR(VLOOKUP($A$3,'G4-RL2'!$A$14:$AG$500,3,FALSE),"") -> 2988 | AI10: =IFERROR(VLOOKUP($A$3,'G5-RL2'!$A$14:$AG$500,3,FALSE),"") -> 3079 | AL10: FCAT L2 | AN10: =IF(VLOOKUP($A$3,'G4-ML2'!$A$14:$AG$501,3,FALSE)>0,VLOOKUP($A$3,'G4-ML2'!$A$14:$AG$501,11,FALSE)*100,#N/A) -> 17.34 | AO10: =IF(VLOOKUP($A$3,'G5-ML2'!$A$14:$AG$501,3,FALSE)>0,VLOOKUP($A$3,'G5-ML2'!$A$14:$AG$501,11,FALSE)*100,#N/A) -> 14.68 | AQ10: =IFERROR(VLOOKUP($A$3,'G4-ML2'!$A$14:$AG$500,8,FALSE),"") -> 410 | AR10: =IFERROR(VLOOKUP($A$3,'G5-ML2'!$A$14:$AG$500,8,FALSE),"") -> 497 | AT10: =IFERROR(VLOOKUP($A$3,'G4-ML2'!$A$14:$AG$500,3,FALSE),"") -> 2364 | AU10: =IFERROR(VLOOKUP($A$3,'G5-ML2'!$A$14:$AG$500,3,FALSE),"") -> 3385 | AW10: Black | AX10: =IF(VLOOKUP($A$3,'G4-WB'!$A$14:$AG$500,3,FALSE)>0,VLOOKUP($A$3,'G4-WB'!$A$14:$AG$500,11,FALSE)*100,#N/A) -> 22.22450236 | AZ10: =IF(VLOOKUP($A$3,'G4-WB'!$A$14:$AG$500,12,FALSE)>0,VLOOKUP($A$3,'G4-WB'!$A$14:$AG$500,20,FALSE)*100,#N/A) -> 27.77777778 | BD10: =IFERROR(VLOOKUP($A$3,'G4-WB'!$A$14:$AG$499,3,FALSE),"") -> 4873 | BF10: =IFERROR(VLOOKUP($A$3,'G4-WB'!$A$14:$AG$499,12,FALSE),"") -> 4950
Z11: FCAT L3 | AB11: =IF(VLOOKUP($A$3,'G4-RL3'!$A$14:$AG$501,3,FALSE)>0,VLOOKUP($A$3,'G4-RL3'!$A$14:$AG$501,11,FALSE)*100,#N/A) -> 57.04 | AC11: =IF(VLOOKUP($A$3,'G5-RL3'!$A$14:$AG$501,3,FALSE)>0,VLOOKUP($A$3,'G5-RL3'!$A$14:$AG$501,11,FALSE)*100,#N/A) -> 54.18 | AE11: =IFERROR(VLOOKUP($A$3,'G4-RL3'!$A$14:$AG$500,8,FALSE),"") -> 4558 | AF11: =IFERROR(VLOOKUP($A$3,'G5-RL3'!$A$14:$AG$500,8,FALSE),"") -> 3979 | AH11: =IFERROR(VLOOKUP($A$3,'G4-RL3'!$A$14:$AG$500,3,FALSE),"") -> 7991 | AI11: =IFERROR(VLOOKUP($A$3,'G5-RL3'!$A$14:$AG$500,3,FALSE),"") -> 7344 | AL11: FCAT L3 | AN11: =IF(VLOOKUP($A$3,'G4-ML3'!$A$14:$AG$501,3,FALSE)>0,VLOOKUP($A$3,'G4-ML3'!$A$14:$AG$501,11,FALSE)*100,#N/A) -> 39.73 | AO11: =IF(VLOOKUP($A$3,'G5-ML3'!$A$14:$AG$501,3,FALSE)>0,VLOOKUP($A$3,'G5-ML3'!$A$14:$AG$501,11,FALSE)*100,#N/A) -> 42.52 | AQ11: =IFERROR(VLOOKUP($A$3,'G4-ML3'!$A$14:$AG$500,8,FALSE),"") -> 2761 | AR11: =IFERROR(VLOOKUP($A$3,'G5-ML3'!$A$14:$AG$500,8,FALSE),"") -> 3330 | AT11: =IFERROR(VLOOKUP($A$3,'G4-ML3'!$A$14:$AG$500,3,FALSE),"") -> 6950 | AU11: =IFERROR(VLOOKUP($A$3,'G5-ML3'!$A$14:$AG$500,3,FALSE),"") -> 7831 | AW11: Hisp. | AX11: =IF(VLOOKUP($A$3,'G4-WH'!$A$14:$AG$500,3,FALSE)>0,VLOOKUP($A$3,'G4-WH'!$A$14:$AG$500,11,FALSE)*100,#N/A) -> 26.74180328 | AZ11: =IF(VLOOKUP($A$3,'G4-WH'!$A$14:$AG$500,12,FALSE)>0,VLOOKUP($A$3,'G4-WH'!$A$14:$AG$500,20,FALSE)*100,#N/A) -> 30.07209063 | BD11: =IFERROR(VLOOKUP($A$3,'G4-WH'!$A$14:$AG$499,3,FALSE),"") -> 12688 | BF11: =IFERROR(VLOOKUP($A$3,'G4-WH'!$A$14:$AG$499,12,FALSE),"") -> 12623
Z12: FCAT L4 | AB12: =IF(VLOOKUP($A$3,'G4-RL4'!$A$14:$AG$501,3,FALSE)>0,VLOOKUP($A$3,'G4-RL4'!$A$14:$AG$501,11,FALSE)*100,#N/A) -> 92.6 | AC12: =IF(VLOOKUP($A$3,'G5-RL4'!$A$14:$AG$501,3,FALSE)>0,VLOOKUP($A$3,'G5-RL4'!$A$14:$AG$501,11,FALSE)*100,#N/A) -> 87.73 | AE12: =IFERROR(VLOOKUP($A$3,'G4-RL4'!$A$14:$AG$500,8,FALSE),"") -> 6492 | AF12: =IFERROR(VLOOKUP($A$3,'G5-RL4'!$A$14:$AG$500,8,FALSE),"") -> 5890 | AH12: =IFERROR(VLOOKUP($A$3,'G4-RL4'!$A$14:$AG$500,3,FALSE),"") -> 7011 | AI12: =IFERROR(VLOOKUP($A$3,'G5-RL4'!$A$14:$AG$500,3,FALSE),"") -> 6714 | AL12: FCAT L4 | AN12: =IF(VLOOKUP($A$3,'G4-ML4'!$A$14:$AG$501,3,FALSE)>0,VLOOKUP($A$3,'G4-ML4'!$A$14:$AG$501,11,FALSE)*100,#N/A) -> 76.14 | AO12: =IF(VLOOKUP($A$3,'G5-ML4'!$A$14:$AG$501,3,FALSE)>0,VLOOKUP($A$3,'G5-ML4'!$A$14:$AG$501,11,FALSE)*100,#N/A) -> 78.57 | AQ12: =IFERROR(VLOOKUP($A$3,'G4-ML4'!$A$14:$AG$500,8,FALSE),"") -> 5722 | AR12: =IFERROR(VLOOKUP($A$3,'G5-ML4'!$A$14:$AG$500,8,FALSE),"") -> 5308 | AT12: =IFERROR(VLOOKUP($A$3,'G4-ML4'!$A$14:$AG$500,3,FALSE),"") -> 7515 | AU12: =IFERROR(VLOOKUP($A$3,'G5-ML4'!$A$14:$AG$500,3,FALSE),"") -> 6756 | AW12: ED | AX12: =IF(VLOOKUP($A$3,'G4-WED'!$A$14:$AG$500,3,FALSE)>0,VLOOKUP($A$3,'G4-WED'!$A$14:$AG$500,11,FALSE)*100,#N/A) -> 23.46570397 | AZ12: =IF(VLOOKUP($A$3,'G4-WED'!$A$14:$AG$500,12,FALSE)>0,VLOOKUP($A$3,'G4-WED'!$A$14:$AG$500,20,FALSE)*100,#N/A) -> 27.23997598 | BD12: =IFERROR(VLOOKUP($A$3,'G4-WED'!$A$14:$AG$499,3,FALSE),"") -> 14958 | BF12: =IFERROR(VLOOKUP($A$3,'G4-WED'!$A$14:$AG$499,12,FALSE),"") -> 14989
Z13: FCAT L5 | AB13: =IF(VLOOKUP($A$3,'G4-RL5'!$A$14:$AG$501,3,FALSE)>0,VLOOKUP($A$3,'G4-RL5'!$A$14:$AG$501,11,FALSE)*100,#N/A) -> 98.58 | AC13: =IF(VLOOKUP($A$3,'G5-RL5'!$A$14:$AG$501,3,FALSE)>0,VLOOKUP($A$3,'G5-RL5'!$A$14:$AG$501,11,FALSE)*100,#N/A) -> 98.39 | AE13: =IFERROR(VLOOKUP($A$3,'G4-RL5'!$A$14:$AG$500,8,FALSE),"") -> 1601 | AF13: =IFERROR(VLOOKUP($A$3,'G5-RL5'!$A$14:$AG$500,8,FALSE),"") -> 2385 | AH13: =IFERROR(VLOOKUP($A$3,'G4-RL5'!$A$14:$AG$500,3,FALSE),"") -> 1624 | AI13: =IFERROR(VLOOKUP($A$3,'G5-RL5'!$A$14:$AG$500,3,FALSE),"") -> 2424 | AL13: FCAT L5 | AN13: =IF(VLOOKUP($A$3,'G4-ML5'!$A$14:$AG$501,3,FALSE)>0,VLOOKUP($A$3,'G4-ML5'!$A$14:$AG$501,11,FALSE)*100,#N/A) -> 96.66 | AO13: =IF(VLOOKUP($A$3,'G5-ML5'!$A$14:$AG$501,3,FALSE)>0,VLOOKUP($A$3,'G5-ML5'!$A$14:$AG$501,11,FALSE)*100,#N/A) -> 96.38 | AQ13: =IFERROR(VLOOKUP($A$3,'G4-ML5'!$A$14:$AG$500,8,FALSE),"") -> 3768 | AR13: =IFERROR(VLOOKUP($A$3,'G5-ML5'!$A$14:$AG$500,8,FALSE),"") -> 2898 | AT13: =IFERROR(VLOOKUP($A$3,'G4-ML5'!$A$14:$AG$500,3,FALSE),"") -> 3898 | AU13: =IFERROR(VLOOKUP($A$3,'G5-ML5'!$A$14:$AG$500,3,FALSE),"") -> 3007 | AW13: ELL | AX13: =IF(VLOOKUP($A$3,'G4-WELL'!$A$14:$AG$500,3,FALSE)>0,VLOOKUP($A$3,'G4-WELL'!$A$14:$AG$500,11,FALSE)*100,#N/A) -> 18.56932153 | AZ13: =IF(VLOOKUP($A$3,'G4-WELL'!$A$14:$AG$500,12,FALSE)>0,VLOOKUP($A$3,'G4-WELL'!$A$14:$AG$500,20,FALSE)*100,#N/A) -> 20.87199882 | BD13: =IFERROR(VLOOKUP($A$3,'G4-WELL'!$A$14:$AG$492,3,FALSE),"") -> 6780 | BF13: =IFERROR(VLOOKUP($A$3,'G4-WELL'!$A$14:$AG$492,12,FALSE),"") -> 6789
Z14: White | AA14: =IF(VLOOKUP($A$3,'G3-RW'!$A$14:$AG$501,3,FALSE)>0,VLOOKUP($A$3,'G3-RW'!$A$14:$AG$501,11,FALSE)*100,#N/A) -> 70.28 | AB14: =IF(VLOOKUP($A$3,'G4-RW'!$A$14:$AG$501,3,FALSE)>0,VLOOKUP($A$3,'G4-RW'!$A$14:$AG$501,11,FALSE)*100,#N/A) -> 76.99 | AC14: =IF(VLOOKUP($A$3,'G5-RW'!$A$14:$AG$501,3,FALSE)>0,VLOOKUP($A$3,'G5-RW'!$A$14:$AG$501,11,FALSE)*100,#N/A) -> 73.55 | AD14: =IFERROR(VLOOKUP($A$3,'G3-RW'!$A$14:$AG$500,8,FALSE),"") -> 1454 | AE14: =IFERROR(VLOOKUP($A$3,'G4-RW'!$A$14:$AG$500,8,FALSE),"") -> 1529 | AF14: =IFERROR(VLOOKUP($A$3,'G5-RW'!$A$14:$AG$500,8,FALSE),"") -> 1471 | AG14: =IFERROR(VLOOKUP($A$3,'G3-RW'!$A$14:$AG$500,3,FALSE),"") -> 2069 | AH14: =IFERROR(VLOOKUP($A$3,'G4-RW'!$A$14:$AG$500,3,FALSE),"") -> 1986 | AI14: =IFERROR(VLOOKUP($A$3,'G5-RW'!$A$14:$AG$500,3,FALSE),"") -> 2000 | AL14: White | AM14: =IF(VLOOKUP($A$3,'G3-MW'!$A$14:$AG$501,3,FALSE)>0,VLOOKUP($A$3,'G3-MW'!$A$14:$AG$501,11,FALSE)*100,#N/A) -> 68.05 | AN14: =IF(VLOOKUP($A$3,'G4-MW'!$A$14:$AG$501,3,FALSE)>0,VLOOKUP($A$3,'G4-MW'!$A$14:$AG$501,11,FALSE)*100,#N/A) -> 71.29 | AO14: =IF(VLOOKUP($A$3,'G5-MW'!$A$14:$AG$501,3,FALSE)>0,VLOOKUP($A$3,'G5-MW'!$A$14:$AG$501,11,FALSE)*100,#N/A) -> 66.82 | AP14: =IFERROR(VLOOKUP($A$3,'G3-MW'!$A$14:$AG$500,8,FALSE),"") -> 1389 | AQ14: =IFERROR(VLOOKUP($A$3,'G4-MW'!$A$14:$AG$500,8,FALSE),"") -> 1398 | AR14: =IFERROR(VLOOKUP($A$3,'G5-MW'!$A$14:$AG$500,8,FALSE),"") -> 1301 | AS14: =IFERROR(VLOOKUP($A$3,'G3-MW'!$A$14:$AG$500,3,FALSE),"") -> 2041 | AT14: =IFERROR(VLOOKUP($A$3,'G4-MW'!$A$14:$AG$500,3,FALSE),"") -> 1961 | AU14: =IFERROR(VLOOKUP($A$3,'G5-MW'!$A$14:$AG$500,3,FALSE),"") -> 1947 | AW14: SWD | AX14: =IF(VLOOKUP($A$3,'G4-WSWD'!$A$14:$AG$500,3,FALSE)>0,VLOOKUP($A$3,'G4-WSWD'!$A$14:$AG$500,11,FALSE)*100,#N/A) -> 10.49475262 | AZ14: =IF(VLOOKUP($A$3,'G4-WSWD'!$A$14:$AG$500,12,FALSE)>0,VLOOKUP($A$3,'G4-WSWD'!$A$14:$AG$500,20,FALSE)*100,#N/A) -> 14.19125127 | BD14: =IFERROR(VLOOKUP($A$3,'G4-WSWD'!$A$14:$AG$499,3,FALSE),"") -> 2001 | BF14: =IFERROR(VLOOKUP($A$3,'G4-WSWD'!$A$14:$AG$499,12,FALSE),"") -> 1966
Z15: Black | AA15: =IF(VLOOKUP($A$3,'G3-RB'!$A$14:$AG$501,3,FALSE)>0,VLOOKUP($A$3,'G3-RB'!$A$14:$AG$501,11,FALSE)*100,#N/A) -> 37.82 | AB15: =IF(VLOOKUP($A$3,'G4-RB'!$A$14:$AG$501,3,FALSE)>0,VLOOKUP($A$3,'G4-RB'!$A$14:$AG$501,11,FALSE)*100,#N/A) -> 44.6 | AC15: =IF(VLOOKUP($A$3,'G5-RB'!$A$14:$AG$501,3,FALSE)>0,VLOOKUP($A$3,'G5-RB'!$A$14:$AG$501,11,FALSE)*100,#N/A) -> 45.05 | AD15: =IFERROR(VLOOKUP($A$3,'G3-RB'!$A$14:$AG$500,8,FALSE),"") -> 2294 | AE15: =IFERROR(VLOOKUP($A$3,'G4-RB'!$A$14:$AG$500,8,FALSE),"") -> 2463 | AF15: =IFERROR(VLOOKUP($A$3,'G5-RB'!$A$14:$AG$500,8,FALSE),"") -> 2591 | AG15: =IFERROR(VLOOKUP($A$3,'G3-RB'!$A$14:$AG$500,3,FALSE),"") -> 6066 | AH15: =IFERROR(VLOOKUP($A$3,'G4-RB'!$A$14:$AG$500,3,FALSE),"") -> 5523 | AI15: =IFERROR(VLOOKUP($A$3,'G5-RB'!$A$14:$AG$500,3,FALSE),"") -> 5751 | AL15: Black | AM15: =IF(VLOOKUP($A$3,'G3-MB'!$A$14:$AG$501,3,FALSE)>0,VLOOKUP($A$3,'G3-MB'!$A$14:$AG$501,11,FALSE)*100,#N/A) -> 49.77 | AN15: =IF(VLOOKUP($A$3,'G4-MB'!$A$14:$AG$501,3,FALSE)>0,VLOOKUP($A$3,'G4-MB'!$A$14:$AG$501,11,FALSE)*100,#N/A) -> 47.87 | AO15: =IF(VLOOKUP($A$3,'G5-MB'!$A$14:$AG$501,3,FALSE)>0,VLOOKUP($A$3,'G5-MB'!$A$14:$AG$501,11,FALSE)*100,#N/A) -> 40.04 | AP15: =IFERROR(VLOOKUP($A$3,'G3-MB'!$A$14:$AG$500,8,FALSE),"") -> 3010 | AQ15: =IFERROR(VLOOKUP($A$3,'G4-MB'!$A$14:$AG$500,8,FALSE),"") -> 2536 | AR15: =IFERROR(VLOOKUP($A$3,'G5-MB'!$A$14:$AG$500,8,FALSE),"") -> 2238 | AS15: =IFERROR(VLOOKUP($A$3,'G3-MB'!$A$14:$AG$500,3,FALSE),"") -> 6048 | AT15: =IFERROR(VLOOKUP($A$3,'G4-MB'!$A$14:$AG$500,3,FALSE),"") -> 5298 | AU15: =IFERROR(VLOOKUP($A$3,'G5-MB'!$A$14:$AG$500,3,FALSE),"") -> 5589
Z16: Hisp. | AA16: =IF(VLOOKUP($A$3,'G3-RH'!$A$14:$AG$501,3,FALSE)>0,VLOOKUP($A$3,'G3-RH'!$A$14:$AG$501,11,FALSE)*100,#N/A) -> 51.25 | AB16: =IF(VLOOKUP($A$3,'G4-RH'!$A$14:$AG$501,3,FALSE)>0,VLOOKUP($A$3,'G4-RH'!$A$14:$AG$501,11,FALSE)*100,#N/A) -> 59.47 | AC16: =IF(VLOOKUP($A$3,'G5-RH'!$A$14:$AG$501,3,FALSE)>0,VLOOKUP($A$3,'G5-RH'!$A$14:$AG$501,11,FALSE)*100,#N/A) -> 55.31 | AD16: =IFERROR(VLOOKUP($A$3,'G3-RH'!$A$14:$AG$500,8,FALSE),"") -> 8820 | AE16: =IFERROR(VLOOKUP($A$3,'G4-RH'!$A$14:$AG$500,8,FALSE),"") -> 9584 | AF16: =IFERROR(VLOOKUP($A$3,'G5-RH'!$A$14:$AG$500,8,FALSE),"") -> 9243 | AG16: =IFERROR(VLOOKUP($A$3,'G3-RH'!$A$14:$AG$500,3,FALSE),"") -> 17210 | AH16: =IFERROR(VLOOKUP($A$3,'G4-RH'!$A$14:$AG$500,3,FALSE),"") -> 16116 | AI16: =IFERROR(VLOOKUP($A$3,'G5-RH'!$A$14:$AG$500,3,FALSE),"") -> 16710 | AL16: Hisp. | AM16: =IF(VLOOKUP($A$3,'G3-MH'!$A$14:$AG$501,3,FALSE)>0,VLOOKUP($A$3,'G3-MH'!$A$14:$AG$501,11,FALSE)*100,#N/A) -> 57.27 | AN16: =IF(VLOOKUP($A$3,'G4-MH'!$A$14:$AG$501,3,FALSE)>0,VLOOKUP($A$3,'G4-MH'!$A$14:$AG$501,11,FALSE)*100,#N/A) -> 57.75 | AO16: =IF(VLOOKUP($A$3,'G5-MH'!$A$14:$AG$501,3,FALSE)>0,VLOOKUP($A$3,'G5-MH'!$A$14:$AG$501,11,FALSE)*100,#N/A) -> 53.21 | AP16: =IFERROR(VLOOKUP($A$3,'G3-MH'!$A$14:$AG$500,8,FALSE),"") -> 9716 | AQ16: =IFERROR(VLOOKUP($A$3,'G4-MH'!$A$14:$AG$500,8,FALSE),"") -> 9064 | AR16: =IFERROR(VLOOKUP($A$3,'G5-MH'!$A$14:$AG$500,8,FALSE),"") -> 8696 | AS16: =IFERROR(VLOOKUP($A$3,'G3-MH'!$A$14:$AG$500,3,FALSE),"") -> 16966 | AT16: =IFERROR(VLOOKUP($A$3,'G4-MH'!$A$14:$AG$500,3,FALSE),"") -> 15694 | AU16: =IFERROR(VLOOKUP($A$3,'G5-MH'!$A$14:$AG$500,3,FALSE),"") -> 16343
Z17: ED | AA17: =IF(VLOOKUP($A$3,'G3-RED'!$A$14:$AG$501,3,FALSE)>0,VLOOKUP($A$3,'G3-RED'!$A$14:$AG$501,11,FALSE)*100,#N/A) -> 43.4 | AB17: =IF(VLOOKUP($A$3,'G4-RED'!$A$14:$AG$501,3,FALSE)>0,VLOOKUP($A$3,'G4-RED'!$A$14:$AG$501,11,FALSE)*100,#N/A) -> 51.84 | AC17: =IF(VLOOKUP($A$3,'G5-RED'!$A$14:$AG$501,3,FALSE)>0,VLOOKUP($A$3,'G5-RED'!$A$14:$AG$501,11,FALSE)*100,#N/A) -> 49.59 | AD17: =IFERROR(VLOOKUP($A$3,'G3-RED'!$A$14:$AG$500,8,FALSE),"") -> 8614 | AE17: =IFERROR(VLOOKUP($A$3,'G4-RED'!$A$14:$AG$500,8,FALSE),"") -> 9463 | AF17: =IFERROR(VLOOKUP($A$3,'G5-RED'!$A$14:$AG$500,8,FALSE),"") -> 9420 | AG17: =IFERROR(VLOOKUP($A$3,'G3-RED'!$A$14:$AG$500,3,FALSE),"") -> 19849 | AH17: =IFERROR(VLOOKUP($A$3,'G4-RED'!$A$14:$AG$500,3,FALSE),"") -> 18254 | AI17: =IFERROR(VLOOKUP($A$3,'G5-RED'!$A$14:$AG$500,3,FALSE),"") -> 18994 | AL17: ED | AM17: =IF(VLOOKUP($A$3,'G3-MED'!$A$14:$AG$501,3,FALSE)>0,VLOOKUP($A$3,'G3-MED'!$A$14:$AG$501,11,FALSE)*100,#N/A) -> 52.16 | AN17: =IF(VLOOKUP($A$3,'G4-MED'!$A$14:$AG$501,3,FALSE)>0,VLOOKUP($A$3,'G4-MED'!$A$14:$AG$501,11,FALSE)*100,#N/A) -> 52.53 | AO17: =IF(VLOOKUP($A$3,'G5-MED'!$A$14:$AG$501,3,FALSE)>0,VLOOKUP($A$3,'G5-MED'!$A$14:$AG$501,11,FALSE)*100,#N/A) -> 46.73 | AP17: =IFERROR(VLOOKUP($A$3,'G3-MED'!$A$14:$AG$500,8,FALSE),"") -> 10125 | AQ17: =IFERROR(VLOOKUP($A$3,'G4-MED'!$A$14:$AG$500,8,FALSE),"") -> 9312 | AR17: =IFERROR(VLOOKUP($A$3,'G5-MED'!$A$14:$AG$500,8,FALSE),"") -> 8655 | AS17: =IFERROR(VLOOKUP($A$3,'G3-MED'!$A$14:$AG$500,3,FALSE),"") -> 19411 | AT17: =IFERROR(VLOOKUP($A$3,'G4-MED'!$A$14:$AG$500,3,FALSE),"") -> 17728 | AU17: =IFERROR(VLOOKUP($A$3,'G5-MED'!$A$14:$AG$500,3,FALSE),"") -> 18520
Z18: ELL | AA18: =IF(VLOOKUP($A$3,'G3-RELL'!$A$14:$AG$501,3,FALSE)>0,VLOOKUP($A$3,'G3-RELL'!$A$14:$AG$501,11,FALSE)*100,#N/A) -> 43.83 | AB18: =IF(VLOOKUP($A$3,'G4-RELL'!$A$14:$AG$501,3,FALSE)>0,VLOOKUP($A$3,'G4-RELL'!$A$14:$AG$501,11,FALSE)*100,#N/A) -> 44.48 | AC18: =IF(VLOOKUP($A$3,'G5-RELL'!$A$14:$AG$501,3,FALSE)>0,VLOOKUP($A$3,'G5-RELL'!$A$14:$AG$501,11,FALSE)*100,#N/A) -> 25.7 | AD18: =IFERROR(VLOOKUP($A$3,'G3-RELL'!$A$14:$AG$500,8,FALSE),"") -> 5542 | AE18: =IFERROR(VLOOKUP($A$3,'G4-RELL'!$A$14:$AG$500,8,FALSE),"") -> 3839 | AF18: =IFERROR(VLOOKUP($A$3,'G5-RELL'!$A$14:$AG$500,8,FALSE),"") -> 1235 | AG18: =IFERROR(VLOOKUP($A$3,'G3-RELL'!$A$14:$AG$500,3,FALSE),"") -> 12643 | AH18: =IFERROR(VLOOKUP($A$3,'G4-RELL'!$A$14:$AG$500,3,FALSE),"") -> 8631 | AI18: =IFERROR(VLOOKUP($A$3,'G5-RELL'!$A$14:$AG$500,3,FALSE),"") -> 4805 | AL18: ELL | AM18: =IF(VLOOKUP($A$3,'G3-MELL'!$A$14:$AG$501,3,FALSE)>0,VLOOKUP($A$3,'G3-MELL'!$A$14:$AG$501,11,FALSE)*100,#N/A) -> 53.55 | AN18: =IF(VLOOKUP($A$3,'G4-MELL'!$A$14:$AG$501,3,FALSE)>0,VLOOKUP($A$3,'G4-MELL'!$A$14:$AG$501,11,FALSE)*100,#N/A) -> 47.06 | AO18: =IF(VLOOKUP($A$3,'G5-MELL'!$A$14:$AG$501,3,FALSE)>0,VLOOKUP($A$3,'G5-MELL'!$A$14:$AG$501,11,FALSE)*100,#N/A) -> 31.29 | AP18: =IFERROR(VLOOKUP($A$3,'G3-MELL'!$A$14:$AG$500,8,FALSE),"") -> 6705 | AQ18: =IFERROR(VLOOKUP($A$3,'G4-MELL'!$A$14:$AG$500,8,FALSE),"") -> 3997 | AR18: =IFERROR(VLOOKUP($A$3,'G5-MELL'!$A$14:$AG$500,8,FALSE),"") -> 1482 | AS18: =IFERROR(VLOOKUP($A$3,'G3-MELL'!$A$14:$AG$500,3,FALSE),"") -> 12522 | AT18: =IFERROR(VLOOKUP($A$3,'G4-MELL'!$A$14:$AG$500,3,FALSE),"") -> 8494 | AU18: =IFERROR(VLOOKUP($A$3,'G5-MELL'!$A$14:$AG$500,3,FALSE),"") -> 4737
Z19: SWD | AA19: =IF(VLOOKUP($A$3,'G3-RSWD'!$A$14:$AG$501,3,FALSE)>0,VLOOKUP($A$3,'G3-RSWD'!$A$14:$AG$501,11,FALSE)*100,#N/A) -> 17.78 | AB19: =IF(VLOOKUP($A$3,'G4-RSWD'!$A$14:$AG$501,3,FALSE)>0,VLOOKUP($A$3,'G4-RSWD'!$A$14:$AG$501,11,FALSE)*100,#N/A) -> 23.89 | AC19: =IF(VLOOKUP($A$3,'G5-RSWD'!$A$14:$AG$501,3,FALSE)>0,VLOOKUP($A$3,'G5-RSWD'!$A$14:$AG$501,11,FALSE)*100,#N/A) -> 21.6 | AD19: =IFERROR(VLOOKUP($A$3,'G3-RSWD'!$A$14:$AG$500,8,FALSE),"") -> 433 | AE19: =IFERROR(VLOOKUP($A$3,'G4-RSWD'!$A$14:$AG$500,8,FALSE),"") -> 558 | AF19: =IFERROR(VLOOKUP($A$3,'G5-RSWD'!$A$14:$AG$500,8,FALSE),"") -> 562 | AG19: =IFERROR(VLOOKUP($A$3,'G3-RSWD'!$A$14:$AG$500,3,FALSE),"") -> 2435 | AH19: =IFERROR(VLOOKUP($A$3,'G4-RSWD'!$A$14:$AG$500,3,FALSE),"") -> 2336 | AI19: =IFERROR(VLOOKUP($A$3,'G5-RSWD'!$A$14:$AG$500,3,FALSE),"") -> 2602 | AL19: SWD | AM19: =IF(VLOOKUP($A$3,'G3-MSWD'!$A$14:$AG$501,3,FALSE)>0,VLOOKUP($A$3,'G3-MSWD'!$A$14:$AG$501,11,FALSE)*100,#N/A) -> 33.05 | AN19: =IF(VLOOKUP($A$3,'G4-MSWD'!$A$14:$AG$501,3,FALSE)>0,VLOOKUP($A$3,'G4-MSWD'!$A$14:$AG$501,11,FALSE)*100,#N/A) -> 31.07 | AO19: =IF(VLOOKUP($A$3,'G5-MSWD'!$A$14:$AG$501,3,FALSE)>0,VLOOKUP($A$3,'G5-MSWD'!$A$14:$AG$501,11,FALSE)*100,#N/A) -> 24.18 | AP19: =IFERROR(VLOOKUP($A$3,'G3-MSWD'!$A$14:$AG$500,8,FALSE),"") -> 789 | AQ19: =IFERROR(VLOOKUP($A$3,'G4-MSWD'!$A$14:$AG$500,8,FALSE),"") -> 709 | AR19: =IFERROR(VLOOKUP($A$3,'G5-MSWD'!$A$14:$AG$500,8,FALSE),"") -> 603 | AS19: =IFERROR(VLOOKUP($A$3,'G3-MSWD'!$A$14:$AG$500,3,FALSE),"") -> 2387 | AT19: =IFERROR(VLOOKUP($A$3,'G4-MSWD'!$A$14:$AG$500,3,FALSE),"") -> 2282 | AU19: =IFERROR(VLOOKUP($A$3,'G5-MSWD'!$A$14:$AG$500,3,FALSE),"") -> 2494

Sheet Grade 3 Report
A2: Click here to return to the school and sheet selection interface
A3: ='Select School'!B3 -> 9999
A4: =TEXT(A3,"0000")&"-"&VLOOKUP(A3,SchList!$A$2:$B$504,2,FALSE) -> 9999-DISTRICT
A5: Reading - Grade 3
A6: Satisfactory Progress Cut Score at 64% or above | B6: 2011 AYP Met** | C6: Total # of Students | D6: % of Students Tested | E6: Overall [56] | G6: Vocabulary [15] | I6: Reading Application [25] | K6: Literary Analysis Fiction/Nonfiction [12] | M6: Informational Text/ Research Process [4]
E7: Average % Correct | F7: % Satisfactory Progress | G7: Average % Correct | H7: % Satisfactory Progress | I7: Average % Correct | J7: % Satisfactory Progress | K7: Average % Correct | L7: % Satisfactory Progress | M7: Average % Correct | N7: % Satisfactory Progress
A8: All students | B8: =IFERROR(VLOOKUP(TEXT($A$3,"0000"),'AYP11'!$B$2957:$AU$3378,36,FALSE),"NA") -> NO | C8: =IFERROR(VLOOKUP(TEXT($A$3,"0000"),Mem_All!$A$2:$O$500,7,FALSE),"NA") -> 27250 | D8: =IFERROR((IF(OR(C8=0,C8="",C8="NA"),"NA",((IF(VLOOKUP($A$3,'G3-RALL'!$A$14:$AM$501,3,FALSE)>=C8,"100% ("&VLOOKUP($A$3,'G3-RALL'!$A$14:$AM$501,3,FALSE)&")",(ROUND((VLOOKUP($A$3,'G3-RALL'!$A$14:$AM$501,3,FALSE)/C8*100),0))&"% ("&IF(VLOOKUP($A$3,'G3-RALL'!$A$14:$AM$501,3,FALSE)="",0,VLOOKUP($A$3,'G3-RALL'!$A$14:$AM$501,3,FALSE))&")"))))),"0% (0)") -> 95% (25785) | E8: =IFERROR((IF($D8="NA","NA",VLOOKUP($A$3,'G3-RALL'!$A$14:$AM$501,5,FALSE))),"NA") -> 0.61 | F8: =IFERROR((IF($D8="NA","NA",ROUND(VLOOKUP($A$3,'G3-RALL'!$A$14:$AM$501,11,FALSE)*100,0)&"% ("&IF(VLOOKUP($A$3,'G3-RALL'!$A$14:$AM$501,8,FALSE)="",0,VLOOKUP($A$3,'G3-RALL'!$A$14:$AM$501,8,FALSE))&")")),"NA") -> 50% (12876) | G8: =IFERROR((IF($D8="NA","NA",VLOOKUP($A$3,'G3-RALL'!$A$14:$AM$501,13,FALSE))),"NA") -> 0.7 | H8: NA | I8: =IFERROR((IF($D8="NA","NA",VLOOKUP($A$3,'G3-RALL'!$A$14:$AM$501,17,FALSE))),"NA") -> 0.59 | J8: NA | K8: =IFERROR((IF($D8="NA","NA",VLOOKUP($A$3,'G3-RALL'!$A$14:$AM$501,21,FALSE))),"NA") -> 0.55 | L8: NA | M8: =IFERROR((IF($D8="NA","NA",VLOOKUP($A$3,'G3-RALL'!$A$14:$AM$501,25,FALSE))),"NA") -> 0.53 | N8: NA
A9: White | B9: =IFERROR(VLOOKUP(TEXT($A$3,"0000"),'AYP11'!$B$3379:$AU$3800,36,FALSE)," ") -> NO | C9: =IFERROR(VLOOKUP(TEXT($A$3,"0000"),MEM_W!$A$2:$O$500,7,FALSE),"NA") -> 2225 | D9: =IFERROR((IF(OR(C9=0,C9="",C9="NA"),"NA",((IF(VLOOKUP($A$3,'G3-RW'!$A$14:$AM$500,3,FALSE)>=C9,"100% ("&VLOOKUP($A$3,'G3-RW'!$A$14:$AM$500,3,FALSE)&")",(ROUND((VLOOKUP($A$3,'G3-RW'!$A$14:$AM$500,3,FALSE)/C9*100),0))&"% ("&IF(VLOOKUP($A$3,'G3-RW'!$A$14:$AM$500,3,FALSE)="",0,VLOOKUP($A$3,'G3-RW'!$A$14:$AM$500,3,FALSE))&")"))))),"0% (0)") -> 93% (2069) | E9: =IFERROR((IF($D9="NA","NA",VLOOKUP($A$3,'G3-RW'!$A$14:$AM$500,5,FALSE))),"NA") -> 0.7 | F9: =IFERROR((IF($D9="NA","NA",ROUND(VLOOKUP($A$3,'G3-RW'!$A$14:$AM$500,11,FALSE)*100,0)&"% ("&IF(VLOOKUP($A$3,'G3-RW'!$A$14:$AM$500,8,FALSE)="",0,VLOOKUP($A$3,'G3-RW'!$A$14:$AM$500,8,FALSE))&")")),"NA") -> 70% (1454) | G9: =IFERROR((IF($D9="NA","NA",VLOOKUP($A$3,'G3-RW'!$A$14:$AM$500,13,FALSE))),"NA") -> 0.8 | H9: NA | I9: =IFERROR((IF($D9="NA","NA",VLOOKUP($A$3,'G3-RW'!$A$14:$AM$500,17,FALSE))),"NA") -> 0.69 | J9: NA | K9: =IFERROR((IF($D9="NA","NA",VLOOKUP($A$3,'G3-RW'!$A$14:$AM$500,21,FALSE))),"NA") -> 0.64 | L9: NA | M9: =IFERROR((IF($D9="NA","NA",VLOOKUP($A$3,'G3-RW'!$A$14:$AM$500,25,FALSE))),"NA") -> 0.64 | N9: NA
A10: Black | B10: =IFERROR(VLOOKUP(TEXT($A$3,"0000"),'AYP11'!$B$847:$AU$1268,36,FALSE)," ") -> NO | C10: =IFERROR(VLOOKUP(TEXT($A$3,"0000"),MEM_B!$A$2:$O$500,7,FALSE),"NA") -> 6495 | D10: =IFERROR((IF(OR(C10=0,C10="",C10="NA"),"NA",((IF(VLOOKUP($A$3,'G3-RB'!$A$14:$AM$500,3,FALSE)>=C10,"100% ("&VLOOKUP($A$3,'G3-RB'!$A$14:$AM$500,3,FALSE)&")",(ROUND((VLOOKUP($A$3,'G3-RB'!$A$14:$AM$500,3,FALSE)/C10*100),0))&"% ("&IF(VLOOKUP($A$3,'G3-RB'!$A$14:$AM$500,3,FALSE)="",0,VLOOKUP($A$3,'G3-RB'!$A$14:$AM$500,3,FALSE))&")"))))),"0% (0)") -> 93% (6066) | E10: =IFERROR((IF($D10="NA","NA",VLOOKUP($A$3,'G3-RB'!$A$14:$AM$500,5,FALSE))),"NA") -> 0.55 | F10: =IFERROR((IF($D10="NA","NA",ROUND(VLOOKUP($A$3,'G3-RB'!$A$14:$AM$500,11,FALSE)*100,0)&"% ("&IF(VLOOKUP($A$3,'G3-RB'!$A$14:$AM$500,8,FALSE)="",0,VLOOKUP($A$3,'G3-RB'!$A$14:$AM$500,8,FALSE))&")")),"NA") -> 38% (2294) | G10: =IFERROR((IF($D10="NA","NA",VLOOKUP($A$3,'G3-RB'!$A$14:$AM$500,13,FALSE))),"NA") -> 0.64 | H10: NA | I10: =IFERROR((IF($D10="NA","NA",VLOOKUP($A$3,'G3-RB'!$A$14:$AM$500,17,FALSE))),"NA") -> 0.54 | J10: NA | K10: =IFERROR((IF($D10="NA","NA",VLOOKUP($A$3,'G3-RB'!$A$14:$AM$500,21,FALSE))),"NA") -> 0.51 | L10: NA | M10: =IFERROR((IF($D10="NA","NA",VLOOKUP($A$3,'G3-RB'!$A$14:$AM$500,25,FALSE))),"NA") -> 0.47 | N10: NA
A11: Hispanic | B11: =IFERROR(VLOOKUP(TEXT($A$3,"0000"),'AYP11'!$B$2113:$AU$2534,36,FALSE)," ") -> NO | C11: =IFERROR(VLOOKUP(TEXT($A$3,"0000"),MEM_H!$A$2:$O$500,7,FALSE),"NA") -> 18059 | D11: =IFERROR((IF(OR(C11=0,C11="",C11="NA"),"NA",((IF(VLOOKUP($A$3,'G3-RH'!$A$14:$AM$500,3,FALSE)>=C11,"100% ("&VLOOKUP($A$3,'G3-RH'!$A$14:$AM$500,3,FALSE)&")",(ROUND((VLOOKUP($A$3,'G3-RH'!$A$14:$AM$500,3,FALSE)/C11*100),0))&"% ("&IF(VLOOKUP($A$3,'G3-RH'!$A$14:$AM$500,3,FALSE)="",0,VLOOKUP($A$3,'G3-RH'!$A$14:$AM$500,3,FALSE))&")"))))),"0% (0)") -> 95% (17210) | E11: =IFERROR((IF($D11="NA","NA",VLOOKUP($A$3,'G3-RH'!$A$14:$AM$500,5,FALSE))),"NA") -> 0.61 | F11: =IFERROR((IF($D11="NA","NA",ROUND(VLOOKUP($A$3,'G3-RH'!$A$14:$AM$500,11,FALSE)*100,0)&"% ("&IF(VLOOKUP($A$3,'G3-RH'!$A$14:$AM$500,8,FALSE)="",0,VLOOKUP($A$3,'G3-RH'!$A$14:$AM$500,8,FALSE))&")")),"NA") -> 51% (8820) | G11: =IFERROR((IF($D11="NA","NA",VLOOKUP($A$3,'G3-RH'!$A$14:$AM$500,13,FALSE))),"NA") -> 0.71 | H11: NA | I11: =IFERROR((IF($D11="NA","NA",VLOOKUP($A$3,'G3-RH'!$A$14:$AM$500,17,FALSE))),"NA") -> 0.6 | J11: NA | K11: =IFERROR((IF($D11="NA","NA",VLOOKUP($A$3,'G3-RH'!$A$14:$AM$500,21,FALSE))),"NA") -> 0.55 | L11: NA | M11: =IFERROR((IF($D11="NA","NA",VLOOKUP($A$3,'G3-RH'!$A$14:$AM$500,25,FALSE))),"NA") -> 0.54 | N11: NA
A12: Asian | B12: =IFERROR(VLOOKUP(TEXT($A$3,"0000"),'AYP11'!$B$425:$AU$846,36,FALSE)," ") -> Yes-AB | C12: =IFERROR(VLOOKUP(TEXT($A$3,"0000"),MEM_A!$A$2:$O$500,7,FALSE),"NA") -> 328 | D12: =IFERROR((IF(OR(C12=0,C12="",C12="NA"),"NA",((IF(VLOOKUP($A$3,'G3-RA'!$A$14:$AM$500,3,FALSE)>=C12,"100% ("&VLOOKUP($A$3,'G3-RA'!$A$14:$AM$500,3,FALSE)&")",(ROUND((VLOOKUP($A$3,'G3-RA'!$A$14:$AM$500,3,FALSE)/C12*100),0))&"% ("&IF(VLOOKUP($A$3,'G3-RA'!$A$14:$AM$500,3,FALSE)="",0,VLOOKUP($A$3,'G3-RA'!$A$14:$AM$500,3,FALSE))&")"))))),"0% (0)") -> 95% (313) | E12: =IFERROR((IF($D12="NA","NA",VLOOKUP($A$3,'G3-RA'!$A$14:$AM$500,5,FALSE))),"NA") -> 0.72 | F12: =IFERROR((IF($D12="NA","NA",ROUND(VLOOKUP($A$3,'G3-RA'!$A$14:$AM$500,11,FALSE)*100,0)&"% ("&IF(VLOOKUP($A$3,'G3-RA'!$A$14:$AM$500,8,FALSE)="",0,VLOOKUP($A$3,'G3-RA'!$A$14:$AM$500,8,FALSE))&")")),"NA") -> 73% (230) | G12: =IFERROR((IF($D12="NA","NA",VLOOKUP($A$3,'G3-RA'!$A$14:$AM$500,13,FALSE))),"NA") -> 0.81 | H12: NA | I12: =IFERROR((IF($D12="NA","NA",VLOOKUP($A$3,'G3-RA'!$A$14:$AM$500,17,FALSE))),"NA") -> 0.71 | J12: NA | K12: =IFERROR((IF($D12="NA","NA",VLOOKUP($A$3,'G3-RA'!$A$14:$AM$500,21,FALSE))),"NA") -> 0.65 | L12: NA | M12: =IFERROR((IF($D12="NA","NA",VLOOKUP($A$3,'G3-RA'!$A$14:$AM$500,25,FALSE))),"NA") -> 0.67 | N12: NA
A13: Am. Indian | B13: =IFERROR(VLOOKUP(TEXT($A$3,"0000"),'AYP11'!$B$3:$AU$424,36,FALSE)," ") -> NO | C13: =IFERROR(VLOOKUP(TEXT($A$3,"0000"),MEM_I!$A$2:$O$500,7,FALSE),"NA") -> 18 | D13: =IFERROR((IF(OR(C13=0,C13="",C13="NA"),"NA",((IF(VLOOKUP($A$3,'G3-RI'!$A$14:$AM$500,3,FALSE)>=C13,"100% ("&VLOOKUP($A$3,'G3-RI'!$A$14:$AM$500,3,FALSE)&")",(ROUND((VLOOKUP($A$3,'G3-RI'!$A$14:$AM$500,3,FALSE)/C13*100),0))&"% ("&IF(VLOOKUP($A$3,'G3-RI'!$A$14:$AM$500,3,FALSE)="",0,VLOOKUP($A$3,'G3-RI'!$A$14:$AM$500,3,FALSE))&")"))))),"0% (0)") -> 100% (18) | E13: =IFERROR((IF($D13="NA","NA",VLOOKUP($A$3,'G3-RI'!$A$14:$AM$500,5,FALSE))),"NA") -> 0.66 | F13: =IFERROR((IF($D13="NA","NA",ROUND(VLOOKUP($A$3,'G3-RI'!$A$14:$AM$500,11,FALSE)*100,0)&"% ("&IF(VLOOKUP($A$3,'G3-RI'!$A$14:$AM$500,8,FALSE)="",0,VLOOKUP($A$3,'G3-RI'!$A$14:$AM$500,8,FALSE))&")")),"NA") -> 61% (11) | G13: =IFERROR((IF($D13="NA","NA",VLOOKUP($A$3,'G3-RI'!$A$14:$AM$500,13,FALSE))),"NA") -> 0.75 | H13: NA | I13: =IFERROR((IF($D13="NA","NA",VLOOKUP($A$3,'G3-RI'!$A$14:$AM$500,17,FALSE))),"NA") -> 0.66 | J13: NA | K13: =IFERROR((IF($D13="NA","NA",VLOOKUP($A$3,'G3-RI'!$A$14:$AM$500,21,FALSE))),"NA") -> 0.55 | L13: NA | M13: =IFERROR((IF($D13="NA","NA",VLOOKUP($A$3,'G3-RI'!$A$14:$AM$500,25,FALSE))),"NA") -> 0.64 | N13: NA
A14: ED | B14: =IFERROR(VLOOKUP(TEXT($A$3,"0000"),'AYP11'!$B$1269:$AU$1690,36,FALSE)," ") -> NO | C14: =IFERROR(VLOOKUP(TEXT($A$3,"0000"),MEM_ED!$A$2:$O$500,7,FALSE),"NA") -> 20871 | D14: =IFERROR((IF(OR(C14=0,C14="",C14="NA"),"NA",((IF(VLOOKUP($A$3,'G3-RED'!$A$14:$AM$500,3,FALSE)>=C14,"100% ("&VLOOKUP($A$3,'G3-RED'!$A$14:$AM$500,3,FALSE)&")",(ROUND((VLOOKUP($A$3,'G3-RED'!$A$14:$AM$500,3,FALSE)/C14*100),0))&"% ("&IF(VLOOKUP($A$3,'G3-RED'!$A$14:$AM$500,3,FALSE)="",0,VLOOKUP($A$3,'G3-RED'!$A$14:$AM$500,3,FALSE))&")"))))),"0% (0)") -> 95% (19849) | E14: =IFERROR((IF($D14="NA","NA",VLOOKUP($A$3,'G3-RED'!$A$14:$AM$500,5,FALSE))),"NA") -> 0.58 | F14: =IFERROR((IF($D14="NA","NA",ROUND(VLOOKUP($A$3,'G3-RED'!$A$14:$AM$500,11,FALSE)*100,0)&"% ("&IF(VLOOKUP($A$3,'G3-RED'!$A$14:$AM$500,8,FALSE)="",0,VLOOKUP($A$3,'G3-RED'!$A$14:$AM$500,8,FALSE))&")")),"NA") -> 43% (8614) | G14: =IFERROR((IF($D14="NA","NA",VLOOKUP($A$3,'G3-RED'!$A$14:$AM$500,13,FALSE))),"NA") -> 0.67 | H14: NA | I14: =IFERROR((IF($D14="NA","NA",VLOOKUP($A$3,'G3-RED'!$A$14:$AM$500,17,FALSE))),"NA") -> 0.56 | J14: NA | K14: =IFERROR((IF($D14="NA","NA",VLOOKUP($A$3,'G3-RED'!$A$14:$AM$500,21,FALSE))),"NA") -> 0.53 | L14: NA | M14: =IFERROR((IF($D14="NA","NA",VLOOKUP($A$3,'G3-RED'!$A$14:$AM$500,25,FALSE))),"NA") -> 0.5 | N14: NA
A15: ELL | B15: =IFERROR(VLOOKUP(TEXT($A$3,"0000"),'AYP11'!$B$1691:$AU$2112,36,FALSE)," ") -> NO | C15: =IFERROR(VLOOKUP(TEXT($A$3,"0000"),MEM_ELL!$A$2:$O$500,7,FALSE),"NA") -> 13194 | D15: =IFERROR((IF(OR(C15=0,C15="",C15="NA"),"NA",((IF(VLOOKUP($A$3,'G3-RELL'!$A$14:$AM$500,3,FALSE)>=C15,"100% ("&VLOOKUP($A$3,'G3-RELL'!$A$14:$AM$500,3,FALSE)&")",(ROUND((VLOOKUP($A$3,'G3-RELL'!$A$14:$AM$500,3,FALSE)/C15*100),0))&"% ("&IF(VLOOKUP($A$3,'G3-RELL'!$A$14:$AM$500,3,FALSE)="",0,VLOOKUP($A$3,'G3-RELL'!$A$14:$AM$500,3,FALSE))&")"))))),"0% (0)") -> 96% (12643) | E15: =IFERROR((IF($D15="NA","NA",VLOOKUP($A$3,'G3-RELL'!$A$14:$AM$500,5,FALSE))),"NA") -> 0.58 | F15: =IFERROR((IF($D15="NA","NA",ROUND(VLOOKUP($A$3,'G3-RELL'!$A$14:$AM$500,11,FALSE)*100,0)&"% ("&IF(VLOOKUP($A$3,'G3-RELL'!$A$14:$AM$500,8,FALSE)="",0,VLOOKUP($A$3,'G3-RELL'!$A$14:$AM$500,8,FALSE))&")")),"NA") -> 44% (5542) | G15: =IFERROR((IF($D15="NA","NA",VLOOKUP($A$3,'G3-RELL'!$A$14:$AM$500,13,FALSE))),"NA") -> 0.67 | H15: NA | I15: =IFERROR((IF($D15="NA","NA",VLOOKUP($A$3,'G3-RELL'!$A$14:$AM$500,17,FALSE))),"NA") -> 0.56 | J15: NA | K15: =IFERROR((IF($D15="NA","NA",VLOOKUP($A$3,'G3-RELL'!$A$14:$AM$500,21,FALSE))),"NA") -> 0.52 | L15: NA | M15: =IFERROR((IF($D15="NA","NA",VLOOKUP($A$3,'G3-RELL'!$A$14:$AM$500,25,FALSE))),"NA") -> 0.5 | N15: NA
A16: SWD | B16: =IFERROR(VLOOKUP(TEXT($A$3,"0000"),'AYP11'!$B$2535:$AU$2956,36,FALSE)," ") -> NO | C16: =IFERROR(VLOOKUP(TEXT($A$3,"0000"),MEM_SWD!$A$2:$O$500,7,FALSE),"NA") -> 2621 | D16: =IFERROR((IF(OR(C16=0,C16="",C16="NA"),"NA",((IF(VLOOKUP($A$3,'G3-RSWD'!$A$14:$AM$500,3,FALSE)>=C16,"100% ("&VLOOKUP($A$3,'G3-RSWD'!$A$14:$AM$500,3,FALSE)&")",(ROUND((VLOOKUP($A$3,'G3-RSWD'!$A$14:$AM$500,3,FALSE)/C16*100),0))&"% ("&IF(VLOOKUP($A$3,'G3-RSWD'!$A$14:$AM$500,3,FALSE)="",0,VLOOKUP($A$3,'G3-RSWD'!$A$14:$AM$500,3,FALSE))&")"))))),"0% (0)") -> 93% (2435) | E16: =IFERROR((IF($D16="NA","NA",VLOOKUP($A$3,'G3-RSWD'!$A$14:$AM$500,5,FALSE))),"NA") -> 0.43 | F16: =IFERROR((IF($D16="NA","NA",ROUND(VLOOKUP($A$3,'G3-RSWD'!$A$14:$AM$500,11,FALSE)*100,0)&"% ("&IF(VLOOKUP($A$3,'G3-RSWD'!$A$14:$AM$500,8,FALSE)="",0,VLOOKUP($A$3,'G3-RSWD'!$A$14:$AM$500,8,FALSE))&")")),"NA") -> 18% (433) | G16: =IFERROR((IF($D16="NA","NA",VLOOKUP($A$3,'G3-RSWD'!$A$14:$AM$500,13,FALSE))),"NA") -> 0.49 | H16: NA | I16: =IFERROR((IF($D16="NA","NA",VLOOKUP($A$3,'G3-RSWD'!$A$14:$AM$500,17,FALSE))),"NA") -> 0.42 | J16: NA | K16: =IFERROR((IF($D16="NA","NA",VLOOKUP($A$3,'G3-RSWD'!$A$14:$AM$500,21,FALSE))),"NA") -> 0.41 | L16: NA | M16: =IFERROR((IF($D16="NA","NA",VLOOKUP($A$3,'G3-RSWD'!$A$14:$AM$500,25,FALSE))),"NA") -> 0.38 | N16: NA
A17: Math - Grade 3
A18: Satisfactory Progress Cut Score at 47% or above | B18: 2011 AYP Met** | C18: Total # of Students | D18: % Tested | E18: Overall [34] | G18: Number: Operations, Problems & Statistics [16] | I18: Number: Fractions [18] | K18: Geometry and Measurement [0]
E19: Average % Correct | F19: % Satisfactory Progress | G19: Average % Correct | H19: % Satisfactory Progress | I19: Average % Correct | J19: % Satisfactory Progress | K19: Average % Correct | L19: % Satisfactory Progress
A20: All students | B20: =IFERROR(VLOOKUP(TEXT($A$3,"0000"),'AYP11'!$B$2957:$AU$3378,37,FALSE),"NA") -> NO | C20: =IFERROR(VLOOKUP(TEXT($A$3,"0000"),Mem_All!$A$2:$O$500,7,FALSE),"NA") -> 27250 | D20: =IFERROR((IF(OR(C20=0,C20="",C20="NA"),"NA",((IF(VLOOKUP($A$3,'G3-MALL'!$A$14:$Q$500,3,FALSE)>=C20,"100% ("&VLOOKUP($A$3,'G3-MALL'!$A$14:$Q$500,3,FALSE)&")",(ROUND((VLOOKUP($A$3,'G3-MALL'!$A$14:$Q$500,3,FALSE)/C20*100),0))&"% ("&IF(VLOOKUP($A$3,'G3-MALL'!$A$14:$Q$500,3,FALSE)="",0,VLOOKUP($A$3,'G3-MALL'!$A$14:$Q$500,3,FALSE))&")"))))),"0% (0)") -> 93% (25246) | E20: =IFERROR((IF($D20="NA","NA",VLOOKUP($A$3,'G3-MALL'!$A$14:$Q$500,5,FALSE))),"NA") -> 0.51 | F20: =IFERROR((IF($D20="NA","NA",ROUND(VLOOKUP($A$3,'G3-MALL'!$A$14:$Q$500,11,FALSE)*100,0)&"% ("&IF(VLOOKUP($A$3,'G3-MALL'!$A$14:$Q$500,8,FALSE)="",0,VLOOKUP($A$3,'G3-MALL'!$A$14:$Q$500,8,FALSE))&")")),"NA") -> 57% (14288) | G20: =IFERROR((IF($D20="NA","NA",VLOOKUP($A$3,'G3-MALL'!$A$14:$Q$500,13,FALSE))),"NA") -> 0.56 | H20: NA | I20: =IFERROR((IF($D20="NA","NA",VLOOKUP($A$3,'G3-MALL'!$A$14:$Q$500,17,FALSE))),"NA") -> 0.47 | J20: NA
A21: White | B21: =IFERROR(VLOOKUP(TEXT($A$3,"0000"),'AYP11'!$B$3379:$AU$3800,37,FALSE)," ") -> Yes-AB | C21: =IFERROR(VLOOKUP(TEXT($A$3,"0000"),MEM_W!$A$2:$O$500,7,FALSE),"NA") -> 2225 | D21: =IFERROR((IF(OR(C21=0,C21="",C21="NA"),"NA",((IF(VLOOKUP($A$3,'G3-MW'!$A$14:$AG$500,3,FALSE)>=C21,"100% ("&VLOOKUP($A$3,'G3-MW'!$A$14:$AG$500,3,FALSE)&")",(ROUND((VLOOKUP($A$3,'G3-MW'!$A$14:$AG$500,3,FALSE)/C21*100),0))&"% ("&IF(VLOOKUP($A$3,'G3-MW'!$A$14:$AG$500,3,FALSE)="",0,VLOOKUP($A$3,'G3-MW'!$A$14:$AG$500,3,FALSE))&")"))))),"0% (0)") -> 92% (2041) | E21: =IFERROR((IF($D21="NA","NA",VLOOKUP($A$3,'G3-MW'!$A$14:$AG$500,5,FALSE))),"NA") -> 0.58 | F21: =IFERROR((IF($D21="NA","NA",ROUND(VLOOKUP($A$3,'G3-MW'!$A$14:$AG$500,11,FALSE)*100,0)&"% ("&IF(VLOOKUP($A$3,'G3-MW'!$A$14:$AG$500,8,FALSE)="",0,VLOOKUP($A$3,'G3-MW'!$A$14:$AG$500,8,FALSE))&")")),"NA") -> 68% (1389) | G21: =IFERROR((IF($D21="NA","NA",VLOOKUP($A$3,'G3-MW'!$A$14:$AG$500,13,FALSE))),"NA") -> 0.63 | H21: NA | I21: =IFERROR((IF($D21="NA","NA",VLOOKUP($A$3,'G3-MW'!$A$14:$AG$500,17,FALSE))),"NA") -> 0.54 | J21: NA
A22: Black | B22: =IFERROR(VLOOKUP(TEXT($A$3,"0000"),'AYP11'!$B$847:$AU$1268,37,FALSE)," ") -> NO | C22: =IFERROR(VLOOKUP(TEXT($A$3,"0000"),MEM_B!$A$2:$O$500,7,FALSE),"NA") -> 6495 | D22: =IFERROR((IF(OR(C22=0,C22="",C22="NA"),"NA",((IF(VLOOKUP($A$3,'G3-MB'!$A$14:$AG$500,3,FALSE)>=C22,"100% ("&VLOOKUP($A$3,'G3-MB'!$A$14:$AG$500,3,FALSE)&")",(ROUND((VLOOKUP($A$3,'G3-MB'!$A$14:$AG$500,3,FALSE)/C22*100),0))&"% ("&IF(VLOOKUP($A$3,'G3-MB'!$A$14:$AG$500,3,FALSE)="",0,VLOOKUP($A$3,'G3-MB'!$A$14:$AG$500,3,FALSE))&")"))))),"0% (0)") -> 93% (6048) | E22: =IFERROR((IF($D22="NA","NA",VLOOKUP($A$3,'G3-MB'!$A$14:$AG$500,5,FALSE))),"NA") -> 0.47 | F22: =IFERROR((IF($D22="NA","NA",ROUND(VLOOKUP($A$3,'G3-MB'!$A$14:$AG$500,11,FALSE)*100,0)&"% ("&IF(VLOOKUP($A$3,'G3-MB'!$A$14:$AG$500,8,FALSE)="",0,VLOOKUP($A$3,'G3-MB'!$A$14:$AG$500,8,FALSE))&")")),"NA") -> 50% (3010) | G22: =IFERROR((IF($D22="NA","NA",VLOOKUP($A$3,'G3-MB'!$A$14:$AG$500,13,FALSE))),"NA") -> 0.52 | H22: NA | I22: =IFERROR((IF($D22="NA","NA",VLOOKUP($A$3,'G3-MB'!$A$14:$AG$500,17,FALSE))),"NA") -> 0.43 | J22: NA
A23: Hispanic | B23: =IFERROR(VLOOKUP(TEXT($A$3,"0000"),'AYP11'!$B$2113:$AU$2534,37,FALSE)," ") -> NO | C23: =IFERROR(VLOOKUP(TEXT($A$3,"0000"),MEM_H!$A$2:$O$500,7,FALSE),"NA") -> 18059 | D23: =IFERROR((IF(OR(C23=0,C23="",C23="NA"),"NA",((IF(VLOOKUP($A$3,'G3-MH'!$A$14:$AG$500,3,FALSE)>=C23,"100% ("&VLOOKUP($A$3,'G3-MH'!$A$14:$AG$500,3,FALSE)&")",(ROUND((VLOOKUP($A$3,'G3-MH'!$A$14:$AG$500,3,FALSE)/C23*100),0))&"% ("&IF(VLOOKUP($A$3,'G3-MH'!$A$14:$AG$500,3,FALSE)="",0,VLOOKUP($A$3,'G3-MH'!$A$14:$AG$500,3,FALSE))&")"))))),"0% (0)") -> 94% (16966) | E23: =IFERROR((IF($D23="NA","NA",VLOOKUP($A$3,'G3-MH'!$A$14:$AG$500,5,FALSE))),"NA") -> 0.51 | F23: =IFERROR((IF($D23="NA","NA",ROUND(VLOOKUP($A$3,'G3-MH'!$A$14:$AG$500,11,FALSE)*100,0)&"% ("&IF(VLOOKUP($A$3,'G3-MH'!$A$14:$AG$500,8,FALSE)="",0,VLOOKUP($A$3,'G3-MH'!$A$14:$AG$500,8,FALSE))&")")),"NA") -> 57% (9716) | G23: =IFERROR((IF($D23="NA","NA",VLOOKUP($A$3,'G3-MH'!$A$14:$AG$500,13,FALSE))),"NA") -> 0.56 | H23: NA | I23: =IFERROR((IF($D23="NA","NA",VLOOKUP($A$3,'G3-MH'!$A$14:$AG$500,17,FALSE))),"NA") -> 0.47 | J23: NA
A24: Asian | B24: =IFERROR(VLOOKUP(TEXT($A$3,"0000"),'AYP11'!$B$425:$AU$846,37,FALSE)," ") -> Yes-AB | C24: =IFERROR(VLOOKUP(TEXT($A$3,"0000"),MEM_A!$A$2:$O$500,7,FALSE),"NA") -> 328 | D24: =IFERROR((IF(OR(C24=0,C24="",C24="NA"),"NA",((IF(VLOOKUP($A$3,'G3-MA'!$A$14:$AG$500,3,FALSE)>=C24,"100% ("&VLOOKUP($A$3,'G3-MA'!$A$14:$AG$500,3,FALSE)&")",(ROUND((VLOOKUP($A$3,'G3-MA'!$A$14:$AG$500,3,FALSE)/C24*100),0))&"% ("&IF(VLOOKUP($A$3,'G3-MA'!$A$14:$AG$500,3,FALSE)="",0,VLOOKUP($A$3,'G3-MA'!$A$14:$AG$500,3,FALSE))&")"))))),"0% (0)") -> 93% (304) | E24: =IFERROR((IF($D24="NA","NA",VLOOKUP($A$3,'G3-MA'!$A$14:$AG$500,5,FALSE))),"NA") -> 0.66 | F24: =IFERROR((IF($D24="NA","NA",ROUND(VLOOKUP($A$3,'G3-MA'!$A$14:$AG$500,11,FALSE)*100,0)&"% ("&IF(VLOOKUP($A$3,'G3-MA'!$A$14:$AG$500,8,FALSE)="",0,VLOOKUP($A$3,'G3-MA'!$A$14:$AG$500,8,FALSE))&")")),"NA") -> 83% (252) | G24: =IFERROR((IF($D24="NA","NA",VLOOKUP($A$3,'G3-MA'!$A$14:$AG$500,13,FALSE))),"NA") -> 0.7 | H24: NA | I24: =IFERROR((IF($D24="NA","NA",VLOOKUP($A$3,'G3-MA'!$A$14:$AG$500,17,FALSE))),"NA") -> 0.63 | J24: NA
A25: Am. Indian | B25: =IFERROR(VLOOKUP(TEXT($A$3,"0000"),'AYP11'!$B$3:$AU$424,37,FALSE)," ") -> NO | C25: =IFERROR(VLOOKUP(TEXT($A$3,"0000"),MEM_I!$A$2:$O$500,7,FALSE),"NA") -> 18 | D25: =IFERROR((IF(OR(C25=0,C25="",C25="NA"),"NA",((IF(VLOOKUP($A$3,'G3-MI'!$A$14:$AG$500,3,FALSE)>=C25,"100% ("&VLOOKUP($A$3,'G3-MI'!$A$14:$AG$500,3,FALSE)&")",(ROUND((VLOOKUP($A$3,'G3-MI'!$A$14:$AG$500,3,FALSE)/C25*100),0))&"% ("&IF(VLOOKUP($A$3,'G3-MI'!$A$14:$AG$500,3,FALSE)="",0,VLOOKUP($A$3,'G3-MI'!$A$14:$AG$500,3,FALSE))&")"))))),"0% (0)") -> 89% (16) | E25: =IFERROR((IF($D25="NA","NA",VLOOKUP($A$3,'G3-MI'!$A$14:$AG$500,5,FALSE))),"NA") -> 0.58 | F25: =IFERROR((IF($D25="NA","NA",ROUND(VLOOKUP($A$3,'G3-MI'!$A$14:$AG$500,11,FALSE)*100,0)&"% ("&IF(VLOOKUP($A$3,'G3-MI'!$A$14:$AG$500,8,FALSE)="",0,VLOOKUP($A$3,'G3-MI'!$A$14:$AG$500,8,FALSE))&")")),"NA") -> 63% (10) | G25: =IFERROR((IF($D25="NA","NA",VLOOKUP($A$3,'G3-MI'!$A$14:$AG$500,13,FALSE))),"NA") -> 0.63 | H25: NA | I25: =IFERROR((IF($D25="NA","NA",VLOOKUP($A$3,'G3-MI'!$A$14:$AG$500,17,FALSE))),"NA") -> 0.54 | J25: NA
A26: ED | B26: =IFERROR(VLOOKUP(TEXT($A$3,"0000"),'AYP11'!$B$1269:$AU$1690,37,FALSE)," ") -> NO | C26: =IFERROR(VLOOKUP(TEXT($A$3,"0000"),MEM_ED!$A$2:$O$500,7,FALSE),"NA") -> 20871 | D26: =IFERROR((IF(OR(C26=0,C26="",C26="NA"),"NA",((IF(VLOOKUP($A$3,'G3-MED'!$A$14:$AG$500,3,FALSE)>=C26,"100% ("&VLOOKUP($A$3,'G3-MED'!$A$14:$AG$500,3,FALSE)&")",(ROUND((VLOOKUP($A$3,'G3-MED'!$A$14:$AG$500,3,FALSE)/C26*100),0))&"% ("&IF(VLOOKUP($A$3,'G3-MED'!$A$14:$AG$500,3,FALSE)="",0,VLOOKUP($A$3,'G3-MED'!$A$14:$AG$500,3,FALSE))&")"))))),"0% (0)") -> 93% (19411) | E26: =IFERROR((IF($D26="NA","NA",VLOOKUP($A$3,'G3-MED'!$A$14:$AG$500,5,FALSE))),"NA") -> 0.49 | F26: =IFERROR((IF($D26="NA","NA",ROUND(VLOOKUP($A$3,'G3-MED'!$A$14:$AG$500,11,FALSE)*100,0)&"% ("&IF(VLOOKUP($A$3,'G3-MED'!$A$14:$AG$500,8,FALSE)="",0,VLOOKUP($A$3,'G3-MED'!$A$14:$AG$500,8,FALSE))&")")),"NA") -> 52% (10125) | G26: =IFERROR((IF($D26="NA","NA",VLOOKUP($A$3,'G3-MED'!$A$14:$AG$500,13,FALSE))),"NA") -> 0.54 | H26: NA | I26: =IFERROR((IF($D26="NA","NA",VLOOKUP($A$3,'G3-MED'!$A$14:$AG$500,17,FALSE))),"NA") -> 0.45 | J26: NA
A27: ELL | B27: =IFERROR(VLOOKUP(TEXT($A$3,"0000"),'AYP11'!$B$1691:$AU$2112,37,FALSE)," ") -> NO | C27: =IFERROR(VLOOKUP(TEXT($A$3,"0000"),MEM_ELL!$A$2:$O$500,7,FALSE),"NA") -> 13194 | D27: =IFERROR((IF(OR(C27=0,C27="",C27="NA"),"NA",((IF(VLOOKUP($A$3,'G3-MELL'!$A$14:$AG$500,3,FALSE)>=C27,"100% ("&VLOOKUP($A$3,'G3-MELL'!$A$14:$AG$500,3,FALSE)&")",(ROUND((VLOOKUP($A$3,'G3-MELL'!$A$14:$AG$500,3,FALSE)/C27*100),0))&"% ("&IF(VLOOKUP($A$3,'G3-MELL'!$A$14:$AG$500,3,FALSE)="",0,VLOOKUP($A$3,'G3-MELL'!$A$14:$AG$500,3,FALSE))&")"))))),"0% (0)") -> 95% (12522) | E27: =IFERROR((IF($D27="NA","NA",VLOOKUP($A$3,'G3-MELL'!$A$14:$AG$500,5,FALSE))),"NA") -> 0.49 | F27: =IFERROR((IF($D27="NA","NA",ROUND(VLOOKUP($A$3,'G3-MELL'!$A$14:$AG$500,11,FALSE)*100,0)&"% ("&IF(VLOOKUP($A$3,'G3-MELL'!$A$14:$AG$500,8,FALSE)="",0,VLOOKUP($A$3,'G3-MELL'!$A$14:$AG$500,8,FALSE))&")")),"NA") -> 54% (6705) | G27: =IFERROR((IF($D27="NA","NA",VLOOKUP($A$3,'G3-MELL'!$A$14:$AG$500,13,FALSE))),"NA") -> 0.54 | H27: NA | I27: =IFERROR((IF($D27="NA","NA",VLOOKUP($A$3,'G3-MELL'!$A$14:$AG$500,17,FALSE))),"NA") -> 0.45 | J27: NA
A28: SWD | B28: =IFERROR(VLOOKUP(TEXT($A$3,"0000"),'AYP11'!$B$2535:$AU$2956,37,FALSE)," ") -> NO | C28: =IFERROR(VLOOKUP(TEXT($A$3,"0000"),MEM_SWD!$A$2:$O$500,7,FALSE),"NA") -> 2621 | D28: =IFERROR((IF(OR(C28=0,C28="",C28="NA"),"NA",((IF(VLOOKUP($A$3,'G3-MSWD'!$A$14:$AG$500,3,FALSE)>=C28,"100% ("&VLOOKUP($A$3,'G3-MSWD'!$A$14:$AG$500,3,FALSE)&")",(ROUND((VLOOKUP($A$3,'G3-MSWD'!$A$14:$AG$500,3,FALSE)/C28*100),0))&"% ("&IF(VLOOKUP($A$3,'G3-MSWD'!$A$14:$AG$500,3,FALSE)="",0,VLOOKUP($A$3,'G3-MSWD'!$A$14:$AG$500,3,FALSE))&")"))))),"0% (0)") -> 91% (2387) | E28: =IFERROR((IF($D28="NA","NA",VLOOKUP($A$3,'G3-MSWD'!$A$14:$AG$500,5,FALSE))),"NA") -> 0.41 | F28: =IFERROR((IF($D28="NA","NA",ROUND(VLOOKUP($A$3,'G3-MSWD'!$A$14:$AG$500,11,FALSE)*100,0)&"% ("&IF(VLOOKUP($A$3,'G3-MSWD'!$A$14:$AG$500,8,FALSE)="",0,VLOOKUP($A$3,'G3-MSWD'!$A$14:$AG$500,8,FALSE))&")")),"NA") -> 33% (789) | G28: =IFERROR((IF($D28="NA","NA",VLOOKUP($A$3,'G3-MSWD'!$A$14:$AG$500,13,FALSE))),"NA") -> 0.45 | H28: NA | I28: =IFERROR((IF($D28="NA","NA",VLOOKUP($A$3,'G3-MSWD'!$A$14:$AG$500,17,FALSE))),"NA") -> 0.37 | J28: NA

Sheet Grade 4 Report
A2: Click here to return to the school and sheet selection interface
A3: ='Select School'!B3 -> 9999
A4: =TEXT(A3,"0000")&"-"&VLOOKUP(A3,SchList!$A$2:$B$504,2,FALSE) -> 9999-DISTRICT
A5: Reading - Grade 4
A6: Satisfactory Progress Cut Score at 66% or above | B6: 2011 AYP Met** | C6: Total # of Students | D6: % of Students Tested | E6: Overall [58] | G6: Vocabulary [16] | I6: Reading Application [26] | K6: Literary Analysis Fiction/Nonfiction [11] | M6: Informational Text/ Research Process [5]
E7: Average % Correct | F7: % Satisfactory Progress | G7: Average % Correct | H7: % Satisfactory Progress | I7: Average % Correct | J7: % Satisfactory Progress | K7: Average % Correct | L7: % Satisfactory Progress | M7: Average % Correct | N7: % Satisfactory Progress
A8: All students | B8: =IFERROR(VLOOKUP(TEXT($A$3,"0000"),'AYP11'!$B$2957:$AU$3378,36,FALSE),"NA") -> NO | C8: =IFERROR(VLOOKUP(TEXT($A$3,"0000"),Mem_All!$A$2:$O$500,8,FALSE),0) -> 25368 | D8: =IFERROR((IF(OR(C8=0,C8="",C8="NA"),"NA",((IF(VLOOKUP($A$3,'G4-RALL'!$A$14:$AM$500,3,FALSE)>=C8,"100% ("&VLOOKUP($A$3,'G4-RALL'!$A$14:$AM$500,3,FALSE)&")",(ROUND((VLOOKUP($A$3,'G4-RALL'!$A$14:$AM$500,3,FALSE)/C8*100),0))&"% ("&IF(VLOOKUP($A$3,'G4-RALL'!$A$14:$AM$500,3,FALSE)="",0,VLOOKUP($A$3,'G4-RALL'!$A$14:$AM$500,3,FALSE))&")"))))),"NA") -> 95% (24043) | E8: =IFERROR((IF($D8="NA","NA",VLOOKUP($A$3,'G4-RALL'!$A$14:$AM$500,5,FALSE))),"NA") -> 0.65 | F8: =IFERROR((IF($D8="NA","NA",ROUND(VLOOKUP($A$3,'G4-RALL'!$A$14:$AM$500,11,FALSE)*100,0)&"% ("&IF(VLOOKUP($A$3,'G4-RALL'!$A$14:$AM$500,8,FALSE)="",0,VLOOKUP($A$3,'G4-RALL'!$A$14:$AM$500,8,FALSE))&")")),"NA") -> 58% (13903) | G8: =IFERROR((IF($D8="NA","NA",VLOOKUP($A$3,'G4-RALL'!$A$14:$AM$500,13,FALSE))),"NA") -> 0.74 | H8: NA | I8: =IFERROR((IF($D8="NA","NA",VLOOKUP($A$3,'G4-RALL'!$A$14:$AM$500,17,FALSE))),"NA") -> 0.67 | J8: NA | K8: =IFERROR((IF($D8="NA","NA",VLOOKUP($A$3,'G4-RALL'!$A$14:$AM$500,21,FALSE))),"NA") -> 0.55 | L8: NA | M8: =IFERROR((IF($D8="NA","NA",VLOOKUP($A$3,'G4-RALL'!$A$14:$AM$500,25,FALSE))),"NA") -> 0.53 | N8: NA
A9: FCAT Level 1 | C9: =IFERROR(VLOOKUP(TEXT($A$3,"0000"),MEM_RL1!$A$2:$O$500,5,FALSE),0) -> 3231 | D9: =IFERROR((IF(OR(C9=0,C9="",C9="NA"),"NA",((IF(VLOOKUP($A$3,'G4-RL1'!$A$14:$AM$500,3,FALSE)>=C9,"100% ("&VLOOKUP($A$3,'G4-RL1'!$A$14:$AM$500,3,FALSE)&")",(ROUND((VLOOKUP($A$3,'G4-RL1'!$A$14:$AM$500,3,FALSE)/C9*100),0))&"% ("&IF(VLOOKUP($A$3,'G4-RL1'!$A$14:$AM$500,3,FALSE)="",0,VLOOKUP($A$3,'G4-RL1'!$A$14:$AM$500,3,FALSE))&")"))))),"NA") -> 95% (3063) | E9: =IFERROR((IF($D9="NA","NA",VLOOKUP($A$3,'G4-RL1'!$A$14:$AM$500,5,FALSE))),"NA") -> 0.41 | F9: =IFERROR((IF($D9="NA","NA",ROUND(VLOOKUP($A$3,'G4-RL1'!$A$14:$AM$500,11,FALSE)*100,0)&"% ("&IF(VLOOKUP($A$3,'G4-RL1'!$A$14:$AM$500,8,FALSE)="",0,VLOOKUP($A$3,'G4-RL1'!$A$14:$AM$500,8,FALSE))&")")),"NA") -> 6% (191) | G9: =IFERROR((IF($D9="NA","NA",VLOOKUP($A$3,'G4-RL1'!$A$14:$AM$500,13,FALSE))),"NA") -> 0.48 | H9: NA | I9: =IFERROR((IF($D9="NA","NA",VLOOKUP($A$3,'G4-RL1'!$A$14:$AM$500,17,FALSE))),"NA") -> 0.42 | J9: NA | K9: =IFERROR((IF($D9="NA","NA",VLOOKUP($A$3,'G4-RL1'!$A$14:$AM$500,21,FALSE))),"NA") -> 0.33 | L9: NA | M9: =IFERROR((IF($D9="NA","NA",VLOOKUP($A$3,'G4-RL1'!$A$14:$AM$500,25,FALSE))),"NA") -> 0.33 | N9: NA
A10: FCAT Level 2 | C10: =IFERROR(VLOOKUP(TEXT($A$3,"0000"),MEM_RL2!$A$2:$O$500,5,FALSE),0) -> 3145 | D10: =IFERROR((IF(OR(C10=0,C10="",C10="NA"),"NA",((IF(VLOOKUP($A$3,'G4-RL2'!$A$14:$AM$500,3,FALSE)>=C10,"100% ("&VLOOKUP($A$3,'G4-RL2'!$A$14:$AM$500,3,FALSE)&")",(ROUND((VLOOKUP($A$3,'G4-RL2'!$A$14:$AM$500,3,FALSE)/C10*100),0))&"% ("&IF(VLOOKUP($A$3,'G4-RL2'!$A$14:$AM$500,3,FALSE)="",0,VLOOKUP($A$3,'G4-RL2'!$A$14:$AM$500,3,FALSE))&")"))))),"NA") -> 95% (2988) | E10: =IFERROR((IF($D10="NA","NA",VLOOKUP($A$3,'G4-RL2'!$A$14:$AM$500,5,FALSE))),"NA") -> 0.53 | F10: =IFERROR((IF($D10="NA","NA",ROUND(VLOOKUP($A$3,'G4-RL2'!$A$14:$AM$500,11,FALSE)*100,0)&"% ("&IF(VLOOKUP($A$3,'G4-RL2'!$A$14:$AM$500,8,FALSE)="",0,VLOOKUP($A$3,'G4-RL2'!$A$14:$AM$500,8,FALSE))&")")),"NA") -> 19% (561) | G10: =IFERROR((IF($D10="NA","NA",VLOOKUP($A$3,'G4-RL2'!$A$14:$AM$500,13,FALSE))),"NA") -> 0.64 | H10: NA | I10: =IFERROR((IF($D10="NA","NA",VLOOKUP($A$3,'G4-RL2'!$A$14:$AM$500,17,FALSE))),"NA") -> 0.54 | J10: NA | K10: =IFERROR((IF($D10="NA","NA",VLOOKUP($A$3,'G4-RL2'!$A$14:$AM$500,21,FALSE))),"NA") -> 0.42 | L10: NA | M10: =IFERROR((IF($D10="NA","NA",VLOOKUP($A$3,'G4-RL2'!$A$14:$AM$500,25,FALSE))),"NA") -> 0.39 | N10: NA
A11: FCAT Level 3 | C11: =IFERROR(VLOOKUP(TEXT($A$3,"0000"),MEM_RL3!$A$2:$O$500,5,FALSE),0) -> 8347 | D11: =IFERROR((IF(OR(C11=0,C11="",C11="NA"),"NA",((IF(VLOOKUP($A$3,'G4-RL3'!$A$14:$AM$500,3,FALSE)>=C11,"100% ("&VLOOKUP($A$3,'G4-RL3'!$A$14:$AM$500,3,FALSE)&")",(ROUND((VLOOKUP($A$3,'G4-RL3'!$A$14:$AM$500,3,FALSE)/C11*100),0))&"% ("&IF(VLOOKUP($A$3,'G4-RL3'!$A$14:$AM$500,3,FALSE)="",0,VLOOKUP($A$3,'G4-RL3'!$A$14:$AM$500,3,FALSE))&")"))))),"NA") -> 96% (7991) | E11: =IFERROR((IF($D11="NA","NA",VLOOKUP($A$3,'G4-RL3'!$A$14:$AM$500,5,FALSE))),"NA") -> 0.65 | F11: =IFERROR((IF($D11="NA","NA",ROUND(VLOOKUP($A$3,'G4-RL3'!$A$14:$AM$500,11,FALSE)*100,0)&"% ("&IF(VLOOKUP($A$3,'G4-RL3'!$A$14:$AM$500,8,FALSE)="",0,VLOOKUP($A$3,'G4-RL3'!$A$14:$AM$500,8,FALSE))&")")),"NA") -> 57% (4558) | G11: =IFERROR((IF($D11="NA","NA",VLOOKUP($A$3,'G4-RL3'!$A$14:$AM$500,13,FALSE))),"NA") -> 0.75 | H11: NA | I11: =IFERROR((IF($D11="NA","NA",VLOOKUP($A$3,'G4-RL3'!$A$14:$AM$500,17,FALSE))),"NA") -> 0.67 | J11: NA | K11: =IFERROR((IF($D11="NA","NA",VLOOKUP($A$3,'G4-RL3'!$A$14:$AM$500,21,FALSE))),"NA") -> 0.53 | L11: NA | M11: =IFERROR((IF($D11="NA","NA",VLOOKUP($A$3,'G4-RL3'!$A$14:$AM$500,25,FALSE))),"NA") -> 0.5 | N11: NA
A12: FCAT Level 4 | C12: =IFERROR(VLOOKUP(TEXT($A$3,"0000"),MEM_RL4!$A$2:$O$500,5,FALSE),0) -> 7337 | D12: =IFERROR((IF(OR(C12=0,C12="",C12="NA"),"NA",((IF(VLOOKUP($A$3,'G4-RL4'!$A$14:$AM$500,3,FALSE)>=C12,"100% ("&VLOOKUP($A$3,'G4-RL4'!$A$14:$AM$500,3,FALSE)&")",(ROUND((VLOOKUP($A$3,'G4-RL4'!$A$14:$AM$500,3,FALSE)/C12*100),0))&"% ("&IF(VLOOKUP($A$3,'G4-RL4'!$A$14:$AM$500,3,FALSE)="",0,VLOOKUP($A$3,'G4-RL4'!$A$14:$AM$500,3,FALSE))&")"))))),"NA") -> 96% (7011) | E12: =IFERROR((IF($D12="NA","NA",VLOOKUP($A$3,'G4-RL4'!$A$14:$AM$500,5,FALSE))),"NA") -> 0.79 | F12: =IFERROR((IF($D12="NA","NA",ROUND(VLOOKUP($A$3,'G4-RL4'!$A$14:$AM$500,11,FALSE)*100,0)&"% ("&IF(VLOOKUP($A$3,'G4-RL4'!$A$14:$AM$500,8,FALSE)="",0,VLOOKUP($A$3,'G4-RL4'!$A$14:$AM$500,8,FALSE))&")")),"NA") -> 93% (6492) | G12: =IFERROR((IF($D12="NA","NA",VLOOKUP($A$3,'G4-RL4'!$A$14:$AM$500,13,FALSE))),"NA") -> 0.87 | H12: NA | I12: =IFERROR((IF($D12="NA","NA",VLOOKUP($A$3,'G4-RL4'!$A$14:$AM$500,17,FALSE))),"NA") -> 0.8 | J12: NA | K12: =IFERROR((IF($D12="NA","NA",VLOOKUP($A$3,'G4-RL4'!$A$14:$AM$500,21,FALSE))),"NA") -> 0.68 | L12: NA | M12: =IFERROR((IF($D12="NA","NA",VLOOKUP($A$3,'G4-RL4'!$A$14:$AM$500,25,FALSE))),"NA") -> 0.66 | N12: NA
A13: FCAT Level 5 | C13: =IFERROR(VLOOKUP(TEXT($A$3,"0000"),MEM_RL5!$A$2:$O$500,4,FALSE),0) -> 1713 | D13: =IFERROR((IF(OR(C13=0,C13="",C13="NA"),"NA",((IF(VLOOKUP($A$3,'G4-RL5'!$A$14:$AM$500,3,FALSE)>=C13,"100% ("&VLOOKUP($A$3,'G4-RL5'!$A$14:$AM$500,3,FALSE)&")",(ROUND((VLOOKUP($A$3,'G4-RL5'!$A$14:$AM$500,3,FALSE)/C13*100),0))&"% ("&IF(VLOOKUP($A$3,'G4-RL5'!$A$14:$AM$500,3,FALSE)="",0,VLOOKUP($A$3,'G4-RL5'!$A$14:$AM$500,3,FALSE))&")"))))),"NA") -> 95% (1624) | E13: =IFERROR((IF($D13="NA","NA",VLOOKUP($A$3,'G4-RL5'!$A$14:$AM$500,5,FALSE))),"NA") -> 0.86 | F13: =IFERROR((IF($D13="NA","NA",ROUND(VLOOKUP($A$3,'G4-RL5'!$A$14:$AM$500,11,FALSE)*100,0)&"% ("&IF(VLOOKUP($A$3,'G4-RL5'!$A$14:$AM$500,8,FALSE)="",0,VLOOKUP($A$3,'G4-RL5'!$A$14:$AM$500,8,FALSE))&")")),"NA") -> 99% (1601) | G13: =IFERROR((IF($D13="NA","NA",VLOOKUP($A$3,'G4-RL5'!$A$14:$AM$500,13,FALSE))),"NA") -> 0.94 | H13: NA | I13: =IFERROR((IF($D13="NA","NA",VLOOKUP($A$3,'G4-RL5'!$A$14:$AM$500,17,FALSE))),"NA") -> 0.88 | J13: NA | K13: =IFERROR((IF($D13="NA","NA",VLOOKUP($A$3,'G4-RL5'!$A$14:$AM$500,21,FALSE))),"NA") -> 0.77 | L13: NA | M13: =IFERROR((IF($D13="NA","NA",VLOOKUP($A$3,'G4-RL5'!$A$14:$AM$500,25,FALSE))),"NA") -> 0.77 | N13: NA
A14: White | B14: =IFERROR(VLOOKUP(TEXT($A$3,"0000"),'AYP11'!$B$3379:$AU$3800,36,FALSE)," ") -> NO | C14: =IFERROR(VLOOKUP(TEXT($A$3,"0000"),MEM_W!$A$2:$O$500,8,FALSE),0) -> 2149 | D14: =IFERROR((IF(OR(C14=0,C14="",C14="NA"),"NA",((IF(VLOOKUP($A$3,'G4-RW'!$A$14:$AM$500,3,FALSE)>=C14,"100% ("&VLOOKUP($A$3,'G4-RW'!$A$14:$AM$500,3,FALSE)&")",(ROUND((VLOOKUP($A$3,'G4-RW'!$A$14:$AM$500,3,FALSE)/C14*100),0))&"% ("&IF(VLOOKUP($A$3,'G4-RW'!$A$14:$AM$500,3,FALSE)="",0,VLOOKUP($A$3,'G4-RW'!$A$14:$AM$500,3,FALSE))&")"))))),"NA") -> 92% (1986) | E14: =IFERROR((IF($D14="NA","NA",VLOOKUP($A$3,'G4-RW'!$A$14:$AM$500,5,FALSE))),"NA") -> 0.73 | F14: =IFERROR((IF($D14="NA","NA",ROUND(VLOOKUP($A$3,'G4-RW'!$A$14:$AM$500,11,FALSE)*100,0)&"% ("&IF(VLOOKUP($A$3,'G4-RW'!$A$14:$AM$500,8,FALSE)="",0,VLOOKUP($A$3,'G4-RW'!$A$14:$AM$500,8,FALSE))&")")),"NA") -> 77% (1529) | G14: =IFERROR((IF($D14="NA","NA",VLOOKUP($A$3,'G4-RW'!$A$14:$AM$500,13,FALSE))),"NA") -> 0.82 | H14: NA | I14: =IFERROR((IF($D14="NA","NA",VLOOKUP($A$3,'G4-RW'!$A$14:$AM$500,17,FALSE))),"NA") -> 0.75 | J14: NA | K14: =IFERROR((IF($D14="NA","NA",VLOOKUP($A$3,'G4-RW'!$A$14:$AM$500,21,FALSE))),"NA") -> 0.63 | L14: NA | M14: =IFERROR((IF($D14="NA","NA",VLOOKUP($A$3,'G4-RW'!$A$14:$AM$500,25,FALSE))),"NA") -> 0.62 | N14: NA
A15: Black | B15: =IFERROR(VLOOKUP(TEXT($A$3,"0000"),'AYP11'!$B$847:$AU$1268,36,FALSE)," ") -> NO | C15: =IFERROR(VLOOKUP(TEXT($A$3,"0000"),MEM_B!$A$2:$O$500,8,FALSE),0) -> 5891 | D15: =IFERROR((IF(OR(C15=0,C15="",C15="NA"),"NA",((IF(VLOOKUP($A$3,'G4-RB'!$A$14:$AM$500,3,FALSE)>=C15,"100% ("&VLOOKUP($A$3,'G4-RB'!$A$14:$AM$500,3,FALSE)&")",(ROUND((VLOOKUP($A$3,'G4-RB'!$A$14:$AM$500,3,FALSE)/C15*100),0))&"% ("&IF(VLOOKUP($A$3,'G4-RB'!$A$14:$AM$500,3,FALSE)="",0,VLOOKUP($A$3,'G4-RB'!$A$14:$AM$500,3,FALSE))&")"))))),"NA") -> 94% (5523) | E15: =IFERROR((IF($D15="NA","NA",VLOOKUP($A$3,'G4-RB'!$A$14:$AM$500,5,FALSE))),"NA") -> 0.6 | F15: =IFERROR((IF($D15="NA","NA",ROUND(VLOOKUP($A$3,'G4-RB'!$A$14:$AM$500,11,FALSE)*100,0)&"% ("&IF(VLOOKUP($A$3,'G4-RB'!$A$14:$AM$500,8,FALSE)="",0,VLOOKUP($A$3,'G4-RB'!$A$14:$AM$500,8,FALSE))&")")),"NA") -> 45% (2463) | G15: =IFERROR((IF($D15="NA","NA",VLOOKUP($A$3,'G4-RB'!$A$14:$AM$500,13,FALSE))),"NA") -> 0.7 | H15: NA | I15: =IFERROR((IF($D15="NA","NA",VLOOKUP($A$3,'G4-RB'!$A$14:$AM$500,17,FALSE))),"NA") -> 0.61 | J15: NA | K15: =IFERROR((IF($D15="NA","NA",VLOOKUP($A$3,'G4-RB'!$A$14:$AM$500,21,FALSE))),"NA") -> 0.5 | L15: NA | M15: =IFERROR((IF($D15="NA","NA",VLOOKUP($A$3,'G4-RB'!$A$14:$AM$500,25,FALSE))),"NA") -> 0.47 | N15: NA
A16: Hispanic | B16: =IFERROR(VLOOKUP(TEXT($A$3,"0000"),'AYP11'!$B$2113:$AU$2534,36,FALSE)," ") -> NO | C16: =IFERROR(VLOOKUP(TEXT($A$3,"0000"),MEM_H!$A$2:$O$500,8,FALSE),0) -> 16881 | D16: =IFERROR((IF(OR(C16=0,C16="",C16="NA"),"NA",((IF(VLOOKUP($A$3,'G4-RH'!$A$14:$AM$500,3,FALSE)>=C16,"100% ("&VLOOKUP($A$3,'G4-RH'!$A$14:$AM$500,3,FALSE)&")",(ROUND((VLOOKUP($A$3,'G4-RH'!$A$14:$AM$500,3,FALSE)/C16*100),0))&"% ("&IF(VLOOKUP($A$3,'G4-RH'!$A$14:$AM$500,3,FALSE)="",0,VLOOKUP($A$3,'G4-RH'!$A$14:$AM$500,3,FALSE))&")"))))),"NA") -> 95% (16116) | E16: =IFERROR((IF($D16="NA","NA",VLOOKUP($A$3,'G4-RH'!$A$14:$AM$500,5,FALSE))),"NA") -> 0.66 | F16: =IFERROR((IF($D16="NA","NA",ROUND(VLOOKUP($A$3,'G4-RH'!$A$14:$AM$500,11,FALSE)*100,0)&"% ("&IF(VLOOKUP($A$3,'G4-RH'!$A$14:$AM$500,8,FALSE)="",0,VLOOKUP($A$3,'G4-RH'!$A$14:$AM$500,8,FALSE))&")")),"NA") -> 59% (9584) | G16: =IFERROR((IF($D16="NA","NA",VLOOKUP($A$3,'G4-RH'!$A$14:$AM$500,13,FALSE))),"NA") -> 0.74 | H16: NA | I16: =IFERROR((IF($D16="NA","NA",VLOOKUP($A$3,'G4-RH'!$A$14:$AM$500,17,FALSE))),"NA") -> 0.67 | J16: NA | K16: =IFERROR((IF($D16="NA","NA",VLOOKUP($A$3,'G4-RH'!$A$14:$AM$500,21,FALSE))),"NA") -> 0.55 | L16: NA | M16: =IFERROR((IF($D16="NA","NA",VLOOKUP($A$3,'G4-RH'!$A$14:$AM$500,25,FALSE))),"NA") -> 0.54 | N16: NA
A17: Asian | B17: =IFERROR(VLOOKUP(TEXT($A$3,"0000"),'AYP11'!$B$425:$AU$846,36,FALSE)," ") -> Yes-AB | C17: =IFERROR(VLOOKUP(TEXT($A$3,"0000"),MEM_A!$A$2:$O$500,8,FALSE),0) -> 324 | D17: =IFERROR((IF(OR(C17=0,C17="",C17="NA"),"NA",((IF(VLOOKUP($A$3,'G4-RA'!$A$14:$AM$500,3,FALSE)>=C17,"100% ("&VLOOKUP($A$3,'G4-RA'!$A$14:$AM$500,3,FALSE)&")",(ROUND((VLOOKUP($A$3,'G4-RA'!$A$14:$AM$500,3,FALSE)/C17*100),0))&"% ("&IF(VLOOKUP($A$3,'G4-RA'!$A$14:$AM$500,3,FALSE)="",0,VLOOKUP($A$3,'G4-RA'!$A$14:$AM$500,3,FALSE))&")"))))),"NA") -> 93% (300) | E17: =IFERROR((IF($D17="NA","NA",VLOOKUP($A$3,'G4-RA'!$A$14:$AM$500,5,FALSE))),"NA") -> 0.75 | F17: =IFERROR((IF($D17="NA","NA",ROUND(VLOOKUP($A$3,'G4-RA'!$A$14:$AM$500,11,FALSE)*100,0)&"% ("&IF(VLOOKUP($A$3,'G4-RA'!$A$14:$AM$500,8,FALSE)="",0,VLOOKUP($A$3,'G4-RA'!$A$14:$AM$500,8,FALSE))&")")),"NA") -> 80% (241) | G17: =IFERROR((IF($D17="NA","NA",VLOOKUP($A$3,'G4-RA'!$A$14:$AM$500,13,FALSE))),"NA") -> 0.83 | H17: NA | I17: =IFERROR((IF($D17="NA","NA",VLOOKUP($A$3,'G4-RA'!$A$14:$AM$500,17,FALSE))),"NA") -> 0.77 | J17: NA | K17: =IFERROR((IF($D17="NA","NA",VLOOKUP($A$3,'G4-RA'!$A$14:$AM$500,21,FALSE))),"NA") -> 0.64 | L17: NA | M17: =IFERROR((IF($D17="NA","NA",VLOOKUP($A$3,'G4-RA'!$A$14:$AM$500,25,FALSE))),"NA") -> 0.64 | N17: NA
A18: Am. Indian | B18: =IFERROR(VLOOKUP(TEXT($A$3,"0000"),'AYP11'!$B$3:$AU$424,36,FALSE)," ") -> NO | C18: =IFERROR(VLOOKUP(TEXT($A$3,"0000"),MEM_I!$A$2:$O$500,8,FALSE),0) -> 27 | D18: =IFERROR((IF(OR(C18=0,C18="",C18="NA"),"NA",((IF(VLOOKUP($A$3,'G4-RI'!$A$14:$AM$500,3,FALSE)>=C18,"100% ("&VLOOKUP($A$3,'G4-RI'!$A$14:$AM$500,3,FALSE)&")",(ROUND((VLOOKUP($A$3,'G4-RI'!$A$14:$AM$500,3,FALSE)/C18*100),0))&"% ("&IF(VLOOKUP($A$3,'G4-RI'!$A$14:$AM$500,3,FALSE)="",0,VLOOKUP($A$3,'G4-RI'!$A$14:$AM$500,3,FALSE))&")"))))),"NA") -> 96% (26) | E18: =IFERROR((IF($D18="NA","NA",VLOOKUP($A$3,'G4-RI'!$A$14:$AM$500,5,FALSE))),"NA") -> 0.64 | F18: =IFERROR((IF($D18="NA","NA",ROUND(VLOOKUP($A$3,'G4-RI'!$A$14:$AM$500,11,FALSE)*100,0)&"% ("&IF(VLOOKUP($A$3,'G4-RI'!$A$14:$AM$500,8,FALSE)="",0,VLOOKUP($A$3,'G4-RI'!$A$14:$AM$500,8,FALSE))&")")),"NA") -> 62% (16) | G18: =IFERROR((IF($D18="NA","NA",VLOOKUP($A$3,'G4-RI'!$A$14:$AM$500,13,FALSE))),"NA") -> 0.73 | H18: NA | I18: =IFERROR((IF($D18="NA","NA",VLOOKUP($A$3,'G4-RI'!$A$14:$AM$500,17,FALSE))),"NA") -> 0.65 | J18: NA | K18: =IFERROR((IF($D18="NA","NA",VLOOKUP($A$3,'G4-RI'!$A$14:$AM$500,21,FALSE))),"NA") -> 0.5 | L18: NA | M18: =IFERROR((IF($D18="NA","NA",VLOOKUP($A$3,'G4-RI'!$A$14:$AM$500,25,FALSE))),"NA") -> 0.55 | N18: NA
A19: ED | B19: =IFERROR(VLOOKUP(TEXT($A$3,"0000"),'AYP11'!$B$1269:$AU$1690,36,FALSE)," ") -> NO | C19: =IFERROR(VLOOKUP(TEXT($A$3,"0000"),MEM_ED!$A$2:$O$500,8,FALSE),0) -> 19109 | D19: =IFERROR((IF(OR(C19=0,C19="",C19="NA"),"NA",((IF(VLOOKUP($A$3,'G4-RED'!$A$14:$AM$500,3,FALSE)>=C19,"100% ("&VLOOKUP($A$3,'G4-RED'!$A$14:$AM$500,3,FALSE)&")",(ROUND((VLOOKUP($A$3,'G4-RED'!$A$14:$AM$500,3,FALSE)/C19*100),0))&"% ("&IF(VLOOKUP($A$3,'G4-RED'!$A$14:$AM$500,3,FALSE)="",0,VLOOKUP($A$3,'G4-RED'!$A$14:$AM$500,3,FALSE))&")"))))),"NA") -> 96% (18254) | E19: =IFERROR((IF($D19="NA","NA",VLOOKUP($A$3,'G4-RED'!$A$14:$AM$500,5,FALSE))),"NA") -> 0.63 | F19: =IFERROR((IF($D19="NA","NA",ROUND(VLOOKUP($A$3,'G4-RED'!$A$14:$AM$500,11,FALSE)*100,0)&"% ("&IF(VLOOKUP($A$3,'G4-RED'!$A$14:$AM$500,8,FALSE)="",0,VLOOKUP($A$3,'G4-RED'!$A$14:$AM$500,8,FALSE))&")")),"NA") -> 52% (9463) | G19: =IFERROR((IF($D19="NA","NA",VLOOKUP($A$3,'G4-RED'!$A$14:$AM$500,13,FALSE))),"NA") -> 0.72 | H19: NA | I19: =IFERROR((IF($D19="NA","NA",VLOOKUP($A$3,'G4-RED'!$A$14:$AM$500,17,FALSE))),"NA") -> 0.64 | J19: NA | K19: =IFERROR((IF($D19="NA","NA",VLOOKUP($A$3,'G4-RED'!$A$14:$AM$500,21,FALSE))),"NA") -> 0.52 | L19: NA | M19: =IFERROR((IF($D19="NA","NA",VLOOKUP($A$3,'G4-RED'!$A$14:$AM$500,25,FALSE))),"NA") -> 0.5 | N19: NA
A20: ELL | B20: =IFERROR(VLOOKUP(TEXT($A$3,"0000"),'AYP11'!$B$1691:$AU$2112,36,FALSE)," ") -> NO | C20: =IFERROR(VLOOKUP(TEXT($A$3,"0000"),MEM_ELL!$A$2:$O$500,8,FALSE),0) -> 8982 | D20: =IFERROR((IF(OR(C20=0,C20="",C20="NA"),"NA",((IF(VLOOKUP($A$3,'G4-RELL'!$A$14:$AM$500,3,FALSE)>=C20,"100% ("&VLOOKUP($A$3,'G4-RELL'!$A$14:$AM$500,3,FALSE)&")",(ROUND((VLOOKUP($A$3,'G4-RELL'!$A$14:$AM$500,3,FALSE)/C20*100),0))&"% ("&IF(VLOOKUP($A$3,'G4-RELL'!$A$14:$AM$500,3,FALSE)="",0,VLOOKUP($A$3,'G4-RELL'!$A$14:$AM$500,3,FALSE))&")"))))),"NA") -> 96% (8631) | E20: =IFERROR((IF($D20="NA","NA",VLOOKUP($A$3,'G4-RELL'!$A$14:$AM$500,5,FALSE))),"NA") -> 0.59 | F20: =IFERROR((IF($D20="NA","NA",ROUND(VLOOKUP($A$3,'G4-RELL'!$A$14:$AM$500,11,FALSE)*100,0)&"% ("&IF(VLOOKUP($A$3,'G4-RELL'!$A$14:$AM$500,8,FALSE)="",0,VLOOKUP($A$3,'G4-RELL'!$A$14:$AM$500,8,FALSE))&")")),"NA") -> 44% (3839) | G20: =IFERROR((IF($D20="NA","NA",VLOOKUP($A$3,'G4-RELL'!$A$14:$AM$500,13,FALSE))),"NA") -> 0.67 | H20: NA | I20: =IFERROR((IF($D20="NA","NA",VLOOKUP($A$3,'G4-RELL'!$A$14:$AM$500,17,FALSE))),"NA") -> 0.61 | J20: NA | K20: =IFERROR((IF($D20="NA","NA",VLOOKUP($A$3,'G4-RELL'!$A$14:$AM$500,21,FALSE))),"NA") -> 0.48 | L20: NA | M20: =IFERROR((IF($D20="NA","NA",VLOOKUP($A$3,'G4-RELL'!$A$14:$AM$500,25,FALSE))),"NA") -> 0.47 | N20: NA
A21: SWD | B21: =IFERROR(VLOOKUP(TEXT($A$3,"0000"),'AYP11'!$B$2535:$AU$2956,36,FALSE)," ") -> NO | C21: =IFERROR(VLOOKUP(TEXT($A$3,"0000"),MEM_SWD!$A$2:$O$500,8,FALSE),0) -> 2488 | D21: =IFERROR((IF(OR(C21=0,C21="",C21="NA"),"NA",((IF(VLOOKUP($A$3,'G4-RSWD'!$A$14:$AM$500,3,FALSE)>=C21,"100% ("&VLOOKUP($A$3,'G4-RSWD'!$A$14:$AM$500,3,FALSE)&")",(ROUND((VLOOKUP($A$3,'G4-RSWD'!$A$14:$AM$500,3,FALSE)/C21*100),0))&"% ("&IF(VLOOKUP($A$3,'G4-RSWD'!$A$14:$AM$500,3,FALSE)="",0,VLOOKUP($A$3,'G4-RSWD'!$A$14:$AM$500,3,FALSE))&")"))))),"NA") -> 94% (2336) | E21: =IFERROR((IF($D21="NA","NA",VLOOKUP($A$3,'G4-RSWD'!$A$14:$AM$500,5,FALSE))),"NA") -> 0.49 | F21: =IFERROR((IF($D21="NA","NA",ROUND(VLOOKUP($A$3,'G4-RSWD'!$A$14:$AM$500,11,FALSE)*100,0)&"% ("&IF(VLOOKUP($A$3,'G4-RSWD'!$A$14:$AM$500,8,FALSE)="",0,VLOOKUP($A$3,'G4-RSWD'!$A$14:$AM$500,8,FALSE))&")")),"NA") -> 24% (558) | G21: =IFERROR((IF($D21="NA","NA",VLOOKUP($A$3,'G4-RSWD'!$A$14:$AM$500,13,FALSE))),"NA") -> 0.57 | H21: NA | I21: =IFERROR((IF($D21="NA","NA",VLOOKUP($A$3,'G4-RSWD'!$A$14:$AM$500,17,FALSE))),"NA") -> 0.5 | J21: NA | K21: =IFERROR((IF($D21="NA","NA",VLOOKUP($A$3,'G4-RSWD'!$A$14:$AM$500,21,FALSE))),"NA") -> 0.4 | L21: NA | M21: =IFERROR((IF($D21="NA","NA",VLOOKUP($A$3,'G4-RSWD'!$A$14:$AM$500,25,FALSE))),"NA") -> 0.4 | N21: NA
A22: Math - Grade 4
A23: Satisfactory Progress Cut Score at 48% or above | B23: 2011 AYP Met** | C23: Total # of Students | D23: % Tested | E23: Overall [40] | G23: Number: Operations and Problems [20] | I23: Number: Base Ten and Fractions [20] | K23: Geometry and Measurement [0]
E24: Average % Correct | F24: % Satisfactory Progress | G24: Average % Correct | H24: % Satisfactory Progress | I24: Average % Correct | J24: % Satisfactory Progress | K24: Average % Correct | L24: % Satisfactory Progress
A25: All students | B25: =IFERROR(VLOOKUP(TEXT($A$3,"0000"),'AYP11'!$B$2957:$AU$3378,37,FALSE),"NA") -> NO | C25: =IFERROR(VLOOKUP(TEXT($A$3,"0000"),Mem_All!$A$2:$O$500,8,FALSE),0) -> 25368 | D25: =IFERROR((IF(OR(C25=0,C25="",C25="NA"),"NA",((IF(VLOOKUP($A$3,'G4-MALL'!$A$14:$O$500,3,FALSE)>=C25,"100% ("&VLOOKUP($A$3,'G4-MALL'!$A$14:$O$500,3,FALSE)&")",(ROUND((VLOOKUP($A$3,'G4-MALL'!$A$14:$O$500,3,FALSE)/C25*100),0))&"% ("&IF(VLOOKUP($A$3,'G4-MALL'!$A$14:$O$500,3,FALSE)="",0,VLOOKUP($A$3,'G4-MALL'!$A$14:$O$500,3,FALSE))&")"))))),"NA") -> 92% (23358) | E25: =IFERROR((IF($D25="NA","NA",VLOOKUP($A$3,'G4-MALL'!$A$14:$O$500,5,FALSE))),"NA") -> 0.53 | F25: =IFERROR((IF($D25="NA","NA",ROUND(VLOOKUP($A$3,'G4-MALL'!$A$14:$O$500,11,FALSE)*100,0)&"% ("&IF(VLOOKUP($A$3,'G4-MALL'!$A$14:$O$500,8,FALSE)="",0,VLOOKUP($A$3,'G4-MALL'!$A$14:$O$500,8,FALSE))&")")),"NA") -> 57% (13302) | G25: =IFERROR((IF($D25="NA","NA",VLOOKUP($A$3,'G4-MALL'!$A$14:$O$500,13,FALSE))),"NA") -> 0.56 | H25: NA | I25: =IFERROR((IF($D25="NA","NA",VLOOKUP($A$3,'G4-MALL'!$A$14:$AG$500,17,FALSE))),"NA") -> 0.49 | J25: NA
A26: FCAT Level 1 | C26: =IFERROR(VLOOKUP(TEXT($A$3,"0000"),MEM_ML1!$A$2:$O$500,5,FALSE),0) -> 1424 | D26: =IFERROR((IF(OR(C26=0,C26="",C26="NA"),"NA",((IF(VLOOKUP($A$3,'G4-ML1'!$A$14:$AG$500,3,FALSE)>=C26,"100% ("&VLOOKUP($A$3,'G4-ML1'!$A$14:$AG$500,3,FALSE)&")",(ROUND((VLOOKUP($A$3,'G4-ML1'!$A$14:$AG$500,3,FALSE)/C26*100),0))&"% ("&IF(VLOOKUP($A$3,'G4-ML1'!$A$14:$AG$500,3,FALSE)="",0,VLOOKUP($A$3,'G4-ML1'!$A$14:$AG$500,3,FALSE))&")"))))),"NA") -> 91% (1295) | E26: =IFERROR((IF($D26="NA","NA",VLOOKUP($A$3,'G4-ML1'!$A$14:$AG$500,5,FALSE))),"NA") -> 0.3 | F26: =IFERROR((IF($D26="NA","NA",ROUND(VLOOKUP($A$3,'G4-ML1'!$A$14:$AG$500,11,FALSE)*100,0)&"% ("&IF(VLOOKUP($A$3,'G4-ML1'!$A$14:$AG$500,8,FALSE)="",0,VLOOKUP($A$3,'G4-ML1'!$A$14:$AG$500,8,FALSE))&")")),"NA") -> 7% (87) | G26: =IFERROR((IF($D26="NA","NA",VLOOKUP($A$3,'G4-ML1'!$A$14:$AG$500,13,FALSE))),"NA") -> 0.33 | H26: NA | I26: =IFERROR((IF($D26="NA","NA",VLOOKUP($A$3,'G4-ML1'!$A$14:$AG$500,17,FALSE))),"NA") -> 0.27 | J26: NA
A27: FCAT Level 2 | C27: =IFERROR(VLOOKUP(TEXT($A$3,"0000"),MEM_ML2!$A$2:$O$500,5,FALSE),0) -> 2564 | D27: =IFERROR((IF(OR(C27=0,C27="",C27="NA"),"NA",((IF(VLOOKUP($A$3,'G4-ML2'!$A$14:$AG$500,3,FALSE)>=C27,"100% ("&VLOOKUP($A$3,'G4-ML2'!$A$14:$AG$500,3,FALSE)&")",(ROUND((VLOOKUP($A$3,'G4-ML2'!$A$14:$AG$500,3,FALSE)/C27*100),0))&"% ("&IF(VLOOKUP($A$3,'G4-ML2'!$A$14:$AG$500,3,FALSE)="",0,VLOOKUP($A$3,'G4-ML2'!$A$14:$AG$500,3,FALSE))&")"))))),"NA") -> 92% (2364) | E27: =IFERROR((IF($D27="NA","NA",VLOOKUP($A$3,'G4-ML2'!$A$14:$AG$500,5,FALSE))),"NA") -> 0.36 | F27: =IFERROR((IF($D27="NA","NA",ROUND(VLOOKUP($A$3,'G4-ML2'!$A$14:$AG$500,11,FALSE)*100,0)&"% ("&IF(VLOOKUP($A$3,'G4-ML2'!$A$14:$AG$500,8,FALSE)="",0,VLOOKUP($A$3,'G4-ML2'!$A$14:$AG$500,8,FALSE))&")")),"NA") -> 17% (410) | G27: =IFERROR((IF($D27="NA","NA",VLOOKUP($A$3,'G4-ML2'!$A$14:$AG$500,13,FALSE))),"NA") -> 0.41 | H27: NA | I27: =IFERROR((IF($D27="NA","NA",VLOOKUP($A$3,'G4-ML2'!$A$14:$AG$500,17,FALSE))),"NA") -> 0.32 | J27: NA
A28: FCAT Level 3 | C28: =IFERROR(VLOOKUP(TEXT($A$3,"0000"),MEM_ML3!$A$2:$O$500,5,FALSE),0) -> 7521 | D28: =IFERROR((IF(OR(C28=0,C28="",C28="NA"),"NA",((IF(VLOOKUP($A$3,'G4-ML3'!$A$14:$AG$500,3,FALSE)>=C28,"100% ("&VLOOKUP($A$3,'G4-ML3'!$A$14:$AG$500,3,FALSE)&")",(ROUND((VLOOKUP($A$3,'G4-ML3'!$A$14:$AG$500,3,FALSE)/C28*100),0))&"% ("&IF(VLOOKUP($A$3,'G4-ML3'!$A$14:$AG$500,3,FALSE)="",0,VLOOKUP($A$3,'G4-ML3'!$A$14:$AG$500,3,FALSE))&")"))))),"NA") -> 92% (6950) | E28: =IFERROR((IF($D28="NA","NA",VLOOKUP($A$3,'G4-ML3'!$A$14:$AG$500,5,FALSE))),"NA") -> 0.44 | F28: =IFERROR((IF($D28="NA","NA",ROUND(VLOOKUP($A$3,'G4-ML3'!$A$14:$AG$500,11,FALSE)*100,0)&"% ("&IF(VLOOKUP($A$3,'G4-ML3'!$A$14:$AG$500,8,FALSE)="",0,VLOOKUP($A$3,'G4-ML3'!$A$14:$AG$500,8,FALSE))&")")),"NA") -> 40% (2761) | G28: =IFERROR((IF($D28="NA","NA",VLOOKUP($A$3,'G4-ML3'!$A$14:$AG$500,13,FALSE))),"NA") -> 0.48 | H28: NA | I28: =IFERROR((IF($D28="NA","NA",VLOOKUP($A$3,'G4-ML3'!$A$14:$AG$500,17,FALSE))),"NA") -> 0.4 | J28: NA
A29: FCAT Level 4 | C29: =IFERROR(VLOOKUP(TEXT($A$3,"0000"),MEM_ML4!$A$2:$O$500,5,FALSE),0) -> 8095 | D29: =IFERROR((IF(OR(C29=0,C29="",C29="NA"),"NA",((IF(VLOOKUP($A$3,'G4-ML4'!$A$14:$AG$500,3,FALSE)>=C29,"100% ("&VLOOKUP($A$3,'G4-ML4'!$A$14:$AG$500,3,FALSE)&")",(ROUND((VLOOKUP($A$3,'G4-ML4'!$A$14:$AG$500,3,FALSE)/C29*100),0))&"% ("&IF(VLOOKUP($A$3,'G4-ML4'!$A$14:$AG$500,3,FALSE)="",0,VLOOKUP($A$3,'G4-ML4'!$A$14:$AG$500,3,FALSE))&")"))))),"NA") -> 93% (7515) | E29: =IFERROR((IF($D29="NA","NA",VLOOKUP($A$3,'G4-ML4'!$A$14:$AG$500,5,FALSE))),"NA") -> 0.58 | F29: =IFERROR((IF($D29="NA","NA",ROUND(VLOOKUP($A$3,'G4-ML4'!$A$14:$AG$500,11,FALSE)*100,0)&"% ("&IF(VLOOKUP($A$3,'G4-ML4'!$A$14:$AG$500,8,FALSE)="",0,VLOOKUP($A$3,'G4-ML4'!$A$14:$AG$500,8,FALSE))&")")),"NA") -> 76% (5722) | G29: =IFERROR((IF($D29="NA","NA",VLOOKUP($A$3,'G4-ML4'!$A$14:$AG$500,13,FALSE))),"NA") -> 0.61 | H29: NA | I29: =IFERROR((IF($D29="NA","NA",VLOOKUP($A$3,'G4-ML4'!$A$14:$AG$500,17,FALSE))),"NA") -> 0.56 | J29: NA
A30: FCAT Level 5 | C30: =IFERROR(VLOOKUP(TEXT($A$3,"0000"),MEM_ML5!$A$2:$M$500,4,FALSE),0) -> 4187 | D30: =IFERROR((IF(OR(C30=0,C30="",C30="NA"),"NA",((IF(VLOOKUP($A$3,'G4-ML5'!$A$14:$AG$500,3,FALSE)>=C30,"100% ("&VLOOKUP($A$3,'G4-ML5'!$A$14:$AG$500,3,FALSE)&")",(ROUND((VLOOKUP($A$3,'G4-ML5'!$A$14:$AG$500,3,FALSE)/C30*100),0))&"% ("&IF(VLOOKUP($A$3,'G4-ML5'!$A$14:$AG$500,3,FALSE)="",0,VLOOKUP($A$3,'G4-ML5'!$A$14:$AG$500,3,FALSE))&")"))))),"NA") -> 93% (3898) | E30: =IFERROR((IF($D30="NA","NA",VLOOKUP($A$3,'G4-ML5'!$A$14:$AG$500,5,FALSE))),"NA") -> 0.76 | F30: =IFERROR((IF($D30="NA","NA",ROUND(VLOOKUP($A$3,'G4-ML5'!$A$14:$AG$500,11,FALSE)*100,0)&"% ("&IF(VLOOKUP($A$3,'G4-ML5'!$A$14:$AG$500,8,FALSE)="",0,VLOOKUP($A$3,'G4-ML5'!$A$14:$AG$500,8,FALSE))&")")),"NA") -> 97% (3768) | G30: =IFERROR((IF($D30="NA","NA",VLOOKUP($A$3,'G4-ML5'!$A$14:$AG$500,13,FALSE))),"NA") -> 0.77 | H30: NA | I30: =IFERROR((IF($D30="NA","NA",VLOOKUP($A$3,'G4-ML5'!$A$14:$AG$500,17,FALSE))),"NA") -> 0.75 | J30: NA
A31: White | B31: =IFERROR(VLOOKUP(TEXT($A$3,"0000"),'AYP11'!$B$3379:$AU$3800,37,FALSE)," ") -> Yes-AB | C31: =IFERROR(VLOOKUP(TEXT($A$3,"0000"),MEM_W!$A$2:$O$500,8,FALSE),0) -> 2149 | D31: =IFERROR((IF(OR(C31=0,C31="",C31="NA"),"NA",((IF(VLOOKUP($A$3,'G4-MW'!$A$14:$AG$500,3,FALSE)>=C31,"100% ("&VLOOKUP($A$3,'G4-MW'!$A$14:$AG$500,3,FALSE)&")",(ROUND((VLOOKUP($A$3,'G4-MW'!$A$14:$AG$500,3,FALSE)/C31*100),0))&"% ("&IF(VLOOKUP($A$3,'G4-MW'!$A$14:$AG$500,3,FALSE)="",0,VLOOKUP($A$3,'G4-MW'!$A$14:$AG$500,3,FALSE))&")"))))),"NA") -> 91% (1961) | E31: =IFERROR((IF($D31="NA","NA",VLOOKUP($A$3,'G4-MW'!$A$14:$AG$500,5,FALSE))),"NA") -> 0.6 | F31: =IFERROR((IF($D31="NA","NA",ROUND(VLOOKUP($A$3,'G4-MW'!$A$14:$AG$500,11,FALSE)*100,0)&"% ("&IF(VLOOKUP($A$3,'G4-MW'!$A$14:$AG$500,8,FALSE)="",0,VLOOKUP($A$3,'G4-MW'!$A$14:$AG$500,8,FALSE))&")")),"NA") -> 71% (1398) | G31: =IFERROR((IF($D31="NA","NA",VLOOKUP($A$3,'G4-MW'!$A$14:$AG$500,13,FALSE))),"NA") -> 0.63 | H31: NA | I31: =IFERROR((IF($D31="NA","NA",VLOOKUP($A$3,'G4-MW'!$A$14:$AG$500,17,FALSE))),"NA") -> 0.57 | J31: NA
A32: Black | B32: =IFERROR(VLOOKUP(TEXT($A$3,"0000"),'AYP11'!$B$847:$AU$1268,37,FALSE)," ") -> NO | C32: =IFERROR(VLOOKUP(TEXT($A$3,"0000"),MEM_B!$A$2:$O$500,8,FALSE),0) -> 5891 | D32: =IFERROR((IF(OR(C32=0,C32="",C32="NA"),"NA",((IF(VLOOKUP($A$3,'G4-MB'!$A$14:$AG$500,3,FALSE)>=C32,"100% ("&VLOOKUP($A$3,'G4-MB'!$A$14:$AG$500,3,FALSE)&")",(ROUND((VLOOKUP($A$3,'G4-MB'!$A$14:$AG$500,3,FALSE)/C32*100),0))&"% ("&IF(VLOOKUP($A$3,'G4-MB'!$A$14:$AG$500,3,FALSE)="",0,VLOOKUP($A$3,'G4-MB'!$A$14:$AG$500,3,FALSE))&")"))))),"NA") -> 90% (5298) | E32: =IFERROR((IF($D32="NA","NA",VLOOKUP($A$3,'G4-MB'!$A$14:$AG$500,5,FALSE))),"NA") -> 0.48 | F32: =IFERROR((IF($D32="NA","NA",ROUND(VLOOKUP($A$3,'G4-MB'!$A$14:$AG$500,11,FALSE)*100,0)&"% ("&IF(VLOOKUP($A$3,'G4-MB'!$A$14:$AG$500,8,FALSE)="",0,VLOOKUP($A$3,'G4-MB'!$A$14:$AG$500,8,FALSE))&")")),"NA") -> 48% (2536) | G32: =IFERROR((IF($D32="NA","NA",VLOOKUP($A$3,'G4-MB'!$A$14:$AG$500,13,FALSE))),"NA") -> 0.51 | H32: NA | I32: =IFERROR((IF($D32="NA","NA",VLOOKUP($A$3,'G4-MB'!$A$14:$AG$500,17,FALSE))),"NA") -> 0.46 | J32: NA
A33: Hispanic | B33: =IFERROR(VLOOKUP(TEXT($A$3,"0000"),'AYP11'!$B$2113:$AU$2534,37,FALSE)," ") -> NO | C33: =IFERROR(VLOOKUP(TEXT($A$3,"0000"),MEM_H!$A$2:$O$500,8,FALSE),0) -> 16881 | D33: =IFERROR((IF(OR(C33=0,C33="",C33="NA"),"NA",((IF(VLOOKUP($A$3,'G4-MH'!$A$14:$AG$500,3,FALSE)>=C33,"100% ("&VLOOKUP($A$3,'G4-MH'!$A$14:$AG$500,3,FALSE)&")",(ROUND((VLOOKUP($A$3,'G4-MH'!$A$14:$AG$500,3,FALSE)/C33*100),0))&"% ("&IF(VLOOKUP($A$3,'G4-MH'!$A$14:$AG$500,3,FALSE)="",0,VLOOKUP($A$3,'G4-MH'!$A$14:$AG$500,3,FALSE))&")"))))),"NA") -> 93% (15694) | E33: =IFERROR((IF($D33="NA","NA",VLOOKUP($A$3,'G4-MH'!$A$14:$AG$500,5,FALSE))),"NA") -> 0.53 | F33: =IFERROR((IF($D33="NA","NA",ROUND(VLOOKUP($A$3,'G4-MH'!$A$14:$AG$500,11,FALSE)*100,0)&"% ("&IF(VLOOKUP($A$3,'G4-MH'!$A$14:$AG$500,8,FALSE)="",0,VLOOKUP($A$3,'G4-MH'!$A$14:$AG$500,8,FALSE))&")")),"NA") -> 58% (9064) | G33: =IFERROR((IF($D33="NA","NA",VLOOKUP($A$3,'G4-MH'!$A$14:$AG$500,13,FALSE))),"NA") -> 0.56 | H33: NA | I33: =IFERROR((IF($D33="NA","NA",VLOOKUP($A$3,'G4-MH'!$A$14:$AG$500,17,FALSE))),"NA") -> 0.49 | J33: NA
A34: Asian | B34: =IFERROR(VLOOKUP(TEXT($A$3,"0000"),'AYP11'!$B$425:$AU$846,37,FALSE)," ") -> Yes-AB | C34: =IFERROR(VLOOKUP(TEXT($A$3,"0000"),MEM_A!$A$2:$O$500,8,FALSE),0) -> 324 | D34: =IFERROR((IF(OR(C34=0,C34="",C34="NA"),"NA",((IF(VLOOKUP($A$3,'G4-MA'!$A$14:$AG$500,3,FALSE)>=C34,"100% ("&VLOOKUP($A$3,'G4-MA'!$A$14:$AG$500,3,FALSE)&")",(ROUND((VLOOKUP($A$3,'G4-MA'!$A$14:$AG$500,3,FALSE)/C34*100),0))&"% ("&IF(VLOOKUP($A$3,'G4-MA'!$A$14:$AG$500,3,FALSE)="",0,VLOOKUP($A$3,'G4-MA'!$A$14:$AG$500,3,FALSE))&")"))))),"NA") -> 89% (289) | E34: =IFERROR((IF($D34="NA","NA",VLOOKUP($A$3,'G4-MA'!$A$14:$AG$500,5,FALSE))),"NA") -> 0.66 | F34: =IFERROR((IF($D34="NA","NA",ROUND(VLOOKUP($A$3,'G4-MA'!$A$14:$AG$500,11,FALSE)*100,0)&"% ("&IF(VLOOKUP($A$3,'G4-MA'!$A$14:$AG$500,8,FALSE)="",0,VLOOKUP($A$3,'G4-MA'!$A$14:$AG$500,8,FALSE))&")")),"NA") -> 79% (228) | G34: =IFERROR((IF($D34="NA","NA",VLOOKUP($A$3,'G4-MA'!$A$14:$AG$500,13,FALSE))),"NA") -> 0.69 | H34: NA | I34: =IFERROR((IF($D34="NA","NA",VLOOKUP($A$3,'G4-MA'!$A$14:$AG$500,17,FALSE))),"NA") -> 0.64 | J34: NA
A35: Am. Indian | B35: =IFERROR(VLOOKUP(TEXT($A$3,"0000"),'AYP11'!$B$3:$AU$424,37,FALSE)," ") -> NO | C35: =IFERROR(VLOOKUP(TEXT($A$3,"0000"),MEM_I!$A$2:$O$500,8,FALSE),0) -> 27 | D35: =IFERROR((IF(OR(C35=0,C35="",C35="NA"),"NA",((IF(VLOOKUP($A$3,'G4-MI'!$A$14:$AG$500,3,FALSE)>=C35,"100% ("&VLOOKUP($A$3,'G4-MI'!$A$14:$AG$500,3,FALSE)&")",(ROUND((VLOOKUP($A$3,'G4-MI'!$A$14:$AG$500,3,FALSE)/C35*100),0))&"% ("&IF(VLOOKUP($A$3,'G4-MI'!$A$14:$AG$500,3,FALSE)="",0,VLOOKUP($A$3,'G4-MI'!$A$14:$AG$500,3,FALSE))&")"))))),"NA") -> 96% (26) | E35: =IFERROR((IF($D35="NA","NA",VLOOKUP($A$3,'G4-MI'!$A$14:$AG$500,5,FALSE))),"NA") -> 0.51 | F35: =IFERROR((IF($D35="NA","NA",ROUND(VLOOKUP($A$3,'G4-MI'!$A$14:$AG$500,11,FALSE)*100,0)&"% ("&IF(VLOOKUP($A$3,'G4-MI'!$A$14:$AG$500,8,FALSE)="",0,VLOOKUP($A$3,'G4-MI'!$A$14:$AG$500,8,FALSE))&")")),"NA") -> 50% (13) | G35: =IFERROR((IF($D35="NA","NA",VLOOKUP($A$3,'G4-MI'!$A$14:$AG$500,13,FALSE))),"NA") -> 0.53 | H35: NA | I35: =IFERROR((IF($D35="NA","NA",VLOOKUP($A$3,'G4-MI'!$A$14:$AG$500,17,FALSE))),"NA") -> 0.49 | J35: NA
A36: ED | B36: =IFERROR(VLOOKUP(TEXT($A$3,"0000"),'AYP11'!$B$1269:$AU$1690,37,FALSE)," ") -> NO | C36: =IFERROR(VLOOKUP(TEXT($A$3,"0000"),MEM_ED!$A$2:$O$500,8,FALSE),0) -> 19109 | D36: =IFERROR((IF(OR(C36=0,C36="",C36="NA"),"NA",((IF(VLOOKUP($A$3,'G4-MED'!$A$14:$AG$500,3,FALSE)>=C36,"100% ("&VLOOKUP($A$3,'G4-MED'!$A$14:$AG$500,3,FALSE)&")",(ROUND((VLOOKUP($A$3,'G4-MED'!$A$14:$AG$500,3,FALSE)/C36*100),0))&"% ("&IF(VLOOKUP($A$3,'G4-MED'!$A$14:$AG$500,3,FALSE)="",0,VLOOKUP($A$3,'G4-MED'!$A$14:$AG$500,3,FALSE))&")"))))),"NA") -> 93% (17728) | E36: =IFERROR((IF($D36="NA","NA",VLOOKUP($A$3,'G4-MED'!$A$14:$AG$500,5,FALSE))),"NA") -> 0.5 | F36: =IFERROR((IF($D36="NA","NA",ROUND(VLOOKUP($A$3,'G4-MED'!$A$14:$AG$500,11,FALSE)*100,0)&"% ("&IF(VLOOKUP($A$3,'G4-MED'!$A$14:$AG$500,8,FALSE)="",0,VLOOKUP($A$3,'G4-MED'!$A$14:$AG$500,8,FALSE))&")")),"NA") -> 53% (9312) | G36: =IFERROR((IF($D36="NA","NA",VLOOKUP($A$3,'G4-MED'!$A$14:$AG$500,13,FALSE))),"NA") -> 0.53 | H36: NA | I36: =IFERROR((IF($D36="NA","NA",VLOOKUP($A$3,'G4-MED'!$A$14:$AG$500,17,FALSE))),"NA") -> 0.47 | J36: NA
A37: ELL | B37: =IFERROR(VLOOKUP(TEXT($A$3,"0000"),'AYP11'!$B$1691:$AU$2112,37,FALSE)," ") -> NO | C37: =IFERROR(VLOOKUP(TEXT($A$3,"0000"),MEM_ELL!$A$2:$O$500,8,FALSE),0) -> 8982 | D37: =IFERROR((IF(OR(C37=0,C37="",C37="NA"),"NA",((IF(VLOOKUP($A$3,'G4-MELL'!$A$14:$AG$500,3,FALSE)>=C37,"100% ("&VLOOKUP($A$3,'G4-MELL'!$A$14:$AG$500,3,FALSE)&")",(ROUND((VLOOKUP($A$3,'G4-MELL'!$A$14:$AG$500,3,FALSE)/C37*100),0))&"% ("&IF(VLOOKUP($A$3,'G4-MELL'!$A$14:$AG$500,3,FALSE)="",0,VLOOKUP($A$3,'G4-MELL'!$A$14:$AG$500,3,FALSE))&")"))))),"NA") -> 95% (8494) | E37: =IFERROR((IF($D37="NA","NA",VLOOKUP($A$3,'G4-MELL'!$A$14:$AG$500,5,FALSE))),"NA") -> 0.48 | F37: =IFERROR((IF($D37="NA","NA",ROUND(VLOOKUP($A$3,'G4-MELL'!$A$14:$AG$500,11,FALSE)*100,0)&"% ("&IF(VLOOKUP($A$3,'G4-MELL'!$A$14:$AG$500,8,FALSE)="",0,VLOOKUP($A$3,'G4-MELL'!$A$14:$AG$500,8,FALSE))&")")),"NA") -> 47% (3997) | G37: =IFERROR((IF($D37="NA","NA",VLOOKUP($A$3,'G4-MELL'!$A$14:$AG$500,13,FALSE))),"NA") -> 0.51 | H37: NA | I37: =IFERROR((IF($D37="NA","NA",VLOOKUP($A$3,'G4-MELL'!$A$14:$AG$500,17,FALSE))),"NA") -> 0.44 | J37: NA
A38: SWD | B38: =IFERROR(VLOOKUP(TEXT($A$3,"0000"),'AYP11'!$B$2535:$AU$2956,37,FALSE)," ") -> NO | C38: =IFERROR(VLOOKUP(TEXT($A$3,"0000"),MEM_SWD!$A$2:$O$500,8,FALSE),0) -> 2488 | D38: =IFERROR((IF(OR(C38=0,C38="",C38="NA"),"NA",((IF(VLOOKUP($A$3,'G4-MSWD'!$A$14:$AG$500,3,FALSE)>=C38,"100% ("&VLOOKUP($A$3,'G4-MSWD'!$A$14:$AG$500,3,FALSE)&")",(ROUND((VLOOKUP($A$3,'G4-MSWD'!$A$14:$AG$500,3,FALSE)/C38*100),0))&"% ("&IF(VLOOKUP($A$3,'G4-MSWD'!$A$14:$AG$500,3,FALSE)="",0,VLOOKUP($A$3,'G4-MSWD'!$A$14:$AG$500,3,FALSE))&")"))))),"NA") -> 92% (2282) | E38: =IFERROR((IF($D38="NA","NA",VLOOKUP($A$3,'G4-MSWD'!$A$14:$AG$500,5,FALSE))),"NA") -> 0.41 | F38: =IFERROR((IF($D38="NA","NA",ROUND(VLOOKUP($A$3,'G4-MSWD'!$A$14:$AG$500,11,FALSE)*100,0)&"% ("&IF(VLOOKUP($A$3,'G4-MSWD'!$A$14:$AG$500,8,FALSE)="",0,VLOOKUP($A$3,'G4-MSWD'!$A$14:$AG$500,8,FALSE))&")")),"NA") -> 31% (709) | G38: =IFERROR((IF($D38="NA","NA",VLOOKUP($A$3,'G4-MSWD'!$A$14:$AG$500,13,FALSE))),"NA") -> 0.45 | H38: NA | I38: =IFERROR((IF($D38="NA","NA",VLOOKUP($A$3,'G4-MSWD'!$A$14:$AG$500,17,FALSE))),"NA") -> 0.38 | J38: NA
A39: ="District Writing Mid-Year, Grade 4 (DA Type: "&IFERROR(VLOOKUP(TEXT($A$3,"0000"),'2011DA'!C3:AB500,13,FALSE),"None")&")" -> District Writing Mid-Year, Grade 4 (DA Type: None) | Q39: Writing Grade 4
A40: Subgroups | B40: 2011 AYP Met | C40: Total # of Students | D40: % of Students Tested (Weighted) | E40: Combined Prompts (Weighted Values) | I40: Expository | K40: Narrative | Q40: =I40 -> Expository | R40: =K40 -> Narrative
E41: Average Score | F41: % at 3.0 | G41: % at or above 4.0 | I41: Average Score | J41: % at 4 or higher | K41: Average Score | L41: % at 4 or higher | Q41: Number Tested | R41: Number Tested
A42: All students | B42: =IFERROR(VLOOKUP(TEXT($A$3,"0000"),'AYP11'!$B$2957:$AU$3378,13,FALSE),"NA") -> YES | C42: =IFERROR(VLOOKUP(TEXT($A$3,"0000"),Mem_All!$A$2:$O$500,8,FALSE),0) -> 25368 | D42: =IF(OR(C42=0,C42="",C42="NA"),"NA",IFERROR(IF(OR(VLOOKUP($A$3,'G4-WALL'!$A$6:$AH$500,3,FALSE)>C42,VLOOKUP($A$3,'G4-WALL'!$A$6:$AH$500,12,FALSE)>C42,VLOOKUP($A$3,'G4-WALL'!$A$6:$AH$500,21,FALSE)>2*C42),100&"%",IF(OR(VLOOKUP($A$3,'G4-WALL'!$A$6:$AH$500,3,FALSE)=0,VLOOKUP($A$3,'G4-WALL'!$A$6:$AH$500,12,FALSE)=0),ROUND((VLOOKUP($A$3,'G4-WALL'!$A$6:$AH$500,21,FALSE)/C42*100),0)&"%",ROUND((VLOOKUP($A$3,'G4-WALL'!$A$6:$AH$500,21,FALSE)/(2*C42)*100),0)&"%")),"0%")) -> 76% | E42: =IFERROR((IF($D42="NA","NA",VLOOKUP($A$3,'G4-WALL'!$A$6:$AH$500,22,FALSE))),"NA") -> 2.797221079 | F42: =IFERROR((IF($D42="NA","NA",ROUND(VLOOKUP($A$3,'G4-WALL'!$A$6:$AH$500,25,FALSE),0)&"%")),"NA") -> 36% | G42: =IFERROR((IF($D42="NA","NA",ROUND(VLOOKUP($A$3,'G4-WALL'!$A$6:$AH$500,26,FALSE),0)&"%")),"NA") -> 28% | I42: =IFERROR(IF(VLOOKUP($A$3,'G4-WALL'!$A$6:$AH$500,3,FALSE)="","Not Test",VLOOKUP($A$3,'G4-WALL'!$A$6:$AH$500,4,FALSE)),"NA") -> 2.75585869 | J42: =IFERROR(IF(VLOOKUP($A$3,'G4-WALL'!$A$6:$AH$500,3,FALSE)="","Not Test",TEXT(VLOOKUP($A$3,'G4-WALL'!$A$6:$AH$500,11,FALSE)*100,"0")&"% ("&VLOOKUP($A$3,'G4-WALL'!$A$6:$AH$500,8,FALSE)&")"),"NA") -> 26% (5049) | K42: =IFERROR(IF(VLOOKUP($A$3,'G4-WALL'!$A$6:$AH$500,12,FALSE)="","Not Test",VLOOKUP($A$3,'G4-WALL'!$A$6:$AH$500,13,FALSE)),"NA") -> 2.838634728 | L42: =IFERROR(IF(VLOOKUP($A$3,'G4-WALL'!$A$6:$AH$500,12,FALSE)="","Not Test",TEXT(VLOOKUP($A$3,'G4-WALL'!$A$6:$AH$500,20,FALSE)*100,"0")&"% ("&VLOOKUP($A$3,'G4-WALL'!$A$6:$AH$500,17,FALSE)&")"),"NA") -> 30% (5819) | Q42: =IFERROR(IF(VLOOKUP($A$3,'G4-WALL'!$A$6:$AM$500,3,FALSE)="","0",VLOOKUP($A$3,'G4-WALL'!$A$6:$AM$500,3,FALSE)),"Not Test") -> 19390 | R42: =IFERROR(IF(VLOOKUP($A$3,'G4-WALL'!$A$6:$AM$500,12,FALSE)="","0",VLOOKUP($A$3,'G4-WALL'!$A$6:$AM$500,12,FALSE)),"Not Test") -> 19366
A43: White | B43: =IFERROR(VLOOKUP(TEXT($A$3,"0000"),'AYP11'!$B$3379:$AU$3800,13,FALSE)," ") -> YES | C43: =IFERROR(VLOOKUP(TEXT($A$3,"0000"),MEM_W!$A$2:$O$500,8,FALSE),0) -> 2149 | D43: =IF(OR(C43=0,C43="",C43="NA"),"NA",IFERROR(IF(OR(VLOOKUP($A$3,'G4-WW'!$A$6:$AH$500,3,FALSE)>C43,VLOOKUP($A$3,'G4-WW'!$A$6:$AH$500,12,FALSE)>C43,VLOOKUP($A$3,'G4-WW'!$A$6:$AH$500,21,FALSE)>2*C43),100&"%",IF(OR(VLOOKUP($A$3,'G4-WW'!$A$6:$AH$500,3,FALSE)=0,VLOOKUP($A$3,'G4-WW'!$A$6:$AH$500,12,FALSE)=0),ROUND((VLOOKUP($A$3,'G4-WW'!$A$6:$AH$500,21,FALSE)/C43*100),0)&"%",ROUND((VLOOKUP($A$3,'G4-WW'!$A$6:$AH$500,21,FALSE)/(2*C43)*100),0)&"%")),"0%")) -> 65% | E43: =IFERROR((IF($D43="NA","NA",VLOOKUP($A$3,'G4-WW'!$A$6:$AH$500,22,FALSE))),"NA") -> 2.952970474 | F43: =IFERROR((IF($D43="NA","NA",ROUND(VLOOKUP($A$3,'G4-WW'!$A$6:$AH$500,25,FALSE),0)&"%")),"NA") -> 37% | G43: =IFERROR((IF($D43="NA","NA",ROUND(VLOOKUP($A$3,'G4-WW'!$A$6:$AH$500,26,FALSE),0)&"%")),"NA") -> 32% | I43: =IFERROR(IF(VLOOKUP($A$3,'G4-WW'!$A$6:$AH$500,3,FALSE)="","Not Test",VLOOKUP($A$3,'G4-WW'!$A$6:$AH$500,4,FALSE)),"NA") -> 2.893132438 | J43: =IFERROR(IF(VLOOKUP($A$3,'G4-WW'!$A$6:$AH$500,3,FALSE)="","Not Test",TEXT(VLOOKUP($A$3,'G4-WW'!$A$6:$AH$500,11,FALSE)*100,"0")&"% ("&VLOOKUP($A$3,'G4-WW'!$A$6:$AH$500,8,FALSE)&")"),"NA") -> 29% (409) | K43: =IFERROR(IF(VLOOKUP($A$3,'G4-WW'!$A$6:$AH$500,12,FALSE)="","Not Test",VLOOKUP($A$3,'G4-WW'!$A$6:$AH$500,13,FALSE)),"NA") -> 3.01466764 | L43: =IFERROR(IF(VLOOKUP($A$3,'G4-WW'!$A$6:$AH$500,12,FALSE)="","Not Test",TEXT(VLOOKUP($A$3,'G4-WW'!$A$6:$AH$500,20,FALSE)*100,"0")&"% ("&VLOOKUP($A$3,'G4-WW'!$A$6:$AH$500,17,FALSE)&")"),"NA") -> 36% (493) | Q43: =IFERROR(IF(VLOOKUP($A$3,'G4-WW'!$A$6:$AM$500,3,FALSE)="","0",VLOOKUP($A$3,'G4-WW'!$A$6:$AM$500,3,FALSE)),"Not Test") -> 1427 | R43: =IFERROR(IF(VLOOKUP($A$3,'G4-WW'!$A$6:$AM$500,12,FALSE)="","0",VLOOKUP($A$3,'G4-WW'!$A$6:$AM$500,12,FALSE)),"Not Test") -> 1384
A44: Black | B44: =IFERROR(VLOOKUP(TEXT($A$3,"0000"),'AYP11'!$B$847:$AU$1268,13,FALSE)," ") -> YES | C44: =IFERROR(VLOOKUP(TEXT($A$3,"0000"),MEM_B!$A$2:$O$500,8,FALSE),0) -> 5891 | D44: =IF(OR(C44=0,C44="",C44="NA"),"NA",IFERROR(IF(OR(VLOOKUP($A$3,'G4-WB'!$A$6:$AH$500,3,FALSE)>C44,VLOOKUP($A$3,'G4-WB'!$A$6:$AH$500,12,FALSE)>C44,VLOOKUP($A$3,'G4-WB'!$A$6:$AH$500,21,FALSE)>2*C44),100&"%",IF(OR(VLOOKUP($A$3,'G4-WB'!$A$6:$AH$500,3,FALSE)=0,VLOOKUP($A$3,'G4-WB'!$A$6:$AH$500,12,FALSE)=0),ROUND((VLOOKUP($A$3,'G4-WB'!$A$6:$AH$500,21,FALSE)/C44*100),0)&"%",ROUND((VLOOKUP($A$3,'G4-WB'!$A$6:$AH$500,21,FALSE)/(2*C44)*100),0)&"%")),"0%")) -> 83% | E44: =IFERROR((IF($D44="NA","NA",VLOOKUP($A$3,'G4-WB'!$A$6:$AH$500,22,FALSE))),"NA") -> 2.729074615 | F44: =IFERROR((IF($D44="NA","NA",ROUND(VLOOKUP($A$3,'G4-WB'!$A$6:$AH$500,25,FALSE),0)&"%")),"NA") -> 36% | G44: =IFERROR((IF($D44="NA","NA",ROUND(VLOOKUP($A$3,'G4-WB'!$A$6:$AH$500,26,FALSE),0)&"%")),"NA") -> 25% | I44: =IFERROR(IF(VLOOKUP($A$3,'G4-WB'!$A$6:$AH$500,3,FALSE)="","Not Test",VLOOKUP($A$3,'G4-WB'!$A$6:$AH$500,4,FALSE)),"NA") -> 2.660660778 | J44: =IFERROR(IF(VLOOKUP($A$3,'G4-WB'!$A$6:$AH$500,3,FALSE)="","Not Test",TEXT(VLOOKUP($A$3,'G4-WB'!$A$6:$AH$500,11,FALSE)*100,"0")&"% ("&VLOOKUP($A$3,'G4-WB'!$A$6:$AH$500,8,FALSE)&")"),"NA") -> 22% (1083) | K44: =IFERROR(IF(VLOOKUP($A$3,'G4-WB'!$A$6:$AH$500,12,FALSE)="","Not Test",VLOOKUP($A$3,'G4-WB'!$A$6:$AH$500,13,FALSE)),"NA") -> 2.796424237 | L44: =IFERROR(IF(VLOOKUP($A$3,'G4-WB'!$A$6:$AH$500,12,FALSE)="","Not Test",TEXT(VLOOKUP($A$3,'G4-WB'!$A$6:$AH$500,20,FALSE)*100,"0")&"% ("&VLOOKUP($A$3,'G4-WB'!$A$6:$AH$500,17,FALSE)&")"),"NA") -> 28% (1375) | Q44: =IFERROR(IF(VLOOKUP($A$3,'G4-WB'!$A$6:$AM$500,3,FALSE)="","0",VLOOKUP($A$3,'G4-WB'!$A$6:$AM$500,3,FALSE)),"Not Test") -> 4873 | R44: =IFERROR(IF(VLOOKUP($A$3,'G4-WB'!$A$6:$AM$500,12,FALSE)="","0",VLOOKUP($A$3,'G4-WB'!$A$6:$AM$500,12,FALSE)),"Not Test") -> 4950
A45: Hispanic | B45: =IFERROR(VLOOKUP(TEXT($A$3,"0000"),'AYP11'!$B$2113:$AU$2534,13,FALSE)," ") -> YES | C45: =IFERROR(VLOOKUP(TEXT($A$3,"0000"),MEM_H!$A$2:$O$500,8,FALSE),0) -> 16881 | D45: =IF(OR(C45=0,C45="",C45="NA"),"NA",IFERROR(IF(OR(VLOOKUP($A$3,'G4-WH'!$A$6:$AH$500,3,FALSE)>C45,VLOOKUP($A$3,'G4-WH'!$A$6:$AH$500,12,FALSE)>C45,VLOOKUP($A$3,'G4-WH'!$A$6:$AH$500,21,FALSE)>2*C45),100&"%",IF(OR(VLOOKUP($A$3,'G4-WH'!$A$6:$AH$500,3,FALSE)=0,VLOOKUP($A$3,'G4-WH'!$A$6:$AH$500,12,FALSE)=0),ROUND((VLOOKUP($A$3,'G4-WH'!$A$6:$AH$500,21,FALSE)/C45*100),0)&"%",ROUND((VLOOKUP($A$3,'G4-WH'!$A$6:$AH$500,21,FALSE)/(2*C45)*100),0)&"%")),"0%")) -> 75% | E45: =IFERROR((IF($D45="NA","NA",VLOOKUP($A$3,'G4-WH'!$A$6:$AH$500,22,FALSE))),"NA") -> 2.798332738 | F45: =IFERROR((IF($D45="NA","NA",ROUND(VLOOKUP($A$3,'G4-WH'!$A$6:$AH$500,25,FALSE),0)&"%")),"NA") -> 35% | G45: =IFERROR((IF($D45="NA","NA",ROUND(VLOOKUP($A$3,'G4-WH'!$A$6:$AH$500,26,FALSE),0)&"%")),"NA") -> 28% | I45: =IFERROR(IF(VLOOKUP($A$3,'G4-WH'!$A$6:$AH$500,3,FALSE)="","Not Test",VLOOKUP($A$3,'G4-WH'!$A$6:$AH$500,4,FALSE)),"NA") -> 2.766259452 | J45: =IFERROR(IF(VLOOKUP($A$3,'G4-WH'!$A$6:$AH$500,3,FALSE)="","Not Test",TEXT(VLOOKUP($A$3,'G4-WH'!$A$6:$AH$500,11,FALSE)*100,"0")&"% ("&VLOOKUP($A$3,'G4-WH'!$A$6:$AH$500,8,FALSE)&")"),"NA") -> 27% (3393) | K45: =IFERROR(IF(VLOOKUP($A$3,'G4-WH'!$A$6:$AH$500,12,FALSE)="","Not Test",VLOOKUP($A$3,'G4-WH'!$A$6:$AH$500,13,FALSE)),"NA") -> 2.83057118 | L45: =IFERROR(IF(VLOOKUP($A$3,'G4-WH'!$A$6:$AH$500,12,FALSE)="","Not Test",TEXT(VLOOKUP($A$3,'G4-WH'!$A$6:$AH$500,20,FALSE)*100,"0")&"% ("&VLOOKUP($A$3,'G4-WH'!$A$6:$AH$500,17,FALSE)&")"),"NA") -> 30% (3796) | Q45: =IFERROR(IF(VLOOKUP($A$3,'G4-WH'!$A$6:$AM$500,3,FALSE)="","0",VLOOKUP($A$3,'G4-WH'!$A$6:$AM$500,3,FALSE)),"Not Test") -> 12688 | R45: =IFERROR(IF(VLOOKUP($A$3,'G4-WH'!$A$6:$AM$500,12,FALSE)="","0",VLOOKUP($A$3,'G4-WH'!$A$6:$AM$500,12,FALSE)),"Not Test") -> 12623
A46: Asian | B46: =IFERROR(VLOOKUP(TEXT($A$3,"0000"),'AYP11'!$B$425:$AU$846,13,FALSE)," ") -> YES | C46: =IFERROR(VLOOKUP(TEXT($A$3,"0000"),MEM_A!$A$2:$O$500,8,FALSE),0) -> 324 | D46: =IF(OR(C46=0,C46="",C46="NA"),"NA",IFERROR(IF(OR(VLOOKUP($A$3,'G4-WA'!$A$6:$AH$500,3,FALSE)>C46,VLOOKUP($A$3,'G4-WA'!$A$6:$AH$500,12,FALSE)>C46,VLOOKUP($A$3,'G4-WA'!$A$6:$AH$500,21,FALSE)>2*C46),100&"%",IF(OR(VLOOKUP($A$3,'G4-WA'!$A$6:$AH$500,3,FALSE)=0,VLOOKUP($A$3,'G4-WA'!$A$6:$AH$500,12,FALSE)=0),ROUND((VLOOKUP($A$3,'G4-WA'!$A$6:$AH$500,21,FALSE)/C46*100),0)&"%",ROUND((VLOOKUP($A$3,'G4-WA'!$A$6:$AH$500,21,FALSE)/(2*C46)*100),0)&"%")),"0%")) -> 73% | E46: =IFERROR((IF($D46="NA","NA",VLOOKUP($A$3,'G4-WA'!$A$6:$AH$500,22,FALSE))),"NA") -> 3.198101268 | F46: =IFERROR((IF($D46="NA","NA",ROUND(VLOOKUP($A$3,'G4-WA'!$A$6:$AH$500,25,FALSE),0)&"%")),"NA") -> 28% | G46: =IFERROR((IF($D46="NA","NA",ROUND(VLOOKUP($A$3,'G4-WA'!$A$6:$AH$500,26,FALSE),0)&"%")),"NA") -> 46% | I46: =IFERROR(IF(VLOOKUP($A$3,'G4-WA'!$A$6:$AH$500,3,FALSE)="","Not Test",VLOOKUP($A$3,'G4-WA'!$A$6:$AH$500,4,FALSE)),"NA") -> 3.220168069 | J46: =IFERROR(IF(VLOOKUP($A$3,'G4-WA'!$A$6:$AH$500,3,FALSE)="","Not Test",TEXT(VLOOKUP($A$3,'G4-WA'!$A$6:$AH$500,11,FALSE)*100,"0")&"% ("&VLOOKUP($A$3,'G4-WA'!$A$6:$AH$500,8,FALSE)&")"),"NA") -> 47% (112) | K46: =IFERROR(IF(VLOOKUP($A$3,'G4-WA'!$A$6:$AH$500,12,FALSE)="","Not Test",VLOOKUP($A$3,'G4-WA'!$A$6:$AH$500,13,FALSE)),"NA") -> 3.17584746 | L46: =IFERROR(IF(VLOOKUP($A$3,'G4-WA'!$A$6:$AH$500,12,FALSE)="","Not Test",TEXT(VLOOKUP($A$3,'G4-WA'!$A$6:$AH$500,20,FALSE)*100,"0")&"% ("&VLOOKUP($A$3,'G4-WA'!$A$6:$AH$500,17,FALSE)&")"),"NA") -> 45% (107) | Q46: =IFERROR(IF(VLOOKUP($A$3,'G4-WA'!$A$6:$AM$500,3,FALSE)="","0",VLOOKUP($A$3,'G4-WA'!$A$6:$AM$500,3,FALSE)),"Not Test") -> 238 | R46: =IFERROR(IF(VLOOKUP($A$3,'G4-WA'!$A$6:$AM$500,12,FALSE)="","0",VLOOKUP($A$3,'G4-WA'!$A$6:$AM$500,12,FALSE)),"Not Test") -> 236
A47: Am. Indian | B47: =IFERROR(VLOOKUP(TEXT($A$3,"0000"),'AYP11'!$B$3:$AU$424,13,FALSE)," ") -> YES | C47: =IFERROR(VLOOKUP(TEXT($A$3,"0000"),MEM_I!$A$2:$O$500,8,FALSE),0) -> 27 | D47: =IF(OR(C47=0,C47="",C47="NA"),"NA",IFERROR(IF(OR(VLOOKUP($A$3,'G4-WI'!$A$6:$AH$367,3,FALSE)>C47,VLOOKUP($A$3,'G4-WI'!$A$6:$AH$367,12,FALSE)>C47,VLOOKUP($A$3,'G4-WI'!$A$6:$AH$367,21,FALSE)>2*C47),100&"%",IF(OR(VLOOKUP($A$3,'G4-WI'!$A$6:$AH$367,3,FALSE)=0,VLOOKUP($A$3,'G4-WI'!$A$6:$AH$367,12,FALSE)=0),ROUND((VLOOKUP($A$3,'G4-WI'!$A$6:$AH$367,21,FALSE)/C47*100),0)&"%",ROUND((VLOOKUP($A$3,'G4-WI'!$A$6:$AH$367,21,FALSE)/(2*C47)*100),0)&"%")),"0%")) -> 69% | E47: =IFERROR((IF($D47="NA","NA",VLOOKUP($A$3,'G4-WI'!$A$6:$AH$500,22,FALSE))),"NA") -> 2.918918919 | F47: =IFERROR((IF($D47="NA","NA",ROUND(VLOOKUP($A$3,'G4-WI'!$A$6:$AH$500,25,FALSE),0)&"%")),"NA") -> 46% | G47: =IFERROR((IF($D47="NA","NA",ROUND(VLOOKUP($A$3,'G4-WI'!$A$6:$AH$500,26,FALSE),0)&"%")),"NA") -> 27% | I47: =IFERROR(IF(VLOOKUP($A$3,'G4-WI'!$A$6:$AH$500,3,FALSE)="","Not Test",VLOOKUP($A$3,'G4-WI'!$A$6:$AH$500,4,FALSE)),"NA") -> 2.944444444 | J47: =IFERROR(IF(VLOOKUP($A$3,'G4-WI'!$A$6:$AH$500,3,FALSE)="","Not Test",TEXT(VLOOKUP($A$3,'G4-WI'!$A$6:$AH$500,11,FALSE)*100,"0")&"% ("&VLOOKUP($A$3,'G4-WI'!$A$6:$AH$500,8,FALSE)&")"),"NA") -> 33% (6) | K47: =IFERROR(IF(VLOOKUP($A$3,'G4-WI'!$A$6:$AH$500,12,FALSE)="","Not Test",VLOOKUP($A$3,'G4-WI'!$A$6:$AH$500,13,FALSE)),"NA") -> 2.894736842 | L47: =IFERROR(IF(VLOOKUP($A$3,'G4-WI'!$A$6:$AH$500,12,FALSE)="","Not Test",TEXT(VLOOKUP($A$3,'G4-WI'!$A$6:$AH$500,20,FALSE)*100,"0")&"% ("&VLOOKUP($A$3,'G4-WI'!$A$6:$AH$500,17,FALSE)&")"),"NA") -> 21% (4) | Q47: =IFERROR(IF(VLOOKUP($A$3,'G4-WI'!$A$6:$AM$500,3,FALSE)="","0",VLOOKUP($A$3,'G4-WI'!$A$6:$AM$500,3,FALSE)),"Not Test") -> 18 | R47: =IFERROR(IF(VLOOKUP($A$3,'G4-WI'!$A$6:$AM$500,12,FALSE)="","0",VLOOKUP($A$3,'G4-WI'!$A$6:$AM$500,12,FALSE)),"Not Test") -> 19
A48: ED | B48: =IFERROR(VLOOKUP(TEXT($A$3,"0000"),'AYP11'!$B$1269:$AU$1690,13,FALSE)," ") -> YES | C48: =IFERROR(VLOOKUP(TEXT($A$3,"0000"),MEM_ED!$A$2:$O$500,8,FALSE),0) -> 19109 | D48: =IF(OR(C48=0,C48="",C48="NA"),"NA",IFERROR(IF(OR(VLOOKUP($A$3,'G4-WED'!$A$6:$AH$500,3,FALSE)>C48,VLOOKUP($A$3,'G4-WED'!$A$6:$AH$500,12,FALSE)>C48,VLOOKUP($A$3,'G4-WED'!$A$6:$AH$500,21,FALSE)>2*C48),100&"%",IF(OR(VLOOKUP($A$3,'G4-WED'!$A$6:$AH$500,3,FALSE)=0,VLOOKUP($A$3,'G4-WED'!$A$6:$AH$500,12,FALSE)=0),ROUND((VLOOKUP($A$3,'G4-WED'!$A$6:$AH$500,21,FALSE)/C48*100),0)&"%",ROUND((VLOOKUP($A$3,'G4-WED'!$A$6:$AH$500,21,FALSE)/(2*C48)*100),0)&"%")),"0%")) -> 78% | E48: =IFERROR((IF($D48="NA","NA",VLOOKUP($A$3,'G4-WED'!$A$6:$AH$500,22,FALSE))),"NA") -> 2.715270313 | F48: =IFERROR((IF($D48="NA","NA",ROUND(VLOOKUP($A$3,'G4-WED'!$A$6:$AH$500,25,FALSE),0)&"%")),"NA") -> 36% | G48: =IFERROR((IF($D48="NA","NA",ROUND(VLOOKUP($A$3,'G4-WED'!$A$6:$AH$500,26,FALSE),0)&"%")),"NA") -> 25% | I48: =IFERROR(IF(VLOOKUP($A$3,'G4-WED'!$A$6:$AH$500,3,FALSE)="","Not Test",VLOOKUP($A$3,'G4-WED'!$A$6:$AH$500,4,FALSE)),"NA") -> 2.675304193 | J48: =IFERROR(IF(VLOOKUP($A$3,'G4-WED'!$A$6:$AH$500,3,FALSE)="","Not Test",TEXT(VLOOKUP($A$3,'G4-WED'!$A$6:$AH$500,11,FALSE)*100,"0")&"% ("&VLOOKUP($A$3,'G4-WED'!$A$6:$AH$500,8,FALSE)&")"),"NA") -> 23% (3510) | K48: =IFERROR(IF(VLOOKUP($A$3,'G4-WED'!$A$6:$AH$500,12,FALSE)="","Not Test",VLOOKUP($A$3,'G4-WED'!$A$6:$AH$500,13,FALSE)),"NA") -> 2.755153776 | L48: =IFERROR(IF(VLOOKUP($A$3,'G4-WED'!$A$6:$AH$500,12,FALSE)="","Not Test",TEXT(VLOOKUP($A$3,'G4-WED'!$A$6:$AH$500,20,FALSE)*100,"0")&"% ("&VLOOKUP($A$3,'G4-WED'!$A$6:$AH$500,17,FALSE)&")"),"NA") -> 27% (4083) | Q48: =IFERROR(IF(VLOOKUP($A$3,'G4-WED'!$A$6:$AM$500,3,FALSE)="","0",VLOOKUP($A$3,'G4-WED'!$A$6:$AM$500,3,FALSE)),"Not Test") -> 14958 | R48: =IFERROR(IF(VLOOKUP($A$3,'G4-WED'!$A$6:$AM$500,12,FALSE)="","0",VLOOKUP($A$3,'G4-WED'!$A$6:$AM$500,12,FALSE)),"Not Test") -> 14989
A49: ELL | B49: =IFERROR(VLOOKUP(TEXT($A$3,"0000"),'AYP11'!$B$1691:$AU$2112,13,FALSE)," ") -> YES | C49: =IFERROR(VLOOKUP(TEXT($A$3,"0000"),MEM_ELL!$A$2:$O$500,8,FALSE),0) -> 8982 | D49: =IF(OR(C49=0,C49="",C49="NA"),"NA",IFERROR(IF(OR(VLOOKUP($A$3,'G4-WELL'!$A$6:$AH$251,3,FALSE)>C49,VLOOKUP($A$3,'G4-WELL'!$A$6:$AH$251,12,FALSE)>C49,VLOOKUP($A$3,'G4-WELL'!$A$6:$AH$251,21,FALSE)>2*C49),100&"%",IF(OR(VLOOKUP($A$3,'G4-WELL'!$A$6:$AH$251,3,FALSE)=0,VLOOKUP($A$3,'G4-WELL'!$A$6:$AH$251,12,FALSE)=0),ROUND((VLOOKUP($A$3,'G4-WELL'!$A$6:$AH$251,21,FALSE)/C49*100),0)&"%",ROUND((VLOOKUP($A$3,'G4-WELL'!$A$6:$AH$251,21,FALSE)/(2*C49)*100),0)&"%")),"0%")) -> 76% | E49: =IFERROR((IF($D49="NA","NA",VLOOKUP($A$3,'G4-WELL'!$A$6:$AH$251,22,FALSE))),"NA") -> 2.491421616 | F49: =IFERROR((IF($D49="NA","NA",ROUND(VLOOKUP($A$3,'G4-WELL'!$A$6:$AH$251,25,FALSE),0)&"%")),"NA") -> 34% | G49: =IFERROR((IF($D49="NA","NA",ROUND(VLOOKUP($A$3,'G4-WELL'!$A$6:$AH$251,26,FALSE),0)&"%")),"NA") -> 20% | I49: =IFERROR(IF(VLOOKUP($A$3,'G4-WELL'!$A$6:$AH$251,3,FALSE)="","Not Test",VLOOKUP($A$3,'G4-WELL'!$A$6:$AH$251,4,FALSE)),"NA") -> 2.459041291 | J49: =IFERROR(IF(VLOOKUP($A$3,'G4-WELL'!$A$6:$AH$500,3,FALSE)="","Not Test",TEXT(VLOOKUP($A$3,'G4-WELL'!$A$6:$AH$500,11,FALSE)*100,"0")&"% ("&VLOOKUP($A$3,'G4-WELL'!$A$6:$AH$500,8,FALSE)&")"),"NA") -> 19% (1259) | K49: =IFERROR(IF(VLOOKUP($A$3,'G4-WELL'!$A$6:$AH$251,12,FALSE)="","Not Test",VLOOKUP($A$3,'G4-WELL'!$A$6:$AH$251,13,FALSE)),"NA") -> 2.523759014 | L49: =IFERROR(IF(VLOOKUP($A$3,'G4-WELL'!$A$6:$AH$500,12,FALSE)="","Not Test",TEXT(VLOOKUP($A$3,'G4-WELL'!$A$6:$AH$500,20,FALSE)*100,"0")&"% ("&VLOOKUP($A$3,'G4-WELL'!$A$6:$AH$500,17,FALSE)&")"),"NA") -> 21% (1417) | Q49: =IFERROR(IF(VLOOKUP($A$3,'G4-WELL'!$A$6:$AM$500,3,FALSE)="","0",VLOOKUP($A$3,'G4-WELL'!$A$6:$AM$500,3,FALSE)),"Not Test") -> 6780 | R49: =IFERROR(IF(VLOOKUP($A$3,'G4-WELL'!$A$6:$AM$500,12,FALSE)="","0",VLOOKUP($A$3,'G4-WELL'!$A$6:$AM$500,12,FALSE)),"Not Test") -> 6789
A50: SWD | B50: =IFERROR(VLOOKUP(TEXT($A$3,"0000"),'AYP11'!$B$2535:$AU$2956,13,FALSE)," ") -> YES | C50: =IFERROR(VLOOKUP(TEXT($A$3,"0000"),MEM_SWD!$A$2:$O$500,8,FALSE),0) -> 2488 | D50: =IF(OR(C50=0,C50="",C50="NA"),"NA",IFERROR(IF(OR(VLOOKUP($A$3,'G4-WSWD'!$A$6:$AH$500,3,FALSE)>C50,VLOOKUP($A$3,'G4-WSWD'!$A$6:$AH$500,12,FALSE)>C50,VLOOKUP($A$3,'G4-WSWD'!$A$6:$AH$500,21,FALSE)>2*C50),100&"%",IF(OR(VLOOKUP($A$3,'G4-WSWD'!$A$6:$AH$500,3,FALSE)=0,VLOOKUP($A$3,'G4-WSWD'!$A$6:$AH$500,12,FALSE)=0),ROUND((VLOOKUP($A$3,'G4-WSWD'!$A$6:$AH$500,21,FALSE)/C50*100),0)&"%",ROUND((VLOOKUP($A$3,'G4-WSWD'!$A$6:$AH$500,21,FALSE)/(2*C50)*100),0)&"%")),"0%")) -> 80% | E50: =IFERROR((IF($D50="NA","NA",VLOOKUP($A$3,'G4-WSWD'!$A$6:$AH$500,22,FALSE))),"NA") -> 2.152180488 | F50: =IFERROR((IF($D50="NA","NA",ROUND(VLOOKUP($A$3,'G4-WSWD'!$A$6:$AH$500,25,FALSE),0)&"%")),"NA") -> 27% | G50: =IFERROR((IF($D50="NA","NA",ROUND(VLOOKUP($A$3,'G4-WSWD'!$A$6:$AH$500,26,FALSE),0)&"%")),"NA") -> 12% | I50: =IFERROR(IF(VLOOKUP($A$3,'G4-WSWD'!$A$6:$AH$500,3,FALSE)="","Not Test",VLOOKUP($A$3,'G4-WSWD'!$A$6:$AH$500,4,FALSE)),"NA") -> 2.088555719 | J50: =IFERROR(IF(VLOOKUP($A$3,'G4-WSWD'!$A$6:$AH$500,3,FALSE)="","Not Test",TEXT(VLOOKUP($A$3,'G4-WSWD'!$A$6:$AH$500,11,FALSE)*100,"0")&"% ("&VLOOKUP($A$3,'G4-WSWD'!$A$6:$AH$500,8,FALSE)&")"),"NA") -> 10% (210) | K50: =IFERROR(IF(VLOOKUP($A$3,'G4-WSWD'!$A$6:$AH$500,12,FALSE)="","Not Test",VLOOKUP($A$3,'G4-WSWD'!$A$6:$AH$500,13,FALSE)),"NA") -> 2.216937946 | L50: =IFERROR(IF(VLOOKUP($A$3,'G4-WSWD'!$A$6:$AH$500,12,FALSE)="","Not Test",TEXT(VLOOKUP($A$3,'G4-WSWD'!$A$6:$AH$500,20,FALSE)*100,"0")&"% ("&VLOOKUP($A$3,'G4-WSWD'!$A$6:$AH$500,17,FALSE)&")"),"NA") -> 14% (279) | Q50: =IFERROR(IF(VLOOKUP($A$3,'G4-WSWD'!$A$6:$AM$500,3,FALSE)="","0",VLOOKUP($A$3,'G4-WSWD'!$A$6:$AM$500,3,FALSE)),"Not Test") -> 2001 | R50: =IFERROR(IF(VLOOKUP($A$3,'G4-WSWD'!$A$6:$AM$500,12,FALSE)="","0",VLOOKUP($A$3,'G4-WSWD'!$A$6:$AM$500,12,FALSE)),"Not Test") -> 1966

Sheet Grade 5 Report
A2: Click here to return to the school and sheet selection interface
A3: ='Select School'!B3 -> 9999
A4: =TEXT(A3,"0000")&"-"&VLOOKUP(A3,SchList!$A$2:$B$504,2,FALSE) -> 9999-DISTRICT
A5: Reading - Grade 5
A6: Satisfactory Progress Cut Score at 66% or above | B6: 2011 AYP Met** | C6: Total # of Students | D6: % of Students Tested | E6: Overall [59] | G6: Vocabulary [15] | I6: Reading Application [25] | K6: Literary Analysis Fiction/Nonfiction [11] | M6: Informational Text/ Research Process [8]
E7: Average % Correct | F7: % Satisfactory Progress | G7: Average % Correct | H7: % Satisfactory Progress | I7: Average % Correct | J7: % Satisfactory Progress | K7: Average % Correct | L7: % Satisfactory Progress | M7: Average % Correct | N7: % Satisfactory Progress
A8: All students | B8: =IFERROR(VLOOKUP(TEXT($A$3,"0000"),'AYP11'!$B$2957:$AU$3378,36,FALSE),"NA") -> NO | C8: =IFERROR(VLOOKUP(TEXT($A$3,"0000"),Mem_All!$A$2:$O$500,9,FALSE),"NA") -> 26201 | D8: =IFERROR((IF(OR(C8=0,C8="",C8="NA"),"NA",((IF(VLOOKUP($A$3,'G5-RALL'!$A$14:$AM$500,3,FALSE)>=C8,"100% ("&VLOOKUP($A$3,'G5-RALL'!$A$14:$AM$500,3,FALSE)&")",(ROUND((VLOOKUP($A$3,'G5-RALL'!$A$14:$AM$500,3,FALSE)/C8*100),0))&"% ("&IF(VLOOKUP($A$3,'G5-RALL'!$A$14:$AM$500,3,FALSE)="",0,VLOOKUP($A$3,'G5-RALL'!$A$14:$AM$500,3,FALSE))&")"))))),"0% (0)") -> 95% (24862) | E8: =IFERROR((IF($D8="NA","NA",VLOOKUP($A$3,'G5-RALL'!$A$14:$AM$500,5,FALSE))),"NA") -> 0.64 | F8: =IFERROR((IF($D8="NA","NA",ROUND(VLOOKUP($A$3,'G5-RALL'!$A$14:$AM$500,11,FALSE)*100,0)&"% ("&IF(VLOOKUP($A$3,'G5-RALL'!$A$14:$AM$500,8,FALSE)="",0,VLOOKUP($A$3,'G5-RALL'!$A$14:$AM$500,8,FALSE))&")")),"NA") -> 55% (13608) | G8: =IFERROR((IF($D8="NA","NA",VLOOKUP($A$3,'G5-RALL'!$A$14:$AM$500,13,FALSE))),"NA") -> 0.71 | H8: NA | I8: =IFERROR((IF($D8="NA","NA",VLOOKUP($A$3,'G5-RALL'!$A$14:$AM$500,17,FALSE))),"NA") -> 0.65 | J8: NA | K8: =IFERROR((IF($D8="NA","NA",VLOOKUP($A$3,'G5-RALL'!$A$14:$AM$500,21,FALSE))),"NA") -> 0.6 | L8: NA | M8: =IFERROR((IF($D8="NA","NA",VLOOKUP($A$3,'G5-RALL'!$A$14:$AM$500,25,FALSE))),"NA") -> 0.54 | N8: NA
A9: FCAT Level 1 | C9: =IFERROR(VLOOKUP(TEXT($A$3,"0000"),MEM_RL1!$A$2:$O$500,6,FALSE),"NA") -> 4313 | D9: =IFERROR((IF(OR(C9=0,C9="",C9="NA"),"NA",((IF(VLOOKUP($A$3,'G5-RL1'!$A$14:$AM$500,3,FALSE)>=C9,"100% ("&VLOOKUP($A$3,'G5-RL1'!$A$14:$AM$500,3,FALSE)&")",(ROUND((VLOOKUP($A$3,'G5-RL1'!$A$14:$AM$500,3,FALSE)/C9*100),0))&"% ("&IF(VLOOKUP($A$3,'G5-RL1'!$A$14:$AM$500,3,FALSE)="",0,VLOOKUP($A$3,'G5-RL1'!$A$14:$AM$500,3,FALSE))&")"))))),"0% (0)") -> 95% (4113) | E9: =IFERROR((IF($D9="NA","NA",VLOOKUP($A$3,'G5-RL1'!$A$14:$AM$500,5,FALSE))),"NA") -> 0.44 | F9: =IFERROR((IF($D9="NA","NA",ROUND(VLOOKUP($A$3,'G5-RL1'!$A$14:$AM$500,11,FALSE)*100,0)&"% ("&IF(VLOOKUP($A$3,'G5-RL1'!$A$14:$AM$500,8,FALSE)="",0,VLOOKUP($A$3,'G5-RL1'!$A$14:$AM$500,8,FALSE))&")")),"NA") -> 7% (290) | G9: =IFERROR((IF($D9="NA","NA",VLOOKUP($A$3,'G5-RL1'!$A$14:$AM$500,13,FALSE))),"NA") -> 0.5 | H9: NA | I9: =IFERROR((IF($D9="NA","NA",VLOOKUP($A$3,'G5-RL1'!$A$14:$AM$500,17,FALSE))),"NA") -> 0.45 | J9: NA | K9: =IFERROR((IF($D9="NA","NA",VLOOKUP($A$3,'G5-RL1'!$A$14:$AM$500,21,FALSE))),"NA") -> 0.41 | L9: NA | M9: =IFERROR((IF($D9="NA","NA",VLOOKUP($A$3,'G5-RL1'!$A$14:$AM$500,25,FALSE))),"NA") -> 0.37 | N9: NA
A10: FCAT Level 2 | C10: =IFERROR(VLOOKUP(TEXT($A$3,"0000"),MEM_RL2!$A$2:$O$500,6,FALSE),"NA") -> 3213 | D10: =IFERROR((IF(OR(C10=0,C10="",C10="NA"),"NA",((IF(VLOOKUP($A$3,'G5-RL2'!$A$14:$AM$500,3,FALSE)>=C10,"100% ("&VLOOKUP($A$3,'G5-RL2'!$A$14:$AM$500,3,FALSE)&")",(ROUND((VLOOKUP($A$3,'G5-RL2'!$A$14:$AM$500,3,FALSE)/C10*100),0))&"% ("&IF(VLOOKUP($A$3,'G5-RL2'!$A$14:$AM$500,3,FALSE)="",0,VLOOKUP($A$3,'G5-RL2'!$A$14:$AM$500,3,FALSE))&")"))))),"0% (0)") -> 96% (3079) | E10: =IFERROR((IF($D10="NA","NA",VLOOKUP($A$3,'G5-RL2'!$A$14:$AM$500,5,FALSE))),"NA") -> 0.56 | F10: =IFERROR((IF($D10="NA","NA",ROUND(VLOOKUP($A$3,'G5-RL2'!$A$14:$AM$500,11,FALSE)*100,0)&"% ("&IF(VLOOKUP($A$3,'G5-RL2'!$A$14:$AM$500,8,FALSE)="",0,VLOOKUP($A$3,'G5-RL2'!$A$14:$AM$500,8,FALSE))&")")),"NA") -> 23% (717) | G10: =IFERROR((IF($D10="NA","NA",VLOOKUP($A$3,'G5-RL2'!$A$14:$AM$500,13,FALSE))),"NA") -> 0.64 | H10: NA | I10: =IFERROR((IF($D10="NA","NA",VLOOKUP($A$3,'G5-RL2'!$A$14:$AM$500,17,FALSE))),"NA") -> 0.57 | J10: NA | K10: =IFERROR((IF($D10="NA","NA",VLOOKUP($A$3,'G5-RL2'!$A$14:$AM$500,21,FALSE))),"NA") -> 0.52 | L10: NA | M10: =IFERROR((IF($D10="NA","NA",VLOOKUP($A$3,'G5-RL2'!$A$14:$AM$500,25,FALSE))),"NA") -> 0.46 | N10: NA
A11: FCAT Level 3 | C11: =IFERROR(VLOOKUP(TEXT($A$3,"0000"),MEM_RL3!$A$2:$O$500,6,FALSE),"NA") -> 7618 | D11: =IFERROR((IF(OR(C11=0,C11="",C11="NA"),"NA",((IF(VLOOKUP($A$3,'G5-RL3'!$A$14:$AM$500,3,FALSE)>=C11,"100% ("&VLOOKUP($A$3,'G5-RL3'!$A$14:$AM$500,3,FALSE)&")",(ROUND((VLOOKUP($A$3,'G5-RL3'!$A$14:$AM$500,3,FALSE)/C11*100),0))&"% ("&IF(VLOOKUP($A$3,'G5-RL3'!$A$14:$AM$500,3,FALSE)="",0,VLOOKUP($A$3,'G5-RL3'!$A$14:$AM$500,3,FALSE))&")"))))),"0% (0)") -> 96% (7344) | E11: =IFERROR((IF($D11="NA","NA",VLOOKUP($A$3,'G5-RL3'!$A$14:$AM$500,5,FALSE))),"NA") -> 0.65 | F11: =IFERROR((IF($D11="NA","NA",ROUND(VLOOKUP($A$3,'G5-RL3'!$A$14:$AM$500,11,FALSE)*100,0)&"% ("&IF(VLOOKUP($A$3,'G5-RL3'!$A$14:$AM$500,8,FALSE)="",0,VLOOKUP($A$3,'G5-RL3'!$A$14:$AM$500,8,FALSE))&")")),"NA") -> 54% (3979) | G11: =IFERROR((IF($D11="NA","NA",VLOOKUP($A$3,'G5-RL3'!$A$14:$AM$500,13,FALSE))),"NA") -> 0.73 | H11: NA | I11: =IFERROR((IF($D11="NA","NA",VLOOKUP($A$3,'G5-RL3'!$A$14:$AM$500,17,FALSE))),"NA") -> 0.66 | J11: NA | K11: =IFERROR((IF($D11="NA","NA",VLOOKUP($A$3,'G5-RL3'!$A$14:$AM$500,21,FALSE))),"NA") -> 0.6 | L11: NA | M11: =IFERROR((IF($D11="NA","NA",VLOOKUP($A$3,'G5-RL3'!$A$14:$AM$500,25,FALSE))),"NA") -> 0.54 | N11: NA
A12: FCAT Level 4 | C12: =IFERROR(VLOOKUP(TEXT($A$3,"0000"),MEM_RL4!$A$2:$O$500,6,FALSE),"NA") -> 6973 | D12: =IFERROR((IF(OR(C12=0,C12="",C12="NA"),"NA",((IF(VLOOKUP($A$3,'G5-RL4'!$A$14:$AM$500,3,FALSE)>=C12,"100% ("&VLOOKUP($A$3,'G5-RL4'!$A$14:$AM$500,3,FALSE)&")",(ROUND((VLOOKUP($A$3,'G5-RL4'!$A$14:$AM$500,3,FALSE)/C12*100),0))&"% ("&IF(VLOOKUP($A$3,'G5-RL4'!$A$14:$AM$500,3,FALSE)="",0,VLOOKUP($A$3,'G5-RL4'!$A$14:$AM$500,3,FALSE))&")"))))),"0% (0)") -> 96% (6714) | E12: =IFERROR((IF($D12="NA","NA",VLOOKUP($A$3,'G5-RL4'!$A$14:$AM$500,5,FALSE))),"NA") -> 0.75 | F12: =IFERROR((IF($D12="NA","NA",ROUND(VLOOKUP($A$3,'G5-RL4'!$A$14:$AM$500,11,FALSE)*100,0)&"% ("&IF(VLOOKUP($A$3,'G5-RL4'!$A$14:$AM$500,8,FALSE)="",0,VLOOKUP($A$3,'G5-RL4'!$A$14:$AM$500,8,FALSE))&")")),"NA") -> 88% (5890) | G12: =IFERROR((IF($D12="NA","NA",VLOOKUP($A$3,'G5-RL4'!$A$14:$AM$500,13,FALSE))),"NA") -> 0.82 | H12: NA | I12: =IFERROR((IF($D12="NA","NA",VLOOKUP($A$3,'G5-RL4'!$A$14:$AM$500,17,FALSE))),"NA") -> 0.77 | J12: NA | K12: =IFERROR((IF($D12="NA","NA",VLOOKUP($A$3,'G5-RL4'!$A$14:$AM$500,21,FALSE))),"NA") -> 0.7 | L12: NA | M12: =IFERROR((IF($D12="NA","NA",VLOOKUP($A$3,'G5-RL4'!$A$14:$AM$500,25,FALSE))),"NA") -> 0.65 | N12: NA
A13: FCAT Level 5 | C13: =IFERROR(VLOOKUP(TEXT($A$3,"0000"),MEM_RL5!$A$2:$O$500,5,FALSE),"NA") -> 2534 | D13: =IFERROR((IF(OR(C13=0,C13="",C13="NA"),"NA",((IF(VLOOKUP($A$3,'G5-RL5'!$A$14:$AM$500,3,FALSE)>=C13,"100% ("&VLOOKUP($A$3,'G5-RL5'!$A$14:$AM$500,3,FALSE)&")",(ROUND((VLOOKUP($A$3,'G5-RL5'!$A$14:$AM$500,3,FALSE)/C13*100),0))&"% ("&IF(VLOOKUP($A$3,'G5-RL5'!$A$14:$AM$500,3,FALSE)="",0,VLOOKUP($A$3,'G5-RL5'!$A$14:$AM$500,3,FALSE))&")"))))),"0% (0)") -> 96% (2424) | E13: =IFERROR((IF($D13="NA","NA",VLOOKUP($A$3,'G5-RL5'!$A$14:$AM$500,5,FALSE))),"NA") -> 0.82 | F13: =IFERROR((IF($D13="NA","NA",ROUND(VLOOKUP($A$3,'G5-RL5'!$A$14:$AM$500,11,FALSE)*100,0)&"% ("&IF(VLOOKUP($A$3,'G5-RL5'!$A$14:$AM$500,8,FALSE)="",0,VLOOKUP($A$3,'G5-RL5'!$A$14:$AM$500,8,FALSE))&")")),"NA") -> 98% (2385) | G13: =IFERROR((IF($D13="NA","NA",VLOOKUP($A$3,'G5-RL5'!$A$14:$AM$500,13,FALSE))),"NA") -> 0.88 | H13: NA | I13: =IFERROR((IF($D13="NA","NA",VLOOKUP($A$3,'G5-RL5'!$A$14:$AM$500,17,FALSE))),"NA") -> 0.84 | J13: NA | K13: =IFERROR((IF($D13="NA","NA",VLOOKUP($A$3,'G5-RL5'!$A$14:$AM$500,21,FALSE))),"NA") -> 0.78 | L13: NA | M13: =IFERROR((IF($D13="NA","NA",VLOOKUP($A$3,'G5-RL5'!$A$14:$AM$500,25,FALSE))),"NA") -> 0.73 | N13: NA
A14: White | B14: =IFERROR(VLOOKUP(TEXT($A$3,"0000"),'AYP11'!$B$3379:$AU$3800,36,FALSE)," ") -> NO | C14: =IFERROR(VLOOKUP(TEXT($A$3,"0000"),MEM_W!$A$2:$O$500,9,FALSE),"NA") -> 2178 | D14: =IFERROR((IF(OR(C14=0,C14="",C14="NA"),"NA",((IF(VLOOKUP($A$3,'G5-RW'!$A$14:$AM$500,3,FALSE)>=C14,"100% ("&VLOOKUP($A$3,'G5-RW'!$A$14:$AM$500,3,FALSE)&")",(ROUND((VLOOKUP($A$3,'G5-RW'!$A$14:$AM$500,3,FALSE)/C14*100),0))&"% ("&IF(VLOOKUP($A$3,'G5-RW'!$A$14:$AM$500,3,FALSE)="",0,VLOOKUP($A$3,'G5-RW'!$A$14:$AM$500,3,FALSE))&")"))))),"0% (0)") -> 92% (2000) | E14: =IFERROR((IF($D14="NA","NA",VLOOKUP($A$3,'G5-RW'!$A$14:$AM$500,5,FALSE))),"NA") -> 0.71 | F14: =IFERROR((IF($D14="NA","NA",ROUND(VLOOKUP($A$3,'G5-RW'!$A$14:$AM$500,11,FALSE)*100,0)&"% ("&IF(VLOOKUP($A$3,'G5-RW'!$A$14:$AM$500,8,FALSE)="",0,VLOOKUP($A$3,'G5-RW'!$A$14:$AM$500,8,FALSE))&")")),"NA") -> 74% (1471) | G14: =IFERROR((IF($D14="NA","NA",VLOOKUP($A$3,'G5-RW'!$A$14:$AM$500,13,FALSE))),"NA") -> 0.79 | H14: NA | I14: =IFERROR((IF($D14="NA","NA",VLOOKUP($A$3,'G5-RW'!$A$14:$AM$500,17,FALSE))),"NA") -> 0.72 | J14: NA | K14: =IFERROR((IF($D14="NA","NA",VLOOKUP($A$3,'G5-RW'!$A$14:$AM$500,21,FALSE))),"NA") -> 0.67 | L14: NA | M14: =IFERROR((IF($D14="NA","NA",VLOOKUP($A$3,'G5-RW'!$A$14:$AM$500,25,FALSE))),"NA") -> 0.59 | N14: NA
A15: Black | B15: =IFERROR(VLOOKUP(TEXT($A$3,"0000"),'AYP11'!$B$847:$AU$1268,36,FALSE)," ") -> NO | C15: =IFERROR(VLOOKUP(TEXT($A$3,"0000"),MEM_B!$A$2:$O$500,9,FALSE),"NA") -> 6111 | D15: =IFERROR((IF(OR(C15=0,C15="",C15="NA"),"NA",((IF(VLOOKUP($A$3,'G5-RB'!$A$14:$AM$500,3,FALSE)>=C15,"100% ("&VLOOKUP($A$3,'G5-RB'!$A$14:$AM$500,3,FALSE)&")",(ROUND((VLOOKUP($A$3,'G5-RB'!$A$14:$AM$500,3,FALSE)/C15*100),0))&"% ("&IF(VLOOKUP($A$3,'G5-RB'!$A$14:$AM$500,3,FALSE)="",0,VLOOKUP($A$3,'G5-RB'!$A$14:$AM$500,3,FALSE))&")"))))),"0% (0)") -> 94% (5751) | E15: =IFERROR((IF($D15="NA","NA",VLOOKUP($A$3,'G5-RB'!$A$14:$AM$500,5,FALSE))),"NA") -> 0.61 | F15: =IFERROR((IF($D15="NA","NA",ROUND(VLOOKUP($A$3,'G5-RB'!$A$14:$AM$500,11,FALSE)*100,0)&"% ("&IF(VLOOKUP($A$3,'G5-RB'!$A$14:$AM$500,8,FALSE)="",0,VLOOKUP($A$3,'G5-RB'!$A$14:$AM$500,8,FALSE))&")")),"NA") -> 45% (2591) | G15: =IFERROR((IF($D15="NA","NA",VLOOKUP($A$3,'G5-RB'!$A$14:$AM$500,13,FALSE))),"NA") -> 0.68 | H15: NA | I15: =IFERROR((IF($D15="NA","NA",VLOOKUP($A$3,'G5-RB'!$A$14:$AM$500,17,FALSE))),"NA") -> 0.62 | J15: NA | K15: =IFERROR((IF($D15="NA","NA",VLOOKUP($A$3,'G5-RB'!$A$14:$AM$500,21,FALSE))),"NA") -> 0.57 | L15: NA | M15: =IFERROR((IF($D15="NA","NA",VLOOKUP($A$3,'G5-RB'!$A$14:$AM$500,25,FALSE))),"NA") -> 0.51 | N15: NA
A16: Hispanic | B16: =IFERROR(VLOOKUP(TEXT($A$3,"0000"),'AYP11'!$B$2113:$AU$2534,36,FALSE)," ") -> NO | C16: =IFERROR(VLOOKUP(TEXT($A$3,"0000"),MEM_H!$A$2:$O$500,9,FALSE),"NA") -> 17476 | D16: =IFERROR((IF(OR(C16=0,C16="",C16="NA"),"NA",((IF(VLOOKUP($A$3,'G5-RH'!$A$14:$AM$500,3,FALSE)>=C16,"100% ("&VLOOKUP($A$3,'G5-RH'!$A$14:$AM$500,3,FALSE)&")",(ROUND((VLOOKUP($A$3,'G5-RH'!$A$14:$AM$500,3,FALSE)/C16*100),0))&"% ("&IF(VLOOKUP($A$3,'G5-RH'!$A$14:$AM$500,3,FALSE)="",0,VLOOKUP($A$3,'G5-RH'!$A$14:$AM$500,3,FALSE))&")"))))),"0% (0)") -> 96% (16710) | E16: =IFERROR((IF($D16="NA","NA",VLOOKUP($A$3,'G5-RH'!$A$14:$AM$500,5,FALSE))),"NA") -> 0.64 | F16: =IFERROR((IF($D16="NA","NA",ROUND(VLOOKUP($A$3,'G5-RH'!$A$14:$AM$500,11,FALSE)*100,0)&"% ("&IF(VLOOKUP($A$3,'G5-RH'!$A$14:$AM$500,8,FALSE)="",0,VLOOKUP($A$3,'G5-RH'!$A$14:$AM$500,8,FALSE))&")")),"NA") -> 55% (9243) | G16: =IFERROR((IF($D16="NA","NA",VLOOKUP($A$3,'G5-RH'!$A$14:$AM$500,13,FALSE))),"NA") -> 0.71 | H16: NA | I16: =IFERROR((IF($D16="NA","NA",VLOOKUP($A$3,'G5-RH'!$A$14:$AM$500,17,FALSE))),"NA") -> 0.66 | J16: NA | K16: =IFERROR((IF($D16="NA","NA",VLOOKUP($A$3,'G5-RH'!$A$14:$AM$500,21,FALSE))),"NA") -> 0.6 | L16: NA | M16: =IFERROR((IF($D16="NA","NA",VLOOKUP($A$3,'G5-RH'!$A$14:$AM$500,25,FALSE))),"NA") -> 0.55 | N16: NA
A17: Asian | B17: =IFERROR(VLOOKUP(TEXT($A$3,"0000"),'AYP11'!$B$425:$AU$846,36,FALSE)," ") -> Yes-AB | C17: =IFERROR(VLOOKUP(TEXT($A$3,"0000"),MEM_A!$A$2:$O$500,9,FALSE),"NA") -> 301 | D17: =IFERROR((IF(OR(C17=0,C17="",C17="NA"),"NA",((IF(VLOOKUP($A$3,'G5-RA'!$A$14:$AM$500,3,FALSE)>=C17,"100% ("&VLOOKUP($A$3,'G5-RA'!$A$14:$AM$500,3,FALSE)&")",(ROUND((VLOOKUP($A$3,'G5-RA'!$A$14:$AM$500,3,FALSE)/C17*100),0))&"% ("&IF(VLOOKUP($A$3,'G5-RA'!$A$14:$AM$500,3,FALSE)="",0,VLOOKUP($A$3,'G5-RA'!$A$14:$AM$500,3,FALSE))&")"))))),"0% (0)") -> 93% (280) | E17: =IFERROR((IF($D17="NA","NA",VLOOKUP($A$3,'G5-RA'!$A$14:$AM$500,5,FALSE))),"NA") -> 0.73 | F17: =IFERROR((IF($D17="NA","NA",ROUND(VLOOKUP($A$3,'G5-RA'!$A$14:$AM$500,11,FALSE)*100,0)&"% ("&IF(VLOOKUP($A$3,'G5-RA'!$A$14:$AM$500,8,FALSE)="",0,VLOOKUP($A$3,'G5-RA'!$A$14:$AM$500,8,FALSE))&")")),"NA") -> 78% (217) | G17: =IFERROR((IF($D17="NA","NA",VLOOKUP($A$3,'G5-RA'!$A$14:$AM$500,13,FALSE))),"NA") -> 0.79 | H17: NA | I17: =IFERROR((IF($D17="NA","NA",VLOOKUP($A$3,'G5-RA'!$A$14:$AM$500,17,FALSE))),"NA") -> 0.74 | J17: NA | K17: =IFERROR((IF($D17="NA","NA",VLOOKUP($A$3,'G5-RA'!$A$14:$AM$500,21,FALSE))),"NA") -> 0.68 | L17: NA | M17: =IFERROR((IF($D17="NA","NA",VLOOKUP($A$3,'G5-RA'!$A$14:$AM$500,25,FALSE))),"NA") -> 0.65 | N17: NA
A18: Am. Indian | B18: =IFERROR(VLOOKUP(TEXT($A$3,"0000"),'AYP11'!$B$3:$AU$424,36,FALSE)," ") -> NO | C18: =IFERROR(VLOOKUP(TEXT($A$3,"0000"),MEM_I!$A$2:$O$500,9,FALSE),"NA") -> 10 | D18: =IFERROR((IF(OR(C18=0,C18="",C18="NA"),"NA",((IF(VLOOKUP($A$3,'G5-RI'!$A$14:$AM$500,3,FALSE)>=C18,"100% ("&VLOOKUP($A$3,'G5-RI'!$A$14:$AM$500,3,FALSE)&")",(ROUND((VLOOKUP($A$3,'G5-RI'!$A$14:$AM$500,3,FALSE)/C18*100),0))&"% ("&IF(VLOOKUP($A$3,'G5-RI'!$A$14:$AM$500,3,FALSE)="",0,VLOOKUP($A$3,'G5-RI'!$A$14:$AM$500,3,FALSE))&")"))))),"0% (0)") -> 100% (10) | E18: =IFERROR((IF($D18="NA","NA",VLOOKUP($A$3,'G5-RI'!$A$14:$AM$500,5,FALSE))),"NA") -> 0.72 | F18: =IFERROR((IF($D18="NA","NA",ROUND(VLOOKUP($A$3,'G5-RI'!$A$14:$AM$500,11,FALSE)*100,0)&"% ("&IF(VLOOKUP($A$3,'G5-RI'!$A$14:$AM$500,8,FALSE)="",0,VLOOKUP($A$3,'G5-RI'!$A$14:$AM$500,8,FALSE))&")")),"NA") -> 80% (8) | G18: =IFERROR((IF($D18="NA","NA",VLOOKUP($A$3,'G5-RI'!$A$14:$AM$500,13,FALSE))),"NA") -> 0.81 | H18: NA | I18: =IFERROR((IF($D18="NA","NA",VLOOKUP($A$3,'G5-RI'!$A$14:$AM$500,17,FALSE))),"NA") -> 0.73 | J18: NA | K18: =IFERROR((IF($D18="NA","NA",VLOOKUP($A$3,'G5-RI'!$A$14:$AM$500,21,FALSE))),"NA") -> 0.67 | L18: NA | M18: =IFERROR((IF($D18="NA","NA",VLOOKUP($A$3,'G5-RI'!$A$14:$AM$500,25,FALSE))),"NA") -> 0.62 | N18: NA
A19: ED | B19: =IFERROR(VLOOKUP(TEXT($A$3,"0000"),'AYP11'!$B$1269:$AU$1690,36,FALSE)," ") -> NO | C19: =IFERROR(VLOOKUP(TEXT($A$3,"0000"),MEM_ED!$A$2:$O$500,9,FALSE),"NA") -> 19880 | D19: =IFERROR((IF(OR(C19=0,C19="",C19="NA"),"NA",((IF(VLOOKUP($A$3,'G5-RED'!$A$14:$AM$500,3,FALSE)>=C19,"100% ("&VLOOKUP($A$3,'G5-RED'!$A$14:$AM$500,3,FALSE)&")",(ROUND((VLOOKUP($A$3,'G5-RED'!$A$14:$AM$500,3,FALSE)/C19*100),0))&"% ("&IF(VLOOKUP($A$3,'G5-RED'!$A$14:$AM$500,3,FALSE)="",0,VLOOKUP($A$3,'G5-RED'!$A$14:$AM$500,3,FALSE))&")"))))),"0% (0)") -> 96% (18994) | E19: =IFERROR((IF($D19="NA","NA",VLOOKUP($A$3,'G5-RED'!$A$14:$AM$500,5,FALSE))),"NA") -> 0.62 | F19: =IFERROR((IF($D19="NA","NA",ROUND(VLOOKUP($A$3,'G5-RED'!$A$14:$AM$500,11,FALSE)*100,0)&"% ("&IF(VLOOKUP($A$3,'G5-RED'!$A$14:$AM$500,8,FALSE)="",0,VLOOKUP($A$3,'G5-RED'!$A$14:$AM$500,8,FALSE))&")")),"NA") -> 50% (9420) | G19: =IFERROR((IF($D19="NA","NA",VLOOKUP($A$3,'G5-RED'!$A$14:$AM$500,13,FALSE))),"NA") -> 0.69 | H19: NA | I19: =IFERROR((IF($D19="NA","NA",VLOOKUP($A$3,'G5-RED'!$A$14:$AM$500,17,FALSE))),"NA") -> 0.63 | J19: NA | K19: =IFERROR((IF($D19="NA","NA",VLOOKUP($A$3,'G5-RED'!$A$14:$AM$500,21,FALSE))),"NA") -> 0.58 | L19: NA | M19: =IFERROR((IF($D19="NA","NA",VLOOKUP($A$3,'G5-RED'!$A$14:$AM$500,25,FALSE))),"NA") -> 0.53 | N19: NA
A20: ELL | B20: =IFERROR(VLOOKUP(TEXT($A$3,"0000"),'AYP11'!$B$1691:$AU$2112,36,FALSE)," ") -> NO | C20: =IFERROR(VLOOKUP(TEXT($A$3,"0000"),MEM_ELL!$A$2:$O$500,9,FALSE),"NA") -> 4939 | D20: =IFERROR((IF(OR(C20=0,C20="",C20="NA"),"NA",((IF(VLOOKUP($A$3,'G5-RELL'!$A$14:$AM$500,3,FALSE)>=C20,"100% ("&VLOOKUP($A$3,'G5-RELL'!$A$14:$AM$500,3,FALSE)&")",(ROUND((VLOOKUP($A$3,'G5-RELL'!$A$14:$AM$500,3,FALSE)/C20*100),0))&"% ("&IF(VLOOKUP($A$3,'G5-RELL'!$A$14:$AM$500,3,FALSE)="",0,VLOOKUP($A$3,'G5-RELL'!$A$14:$AM$500,3,FALSE))&")"))))),"0% (0)") -> 97% (4805) | E20: =IFERROR((IF($D20="NA","NA",VLOOKUP($A$3,'G5-RELL'!$A$14:$AM$500,5,FALSE))),"NA") -> 0.52 | F20: =IFERROR((IF($D20="NA","NA",ROUND(VLOOKUP($A$3,'G5-RELL'!$A$14:$AM$500,11,FALSE)*100,0)&"% ("&IF(VLOOKUP($A$3,'G5-RELL'!$A$14:$AM$500,8,FALSE)="",0,VLOOKUP($A$3,'G5-RELL'!$A$14:$AM$500,8,FALSE))&")")),"NA") -> 26% (1235) | G20: =IFERROR((IF($D20="NA","NA",VLOOKUP($A$3,'G5-RELL'!$A$14:$AM$500,13,FALSE))),"NA") -> 0.57 | H20: NA | I20: =IFERROR((IF($D20="NA","NA",VLOOKUP($A$3,'G5-RELL'!$A$14:$AM$500,17,FALSE))),"NA") -> 0.53 | J20: NA | K20: =IFERROR((IF($D20="NA","NA",VLOOKUP($A$3,'G5-RELL'!$A$14:$AM$500,21,FALSE))),"NA") -> 0.49 | L20: NA | M20: =IFERROR((IF($D20="NA","NA",VLOOKUP($A$3,'G5-RELL'!$A$14:$AM$500,25,FALSE))),"NA") -> 0.45 | N20: NA
A21: SWD | B21: =IFERROR(VLOOKUP(TEXT($A$3,"0000"),'AYP11'!$B$2535:$AU$2956,36,FALSE)," ") -> NO | C21: =IFERROR(VLOOKUP(TEXT($A$3,"0000"),MEM_SWD!$A$2:$O$500,9,FALSE),"NA") -> 2742 | D21: =IFERROR((IF(OR(C21=0,C21="",C21="NA"),"NA",((IF(VLOOKUP($A$3,'G5-RSWD'!$A$14:$AM$500,3,FALSE)>=C21,"100% ("&VLOOKUP($A$3,'G5-RSWD'!$A$14:$AM$500,3,FALSE)&")",(ROUND((VLOOKUP($A$3,'G5-RSWD'!$A$14:$AM$500,3,FALSE)/C21*100),0))&"% ("&IF(VLOOKUP($A$3,'G5-RSWD'!$A$14:$AM$500,3,FALSE)="",0,VLOOKUP($A$3,'G5-RSWD'!$A$14:$AM$500,3,FALSE))&")"))))),"0% (0)") -> 95% (2602) | E21: =IFERROR((IF($D21="NA","NA",VLOOKUP($A$3,'G5-RSWD'!$A$14:$AM$500,5,FALSE))),"NA") -> 0.49 | F21: =IFERROR((IF($D21="NA","NA",ROUND(VLOOKUP($A$3,'G5-RSWD'!$A$14:$AM$500,11,FALSE)*100,0)&"% ("&IF(VLOOKUP($A$3,'G5-RSWD'!$A$14:$AM$500,8,FALSE)="",0,VLOOKUP($A$3,'G5-RSWD'!$A$14:$AM$500,8,FALSE))&")")),"NA") -> 22% (562) | G21: =IFERROR((IF($D21="NA","NA",VLOOKUP($A$3,'G5-RSWD'!$A$14:$AM$500,13,FALSE))),"NA") -> 0.56 | H21: NA | I21: =IFERROR((IF($D21="NA","NA",VLOOKUP($A$3,'G5-RSWD'!$A$14:$AM$500,17,FALSE))),"NA") -> 0.5 | J21: NA | K21: =IFERROR((IF($D21="NA","NA",VLOOKUP($A$3,'G5-RSWD'!$A$14:$AM$500,21,FALSE))),"NA") -> 0.46 | L21: NA | M21: =IFERROR((IF($D21="NA","NA",VLOOKUP($A$3,'G5-RSWD'!$A$14:$AM$500,25,FALSE))),"NA") -> 0.42 | N21: NA
A22: Math - Grade 5
A23: Satisfactory Progress Cut Score at 63% or above | B23: 2011 AYP Met** | C23: Total # of Students | D23: % Tested | E23: Overall [38] | G23: Number: Base Ten & Fractions [21] | I23: Expressions, Equations & Statistics [11] | K23: Geometry & Measurement [6]
E24: Average % Correct | F24: % Satisfactory Progress | G24: Average % Correct | H24: % Satisfactory Progress | I24: Average % Correct | J24: % Satisfactory Progress | K24: Average % Correct | L24: % Satisfactory Progress
A25: All students | B25: =IFERROR(VLOOKUP(TEXT($A$3,"0000"),'AYP11'!$B$2957:$AU$3378,37,FALSE),"NA") -> NO | C25: =IFERROR(VLOOKUP(TEXT($A$3,"0000"),Mem_All!$A$2:$O$500,9,FALSE),"NA") -> 26201 | D25: =IFERROR((IF(OR(C25=0,C25="",C25="NA"),"NA",((IF(VLOOKUP($A$3,'G5-MALL'!$A$14:$AA$500,3,FALSE)>=C25,"100% ("&VLOOKUP($A$3,'G5-MALL'!$A$14:$AA$500,3,FALSE)&")",(ROUND((VLOOKUP($A$3,'G5-MALL'!$A$14:$AA$500,3,FALSE)/C25*100),0))&"% ("&IF(VLOOKUP($A$3,'G5-MALL'!$A$14:$AA$500,3,FALSE)="",0,VLOOKUP($A$3,'G5-MALL'!$A$14:$AA$500,3,FALSE))&")"))))),"0% (0)") -> 93% (24281) | E25: =IFERROR((IF($D25="NA","NA",VLOOKUP($A$3,'G5-MALL'!$A$14:$AA$500,5,FALSE))),"NA") -> 0.62 | F25: =IFERROR((IF($D25="NA","NA",ROUND(VLOOKUP($A$3,'G5-MALL'!$A$14:$AA$500,11,FALSE)*100,0)&"% ("&IF(VLOOKUP($A$3,'G5-MALL'!$A$14:$AA$500,8,FALSE)="",0,VLOOKUP($A$3,'G5-MALL'!$A$14:$AA$500,8,FALSE))&")")),"NA") -> 52% (12525) | G25: =IFERROR((IF($D25="NA","NA",VLOOKUP($A$3,'G5-MALL'!$A$14:$AG$500,13,FALSE))),"NA") -> 0.54 | H25: NA | I25: =IFERROR((IF($D25="NA","NA",VLOOKUP($A$3,'G5-MALL'!$A$14:$AA$500,17,FALSE))),"NA") -> 0.7 | J25: NA | K25: =IFERROR((IF($D25="NA","NA",VLOOKUP($A$3,'G5-MALL'!$A$14:$AA$500,21,FALSE))),"NA") -> 0.77 | L25: NA
A26: FCAT Level 1 | C26: =IFERROR(VLOOKUP(TEXT($A$3,"0000"),MEM_ML1!$A$2:$O$500,6,FALSE),"NA") -> 2332 | D26: =IFERROR((IF(OR(C26=0,C26="",C26="NA"),"NA",((IF(VLOOKUP($A$3,'G5-ML1'!$A$14:$AG$500,3,FALSE)>=C26,"100% ("&VLOOKUP($A$3,'G5-ML1'!$A$14:$AG$500,3,FALSE)&")",(ROUND((VLOOKUP($A$3,'G5-ML1'!$A$14:$AG$500,3,FALSE)/C26*100),0))&"% ("&IF(VLOOKUP($A$3,'G5-ML1'!$A$14:$AG$500,3,FALSE)="",0,VLOOKUP($A$3,'G5-ML1'!$A$14:$AG$500,3,FALSE))&")"))))),"0% (0)") -> 92% (2147) | E26: =IFERROR((IF($D26="NA","NA",VLOOKUP($A$3,'G5-ML1'!$A$14:$AG$500,5,FALSE))),"NA") -> 0.4 | F26: =IFERROR((IF($D26="NA","NA",ROUND(VLOOKUP($A$3,'G5-ML1'!$A$14:$AG$500,11,FALSE)*100,0)&"% ("&IF(VLOOKUP($A$3,'G5-ML1'!$A$14:$AG$500,8,FALSE)="",0,VLOOKUP($A$3,'G5-ML1'!$A$14:$AG$500,8,FALSE))&")")),"NA") -> 5% (103) | G26: =IFERROR((IF($D26="NA","NA",VLOOKUP($A$3,'G5-ML1'!$A$14:$AG$500,13,FALSE))),"NA") -> 0.3 | H26: NA | I26: =IFERROR((IF($D26="NA","NA",VLOOKUP($A$3,'G5-ML1'!$A$14:$AA$500,17,FALSE))),"NA") -> 0.5 | J26: NA | K26: =IFERROR((IF($D26="NA","NA",VLOOKUP($A$3,'G5-ML1'!$A$14:$AA$500,21,FALSE))),"NA") -> 0.54 | L26: NA
A27: FCAT Level 2 | C27: =IFERROR(VLOOKUP(TEXT($A$3,"0000"),MEM_ML2!$A$2:$O$500,6,FALSE),"NA") -> 3625 | D27: =IFERROR((IF(OR(C27=0,C27="",C27="NA"),"NA",((IF(VLOOKUP($A$3,'G5-ML2'!$A$14:$AG$500,3,FALSE)>=C27,"100% ("&VLOOKUP($A$3,'G5-ML2'!$A$14:$AG$500,3,FALSE)&")",(ROUND((VLOOKUP($A$3,'G5-ML2'!$A$14:$AG$500,3,FALSE)/C27*100),0))&"% ("&IF(VLOOKUP($A$3,'G5-ML2'!$A$14:$AG$500,3,FALSE)="",0,VLOOKUP($A$3,'G5-ML2'!$A$14:$AG$500,3,FALSE))&")"))))),"0% (0)") -> 93% (3385) | E27: =IFERROR((IF($D27="NA","NA",VLOOKUP($A$3,'G5-ML2'!$A$14:$AG$500,5,FALSE))),"NA") -> 0.49 | F27: =IFERROR((IF($D27="NA","NA",ROUND(VLOOKUP($A$3,'G5-ML2'!$A$14:$AG$500,11,FALSE)*100,0)&"% ("&IF(VLOOKUP($A$3,'G5-ML2'!$A$14:$AG$500,8,FALSE)="",0,VLOOKUP($A$3,'G5-ML2'!$A$14:$AG$500,8,FALSE))&")")),"NA") -> 15% (497) | G27: =IFERROR((IF($D27="NA","NA",VLOOKUP($A$3,'G5-ML2'!$A$14:$AG$500,13,FALSE))),"NA") -> 0.38 | H27: NA | I27: =IFERROR((IF($D27="NA","NA",VLOOKUP($A$3,'G5-ML2'!$A$14:$AA$500,17,FALSE))),"NA") -> 0.59 | J27: NA | K27: =IFERROR((IF($D27="NA","NA",VLOOKUP($A$3,'G5-ML2'!$A$14:$AA$500,21,FALSE))),"NA") -> 0.66 | L27: NA
A28: FCAT Level 3 | C28: =IFERROR(VLOOKUP(TEXT($A$3,"0000"),MEM_ML3!$A$2:$O$500,6,FALSE),"NA") -> 8344 | D28: =IFERROR((IF(OR(C28=0,C28="",C28="NA"),"NA",((IF(VLOOKUP($A$3,'G5-ML3'!$A$14:$AG$500,3,FALSE)>=C28,"100% ("&VLOOKUP($A$3,'G5-ML3'!$A$14:$AG$500,3,FALSE)&")",(ROUND((VLOOKUP($A$3,'G5-ML3'!$A$14:$AG$500,3,FALSE)/C28*100),0))&"% ("&IF(VLOOKUP($A$3,'G5-ML3'!$A$14:$AG$500,3,FALSE)="",0,VLOOKUP($A$3,'G5-ML3'!$A$14:$AG$500,3,FALSE))&")"))))),"0% (0)") -> 94% (7831) | E28: =IFERROR((IF($D28="NA","NA",VLOOKUP($A$3,'G5-ML3'!$A$14:$AG$500,5,FALSE))),"NA") -> 0.59 | F28: =IFERROR((IF($D28="NA","NA",ROUND(VLOOKUP($A$3,'G5-ML3'!$A$14:$AG$500,11,FALSE)*100,0)&"% ("&IF(VLOOKUP($A$3,'G5-ML3'!$A$14:$AG$500,8,FALSE)="",0,VLOOKUP($A$3,'G5-ML3'!$A$14:$AG$500,8,FALSE))&")")),"NA") -> 43% (3330) | G28: =IFERROR((IF($D28="NA","NA",VLOOKUP($A$3,'G5-ML3'!$A$14:$AG$500,13,FALSE))),"NA") -> 0.5 | H28: NA | I28: =IFERROR((IF($D28="NA","NA",VLOOKUP($A$3,'G5-ML3'!$A$14:$AA$500,17,FALSE))),"NA") -> 0.69 | J28: NA | K28: =IFERROR((IF($D28="NA","NA",VLOOKUP($A$3,'G5-ML3'!$A$14:$AA$500,21,FALSE))),"NA") -> 0.76 | L28: NA
A29: FCAT Level 4 | C29: =IFERROR(VLOOKUP(TEXT($A$3,"0000"),MEM_ML4!$A$2:$O$500,6,FALSE),"NA") -> 7179 | D29: =IFERROR((IF(OR(C29=0,C29="",C29="NA"),"NA",((IF(VLOOKUP($A$3,'G5-ML4'!$A$14:$AG$500,3,FALSE)>=C29,"100% ("&VLOOKUP($A$3,'G5-ML4'!$A$14:$AG$500,3,FALSE)&")",(ROUND((VLOOKUP($A$3,'G5-ML4'!$A$14:$AG$500,3,FALSE)/C29*100),0))&"% ("&IF(VLOOKUP($A$3,'G5-ML4'!$A$14:$AG$500,3,FALSE)="",0,VLOOKUP($A$3,'G5-ML4'!$A$14:$AG$500,3,FALSE))&")"))))),"0% (0)") -> 94% (6756) | E29: =IFERROR((IF($D29="NA","NA",VLOOKUP($A$3,'G5-ML4'!$A$14:$AG$500,5,FALSE))),"NA") -> 0.72 | F29: =IFERROR((IF($D29="NA","NA",ROUND(VLOOKUP($A$3,'G5-ML4'!$A$14:$AG$500,11,FALSE)*100,0)&"% ("&IF(VLOOKUP($A$3,'G5-ML4'!$A$14:$AG$500,8,FALSE)="",0,VLOOKUP($A$3,'G5-ML4'!$A$14:$AG$500,8,FALSE))&")")),"NA") -> 79% (5308) | G29: =IFERROR((IF($D29="NA","NA",VLOOKUP($A$3,'G5-ML4'!$A$14:$AG$500,13,FALSE))),"NA") -> 0.65 | H29: NA | I29: =IFERROR((IF($D29="NA","NA",VLOOKUP($A$3,'G5-ML4'!$A$14:$AA$500,17,FALSE))),"NA") -> 0.79 | J29: NA | K29: =IFERROR((IF($D29="NA","NA",VLOOKUP($A$3,'G5-ML4'!$A$14:$AA$500,21,FALSE))),"NA") -> 0.85 | L29: NA
A30: FCAT Level 5 | C30: =IFERROR(VLOOKUP(TEXT($A$3,"0000"),MEM_ML5!$A$2:$M$500,5,FALSE),"NA") -> 3175 | D30: =IFERROR((IF(OR(C30=0,C30="",C30="NA"),"NA",((IF(VLOOKUP($A$3,'G5-ML5'!$A$14:$AG$500,3,FALSE)>=C30,"100% ("&VLOOKUP($A$3,'G5-ML5'!$A$14:$AG$500,3,FALSE)&")",(ROUND((VLOOKUP($A$3,'G5-ML5'!$A$14:$AG$500,3,FALSE)/C30*100),0))&"% ("&IF(VLOOKUP($A$3,'G5-ML5'!$A$14:$AG$500,3,FALSE)="",0,VLOOKUP($A$3,'G5-ML5'!$A$14:$AG$500,3,FALSE))&")"))))),"0% (0)") -> 95% (3007) | E30: =IFERROR((IF($D30="NA","NA",VLOOKUP($A$3,'G5-ML5'!$A$14:$AG$500,5,FALSE))),"NA") -> 0.84 | F30: =IFERROR((IF($D30="NA","NA",ROUND(VLOOKUP($A$3,'G5-ML5'!$A$14:$AG$500,11,FALSE)*100,0)&"% ("&IF(VLOOKUP($A$3,'G5-ML5'!$A$14:$AG$500,8,FALSE)="",0,VLOOKUP($A$3,'G5-ML5'!$A$14:$AG$500,8,FALSE))&")")),"NA") -> 96% (2898) | G30: =IFERROR((IF($D30="NA","NA",VLOOKUP($A$3,'G5-ML5'!$A$14:$AG$500,13,FALSE))),"NA") -> 0.8 | H30: NA | I30: =IFERROR((IF($D30="NA","NA",VLOOKUP($A$3,'G5-ML5'!$A$14:$AA$500,17,FALSE))),"NA") -> 0.86 | J30: NA | K30: =IFERROR((IF($D30="NA","NA",VLOOKUP($A$3,'G5-ML5'!$A$14:$AA$500,21,FALSE))),"NA") -> 0.92 | L30: NA
A31: White | B31: =IFERROR(VLOOKUP(TEXT($A$3,"0000"),'AYP11'!$B$3379:$AU$3800,37,FALSE)," ") -> Yes-AB | C31: =IFERROR(VLOOKUP(TEXT($A$3,"0000"),MEM_W!$A$2:$O$500,9,FALSE),"NA") -> 2178 | D31: =IFERROR((IF(OR(C31=0,C31="",C31="NA"),"NA",((IF(VLOOKUP($A$3,'G5-MW'!$A$14:$AG$500,3,FALSE)>=C31,"100% ("&VLOOKUP($A$3,'G5-MW'!$A$14:$AG$500,3,FALSE)&")",(ROUND((VLOOKUP($A$3,'G5-MW'!$A$14:$AG$500,3,FALSE)/C31*100),0))&"% ("&IF(VLOOKUP($A$3,'G5-MW'!$A$14:$AG$500,3,FALSE)="",0,VLOOKUP($A$3,'G5-MW'!$A$14:$AG$500,3,FALSE))&")"))))),"0% (0)") -> 89% (1947) | E31: =IFERROR((IF($D31="NA","NA",VLOOKUP($A$3,'G5-MW'!$A$14:$AG$500,5,FALSE))),"NA") -> 0.69 | F31: =IFERROR((IF($D31="NA","NA",ROUND(VLOOKUP($A$3,'G5-MW'!$A$14:$AG$500,11,FALSE)*100,0)&"% ("&IF(VLOOKUP($A$3,'G5-MW'!$A$14:$AG$500,8,FALSE)="",0,VLOOKUP($A$3,'G5-MW'!$A$14:$AG$500,8,FALSE))&")")),"NA") -> 67% (1301) | G31: =IFERROR((IF($D31="NA","NA",VLOOKUP($A$3,'G5-MW'!$A$14:$AG$500,13,FALSE))),"NA") -> 0.62 | H31: NA | I31: =IFERROR((IF($D31="NA","NA",VLOOKUP($A$3,'G5-MW'!$A$14:$AA$500,17,FALSE))),"NA") -> 0.76 | J31: NA | K31: =IFERROR((IF($D31="NA","NA",VLOOKUP($A$3,'G5-MW'!$A$14:$AA$500,21,FALSE))),"NA") -> 0.83 | L31: NA
A32: Black | B32: =IFERROR(VLOOKUP(TEXT($A$3,"0000"),'AYP11'!$B$847:$AU$1268,37,FALSE)," ") -> NO | C32: =IFERROR(VLOOKUP(TEXT($A$3,"0000"),MEM_B!$A$2:$O$500,9,FALSE),"NA") -> 6111 | D32: =IFERROR((IF(OR(C32=0,C32="",C32="NA"),"NA",((IF(VLOOKUP($A$3,'G5-MB'!$A$14:$AG$500,3,FALSE)>=C32,"100% ("&VLOOKUP($A$3,'G5-MB'!$A$14:$AG$500,3,FALSE)&")",(ROUND((VLOOKUP($A$3,'G5-MB'!$A$14:$AG$500,3,FALSE)/C32*100),0))&"% ("&IF(VLOOKUP($A$3,'G5-MB'!$A$14:$AG$500,3,FALSE)="",0,VLOOKUP($A$3,'G5-MB'!$A$14:$AG$500,3,FALSE))&")"))))),"0% (0)") -> 91% (5589) | E32: =IFERROR((IF($D32="NA","NA",VLOOKUP($A$3,'G5-MB'!$A$14:$AG$500,5,FALSE))),"NA") -> 0.58 | F32: =IFERROR((IF($D32="NA","NA",ROUND(VLOOKUP($A$3,'G5-MB'!$A$14:$AG$500,11,FALSE)*100,0)&"% ("&IF(VLOOKUP($A$3,'G5-MB'!$A$14:$AG$500,8,FALSE)="",0,VLOOKUP($A$3,'G5-MB'!$A$14:$AG$500,8,FALSE))&")")),"NA") -> 40% (2238) | G32: =IFERROR((IF($D32="NA","NA",VLOOKUP($A$3,'G5-MB'!$A$14:$AG$500,13,FALSE))),"NA") -> 0.49 | H32: NA | I32: =IFERROR((IF($D32="NA","NA",VLOOKUP($A$3,'G5-MB'!$A$14:$AA$500,17,FALSE))),"NA") -> 0.66 | J32: NA | K32: =IFERROR((IF($D32="NA","NA",VLOOKUP($A$3,'G5-MB'!$A$14:$AA$500,21,FALSE))),"NA") -> 0.72 | L32: NA
A33: Hispanic | B33: =IFERROR(VLOOKUP(TEXT($A$3,"0000"),'AYP11'!$B$2113:$AU$2534,37,FALSE)," ") -> NO | C33: =IFERROR(VLOOKUP(TEXT($A$3,"0000"),MEM_H!$A$2:$O$500,9,FALSE),"NA") -> 17476 | D33: =IFERROR((IF(OR(C33=0,C33="",C33="NA"),"NA",((IF(VLOOKUP($A$3,'G5-MH'!$A$14:$AG$500,3,FALSE)>=C33,"100% ("&VLOOKUP($A$3,'G5-MH'!$A$14:$AG$500,3,FALSE)&")",(ROUND((VLOOKUP($A$3,'G5-MH'!$A$14:$AG$500,3,FALSE)/C33*100),0))&"% ("&IF(VLOOKUP($A$3,'G5-MH'!$A$14:$AG$500,3,FALSE)="",0,VLOOKUP($A$3,'G5-MH'!$A$14:$AG$500,3,FALSE))&")"))))),"0% (0)") -> 94% (16343) | E33: =IFERROR((IF($D33="NA","NA",VLOOKUP($A$3,'G5-MH'!$A$14:$AG$500,5,FALSE))),"NA") -> 0.63 | F33: =IFERROR((IF($D33="NA","NA",ROUND(VLOOKUP($A$3,'G5-MH'!$A$14:$AG$500,11,FALSE)*100,0)&"% ("&IF(VLOOKUP($A$3,'G5-MH'!$A$14:$AG$500,8,FALSE)="",0,VLOOKUP($A$3,'G5-MH'!$A$14:$AG$500,8,FALSE))&")")),"NA") -> 53% (8696) | G33: =IFERROR((IF($D33="NA","NA",VLOOKUP($A$3,'G5-MH'!$A$14:$AG$500,13,FALSE))),"NA") -> 0.55 | H33: NA | I33: =IFERROR((IF($D33="NA","NA",VLOOKUP($A$3,'G5-MH'!$A$14:$AA$500,17,FALSE))),"NA") -> 0.71 | J33: NA | K33: =IFERROR((IF($D33="NA","NA",VLOOKUP($A$3,'G5-MH'!$A$14:$AA$500,21,FALSE))),"NA") -> 0.77 | L33: NA
A34: Asian | B34: =IFERROR(VLOOKUP(TEXT($A$3,"0000"),'AYP11'!$B$425:$AU$846,37,FALSE)," ") -> Yes-AB | C34: =IFERROR(VLOOKUP(TEXT($A$3,"0000"),MEM_A!$A$2:$O$500,9,FALSE),"NA") -> 301 | D34: =IFERROR((IF(OR(C34=0,C34="",C34="NA"),"NA",((IF(VLOOKUP($A$3,'G5-MA'!$A$14:$AG$500,3,FALSE)>=C34,"100% ("&VLOOKUP($A$3,'G5-MA'!$A$14:$AG$500,3,FALSE)&")",(ROUND((VLOOKUP($A$3,'G5-MA'!$A$14:$AG$500,3,FALSE)/C34*100),0))&"% ("&IF(VLOOKUP($A$3,'G5-MA'!$A$14:$AG$500,3,FALSE)="",0,VLOOKUP($A$3,'G5-MA'!$A$14:$AG$500,3,FALSE))&")"))))),"0% (0)") -> 92% (276) | E34: =IFERROR((IF($D34="NA","NA",VLOOKUP($A$3,'G5-MA'!$A$14:$AG$500,5,FALSE))),"NA") -> 0.76 | F34: =IFERROR((IF($D34="NA","NA",ROUND(VLOOKUP($A$3,'G5-MA'!$A$14:$AG$500,11,FALSE)*100,0)&"% ("&IF(VLOOKUP($A$3,'G5-MA'!$A$14:$AG$500,8,FALSE)="",0,VLOOKUP($A$3,'G5-MA'!$A$14:$AG$500,8,FALSE))&")")),"NA") -> 80% (222) | G34: =IFERROR((IF($D34="NA","NA",VLOOKUP($A$3,'G5-MA'!$A$14:$AG$500,13,FALSE))),"NA") -> 0.71 | H34: NA | I34: =IFERROR((IF($D34="NA","NA",VLOOKUP($A$3,'G5-MA'!$A$14:$AA$500,17,FALSE))),"NA") -> 0.8 | J34: NA | K34: =IFERROR((IF($D34="NA","NA",VLOOKUP($A$3,'G5-MA'!$A$14:$AA$500,21,FALSE))),"NA") -> 0.86 | L34: NA
A35: Am. Indian | B35: =IFERROR(VLOOKUP(TEXT($A$3,"0000"),'AYP11'!$B$3:$AU$424,37,FALSE)," ") -> NO | C35: =IFERROR(VLOOKUP(TEXT($A$3,"0000"),MEM_I!$A$2:$O$500,9,FALSE),"NA") -> 10 | D35: =IFERROR((IF(OR(C35=0,C35="",C35="NA"),"NA",((IF(VLOOKUP($A$3,'G5-MI'!$A$14:$AG$500,3,FALSE)>=C35,"100% ("&VLOOKUP($A$3,'G5-MI'!$A$14:$AG$500,3,FALSE)&")",(ROUND((VLOOKUP($A$3,'G5-MI'!$A$14:$AG$500,3,FALSE)/C35*100),0))&"% ("&IF(VLOOKUP($A$3,'G5-MI'!$A$14:$AG$500,3,FALSE)="",0,VLOOKUP($A$3,'G5-MI'!$A$14:$AG$500,3,FALSE))&")"))))),"0% (0)") -> 100% (10) | E35: =IFERROR((IF($D35="NA","NA",VLOOKUP($A$3,'G5-MI'!$A$14:$AG$500,5,FALSE))),"NA") -> 0.67 | F35: =IFERROR((IF($D35="NA","NA",ROUND(VLOOKUP($A$3,'G5-MI'!$A$14:$AG$500,11,FALSE)*100,0)&"% ("&IF(VLOOKUP($A$3,'G5-MI'!$A$14:$AG$500,8,FALSE)="",0,VLOOKUP($A$3,'G5-MI'!$A$14:$AG$500,8,FALSE))&")")),"NA") -> 60% (6) | G35: =IFERROR((IF($D35="NA","NA",VLOOKUP($A$3,'G5-MI'!$A$14:$AG$500,13,FALSE))),"NA") -> 0.61 | H35: NA | I35: =IFERROR((IF($D35="NA","NA",VLOOKUP($A$3,'G5-MI'!$A$14:$AA$500,17,FALSE))),"NA") -> 0.76 | J35: NA | K35: =IFERROR((IF($D35="NA","NA",VLOOKUP($A$3,'G5-MI'!$A$14:$AA$500,21,FALSE))),"NA") -> 0.72 | L35: NA
A36: ED | B36: =IFERROR(VLOOKUP(TEXT($A$3,"0000"),'AYP11'!$B$1269:$AU$1690,37,FALSE)," ") -> NO | C36: =IFERROR(VLOOKUP(TEXT($A$3,"0000"),MEM_ED!$A$2:$O$500,9,FALSE),"NA") -> 19880 | D36: =IFERROR((IF(OR(C36=0,C36="",C36="NA"),"NA",((IF(VLOOKUP($A$3,'G5-MED'!$A$14:$AG$500,3,FALSE)>=C36,"100% ("&VLOOKUP($A$3,'G5-MED'!$A$14:$AG$500,3,FALSE)&")",(ROUND((VLOOKUP($A$3,'G5-MED'!$A$14:$AG$500,3,FALSE)/C36*100),0))&"% ("&IF(VLOOKUP($A$3,'G5-MED'!$A$14:$AG$500,3,FALSE)="",0,VLOOKUP($A$3,'G5-MED'!$A$14:$AG$500,3,FALSE))&")"))))),"0% (0)") -> 93% (18520) | E36: =IFERROR((IF($D36="NA","NA",VLOOKUP($A$3,'G5-MED'!$A$14:$AG$500,5,FALSE))),"NA") -> 0.6 | F36: =IFERROR((IF($D36="NA","NA",ROUND(VLOOKUP($A$3,'G5-MED'!$A$14:$AG$500,11,FALSE)*100,0)&"% ("&IF(VLOOKUP($A$3,'G5-MED'!$A$14:$AG$500,8,FALSE)="",0,VLOOKUP($A$3,'G5-MED'!$A$14:$AG$500,8,FALSE))&")")),"NA") -> 47% (8655) | G36: =IFERROR((IF($D36="NA","NA",VLOOKUP($A$3,'G5-MED'!$A$14:$AG$500,13,FALSE))),"NA") -> 0.52 | H36: NA | I36: =IFERROR((IF($D36="NA","NA",VLOOKUP($A$3,'G5-MED'!$A$14:$AA$500,17,FALSE))),"NA") -> 0.69 | J36: NA | K36: =IFERROR((IF($D36="NA","NA",VLOOKUP($A$3,'G5-MED'!$A$14:$AA$500,21,FALSE))),"NA") -> 0.75 | L36: NA
A37: ELL | B37: =IFERROR(VLOOKUP(TEXT($A$3,"0000"),'AYP11'!$B$1691:$AU$2112,37,FALSE)," ") -> NO | C37: =IFERROR(VLOOKUP(TEXT($A$3,"0000"),MEM_ELL!$A$2:$O$500,9,FALSE),"NA") -> 4939 | D37: =IFERROR((IF(OR(C37=0,C37="",C37="NA"),"NA",((IF(VLOOKUP($A$3,'G5-MELL'!$A$14:$AG$500,3,FALSE)>=C37,"100% ("&VLOOKUP($A$3,'G5-MELL'!$A$14:$AG$500,3,FALSE)&")",(ROUND((VLOOKUP($A$3,'G5-MELL'!$A$14:$AG$500,3,FALSE)/C37*100),0))&"% ("&IF(VLOOKUP($A$3,'G5-MELL'!$A$14:$AG$500,3,FALSE)="",0,VLOOKUP($A$3,'G5-MELL'!$A$14:$AG$500,3,FALSE))&")"))))),"0% (0)") -> 96% (4737) | E37: =IFERROR((IF($D37="NA","NA",VLOOKUP($A$3,'G5-MELL'!$A$14:$AG$500,5,FALSE))),"NA") -> 0.53 | F37: =IFERROR((IF($D37="NA","NA",ROUND(VLOOKUP($A$3,'G5-MELL'!$A$14:$AG$500,11,FALSE)*100,0)&"% ("&IF(VLOOKUP($A$3,'G5-MELL'!$A$14:$AG$500,8,FALSE)="",0,VLOOKUP($A$3,'G5-MELL'!$A$14:$AG$500,8,FALSE))&")")),"NA") -> 31% (1482) | G37: =IFERROR((IF($D37="NA","NA",VLOOKUP($A$3,'G5-MELL'!$A$14:$AG$500,13,FALSE))),"NA") -> 0.44 | H37: NA | I37: =IFERROR((IF($D37="NA","NA",VLOOKUP($A$3,'G5-MELL'!$A$14:$AA$500,17,FALSE))),"NA") -> 0.62 | J37: NA | K37: =IFERROR((IF($D37="NA","NA",VLOOKUP($A$3,'G5-MELL'!$A$14:$AA$500,21,FALSE))),"NA") -> 0.68 | L37: NA
A38: SWD | B38: =IFERROR(VLOOKUP(TEXT($A$3,"0000"),'AYP11'!$B$2535:$AU$2956,37,FALSE)," ") -> NO | C38: =IFERROR(VLOOKUP(TEXT($A$3,"0000"),MEM_SWD!$A$2:$O$500,9,FALSE),"NA") -> 2742 | D38: =IFERROR((IF(OR(C38=0,C38="",C38="NA"),"NA",((IF(VLOOKUP($A$3,'G5-MSWD'!$A$14:$AG$500,3,FALSE)>=C38,"100% ("&VLOOKUP($A$3,'G5-MSWD'!$A$14:$AG$500,3,FALSE)&")",(ROUND((VLOOKUP($A$3,'G5-MSWD'!$A$14:$AG$500,3,FALSE)/C38*100),0))&"% ("&IF(VLOOKUP($A$3,'G5-MSWD'!$A$14:$AG$500,3,FALSE)="",0,VLOOKUP($A$3,'G5-MSWD'!$A$14:$AG$500,3,FALSE))&")"))))),"0% (0)") -> 91% (2494) | E38: =IFERROR((IF($D38="NA","NA",VLOOKUP($A$3,'G5-MSWD'!$A$14:$AG$500,5,FALSE))),"NA") -> 0.49 | F38: =IFERROR((IF($D38="NA","NA",ROUND(VLOOKUP($A$3,'G5-MSWD'!$A$14:$AG$500,11,FALSE)*100,0)&"% ("&IF(VLOOKUP($A$3,'G5-MSWD'!$A$14:$AG$500,8,FALSE)="",0,VLOOKUP($A$3,'G5-MSWD'!$A$14:$AG$500,8,FALSE))&")")),"NA") -> 24% (603) | G38: =IFERROR((IF($D38="NA","NA",VLOOKUP($A$3,'G5-MSWD'!$A$14:$AG$500,13,FALSE))),"NA") -> 0.4 | H38: NA | I38: =IFERROR((IF($D38="NA","NA",VLOOKUP($A$3,'G5-MSWD'!$A$14:$AA$500,17,FALSE))),"NA") -> 0.59 | J38: NA | K38: =IFERROR((IF($D38="NA","NA",VLOOKUP($A$3,'G5-MSWD'!$A$14:$AA$500,21,FALSE))),"NA") -> 0.64 | L38: NA
A39: Science - Grade 5
C40: Total # of Students | D40: % of Students Tested | E40: Overall [68] | G40: Nature of Science [9] | I40: Earth and Space Science [20] | K40: Physical Science [24] | M40: Life Science [15]
E41: Average % Correct | F41: % Students at 70% or higher | G41: Average % Correct | H41: % Students at 70% or higher | I41: Average % Correct | J41: % Students at 70% or higher | K41: Average % Correct | L41: % Students at 70% or higher | M41: Average % Correct | N41: % Students at 70% or higher
A42: All students | C42: =IFERROR(VLOOKUP(TEXT($A$3,"0000"),Mem_All!$A$2:$O$500,9,FALSE),0) -> 26201 | D42: =IFERROR((IF(OR(C42=0,C42="",C42="NA"),"NA",((IF(VLOOKUP($A$3,'G5-SALL'!$A$14:$AM$500,3,FALSE)>=C42,"100% ("&VLOOKUP($A$3,'G5-SALL'!$A$14:$AM$500,3,FALSE)&")",(ROUND((VLOOKUP($A$3,'G5-SALL'!$A$14:$AM$500,3,FALSE)/C42*100),0))&"% ("&VLOOKUP($A$3,'G5-SALL'!$A$14:$AM$500,3,FALSE)&")"))))),"NA") -> 90% (23655) | E42: =IFERROR((IF($D42="NA","NA",VLOOKUP($A$3,'G5-SALL'!$A$14:$AM$500,5,FALSE))),"NA") -> 0.51 | F42: =IFERROR((IF($D42="NA","NA",ROUND(VLOOKUP($A$3,'G5-SALL'!$A$14:$AM$500,9,FALSE)*100,0)&"% ("&IF(VLOOKUP($A$3,'G5-SALL'!$A$14:$AM$500,7,FALSE)="",0,VLOOKUP($A$3,'G5-SALL'!$A$14:$AM$500,7,FALSE))&")")),"NA") -> 12% (2790) | G42: =IFERROR((IF($D42="NA","NA",VLOOKUP($A$3,'G5-SALL'!$A$14:$AM$500,11,FALSE))),"NA") -> 0.46 | H42: =IFERROR((IF($D42="NA","NA",ROUND(VLOOKUP($A$3,'G5-SALL'!$A$14:$AM$500,15,FALSE)*100,0)&"% ("&VLOOKUP($A$3,'G5-SALL'!$A$14:$AM$500,13,FALSE)&")")),"NA") -> 10% (2481) | I42: =IFERROR((IF($D42="NA","NA",VLOOKUP($A$3,'G5-SALL'!$A$14:$AM$500,17,FALSE))),"NA") -> 0.54 | J42: =IFERROR((IF($D42="NA","NA",ROUND(VLOOKUP($A$3,'G5-SALL'!$A$14:$AA$500,21,FALSE)*100,0)&"% ("&IF(VLOOKUP($A$3,'G5-SALL'!$A$14:$AA$500,19,FALSE)="",0,VLOOKUP($A$3,'G5-SALL'!$A$14:$AA$500,19,FALSE))&")")),"NA") -> 22% (5291) | K42: =IFERROR((IF($D42="NA","NA",VLOOKUP($A$3,'G5-SALL'!$A$14:$AM$500,23,FALSE))),"NA") -> 0.53 | L42: =IFERROR((IF($D42="NA","NA",ROUND(VLOOKUP($A$3,'G5-SALL'!$A$14:$AM$500,27,FALSE)*100,0)&"% ("&VLOOKUP($A$3,'G5-SALL'!$A$14:$AM$500,25,FALSE)&")")),"NA") -> 19% (4454) | M42: =IFERROR((IF($D42="NA","NA",VLOOKUP($A$3,'G5-SALL'!$A$14:$AM$500,29,FALSE))),"NA") -> 0.48 | N42: =IFERROR((IF($D42="NA","NA",ROUND(VLOOKUP($A$3,'G5-SALL'!$A$14:$AM$500,33,FALSE)*100,0)&"% ("&VLOOKUP($A$3,'G5-SALL'!$A$14:$AM$500,31,FALSE)&")")),"NA") -> 12% (2927)

Sheet 2011DA (hidden)
C1: =COLUMN()-2 -> 1 | D1: =COLUMN()-2 -> 2 | E1: 3 | F1: 4 | G1: 5 | H1: 6 | I1: 7 | J1: 8 | K1: 9 | L1: 10 | M1: 11 | N1: 12 | O1: 13 | P1: 14 | Q1: 15 | R1: 16 | S1: 17 | T1: 18 | U1: 19 | V1: 20 | W1: 21 | X1: 22 | Y1: 23 | Z1: 24 | AA1: 25 | AB1: 26
A2: District Number | B2: District Name | C2: School Number | D2: School Name | E2: Region | F2: School Grade Points 2011 | G2: Grade 2011 | H2: Improvement Rating 2011 | I2: Final AYP Status 2011 | J2: Percent Criteria Met 2011 | K2: AYP Count 2011 | L2: DA 2008 | M2: DA 2009 | N2: DA 2010 | O2: DA 2011 | P2: Charter School | Q2: Title I | R2: School Type | S2: Grade 2010 | T2: Grade 2009 | U2: Grade 2008 | V2: Grade 2007 | W2: Grade 2006 | X2: Reading Total Non Proficient 2011 | Y2: Reading Total Non Proficient 2006 | Z2: Math Total Non Proficient 2011 | AA2: Math Total Non Proficient 2006 | AB2: Number of Years in Intervene
A3: 13 | B3: DADE | C3: 0041 | D3: AIR BASE ELEMENTARY SCHOOL | E3: 5 | F3: 606 | G3: A | I3: NO | J3: 97 | K3: 1 | O3: PREVENT I | P3: NO | Q3: YES | R3: 01 | S3: A | T3: A | U3: A | V3: A | W3: A | X3: 10 | Y3: 14 | Z3: 15 | AA3: 25 | AB3: 0
A4: 13 | B4: DADE | C4: 0070 | D4: CORAL REEF MONTESSORI ACADEMY CHARTER | E4: 5 | F4: 609 | G4: A | I4: NO | J4: 87 | K4: 5 | M4: CORRECT I | N4: CORRECT I | O4: CORRECT I | P4: YES | Q4: NO | R4: 04 | S4: A | T4: A | U4: A | V4: B | W4: A | X4: 19 | Y4: 21 | Z4: 23 | AA4: 42 | AB4: 0
A5: 13 | B5: DADE | C5: 0071 | D5: EUGENIA B. THOMAS K-8 CENTER | E5: 5 | F5: 601 | G5: A | I5: NO | J5: 82 | K5: 1 | O5: PREVENT I | P5: NO | Q5: NO | R5: 04 | S5: A | T5: A | U5: A | V5: A | W5: A | X5: 21 | Y5: 19 | Z5: 24 | AA5: 20 | AB5: 0
A6: 13 | B6: DADE | C6: 0072 | D6: SUMMERVILLE ADVANTAGE ACADEMY | E6: 5 | F6: 547 | G6: A | I6: NO | J6: 90 | K6: 3 | M6: PREVENT I | N6: PREVENT I | O6: PREVENT I | P6: YES | Q6: NO | R6: 04 | S6: A | T6: A | U6: C | X6: 28 | Z6: 31 | AB6: 0
A7: 13 | B7: DADE | C7: 0073 | D7: MANDARIN LAKES K-8 ACADEMY | E7: 5 | F7: 411 | G7: D | I7: NO | J7: 69 | K7: 2 | M7: PREVENT II | N7: PREVENT I | O7: PREVENT II | P7: NO | Q7: YES | R7: 04 | S7: C | T7: D | X7: 59 | Z7: 52 | AB7: 0
A8: 13 | B8: DADE | C8: 0081 | D8: LENORA BRAYNON SMITH ELEMENTARY | E8: 5 | F8: 387 | G8: F | I8: NO | J8: 72 | K8: 7 | L8: CORRECT I | M8: CORRECT II | N8: CORRECT II | O8: CORRECT II | P8: NO | Q8: YES | R8: 01 | S8: F | T8: D | U8: C | V8: C | W8: F | X8: 56 | Y8: 65 | Z8: 55 | AA8: 67 | AB8: 0
A9: 13 | B9: DADE | C9: 0091 | D9: BOB GRAHAM EDUCATION CENTER | E9: 5 | F9: 586 | G9: A | I9: NO | J9: 79 | K9: 4 | M9: PREVENT I | N9: PREVENT I | O9: CORRECT II | P9: NO | Q9: NO | R9: 04 | S9: A | T9: A | U9: A | V9: A | W9: A | X9: 23 | Y9: 23 | Z9: 23 | AA9: 21 | AB9: 0
A10: 13 | B10: DADE | C10: 0101 | D10: ARCOLA LAKE ELEMENTARY SCHOOL | E10: 5 | F10: 520 | G10: B | I10: NO | J10: 92 | K10: 8 | L10: CORRECT II | M10: CORRECT II | N10: CORRECT II | O10: CORRECT I | P10: NO | Q10: YES | R10: 01 | S10: D | T10: C | U10: D | V10: C | W10: C | X10: 48 | Y10: 45 | Z10: 38 | AA10: 51 | AB10: 0
A11: 13 | B11: DADE | C11: 0102 | D11: MIAMI COMMUNITY CHARTER SCHOOL | E11: 5 | F11: 465 | G11: C | I11: NO | J11: 79 | K11: 5 | L11: PREVENT II | M11: PREVENT I | N11: CORRECT II | O11: CORRECT II | P11: YES | Q11: YES | R11: 01 | S11: C | T11: A | U11: F | V11: C | W11: C | X11: 50 | Y11: 48 | Z11: 35 | AA11: 62 | AB11: 0
A12: 13 | B12: DADE | C12: 0111 | D12: MAYA ANGELOU ELEMENTARY SCHOOL | E12: 5 | F12: 476 | G12: C | I12: NO | J12: 85 | K12: 7 | L12: CORRECT II | M12: CORRECT I | N12: CORRECT II | O12: CORRECT I | P12: NO | Q12: YES | R12: 01 | S12: B | T12: C | U12: D | V12: A | W12: B | X12: 44 | Y12: 37 | Z12: 31 | AA12: 49 | AB12: 0
A13: 13 | B13: DADE | C13: 0113 | D13: BALERE LANGUAGE ACADEMY | E13: 5 | F13: 528 | G13: A | I13: NO | J13: 87 | K13: 2 | N13: CORRECT II | O13: PREVENT I | P13: YES | Q13: YES | R13: 04 | S13: F | T13: C | X13: 45 | Y13: 27 | Z13: 39 | AA13: 41 | AB13: 0
A14: 13 | B14: DADE | C14: 0121 | D14: AUBURNDALE ELEMENTARY SCHOOL | E14: 5 | F14: 498 | G14: B | I14: NO | J14: 74 | K14: 6 | L14: PREVENT II | M14: CORRECT I | N14: CORRECT II | O14: CORRECT II | P14: NO | Q14: YES | R14: 01 | S14: B | T14: A | U14: B | V14: C | W14: A | X14: 37 | Y14: 41 | Z14: 40 | AA14: 45 | AB14: 0
A15: 13 | B15: DADE | C15: 0122 | D15: DR. ROLANDO ESPINOSA K-8 CENTER | E15: 5 | F15: 565 | G15: A | I15: NO | J15: 82 | K15: 1 | O15: PREVENT I | P15: NO | Q15: NO | R15: 04 | S15: A | T15: A | X15: 25 | Z15: 24 | AB15: 0
A16: 13 | B16: DADE | C16: 0125 | D16: NORMA BUTLER BOSSARD ELEMENTARY SCHOOL | E16: 5 | F16: 604 | G16: A | I16: NO | J16: 95 | K16: 1 | O16: PREVENT I | P16: NO | Q16: NO | R16: 01 | S16: A | T16: A | U16: A | V16: A | X16: 18 | Z16: 15 | AB16: 0
A17: 13 | B17: DADE | C17: 0161 | D17: AVOCADO ELEMENTARY SCHOOL | E17: 5 | I17: NO | J17: 82 | K17: 5 | L17: PREVENT I | M17: PREVENT II | N17: CORRECT I | O17: CORRECT I | P17: NO | Q17: YES | R17: 01 | V17: A | W17: A | X17: 46 | Y17: 32 | Z17: 26 | AA17: 39 | AB17: 0
A18: 13 | B18: DADE | C18: 0201 | D18: BANYAN ELEMENTARY SCHOOL | E18: 5 | F18: 554 | G18: B | I18: NO | J18: 79 | K18: 1 | O18: PREVENT II | P18: NO | Q18: YES | R18: 01 | S18: A | T18: A | U18: A | V18: A | W18: A | X18: 25 | Y18: 28 | Z18: 18 | AA18: 28 | AB18: 0
A19: 13 | B19: DADE | C19: 0215 | D19: LAWRENCE ACADEMY ELEMENTARY CHARTER SCHOOL | E19: 5 | F19: 283 | G19: F | I19: NO | J19: 82 | K19: 1 | N19: CORRECT II | O19: CORRECT II | P19: YES | Q19: YES | R19: 01 | S19: F | X19: 69 | Z19: 61 | AB19: 0
A20: 13 | B20: DADE | C20: 0231 | D20: AVENTURA WATERWAYS K-8 CENTER | E20: 5 | F20: 563 | G20: A | I20: NO | J20: 77 | K20: 2 | N20: PREVENT I | O20: PREVENT II | P20: NO | Q20: NO | R20: 04 | S20: A | T20: A | X20: 24 | Z20: 25 | AB20: 0
A21: 13 | B21: DADE | C21: 0261 | D21: BEL-AIRE ELEMENTARY SCHOOL | E21: 5 | F21: 459 | G21: C | I21: NO | J21: 72 | K21: 7 | L21: CORRECT II | M21: CORRECT I | N21: CORRECT II | O21: CORRECT II | P21: NO | Q21: YES | R21: 01 | S21: C | T21: A | U21: C | V21: C | W21: B | X21: 47 | Y21: 38 | Z21: 44 | AA21: 41 | AB21: 0
A22: 13 | B22: DADE | C22: 0311 | D22: GOULDS ELEMENTARY SCHOOL | E22: 5 | F22: 526 | G22: A | I22: NO | J22: 87 | K22: 3 | L22: PREVENT II | M22: PREVENT II | N22: PREVENT I | O22: PREVENT I | P22: NO | Q22: YES | R22: 01 | S22: A | T22: D | U22: D | X22: 47 | Z22: 35 | AB22: 0
A23: 13 | B23: DADE | C23: 0312 | D23: MATER GARDENS ACADEMY | E23: 5 | F23: 594 | G23: A | I23: NO | J23: 92 | K23: 1 | O23: PREVENT I | P23: YES | Q23: NO | R23: 01 | S23: A | T23: A | U23: A | V23: B | X23: 21 | Z23: 14 | AB23: 0
A24: 13 | B24: DADE | C24: 0321 | D24: BISCAYNE ELEMENTARY SCHOOL | E24: 5 | F24: 533 | G24: B | I24: NO | J24: 79 | K24: 1 | O24: PREVENT II | P24: NO | Q24: YES | R24: 01 | S24: B | T24: A | U24: A | V24: A | W24: A | X24: 38 | Y24: 38 | Z24: 30 | AA24: 40 | AB24: 0
A25: 13 | B25: DADE | C25: 0332 | D25: SOMERSET ACADEMY (SILVER PALMS) | E25: 5 | F25: 500 | G25: B | I25: NO | J25: 87 | K25: 3 | M25: PREVENT I | N25: PREVENT I | O25: PREVENT I | P25: YES | Q25: YES | R25: 04 | S25: A | T25: A | U25: B | X25: 26 | Z25: 39 | AB25: 0
A26: 13 | B26: DADE | C26: 0341 | D26: ARCHCREEK ELEMENTARY SCHOOL | E26: 5 | F26: 559 | G26: A | I26: NO | J26: 79 | K26: 2 | N26: PREVENT I | O26: PREVENT II | P26: NO | Q26: YES | R26: 01 | S26: A | T26: A | X26: 34 | Z26: 37 | AB26: 0
A27: 13 | B27: DADE | C27: 0361 | D27: BISCAYNE GARDENS ELEMENTARY | E27: 5 | F27: 469 | G27: C | I27: NO | J27: 79 | K27: 6 | L27: PREVENT I | M27: CORRECT II | N27: CORRECT I | O27: CORRECT II | P27: NO | Q27: YES | R27: 01 | S27: B | T27: C | U27: C | V27: C | W27: C | X27: 44 | Y27: 48 | Z27: 43 | AA27: 61 | AB27: 0
A28: 13 | B28: DADE | C28: 0401 | D28: VAN E. BLANTON ELEMENTARY SCHOOL | E28: 5 | F28: 584 | G28: A | I28: NO | J28: 95 | K28: 7 | L28: PREVENT I | M28: CORRECT II | N28: CORRECT I | O28: CORRECT I | P28: NO | Q28: YES | R28: 01 | S28: B | T28: B | U28: A | V28: A | W28: A | X28: 40 | Y28: 38 | Z28: 26 | AA28: 43 | AB28: 0
A29: 13 | B29: DADE | C29: 0441 | D29: BLUE LAKES ELEMENTARY SCHOOL | E29: 5 | F29: 544 | G29: A | I29: NO | J29: 74 | K29: 5 | M29: PREVENT I | N29: CORRECT I | O29: CORRECT II | P29: NO | Q29: YES | R29: 01 | S29: A | T29: B | U29: A | V29: A | W29: A | X29: 23 | Y29: 34 | Z29: 22 | AA29: 42 | AB29: 0
A30: 13 | B30: DADE | C30: 0451 | D30: DR. BOWMAN FOSTER ASHE ELEMENTARY | E30: 5 | F30: 540 | G30: A | I30: NO | J30: 79 | K30: 2 | M30: PREVENT I | N30: PREVENT I | O30: PREVENT II | P30: NO | Q30: YES | R30: 01 | S30: A | T30: A | U30: A | V30: A | W30: A | X30: 27 | Y30: 24 | Z30: 26 | AA30: 28 | AB30: 0
A31: 13 | B31: DADE | C31: 0461 | D31: BRENTWOOD ELEMENTARY SCHOOL | E31: 5 | F31: 512 | G31: B | I31: NO | J31: 92 | K31: 1 | O31: PREVENT I | P31: NO | Q31: YES | R31: 01 | S31: C | T31: B | U31: A | V31: D | W31: C | X31: 45 | Y31: 49 | Z31: 30 | AA31: 56 | AB31: 0
A32: 13 | B32: DADE | C32: 0481 | D32: JAMES H. BRIGHT ELEMENTARY | E32: 5 | F32: 540 | G32: A | I32: NO | J32: 92 | K32: 1 | O32: PREVENT I | P32: NO | Q32: YES | R32: 01 | S32: A | T32: A | U32: B | V32: B | W32: A | X32: 31 | Y32: 48 | Z32: 28 | AA32: 45 | AB32: 0
A33: 13 | B33: DADE | C33: 0521 | D33: BROADMOOR ELEMENTARY SCHOOL | E33: 5 | F33: 486 | G33: C | I33: NO | J33: 77 | K33: 8 | L33: CORRECT II | M33: CORRECT II | N33: CORRECT II | O33: CORRECT II | P33: NO | Q33: YES | R33: 01 | S33: C | T33: C | U33: C | V33: C | W33: B | X33: 51 | Y33: 51 | Z33: 38 | AA33: 44 | AB33: 0
A34: 13 | B34: DADE | C34: 0561 | D34: W. J. BRYAN ELEMENTARY | E34: 5 | F34: 488 | G34: D | I34: NO | J34: 85 | K34: 8 | L34: CORRECT II | M34: CORRECT I | N34: CORRECT II | O34: CORRECT II | P34: NO | Q34: YES | R34: 01 | S34: C | T34: B | U34: C | V34: C | W34: C | X34: 43 | Y34: 39 | Z34: 35 | AA34: 52 | AB34: 0
A35: 13 | B35: DADE | C35: 0641 | D35: BUNCHE PARK ELEMENTARY SCHOOL | E35: 5 | F35: 494 | G35: C | I35: NO | J35: 87 | K35: 7 | L35: CORRECT I | M35: CORRECT II | N35: CORRECT I | O35: CORRECT I | P35: NO | Q35: YES | R35: 01 | S35: C | T35: B | U35: C | V35: A | W35: C | X35: 47 | Y35: 50 | Z35: 33 | AA35: 53 | AB35: 0
A36: 13 | B36: DADE | C36: 0651 | D36: CAMPBELL DRIVE ELEMENTARY SCHOOL | E36: 5 | F36: 459 | G36: C | I36: NO | J36: 72 | K36: 8 | L36: CORRECT I | M36: CORRECT II | N36: CORRECT II | O36: CORRECT II | P36: NO | Q36: YES | R36: 01 | S36: C | T36: C | U36: C | V36: C | W36: B | X36: 51 | Y36: 50 | Z36: 43 | AA36: 58 | AB36: 0
A37: 13 | B37: DADE | C37: 0661 | D37: CARIBBEAN ELEMENTARY SCHOOL | E37: 5 | F37: 478 | G37: C | I37: NO | J37: 69 | K37: 8 | L37: CORRECT II | M37: CORRECT I | N37: CORRECT II | O37: CORRECT II | P37: NO | Q37: YES | R37: 01 | S37: C | T37: C | U37: D | V37: C | W37: C | X37: 54 | Y37: 58 | Z37: 39 | AA37: 63 | AB37: 0
A38: 13 | B38: DADE | C38: 0681 | D38: CAROL CITY ELEMENTARY SCHOOL | E38: 5 | F38: 511 | G38: B | I38: NO | J38: 90 | K38: 1 | O38: PREVENT I | P38: NO | Q38: YES | R38: 01 | S38: B | T38: A | U38: B | V38: C | W38: C | X38: 46 | Y38: 49 | Z38: 23 | AA38: 59 | AB38: 0
A39: 13 | B39: DADE | C39: 0721 | D39: GEORGE W. CARVER ELEMENTARY SCHOOL | E39: 5 | F39: 489 | G39: C | I39: NO | J39: 79 | K39: 7 | M39: CORRECT I | N39: CORRECT I | O39: CORRECT II | P39: NO | Q39: YES | R39: 01 | S39: A | T39: B | U39: B | V39: B | W39: A | X39: 38 | Y39: 31 | Z39: 41 | AA39: 35 | AB39: 0
A40: 13 | B40: DADE | C40: 0761 | D40: FIENBERG/FISHER K-8 CENTER | E40: 5 | F40: 525 | G40: A | I40: NO | J40: 74 | K40: 8 | L40: CORRECT I | M40: CORRECT I | N40: CORRECT II | O40: CORRECT II | P40: NO | Q40: YES | R40: 04 | S40: A | T40: A | U40: A | V40: B | W40: A | X40: 42 | Y40: 37 | Z40: 37 | AA40: 47 | AB40: 0
A41: 13 | B41: DADE | C41: 0771 | D41: WILLIAM A. CHAPMAN ELEMENTARY SCHOOL | E41: 5 | F41: 475 | G41: C | I41: NO | J41: 85 | K41: 7 | L41: CORRECT II | M41: CORRECT I | N41: CORRECT II | O41: CORRECT I | P41: NO | Q41: YES | R41: 01 | S41: C | T41: A | U41: C | V41: C | W41: C | X41: 49 | Y41: 63 | Z41: 30 | AA41: 59 | AB41: 0
A42: 13 | B42: DADE | C42: 0801 | D42: CITRUS GROVE ELEMENTARY SCHOOL | E42: 5 | F42: 463 | G42: C | I42: NO | J42: 87 | K42: 6 | L42: PREVENT I | M42: CORRECT II | N42: CORRECT II | O42: CORRECT I | P42: NO | Q42: YES | R42: 01 | S42: C | T42: C | U42: C | V42: D | W42: C | X42: 51 | Y42: 51 | Z42: 46 | AA42: 48 | AB42: 0
A43: 13 | B43: DADE | C43: 0831 | D43: CLAUDE PEPPER ELEMENTARY SCHOOL | E43: 5 | F43: 575 | G43: A | I43: NO | J43: 77 | K43: 2 | M43: PREVENT I | N43: PREVENT I | O43: PREVENT II | P43: NO | Q43: YES | R43: 01 | S43: A | T43: A | U43: A | V43: A | W43: A | X43: 21 | Y43: 24 | Z43: 22 | AA43: 29 | AB43: 0
A44: 13 | B44: DADE | C44: 0841 | D44: COCONUT GROVE ELEMENTARY SCHOOL | E44: 5 | F44: 564 | G44: A | I44: NO | J44: 90 | K44: 6 | M44: CORRECT I | N44: CORRECT I | O44: CORRECT I | P44: NO | Q44: YES | R44: 01 | S44: B | T44: B | U44: B | V44: A | W44: A | X44: 23 | Y44: 29 | Z44: 23 | AA44: 37 | AB44: 0
A45: 13 | B45: DADE | C45: 0861 | D45: COLONIAL DRIVE ELEMENTARY SCHOOL | E45: 5 | F45: 524 | G45: B | I45: YES | J45: 100 | K45: 4 | L45: PREVENT I | M45: PREVENT I | N45: CORRECT I | O45: CORRECT I | P45: NO | Q45: YES | R45: 01 | S45: C | T45: A | U45: C | V45: C | W45: C | X45: 32 | Y45: 40 | Z45: 26 | AA45: 50 | AB45: 0
A46: 13 | B46: DADE | C46: 0881 | D46: COMSTOCK ELEMENTARY SCHOOL | E46: 5 | F46: 362 | G46: F | I46: NO | J46: 77 | K46: 8 | L46: CORRECT II | M46: CORRECT II | N46: CORRECT II | O46: CORRECT II | P46: NO | Q46: YES | R46: 01 | S46: C | T46: C | U46: C | V46: C | W46: B | X46: 53 | Y46: 50 | Z46: 48 | AA46: 44 | AB46: 0
A47: 13 | B47: DADE | C47: 0921 | D47: NEVA KING COOPER EDUCATIONAL CENTER | E47: 5 | I47: NO | J47: 82 | K47: 3 | M47: PREVENT I | N47: PREVENT I | O47: PREVENT I | P47: NO | Q47: YES | R47: 04 | X47: 100 | Y47: 0 | Z47: 100 | AA47: 0 | AB47: 0
A48: 13 | B48: DADE | C48: 1010 | D48: THE CHARTER SCHOOL AT WATERSTONE | E48: 5 | F48: 583 | G48: A | I48: NO | J48: 92 | K48: 2 | M48: PREVENT I | N48: PREVENT I | O48: PREVENT I | P48: YES | Q48: NO | R48: 04 | S48: A | T48: A | U48: A | V48: B | W48: B | X48: 24 | Y48: 41 | Z48: 25 | AA48: 48 | AB48: 0
A49: 13 | B49: DADE | C49: 1014 | D49: ADVANCED LEARNING CHARTER SCHOOL | E49: 5 | F49: 539 | G49: A | I49: NO | J49: 85 | K49: 1 | O49: PREVENT I | P49: YES | Q49: YES | R49: 01 | X49: 45 | Z49: 40 | AB49: 0
A50: 13 | B50: DADE | C50: 1017 | D50: MATER ACADEMY OF INTERNATIONAL STUDIES | E50: 5 | F50: 446 | G50: C | I50: NO | J50: 90 | K50: 1 | O50: PREVENT I | P50: YES | Q50: YES | R50: 01 | S50: B | X50: 36 | Z50: 24 | AB50: 0
A51: 13 | B51: DADE | C51: 1041 | D51: CORAL REEF ELEMENTARY SCHOOL | E51: 5 | F51: 624 | G51: A | I51: NO | J51: 87 | K51: 3 | M51: PREVENT I | N51: PREVENT I | O51: PREVENT I | P51: NO | Q51: NO | R51: 01 | S51: A | T51: A | U51: A | V51: A | W51: A | X51: 17 | Y51: 14 | Z51: 16 | AA51: 17 | AB51: 0
A52: 13 | B52: DADE | C52: 1070 | D52: SOUTH FLORIDA AUTISM CHARTER SCHOOL INC | E52: 5 | I52: NO | J52: 82 | K52: 1 | O52: PREVENT I | P52: YES | Q52: NO | R52: 04 | X52: 77 | Z52: 80 | AB52: 0
A53: 13 | B53: DADE | C53: 1081 | D53: CORAL TERRACE ELEMENTARY SCHOOL | E53: 5 | F53: 541 | G53: A | I53: NO | J53: 79 | K53: 8 | L53: CORRECT I | M53: CORRECT I | N53: CORRECT I | O53: CORRECT II | P53: NO | Q53: YES | R53: 01 | S53: A | T53: C | U53: B | V53: A | W53: B | X53: 32 | Y53: 37 | Z53: 28 | AA53: 43 | AB53: 0
A54: 13 | B54: DADE | C54: 1121 | D54: CORAL WAY K-8 CENTER | E54: 5 | F54: 551 | G54: A | I54: NO | J54: 74 | K54: 3 | M54: PREVENT I | N54: PREVENT II | O54: PREVENT II | P54: NO | Q54: YES | R54: 04 | S54: A | T54: A | U54: A | V54: A | W54: A | X54: 28 | Y54: 25 | Z54: 34 | AA54: 29 | AB54: 0
A55: 13 | B55: DADE | C55: 1161 | D55: CRESTVIEW ELEMENTARY SCHOOL | E55: 5 | F55: 462 | G55: C | I55: NO | J55: 85 | K55: 2 | N55: PREVENT I | O55: PREVENT I | P55: NO | Q55: YES | R55: 01 | S55: C | T55: B | U55: C | V55: C | W55: A | X55: 34 | Y55: 27 | Z55: 32 | AA55: 36 | AB55: 0
A56: 13 | B56: DADE | C56: 1241 | D56: CUTLER RIDGE ELEMENTARY SCHOOL | E56: 5 | F56: 608 | G56: A | I56: NO | J56: 82 | K56: 2 | N56: PREVENT I | O56: PREVENT I | P56: NO | Q56: YES | R56: 01 | S56: A | T56: A | U56: A | V56: A | W56: A | X56: 24 | Y56: 24 | Z56: 20 | AA56: 28 | AB56: 0
A57: 13 | B57: DADE | C57: 1281 | D57: CYPRESS ELEMENTARY SCHOOL | E57: 5 | F57: 580 | G57: A | I57: NO | J57: 97 | K57: 1 | O57: PREVENT I | P57: NO | Q57: YES | R57: 01 | S57: A | T57: B | U57: A | V57: A | W57: A | X57: 16 | Y57: 19 | Z57: 15 | AA57: 19 | AB57: 0
A58: 13 | B58: DADE | C58: 1331 | D58: DEVON AIRE K-8 CENTER | E58: 5 | F58: 603 | G58: A | I58: NO | J58: 90 | K58: 2 | N58: PREVENT I | O58: PREVENT I | P58: NO | Q58: NO | R58: 04 | S58: A | T58: A | U58: A | V58: A | W58: A | X58: 19 | Y58: 12 | Z58: 18 | AA58: 14 | AB58: 0
A59: 13 | B59: DADE | C59: 1361 | D59: FREDERICK R. DOUGLASS ELEMENTARY | E59: 5 | F59: 448 | G59: C | I59: NO | J59: 90 | K59: 8 | L59: CORRECT II | M59: CORRECT II | N59: INTERVENE | O59: CORRECT I | P59: NO | Q59: YES | R59: 01 | S59: F | T59: D | U59: D | V59: C | W59: C | X59: 65 | Y59: 59 | Z59: 42 | AA59: 66 | AB59: 1
A60: 13 | B60: DADE | C60: 1371 | D60: MARJORY STONEMAN DOUGLAS ELEM | E60: 5 | F60: 604 | G60: A | I60: NO | J60: 90 | K60: 3 | M60: PREVENT I | N60: PREVENT I | O60: PREVENT I | P60: NO | Q60: YES | R60: 01 | S60: A | T60: A | U60: A | V60: A | W60: A | X60: 26 | Y60: 24 | Z60: 18 | AA60: 27 | AB60: 0
A61: 13 | B61: DADE | C61: 1401 | D61: CHARLES R DREW ELEMENTARY SCHOOL | E61: 5 | F61: 548 | G61: A | I61: NO | J61: 92 | K61: 7 | L61: CORRECT I | M61: CORRECT I | N61: CORRECT II | O61: CORRECT I | P61: NO | Q61: YES | R61: 01 | S61: D | T61: B | U61: C | V61: C | W61: C | X61: 43 | Y61: 45 | Z61: 30 | AA61: 44 | AB61: 0
A62: 13 | B62: DADE | C62: 1441 | D62: PAUL LAURENCE DUNBAR ELEMENTARY SCHOOL | E62: 5 | F62: 435 | G62: C | I62: NO | J62: 90 | K62: 7 | L62: CORRECT I | M62: CORRECT I | N62: CORRECT I | O62: CORRECT I | P62: NO | Q62: YES | R62: 01 | S62: C | T62: C | U62: C | V62: D | W62: C | X62: 52 | Y62: 57 | Z62: 45 | AA62: 60 | AB62: 0
A63: 13 | B63: DADE | C63: 1481 | D63: JOHN G. DUPUIS ELEMENTARY SCHOOL | E63: 5 | F63: 563 | G63: A | I63: NO | J63: 92 | K63: 7 | L63: CORRECT I | M63: CORRECT I | N63: CORRECT I | O63: CORRECT I | P63: NO | Q63: YES | R63: 01 | S63: A | T63: A | U63: A | V63: A | W63: A | X63: 24 | Y63: 41 | Z63: 20 | AA63: 41 | AB63: 0
A64: 13 | B64: DADE | C64: 1521 | D64: AMELIA EARHART ELEMENTARY SCHOOL | E64: 5 | F64: 594 | G64: A | I64: NO | J64: 85 | K64: 4 | L64: PREVENT II | M64: PREVENT I | N64: PREVENT II | O64: CORRECT I | P64: NO | Q64: YES | R64: 01 | S64: A | T64: A | U64: A | V64: A | W64: A | X64: 36 | Y64: 36 | Z64: 30 | AA64: 28 | AB64: 0
A65: 13 | B65: DADE | C65: 1561 | D65: EARLINGTON HEIGHTS ELEMENTARY SCHOOL | E65: 5 | F65: 432 | G65: D | I65: NO | J65: 82 | K65: 5 | L65: PREVENT II | M65: PREVENT II | N65: CORRECT I | O65: CORRECT II | P65: NO | Q65: YES | R65: 01 | S65: A | T65: D | U65: D | V65: C | W65: C | X65: 52 | Y65: 55 | Z65: 38 | AA65: 62 | AB65: 0
A66: 13 | B66: DADE | C66: 1601 | D66: EDISON PARK ELEMENTARY SCHOOL | E66: 5 | F66: 446 | G66: D | I66: NO | J66: 79 | K66: 8 | L66: CORRECT II | M66: CORRECT I | N66: CORRECT II | O66: CORRECT II | P66: NO | Q66: YES | R66: 01 | S66: D | T66: B | U66: C | V66: C | W66: D | X66: 50 | Y66: 52 | Z66: 43 | AA66: 58 | AB66: 0
A67: 13 | B67: DADE | C67: 1811 | D67: DANTE B. FASCELL ELEMENTARY SCHOOL | E67: 5 | F67: 615 | G67: A | I67: NO | J67: 97 | K67: 1 | O67: PREVENT I | P67: NO | Q67: YES | R67: 01 | S67: A | T67: A | U67: A | V67: A | W67: A | X67: 13 | Y67: 18 | Z67: 15 | AA67: 21 | AB67: 0
A68: 13 | B68: DADE | C68: 1841 | D68: FLAGAMI ELEMENTARY SCHOOL | E68: 5 | F68: 549 | G68: A | I68: NO | J68: 79 | K68: 1 | O68: PREVENT II | P68: NO | Q68: YES | R68: 01 | S68: A | T68: A | U68: A | V68: B | W68: A | X68: 27 | Y68: 37 | Z68: 24 | AA68: 34 | AB68: 0
A69: 13 | B69: DADE | C69: 1921 | D69: FLAMINGO ELEMENTARY SCHOOL | E69: 5 | F69: 542 | G69: A | I69: NO | J69: 79 | K69: 1 | O69: PREVENT II | P69: NO | Q69: YES | R69: 01 | S69: A | T69: A | U69: A | V69: A | W69: A | X69: 39 | Y69: 33 | Z69: 35 | AA69: 38 | AB69: 0
A70: 13 | B70: DADE | C70: 2001 | D70: FLORIDA CITY ELEMENTARY SCHOOL | E70: 5 | F70: 480 | G70: D | I70: NO | J70: 82 | K70: 8 | L70: CORRECT I | M70: CORRECT II | N70: CORRECT II | O70: CORRECT II | P70: NO | Q70: YES | R70: 01 | S70: C | T70: C | U70: B | V70: C | W70: C | X70: 49 | Y70: 52 | Z70: 40 | AA70: 48 | AB70: 0
A71: 13 | B71: DADE | C71: 2006 | D71: RICHARD ALLEN LEADERSHIP ACADEMY | E71: 5 | F71: 447 | G71: C | I71: NO | J71: 92 | K71: 2 | N71: PREVENT I | O71: PREVENT I | P71: YES | Q71: YES | R71: 01 | S71: C | X71: 52 | Z71: 38 | AB71: 0
A72: 13 | B72: DADE | C72: 2021 | D72: GLORIA FLOYD ELEMENTARY SCHOOL | E72: 5 | F72: 540 | G72: A | I72: NO | J72: 79 | K72: 7 | M72: CORRECT I | N72: CORRECT I | O72: CORRECT II | P72: NO | Q72: YES | R72: 01 | S72: A | T72: B | U72: A | V72: A | W72: B | X72: 21 | Y72: 26 | Z72: 20 | AA72: 31 | AB72: 0
A73: 13 | B73: DADE | C73: 2041 | D73: BENJAMIN FRANKLIN ELEMENTARY SCHOOL | E73: 5 | F73: 507 | G73: B | I73: NO | J73: 87 | K73: 7 | L73: CORRECT II | M73: CORRECT I | N73: CORRECT II | O73: CORRECT I | P73: NO | Q73: YES | R73: 01 | S73: D | T73: B | U73: C | V73: F | W73: B | X73: 45 | Y73: 46 | Z73: 37 | AA73: 42 | AB73: 0
A74: 13 | B74: DADE | C74: 2060 | D74: THEODORE R. AND THELMA A. GIBSON CHARTER SCHOOL | E74: 5 | F74: 406 | G74: D | I74: NO | J74: 90 | K74: 1 | N74: CORRECT II | O74: PREVENT II | P74: YES | Q74: YES | R74: 04 | S74: F | X74: 75 | Y74: 77 | Z74: 64 | AA74: 92 | AB74: 0
A75: 13 | B75: DADE | C75: 2081 | D75: FULFORD ELEMENTARY SCHOOL | E75: 5 | F75: 439 | G75: C | I75: NO | J75: 77 | K75: 3 | M75: PREVENT I | N75: PREVENT I | O75: PREVENT II | P75: NO | Q75: YES | R75: 01 | S75: A | T75: A | U75: C | V75: B | W75: B | X75: 46 | Y75: 38 | Z75: 32 | AA75: 36 | AB75: 0
A76: 13 | B76: DADE | C76: 2111 | D76: HIALEAH GARDENS ELEMENTARY SCHOOL | E76: 5 | F76: 563 | G76: A | I76: NO | J76: 87 | K76: 3 | M76: PREVENT I | N76: PREVENT II | O76: PREVENT I | P76: NO | Q76: YES | R76: 01 | S76: B | T76: A | U76: A | V76: A | W76: A | X76: 29 | Y76: 29 | Z76: 26 | AA76: 34 | AB76: 0
A77: 13 | B77: DADE | C77: 2151 | D77: JACK DAVID GORDON ELEMENTARY SCHOOL | E77: 5 | F77: 609 | G77: A | I77: NO | J77: 95 | K77: 1 | O77: PREVENT I | P77: NO | Q77: YES | R77: 01 | S77: A | T77: A | U77: A | V77: A | W77: A | X77: 18 | Y77: 22 | Z77: 19 | AA77: 26 | AB77: 0
A78: 13 | B78: DADE | C78: 2161 | D78: GOLDEN GLADES ELEMENTARY SCHOOL | E78: 5 | F78: 487 | G78: C | I78: NO | J78: 87 | K78: 6 | L78: PREVENT II | M78: CORRECT I | N78: CORRECT II | O78: CORRECT I | P78: NO | Q78: YES | R78: 01 | S78: D | T78: C | U78: C | V78: D | W78: C | X78: 53 | Y78: 49 | Z78: 40 | AA78: 50 | AB78: 0
A79: 13 | B79: DADE | C79: 2181 | D79: JOELLA GOOD ELEMENTARY SCHOOL | E79: 5 | F79: 566 | G79: A | I79: NO | J79: 90 | K79: 6 | M79: CORRECT I | N79: CORRECT I | O79: CORRECT I | P79: NO | Q79: YES | R79: 01 | S79: A | T79: A | U79: A | V79: B | W79: B | X79: 28 | Y79: 33 | Z79: 25 | AA79: 39 | AB79: 0
A80: 13 | B80: DADE | C80: 2191 | D80: SPANISH LAKE ELEMENTARY SCHOOL | E80: 5 | F80: 550 | G80: A | I80: NO | J80: 85 | K80: 1 | O80: PREVENT I | P80: NO | Q80: YES | R80: 01 | S80: A | T80: A | U80: A | X80: 28 | Z80: 19 | AB80: 0
A81: 13 | B81: DADE | C81: 2241 | D81: GRATIGNY ELEMENTARY SCHOOL | E81: 5 | F81: 508 | G81: B | I81: NO | J81: 79 | K81: 7 | L81: CORRECT II | M81: CORRECT II | N81: CORRECT II | O81: CORRECT II | P81: NO | Q81: YES | R81: 01 | S81: C | T81: B | U81: C | V81: B | W81: A | X81: 44 | Y81: 42 | Z81: 43 | AA81: 45 | AB81: 0
A82: 13 | B82: DADE | C82: 2261 | D82: GREENGLADE ELEMENTARY SCHOOL | E82: 5 | F82: 534 | G82: A | I82: NO | J82: 85 | K82: 3 | M82: PREVENT I | N82: PREVENT I | O82: PREVENT I | P82: NO | Q82: YES | R82: 01 | S82: A | T82: A | U82: A | V82: A | W82: A | X82: 28 | Y82: 18 | Z82: 28 | AA82: 27 | AB82: 0
A83: 13 | B83: DADE | C83: 2281 | D83: GREYNOLDS PARK ELEMENTARY SCHOOL | E83: 5 | F83: 516 | G83: B | I83: NO | J83: 77 | K83: 2 | N83: PREVENT II | O83: PREVENT II | P83: NO | Q83: YES | R83: 01 | S83: C | T83: A | U83: B | V83: A | W83: A | X83: 38 | Y83: 29 | Z83: 36 | AA83: 33 | AB83: 0
A84: 13 | B84: DADE | C84: 2321 | D84: GULFSTREAM ELEMENTARY SCHOOL | E84: 5 | F84: 481 | G84: C | I84: NO | J84: 74 | K84: 4 | L84: PREVENT I | M84: PREVENT II | N84: PREVENT I | O84: CORRECT II | P84: NO | Q84: YES | R84: 01 | S84: A | T84: A | U84: B | V84: C | W84: B | X84: 37 | Y84: 35 | Z84: 31 | AA84: 42 | AB84: 0
A85: 13 | B85: DADE | C85: 2341 | D85: JOE HALL ELEMENTARY SCHOOL | E85: 5 | F85: 637 | G85: A | I85: NO | J85: 85 | K85: 3 | M85: PREVENT I | N85: PREVENT I | O85: PREVENT I | P85: NO | Q85: YES | R85: 01 | S85: A | T85: A | U85: A | V85: A | W85: A | X85: 21 | Y85: 26 | Z85: 19 | AA85: 21 | AB85: 0
A86: 13 | B86: DADE | C86: 2351 | D86: ENEIDA M. HARTNER ELEMENTARY SCHOOL | E86: 5 | F86: 531 | G86: A | I86: NO | J86: 79 | K86: 8 | L86: CORRECT I | M86: CORRECT II | N86: CORRECT I | O86: CORRECT II | P86: NO | Q86: YES | R86: 01 | S86: A | T86: C | U86: B | V86: C | W86: C | X86: 41 | Y86: 52 | Z86: 35 | AA86: 53 | AB86: 0
A87: 13 | B87: DADE | C87: 2361 | D87: HIALEAH ELEMENTARY SCHOOL | E87: 5 | F87: 522 | G87: B | I87: NO | J87: 79 | K87: 5 | L87: PREVENT I | M87: PREVENT I | N87: CORRECT I | O87: CORRECT II | P87: NO | Q87: YES | R87: 01 | S87: A | T87: A | U87: A | V87: C | W87: B | X87: 36 | Y87: 38 | Z87: 32 | AA87: 40 | AB87: 0
A88: 13 | B88: DADE | C88: 2371 | D88: WEST HIALEAH GARDENS ELEMENTARY SCHOOL | E88: 5 | F88: 549 | G88: A | I88: NO | J88: 90 | K88: 2 | N88: PREVENT I | O88: PREVENT I | P88: NO | Q88: YES | R88: 01 | S88: A | T88: C | U88: A | X88: 31 | Z88: 20 | AB88: 0
A89: 13 | B89: DADE | C89: 2401 | D89: HIBISCUS ELEMENTARY SCHOOL | E89: 5 | F89: 471 | G89: C | I89: NO | J89: 95 | K89: 2 | N89: PREVENT I | O89: PREVENT I | P89: NO | Q89: YES | R89: 01 | S89: C | T89: B | U89: A | V89: C | W89: A | X89: 38 | Y89: 32 | Z89: 35 | AA89: 40 | AB89: 0
A90: 13 | B90: DADE | C90: 2501 | D90: HOLMES ELEMENTARY SCHOOL | E90: 5 | F90: 438 | G90: C | I90: NO | J90: 85 | K90: 8 | L90: INTERVENE | M90: INTERVENE | N90: INTERVENE | O90: INTERVENE | P90: NO | Q90: YES | R90: 01 | S90: C | T90: C | U90: F | V90: D | W90: C | X90: 57 | Y90: 65 | Z90: 35 | AA90: 55 | AB90: 4
A91: 13 | B91: DADE | C91: 2511 | D91: ZORA NEALE HURSTON ELEMENTARY SCHOOL | E91: 5 | F91: 591 | G91: A | I91: NO | J91: 97 | K91: 4 | L91: PREVENT I | M91: PREVENT I | N91: PREVENT I | O91: CORRECT I | P91: NO | Q91: YES | R91: 01 | S91: A | T91: A | U91: A | V91: A | W91: A | X91: 20 | Y91: 31 | Z91: 17 | AA91: 37 | AB91: 0
A92: 13 | B92: DADE | C92: 2531 | D92: THENA CROWDER ELEMENTARY SCHOOL | E92: 5 | I92: NO | J92: 95 | K92: 6 | L92: PREVENT I | M92: CORRECT I | N92: CORRECT I | O92: CORRECT I | P92: NO | Q92: YES | R92: 01 | X92: 76 | Y92: 50 | Z92: 62 | AA92: 53 | AB92: 0
A93: 13 | B93: DADE | C93: 2541 | D93: HOWARD DRIVE ELEMENTARY SCHOOL | E93: 5 | F93: 597 | G93: B | I93: NO | J93: 85 | K93: 7 | M93: CORRECT I | N93: CORRECT I | O93: CORRECT I | P93: NO | Q93: NO | R93: 01 | S93: A | T93: A | U93: A | V93: A | W93: B | X93: 22 | Y93: 25 | Z93: 22 | AA93: 29 | AB93: 0
A94: 13 | B94: DADE | C94: 2651 | D94: KENDALE LAKES ELEMENTARY SCHOOL | E94: 5 | F94: 632 | G94: A | I94: NO | J94: 95 | K94: 1 | O94: PREVENT I | P94: NO | Q94: YES | R94: 01 | S94: A | T94: A | U94: A | V94: A | W94: A | X94: 19 | Y94: 32 | Z94: 22 | AA94: 32 | AB94: 0
A95: 13 | B95: DADE | C95: 2661 | D95: KENSINGTON PARK ELEMENTARY SCHOOL | E95: 5 | F95: 506 | G95: B | I95: NO | J95: 74 | K95: 6 | L95: PREVENT II | M95: CORRECT II | N95: CORRECT I | O95: CORRECT II | P95: NO | Q95: YES | R95: 01 | S95: A | T95: C | U95: B | V95: C | W95: B | X95: 38 | Y95: 43 | Z95: 43 | AA95: 49 | AB95: 0
A96: 13 | B96: DADE | C96: 2701 | D96: KENWOOD K-8 CENTER | E96: 5 | F96: 602 | G96: A | I96: NO | J96: 79 | K96: 6 | M96: CORRECT I | N96: CORRECT I | O96: CORRECT II | P96: NO | Q96: NO | R96: 04 | S96: A | T96: A | U96: A | V96: A | W96: A | X96: 24 | Y96: 26 | Z96: 23 | AA96: 27 | AB96: 0
A97: 13 | B97: DADE | C97: 2781 | D97: KINLOCH PARK ELEMENTARY SCHOOL | E97: 5 | F97: 535 | G97: A | I97: NO | J97: 79 | K97: 4 | L97: PREVENT I | M97: PREVENT I | N97: PREVENT I | O97: CORRECT II | P97: NO | Q97: YES | R97: 01 | S97: B | T97: A | U97: A | V97: C | W97: A | X97: 32 | Y97: 36 | Z97: 33 | AA97: 37 | AB97: 0
A98: 13 | B98: DADE | C98: 2801 | D98: LAKE STEVENS ELEMENTARY SCHOOL | E98: 5 | F98: 485 | G98: C | I98: NO | J98: 95 | K98: 8 | L98: CORRECT I | M98: CORRECT II | N98: CORRECT II | O98: CORRECT I | P98: NO | Q98: YES | R98: 01 | S98: C | T98: B | U98: B | V98: C | W98: A | X98: 41 | Y98: 46 | Z98: 33 | AA98: 49 | AB98: 0
A99: 13 | B99: DADE | C99: 2821 | D99: LAKEVIEW ELEMENTARY SCHOOL | E99: 5 | F99: 553 | G99: A | I99: NO | J99: 82 | K99: 3 | M99: PREVENT II | N99: PREVENT I | O99: PREVENT I | P99: NO | Q99: YES | R99: 01 | S99: C | T99: C | U99: C | V99: A | W99: A | X99: 43 | Y99: 30 | Z99: 32 | AA99: 42 | AB99: 0
A100: 13 | B100: DADE | C100: 2861 | D100: YOUNG WOMENS ACADEMY FOR ACADEMIC AND CIVIC DEVELOPMENT AT J.R.E. LEE OPPORTUNITY SCHOOL | E100: 5 | I100: NO | J100: 77 | K100: 8 | L100: PREVENT II | M100: CORRECT II | N100: CORRECT II | O100: CORRECT II | P100: NO | Q100: YES | R100: 04 | W100: P | X100: 80 | Y100: 89 | Z100: 68 | AA100: 90 | AB100: 0
A101: 13 | B101: DADE | C101: 2881 | D101: LEEWOOD K-8 CENTER | E101: 5 | F101: 608 | G101: A | I101: NO | J101: 97 | K101: 1 | O101: PREVENT I | P101: NO | Q101: NO | R101: 04 | S101: A | T101: A | U101: A | V101: A | W101: A | X101: 12 | Y101: 13 | Z101: 15 | AA101: 18 | AB101: 0
A102: 13 | B102: DADE | C102: 2901 | D102: LEISURE CITY K-8 CENTER | E102: 5 | F102: 478 | G102: C | I102: NO | J102: 82 | K102: 8 | L102: CORRECT I | M102: CORRECT II | N102: CORRECT II | O102: CORRECT I | P102: NO | Q102: YES | R102: 04 | S102: C | T102: B | U102: B | V102: C | W102: B | X102: 53 | Y102: 58 | Z102: 42 | AA102: 61 | AB102: 0
A103: 13 | B103: DADE | C103: 2911 | D103: LINDA LENTIN K-8 CENTER | E103: 5 | F103: 529 | G103: A | I103: NO | J103: 90 | K103: 8 | L103: CORRECT I | M103: CORRECT I | N103: CORRECT II | O103: CORRECT I | P103: NO | Q103: YES | R103: 04 | S103: C | T103: B | U103: C | V103: C | W103: B | X103: 42 | Y103: 42 | Z103: 38 | AA103: 51 | AB103: 0
A104: 13 | B104: DADE | C104: 2941 | D104: LAURA C. SAUNDERS ELEMENTARY SCHOOL | E104: 5 | F104: 407 | G104: D | I104: NO | J104: 72 | K104: 8 | L104: CORRECT II | M104: CORRECT II | N104: CORRECT II | O104: INTERVENE | P104: NO | Q104: YES | R104: 01 | S104: C | T104: D | U104: C | V104: B | W104: B | X104: 65 | Y104: 55 | Z104: 53 | AA104: 42 | AB104: 1
A105: 13 | B105: DADE | C105: 2981 | D105: LIBERTY CITY ELEMENTARY SCHOOL | E105: 5 | F105: 485 | G105: C | I105: NO | J105: 85 | K105: 6 | L105: INTERVENE | M105: CORRECT I | N105: CORRECT I | O105: CORRECT I | P105: NO | Q105: YES | R105: 01 | S105: C | T105: A | U105: F | V105: C | W105: C | X105: 42 | Y105: 59 | Z105: 33 | AA105: 68 | AB105: 1
A106: 13 | B106: DADE | C106: 3021 | D106: JESSE J. MCCRARY, JR. ELEMENTARY SCHOOL | E106: 5 | F106: 441 | G106: C | I106: NO | J106: 90 | K106: 8 | L106: CORRECT II | M106: CORRECT II | N106: CORRECT I | O106: CORRECT I | P106: NO | Q106: YES | R106: 01 | S106: C | T106: F | U106: D | V106: C | W106: C | X106: 66 | Y106: 59 | Z106: 39 | AA106: 60 | AB106: 0
A107: 13 | B107: DADE | C107: 3024 | D107: FLORIDA INTERNATIONAL ELEMENTARY ACADEMY | E107: 5 | F107: 335 | G107: F | I107: NO | J107: 82 | K107: 0 | O107: CORRECT II | P107: YES | Q107: NO | R107: 01 | X107: 66 | Z107: 58 | AB107: 0
A108: 13 | B108: DADE | C108: 3041 | D108: LORAH PARK ELEMENTARY SCHOOL | E108: 5 | F108: 453 | G108: C | I108: NO | J108: 79 | K108: 5 | L108: PREVENT II | M108: PREVENT I | N108: CORRECT I | O108: CORRECT II | P108: NO | Q108: YES | R108: 01 | S108: B | T108: C | U108: C | V108: C | W108: C | X108: 47 | Y108: 44 | Z108: 43 | AA108: 42 | AB108: 0
A109: 13 | B109: DADE | C109: 3051 | D109: TOUSSAINT L'OUVERTURE ELEMENTARY | E109: 5 | F109: 440 | G109: C | I109: NO | J109: 79 | K109: 7 | L109: CORRECT I | M109: CORRECT I | N109: CORRECT I | O109: CORRECT II | P109: NO | Q109: YES | R109: 01 | S109: A | T109: A | U109: C | V109: C | W109: C | X109: 46 | Y109: 40 | Z109: 33 | AA109: 52 | AB109: 0
A110: 13 | B110: DADE | C110: 3061 | D110: LUDLAM ELEMENTARY SCHOOL | E110: 5 | F110: 571 | G110: A | I110: NO | J110: 82 | K110: 3 | M110: PREVENT I | N110: PREVENT I | O110: PREVENT I | P110: NO | Q110: NO | R110: 01 | S110: A | T110: A | U110: B | V110: A | W110: A | X110: 26 | Y110: 20 | Z110: 25 | AA110: 28 | AB110: 0
A111: 13 | B111: DADE | C111: 3141 | D111: MEADOWLANE ELEMENTARY SCHOOL | E111: 5 | F111: 562 | G111: A | I111: NO | J111: 79 | K111: 7 | L111: CORRECT I | M111: CORRECT I | N111: CORRECT I | O111: CORRECT II | P111: NO | Q111: YES | R111: 01 | S111: A | T111: A | U111: A | V111: A | W111: A | X111: 37 | Y111: 33 | Z111: 27 | AA111: 31 | AB111: 0
A112: 13 | B112: DADE | C112: 3181 | D112: MELROSE ELEMENTARY SCHOOL | E112: 5 | F112: 471 | G112: C | I112: NO | J112: 77 | K112: 7 | L112: CORRECT II | M112: CORRECT I | N112: CORRECT II | O112: CORRECT II | P112: NO | Q112: YES | R112: 01 | S112: C | T112: A | W112: B | X112: 51 | Y112: 41 | Z112: 49 | AA112: 55 | AB112: 0
A113: 13 | B113: DADE | C113: 3241 | D113: MIAMI GARDENS ELEMENTARY SCHOOL | E113: 5 | F113: 496 | G113: B | I113: NO | J113: 74 | K113: 7 | L113: CORRECT I | M113: CORRECT I | N113: CORRECT I | O113: CORRECT II | P113: NO | Q113: YES | R113: 01 | S113: C | T113: B | U113: B | V113: F | W113: B | X113: 38 | Y113: 37 | Z113: 34 | AA113: 53 | AB113: 0
A114: 13 | B114: DADE | C114: 3261 | D114: MIAMI HEIGHTS ELEMENTARY SCHOOL | E114: 5 | F114: 512 | G114: B | I114: NO | J114: 74 | K114: 4 | L114: PREVENT I | M114: PREVENT I | N114: PREVENT I | O114: CORRECT II | P114: NO | Q114: YES | R114: 01 | S114: A | T114: A | U114: B | V114: C | W114: A | X114: 32 | Y114: 32 | Z114: 31 | AA114: 32 | AB114: 0
A115: 13 | B115: DADE | C115: 3281 | D115: MIAMI LAKES K-8 CENTER | E115: 5 | F115: 562 | G115: A | I115: NO | J115: 82 | K115: 2 | N115: PREVENT I | O115: PREVENT I | P115: NO | Q115: NO | R115: 04 | S115: A | T115: A | U115: A | V115: A | W115: A | X115: 26 | Y115: 25 | Z115: 24 | AA115: 29 | AB115: 0
A116: 13 | B116: DADE | C116: 3301 | D116: MIAMI PARK ELEMENTARY SCHOOL | E116: 5 | F116: 423 | G116: D | I116: NO | J116: 72 | K116: 6 | L116: PREVENT I | M116: CORRECT II | N116: CORRECT I | O116: CORRECT II | P116: NO | Q116: YES | R116: 01 | S116: C | T116: C | U116: C | V116: F | W116: C | X116: 62 | Y116: 55 | Z116: 49 | AA116: 49 | AB116: 0
A117: 13 | B117: DADE | C117: 3341 | D117: MIAMI SHORES ELEMENTARY SCHOOL | E117: 5 | F117: 547 | G117: A | I117: NO | J117: 87 | K117: 2 | N117: PREVENT I | O117: PREVENT I | P117: NO | Q117: YES | R117: 01 | S117: A | T117: B | U117: A | V117: B | W117: A | X117: 26 | Y117: 33 | Z117: 23 | AA117: 42 | AB117: 0
A118: 13 | B118: DADE | C118: 3381 | D118: MIAMI SPRINGS ELEMENTARY SCHOOL | E118: 5 | F118: 584 | G118: A | I118: NO | J118: 92 | K118: 1 | O118: PREVENT I | P118: NO | Q118: YES | R118: 01 | S118: A | T118: A | U118: A | V118: A | W118: B | X118: 22 | Y118: 33 | Z118: 24 | AA118: 33 | AB118: 0
A119: 13 | B119: DADE | C119: 3421 | D119: MARCUS A. MILAM K-8 CENTER | E119: 5 | F119: 513 | G119: B | I119: NO | J119: 74 | K119: 7 | L119: CORRECT I | M119: CORRECT I | N119: CORRECT II | O119: CORRECT II | P119: NO | Q119: YES | R119: 04 | S119: A | T119: A | U119: A | V119: C | W119: A | X119: 39 | Y119: 40 | Z119: 44 | AA119: 44 | AB119: 0
A120: 13 | B120: DADE | C120: 3431 | D120: PHYLLIS R. MILLER ELEMENTARY SCHOOL | E120: 5 | F120: 514 | G120: B | I120: NO | J120: 82 | K120: 7 | L120: CORRECT I | M120: CORRECT I | N120: CORRECT I | O120: CORRECT I | P120: NO | Q120: YES | R120: 01 | S120: A | T120: A | U120: A | V120: C | W120: A | X120: 38 | Y120: 38 | Z120: 31 | AA120: 45 | AB120: 0
A121: 13 | B121: DADE | C121: 3501 | D121: MORNINGSIDE ELEMENTARY SCHOOL | E121: 5 | F121: 525 | G121: A | I121: NO | J121: 87 | K121: 8 | L121: CORRECT II | M121: CORRECT I | N121: CORRECT II | O121: CORRECT I | P121: NO | Q121: YES | R121: 01 | S121: C | T121: B | U121: B | V121: C | W121: B | X121: 40 | Y121: 43 | Z121: 35 | AA121: 58 | AB121: 0
A122: 13 | B122: DADE | C122: 3541 | D122: ROBERT RUSSA MOTON ELEMENTARY SCHOOL | E122: 5 | F122: 422 | G122: D | I122: NO | J122: 82 | K122: 5 | L122: PREVENT I | M122: PREVENT I | N122: CORRECT I | O122: CORRECT II | P122: NO | Q122: YES | R122: 01 | S122: C | T122: C | U122: C | V122: D | W122: B | X122: 48 | Y122: 30 | Z122: 51 | AA122: 48 | AB122: 0
A123: 13 | B123: DADE | C123: 3581 | D123: MYRTLE GROVE ELEMENTARY SCHOOL | E123: 5 | F123: 424 | G123: D | I123: NO | J123: 82 | K123: 8 | L123: CORRECT II | M123: CORRECT II | N123: CORRECT I | O123: CORRECT II | P123: NO | Q123: YES | R123: 01 | S123: C | T123: C | U123: D | V123: D | W123: C | X123: 58 | Y123: 50 | Z123: 55 | AA123: 62 | AB123: 0
A124: 13 | B124: DADE | C124: 3600 | D124: DOWNTOWN MIAMI CHARTER SCHOOL | E124: 5 | F124: 518 | G124: B | I124: NO | J124: 90 | K124: 7 | L124: PREVENT I | M124: CORRECT I | N124: CORRECT II | O124: CORRECT I | P124: YES | Q124: YES | R124: 01 | S124: D | T124: C | U124: C | V124: F | W124: C | X124: 50 | Y124: 50 | Z124: 40 | AA124: 62 | AB124: 0
A125: 13 | B125: DADE | C125: 3610 | D125: KEYS GATE CHARTER SCHOOL | E125: 5 | F125: 498 | G125: B | I125: NO | J125: 77 | K125: 2 | M125: PREVENT I | N125: PREVENT I | O125: PREVENT II | P125: YES | Q125: NO | R125: 04 | S125: A | T125: A | U125: A | V125: B | W125: B | X125: 31 | Y125: 35 | Z125: 40 | AA125: 43 | AB125: 0
A126: 13 | B126: DADE | C126: 3621 | D126: COCONUT PALM K-8 ACADEMY | E126: 5 | F126: 511 | G126: B | I126: NO | J126: 72 | K126: 8 | L126: CORRECT II | M126: CORRECT II | N126: CORRECT I | O126: CORRECT II | P126: NO | Q126: YES | R126: 04 | S126: C | T126: D | U126: C | V126: F | W126: D | X126: 48 | Y126: 61 | Z126: 38 | AA126: 67 | AB126: 0
A127: 13 | B127: DADE | C127: 3661 | D127: NATURAL BRIDGE ELEMENTARY SCHOOL | E127: 5 | F127: 526 | G127: A | I127: NO | J127: 79 | K127: 8 | L127: CORRECT II | M127: CORRECT II | N127: CORRECT I | O127: CORRECT II | P127: NO | Q127: YES | R127: 01 | S127: C | T127: B | U127: C | V127: C | W127: B | X127: 45 | Y127: 44 | Z127: 38 | AA127: 44 | AB127: 0
A128: 13 | B128: DADE | C128: 3701 | D128: NORLAND ELEMENTARY SCHOOL | E128: 5 | F128: 529 | G128: B | I128: YES | J128: 100 | K128: 5 | L128: PREVENT I | M128: CORRECT I | N128: CORRECT I | O128: CORRECT I | P128: NO | Q128: YES | R128: 01 | S128: C | T128: B | U128: B | V128: C | W128: A | X128: 37 | Y128: 31 | Z128: 29 | AA128: 35 | AB128: 0
A129: 13 | B129: DADE | C129: 3781 | D129: BARBARA HAWKINS ELEMENTARY SCHOOL | E129: 5 | F129: 470 | G129: C | I129: NO | J129: 92 | K129: 5 | L129: PREVENT I | M129: PREVENT I | N129: CORRECT I | O129: CORRECT I | P129: NO | Q129: YES | R129: 01 | S129: B | T129: B | U129: C | V129: C | W129: D | X129: 48 | Y129: 54 | Z129: 27 | AA129: 69 | AB129: 0
A130: 13 | B130: DADE | C130: 3821 | D130: NORTH COUNTY ELEMENTARY SCHOOL | E130: 5 | F130: 462 | G130: C | I130: YES | J130: 100 | K130: 7 | L130: CORRECT II | M130: CORRECT II | N130: CORRECT II | O130: CORRECT I | P130: NO | Q130: YES | R130: 01 | S130: D | T130: D | U130: D | V130: C | W130: C | X130: 54 | Y130: 56 | Z130: 41 | AA130: 57 | AB130: 0
A131: 13 | B131: DADE | C131: 3861 | D131: NORTH GLADE ELEMENTARY SCHOOL | E131: 5 | F131: 527 | G131: A | I131: NO | J131: 79 | K131: 8 | L131: CORRECT I | M131: CORRECT I | N131: CORRECT II | O131: CORRECT II | P131: NO | Q131: YES | R131: 01 | S131: C | T131: A | U131: B | V131: C | W131: A | X131: 43 | Y131: 38 | Z131: 42 | AA131: 40 | AB131: 0
A132: 13 | B132: DADE | C132: 3901 | D132: NORTH HIALEAH ELEMENTARY SCHOOL | E132: 5 | F132: 512 | G132: B | I132: NO | J132: 82 | K132: 7 | L132: CORRECT I | M132: CORRECT I | N132: CORRECT I | O132: CORRECT I | P132: NO | Q132: YES | R132: 01 | S132: A | T132: A | U132: A | V132: A | W132: B | X132: 34 | Y132: 51 | Z132: 31 | AA132: 51 | AB132: 0
A133: 13 | B133: DADE | C133: 3941 | D133: NORTH MIAMI ELEMENTARY SCHOOL | E133: 5 | F133: 455 | G133: C | I133: NO | J133: 79 | K133: 8 | L133: CORRECT I | M133: CORRECT I | N133: CORRECT I | O133: CORRECT II | P133: NO | Q133: YES | R133: 01 | S133: B | T133: A | U133: C | V133: A | W133: C | X133: 48 | Y133: 44 | Z133: 40 | AA133: 61 | AB133: 0
A134: 13 | B134: DADE | C134: 3981 | D134: NORTH TWIN LAKES ELEMENTARY SCHOOL | E134: 5 | F134: 580 | G134: A | I134: NO | J134: 85 | K134: 1 | O134: PREVENT I | P134: NO | Q134: YES | R134: 01 | S134: A | T134: A | U134: A | V134: A | W134: A | X134: 31 | Y134: 33 | Z134: 20 | AA134: 24 | AB134: 0
A135: 13 | B135: DADE | C135: 4001 | D135: NORWOOD ELEMENTARY SCHOOL | E135: 5 | F135: 622 | G135: A | I135: NO | J135: 95 | K135: 3 | L135: PREVENT I | M135: PREVENT I | N135: PREVENT I | O135: PREVENT I | P135: NO | Q135: YES | R135: 01 | S135: A | T135: A | U135: A | V135: A | W135: A | X135: 25 | Y135: 36 | Z135: 15 | AA135: 32 | AB135: 0
A136: 13 | B136: DADE | C136: 4021 | D136: OAK GROVE ELEMENTARY SCHOOL | E136: 5 | F136: 517 | G136: B | I136: NO | J136: 82 | K136: 2 | N136: PREVENT I | O136: PREVENT I | P136: NO | Q136: YES | R136: 01 | S136: C | T136: B | U136: B | V136: B | W136: C | X136: 38 | Y136: 42 | Z136: 30 | AA136: 48 | AB136: 0
A137: 13 | B137: DADE | C137: 4031 | D137: GATEWAY ENVIRONMENTAL K-8 LEARNING CENTER | E137: 5 | F137: 476 | G137: C | I137: NO | J137: 72 | K137: 1 | O137: PREVENT II | P137: NO | Q137: YES | R137: 01 | S137: B | X137: 40 | Z137: 42 | AB137: 0
A138: 13 | B138: DADE | C138: 4071 | D138: OLINDA ELEMENTARY SCHOOL | E138: 5 | F138: 475 | G138: C | I138: NO | J138: 97 | K138: 6 | L138: PREVENT II | M138: CORRECT II | N138: CORRECT II | O138: CORRECT I | P138: NO | Q138: YES | R138: 01 | S138: D | T138: B | U138: C | V138: C | W138: C | X138: 45 | Y138: 40 | Z138: 37 | AA138: 52 | AB138: 0
A139: 13 | B139: DADE | C139: 4091 | D139: OLYMPIA HEIGHTS ELEMENTARY SCHOOL | E139: 5 | F139: 483 | G139: C | I139: NO | J139: 74 | K139: 6 | L139: PREVENT I | M139: CORRECT I | N139: CORRECT I | O139: CORRECT II | P139: NO | Q139: YES | R139: 01 | S139: A | T139: A | U139: A | V139: B | W139: A | X139: 32 | Y139: 26 | Z139: 34 | AA139: 34 | AB139: 0
A140: 13 | B140: DADE | C140: 4121 | D140: DR. ROBERT B. INGRAM/OPA-LOCKA ELEMENTARY SCHOOL | E140: 5 | F140: 414 | G140: D | I140: NO | J140: 77 | K140: 8 | L140: CORRECT II | M140: CORRECT I | N140: CORRECT I | O140: CORRECT II | P140: NO | Q140: YES | R140: 01 | S140: C | T140: C | U140: C | V140: C | W140: C | X140: 55 | Y140: 58 | Z140: 57 | AA140: 65 | AB140: 0
A141: 13 | B141: DADE | C141: 4171 | D141: ORCHARD VILLA ELEMENTARY SCHOOL | E141: 5 | F141: 484 | G141: C | I141: NO | J141: 87 | K141: 8 | L141: CORRECT II | M141: CORRECT II | N141: CORRECT I | O141: CORRECT I | P141: NO | Q141: YES | R141: 01 | S141: B | T141: D | U141: C | V141: C | W141: C | X141: 51 | Y141: 49 | Z141: 47 | AA141: 58 | AB141: 0
A142: 13 | B142: DADE | C142: 4221 | D142: PALMETTO ELEMENTARY SCHOOL | E142: 5 | F142: 640 | G142: A | I142: NO | J142: 92 | K142: 5 | M142: PREVENT I | N142: CORRECT I | O142: CORRECT I | P142: NO | Q142: NO | R142: 01 | S142: A | T142: A | U142: A | V142: A | W142: A | X142: 15 | Y142: 16 | Z142: 17 | AA142: 25 | AB142: 0
A143: 13 | B143: DADE | C143: 4241 | D143: PALM LAKES ELEMENTARY SCHOOL | E143: 5 | F143: 572 | G143: A | I143: NO | J143: 90 | K143: 1 | O143: PREVENT I | P143: NO | Q143: YES | R143: 01 | S143: A | T143: A | U143: A | V143: A | W143: B | X143: 28 | Y143: 36 | Z143: 26 | AA143: 44 | AB143: 0
A144: 13 | B144: DADE | C144: 4261 | D144: PALM SPRINGS ELEMENTARY SCHOOL | E144: 5 | F144: 575 | G144: A | I144: NO | J144: 79 | K144: 6 | L144: CORRECT I | M144: CORRECT I | N144: CORRECT I | O144: CORRECT II | P144: NO | Q144: YES | R144: 01 | S144: A | T144: A | U144: A | V144: A | W144: A | X144: 31 | Y144: 38 | Z144: 21 | AA144: 40 | AB144: 0
A145: 13 | B145: DADE | C145: 4281 | D145: PALM SPRINGS NORTH ELEMENTARY SCHOOL | E145: 5 | F145: 570 | G145: A | I145: NO | J145: 95 | K145: 1 | O145: PREVENT I | P145: NO | Q145: YES | R145: 01 | S145: A | T145: A | U145: A | V145: B | W145: A | X145: 25 | Y145: 24 | Z145: 12 | AA145: 27 | AB145: 0
A146: 13 | B146: DADE | C146: 4341 | D146: PARKWAY ELEMENTARY SCHOOL | E146: 5 | F146: 509 | G146: B | I146: NO | J146: 92 | K146: 5 | L146: PREVENT II | M146: PREVENT I | N146: CORRECT I | O146: CORRECT I | P146: NO | Q146: YES | R146: 01 | S146: C | T146: A | U146: D | V146: B | W146: B | X146: 38 | Y146: 45 | Z146: 33 | AA146: 51 | AB146: 0
A147: 13 | B147: DADE | C147: 4381 | D147: PERRINE ELEMENTARY SCHOOL | E147: 5 | F147: 578 | G147: A | I147: NO | J147: 85 | K147: 1 | O147: PREVENT I | P147: NO | Q147: YES | R147: 01 | S147: A | T147: A | U147: A | V147: A | W147: A | X147: 23 | Y147: 25 | Z147: 25 | AA147: 27 | AB147: 0
A148: 13 | B148: DADE | C148: 4391 | D148: IRVING & BEATRICE PESKOE ELEMENTARY SCHOOL | E148: 5 | F148: 418 | G148: D | I148: NO | J148: 67 | K148: 7 | L148: CORRECT I | M148: CORRECT I | N148: CORRECT II | O148: CORRECT II | P148: NO | Q148: YES | R148: 01 | S148: A | T148: A | U148: B | V148: C | W148: B | X148: 47 | Y148: 49 | Z148: 59 | AA148: 41 | AB148: 0
A149: 13 | B149: DADE | C149: 4401 | D149: KELSEY L. PHARR ELEMENTARY SCHOOL | E149: 5 | F149: 376 | G149: F | I149: NO | J149: 72 | K149: 8 | L149: CORRECT II | M149: CORRECT I | N149: CORRECT II | O149: CORRECT II | P149: NO | Q149: YES | R149: 01 | S149: F | T149: B | U149: D | V149: D | W149: D | X149: 60 | Y149: 53 | Z149: 59 | AA149: 65 | AB149: 0
A150: 13 | B150: DADE | C150: 4441 | D150: PINE LAKE ELEMENTARY SCHOOL | E150: 5 | F150: 506 | G150: B | I150: NO | J150: 69 | K150: 8 | L150: CORRECT II | M150: CORRECT I | N150: CORRECT II | O150: CORRECT II | P150: NO | Q150: YES | R150: 01 | S150: A | T150: A | U150: B | V150: D | W150: C | X150: 47 | Y150: 52 | Z150: 48 | AA150: 62 | AB150: 0
A151: 13 | B151: DADE | C151: 4461 | D151: PINE VILLA ELEMENTARY SCHOOL | E151: 5 | F151: 480 | G151: C | I151: NO | J151: 87 | K151: 7 | L151: CORRECT II | M151: INTERVENE | N151: CORRECT I | O151: CORRECT I | P151: NO | Q151: YES | R151: 01 | S151: C | T151: D | U151: C | V151: F | W151: D | X151: 52 | Y151: 56 | Z151: 46 | AA151: 60 | AB151: 1
A152: 13 | B152: DADE | C152: 4491 | D152: HENRY E.S. REEVES ELEMENTARY SCHOOL | E152: 5 | F152: 525 | G152: A | I152: NO | J152: 87 | K152: 6 | L152: PREVENT I | M152: CORRECT II | N152: CORRECT I | O152: CORRECT I | P152: NO | Q152: YES | R152: 01 | S152: C | T152: A | U152: A | V152: C | W152: B | X152: 45 | Y152: 46 | Z152: 31 | AA152: 52 | AB152: 0
A153: 13 | B153: DADE | C153: 4501 | D153: POINCIANA PARK ELEMENTARY SCHOOL | E153: 5 | F153: 494 | G153: C | I153: NO | J153: 90 | K153: 4 | L153: PREVENT I | M153: PREVENT I | N153: PREVENT I | O153: CORRECT I | P153: NO | Q153: YES | R153: 01 | S153: C | T153: A | U153: C | V153: A | W153: B | X153: 54 | Y153: 40 | Z153: 25 | AA153: 23 | AB153: 0
A154: 13 | B154: DADE | C154: 4511 | D154: DR. GILBERT L. PORTER ELEMENTARY SCHOOL | E154: 5 | F154: 576 | G154: A | I154: NO | J154: 85 | K154: 1 | O154: PREVENT I | P154: NO | Q154: YES | R154: 01 | S154: A | T154: A | U154: A | V154: A | W154: A | X154: 24 | Y154: 23 | Z154: 20 | AA154: 34 | AB154: 0
A155: 13 | B155: DADE | C155: 4541 | D155: RAINBOW PARK ELEMENTARY SCHOOL | E155: 5 | F155: 493 | G155: C | I155: YES | J155: 100 | K155: 3 | L155: PREVENT II | M155: PREVENT I | N155: PREVENT I | O155: PREVENT I | P155: NO | Q155: YES | R155: 01 | S155: C | T155: A | U155: D | V155: D | W155: B | X155: 39 | Y155: 37 | Z155: 37 | AA155: 54 | AB155: 0
A156: 13 | B156: DADE | C156: 4581 | D156: REDLAND ELEMENTARY SCHOOL | E156: 5 | F156: 571 | G156: A | I156: NO | J156: 97 | K156: 7 | M156: CORRECT I | N156: CORRECT I | O156: CORRECT I | P156: NO | Q156: YES | R156: 01 | S156: A | T156: A | U156: A | V156: B | W156: A | X156: 31 | Y156: 38 | Z156: 27 | AA156: 43 | AB156: 0
A157: 13 | B157: DADE | C157: 4611 | D157: REDONDO ELEMENTARY SCHOOL | E157: 5 | I157: NO | J157: 90 | K157: 2 | N157: PREVENT I | O157: PREVENT I | P157: NO | Q157: YES | R157: 01 | V157: A | W157: B | X157: 42 | Y157: 42 | Z157: 20 | AA157: 38 | AB157: 0
A158: 13 | B158: DADE | C158: 4651 | D158: ETHEL F. BECKFORD/RICHMOND ELEMENTARY SCHOOL | E158: 5 | F158: 447 | G158: C | I158: NO | J158: 92 | K158: 7 | L158: CORRECT I | M158: CORRECT I | N158: CORRECT II | O158: CORRECT I | P158: NO | Q158: YES | R158: 01 | S158: D | T158: C | U158: C | V158: C | W158: A | X158: 49 | Y158: 40 | Z158: 49 | AA158: 40 | AB158: 0
A159: 13 | B159: DADE | C159: 4681 | D159: RIVERSIDE ELEMENTARY COMMUNITY SCHOOL | E159: 5 | F159: 485 | G159: C | I159: NO | J159: 79 | K159: 2 | N159: PREVENT II | O159: PREVENT II | P159: NO | Q159: YES | R159: 01 | S159: C | T159: C | U159: B | V159: C | W159: A | X159: 50 | Y159: 46 | Z159: 49 | AA159: 45 | AB159: 0
A160: 13 | B160: DADE | C160: 4691 | D160: JANE S. ROBERTS K-8 CENTER | E160: 5 | F160: 621 | G160: A | I160: NO | J160: 85 | K160: 2 | M160: PREVENT I | N160: PREVENT I | O160: PREVENT I | P160: NO | Q160: NO | R160: 04 | S160: A | T160: A | U160: A | V160: A | W160: A | X160: 20 | Y160: 21 | Z160: 24 | AA160: 28 | AB160: 0
A161: 13 | B161: DADE | C161: 4721 | D161: ROCKWAY ELEMENTARY SCHOOL | E161: 5 | F161: 603 | G161: A | I161: NO | J161: 92 | K161: 7 | M161: CORRECT I | N161: CORRECT I | O161: CORRECT I | P161: NO | Q161: YES | R161: 01 | S161: A | T161: A | U161: B | V161: A | W161: A | X161: 22 | Y161: 31 | Z161: 17 | AA161: 34 | AB161: 0
A162: 13 | B162: DADE | C162: 4741 | D162: ROYAL GREEN ELEMENTARY SCHOOL | E162: 5 | F162: 631 | G162: A | I162: NO | J162: 95 | K162: 6 | L162: PREVENT I | M162: CORRECT I | N162: CORRECT I | O162: CORRECT I | P162: NO | Q162: YES | R162: 01 | S162: A | T162: A | U162: A | V162: A | W162: A | X162: 25 | Y162: 34 | Z162: 13 | AA162: 38 | AB162: 0
A163: 13 | B163: DADE | C163: 4801 | D163: GERTRUDE K. EDLEMAN/SABAL PALM ELEMENTARY SCHOOL | E163: 5 | F163: 530 | G163: A | I163: NO | J163: 85 | K163: 3 | M163: PREVENT I | N163: PREVENT I | O163: PREVENT I | P163: NO | Q163: YES | R163: 01 | S163: A | T163: A | U163: A | V163: A | W163: A | X163: 38 | Y163: 28 | Z163: 30 | AA163: 30 | AB163: 0
A164: 13 | B164: DADE | C164: 4841 | D164: SANTA CLARA ELEMENTARY SCHOOL | E164: 5 | F164: 521 | G164: B | I164: NO | J164: 85 | K164: 8 | L164: CORRECT I | M164: CORRECT II | N164: CORRECT II | O164: CORRECT I | P164: NO | Q164: YES | R164: 01 | S164: B | T164: A | U164: A | V164: C | W164: B | X164: 47 | Y164: 51 | Z164: 33 | AA164: 54 | AB164: 0
A165: 13 | B165: DADE | C165: 4881 | D165: SCOTT LAKE ELEMENTARY SCHOOL | E165: 5 | F165: 535 | G165: A | I165: NO | J165: 85 | K165: 4 | L165: PREVENT I | M165: PREVENT I | N165: PREVENT I | O165: CORRECT I | P165: NO | Q165: YES | R165: 01 | S165: C | T165: A | U165: B | V165: B | W165: C | X165: 38 | Y165: 40 | Z165: 36 | AA165: 44 | AB165: 0
A166: 13 | B166: DADE | C166: 4961 | D166: SHADOWLAWN ELEMENTARY SCHOOL | E166: 5 | F166: 554 | G166: A | I166: NO | J166: 97 | K166: 3 | M166: PREVENT I | N166: PREVENT I | O166: PREVENT I | P166: NO | Q166: YES | R166: 01 | S166: C | T166: A | U166: C | V166: A | W166: B | X166: 39 | Y166: 46 | Z166: 30 | AA166: 42 | AB166: 0
A167: 13 | B167: DADE | C167: 5001 | D167: SHENANDOAH ELEMENTARY SCHOOL | E167: 5 | F167: 471 | G167: C | I167: NO | J167: 79 | K167: 7 | L167: CORRECT I | M167: CORRECT I | N167: CORRECT I | O167: CORRECT II | P167: NO | Q167: YES | R167: 01 | S167: A | T167: A | U167: B | V167: C | W167: A | X167: 44 | Y167: 38 | Z167: 37 | AA167: 49 | AB167: 0
A168: 13 | B168: DADE | C168: 5003 | D168: SOUTH DADE MIDDLE SCHOOL | E168: 5 | F168: 450 | G168: C | I168: NO | J168: 64 | K168: 3 | M168: PREVENT II | N168: PREVENT II | O168: PREVENT II | P168: NO | Q168: YES | R168: 04 | S168: C | T168: B | U168: C | X168: 49 | Z168: 48 | AB168: 0
A169: 13 | B169: DADE | C169: 5005 | D169: DAVID LAWRENCE JR. K-8 CENTER | E169: 5 | F169: 536 | G169: A | I169: NO | J169: 77 | K169: 4 | M169: PREVENT I | N169: PREVENT II | O169: CORRECT II | P169: NO | Q169: YES | R169: 04 | S169: A | T169: A | U169: B | V169: C | X169: 33 | Z169: 34 | AB169: 0
A170: 13 | B170: DADE | C170: 5021 | D170: BEN SHEPPARD ELEMENTARY SCHOOL | E170: 5 | F170: 558 | G170: A | I170: NO | J170: 82 | K170: 6 | L170: CORRECT I | M170: CORRECT I | N170: CORRECT I | O170: CORRECT I | P170: NO | Q170: YES | R170: 01 | S170: A | T170: A | U170: A | V170: B | W170: A | X170: 30 | Y170: 32 | Z170: 25 | AA170: 34 | AB170: 0
A171: 13 | B171: DADE | C171: 5025 | D171: LINCOLN-MARTI CHARTER SCHOOL LITTLE HAVANA CAMPUS | E171: 5 | F171: 515 | G171: B | I171: NO | J171: 97 | K171: 1 | N171: CORRECT II | O171: PREVENT I | P171: YES | Q171: YES | R171: 04 | S171: F | X171: 61 | Z171: 57 | AB171: 0
A172: 13 | B172: DADE | C172: 5029 | D172: EXCELSIOR LANGUAGE ACADEMY OF HIALEAH | E172: 5 | F172: 509 | G172: B | I172: NO | J172: 92 | K172: 2 | N172: PREVENT II | O172: PREVENT I | P172: YES | Q172: YES | R172: 04 | S172: C | T172: C | X172: 38 | Z172: 51 | AB172: 0
A173: 13 | B173: DADE | C173: 5030 | D173: SANDOR WIENER SCHOOL OF OPPORTUNITY SOUTH | E173: 5 | I173: NO | J173: 95 | K173: 2 | N173: PREVENT I | O173: PREVENT I | P173: YES | Q173: NO | R173: 04 | X173: 100 | Z173: 100 | AB173: 0
A174: 13 | B174: DADE | C174: 5032 | D174: EXCELSIOR CHARTER ACADEMY | E174: 5 | F174: 501 | G174: B | I174: NO | J174: 87 | K174: 1 | N174: CORRECT II | O174: PREVENT I | P174: YES | Q174: YES | R174: 04 | S174: F | X174: 60 | Z174: 55 | AB174: 0
A175: 13 | B175: DADE | C175: 5041 | D175: SILVER BLUFF ELEMENTARY SCHOOL | E175: 5 | F175: 472 | G175: C | I175: NO | J175: 74 | K175: 8 | L175: CORRECT I | M175: CORRECT I | N175: CORRECT I | O175: CORRECT II | P175: NO | Q175: YES | R175: 01 | S175: A | T175: A | U175: C | V175: A | W175: C | X175: 40 | Y175: 43 | Z175: 40 | AA175: 51 | AB175: 0
A176: 13 | B176: DADE | C176: 5061 | D176: DR. CARLOS J. FINLAY ELEMENTARY | E176: 5 | F176: 663 | G176: A | I176: YES | J176: 100 | K176: 1 | N176: PREVENT I | O176: PREVENT I | P176: NO | Q176: YES | R176: 01 | S176: A | T176: A | U176: A | V176: A | W176: A | X176: 11 | Y176: 26 | Z176: 9 | AA176: 28 | AB176: 0
A177: 13 | B177: DADE | C177: 5081 | D177: SKYWAY ELEMENTARY SCHOOL | E177: 5 | F177: 446 | G177: C | I177: NO | J177: 74 | K177: 3 | M177: PREVENT I | N177: PREVENT I | O177: PREVENT II | P177: NO | Q177: YES | R177: 01 | S177: A | T177: A | U177: C | W177: A | X177: 43 | Y177: 20 | Z177: 41 | AA177: 43 | AB177: 0
A178: 13 | B178: DADE | C178: 5101 | D178: JOHN I. SMITH ELEMENTARY SCHOOL | E178: 5 | F178: 603 | G178: A | I178: NO | J178: 97 | K178: 1 | O178: PREVENT I | P178: NO | Q178: NO | R178: 01 | S178: A | T178: A | U178: A | V178: A | W178: A | X178: 18 | Y178: 14 | Z178: 14 | AA178: 20 | AB178: 0
A179: 13 | B179: DADE | C179: 5141 | D179: HUBERT O. SIBLEY ELEMENTARY SCHOOL | E179: 5 | F179: 483 | G179: C | I179: NO | J179: 74 | K179: 5 | L179: PREVENT II | M179: PREVENT I | N179: CORRECT I | O179: CORRECT II | P179: NO | Q179: YES | R179: 01 | S179: C | T179: A | U179: D | V179: C | W179: C | X179: 45 | Y179: 46 | Z179: 40 | AA179: 49 | AB179: 0
A180: 13 | B180: DADE | C180: 5281 | D180: SOUTH MIAMI HEIGHTS ELEMENTARY | E180: 5 | F180: 555 | G180: A | I180: NO | J180: 79 | K180: 8 | L180: CORRECT I | M180: CORRECT I | N180: CORRECT I | O180: CORRECT II | P180: NO | Q180: YES | R180: 01 | S180: A | T180: A | U180: A | V180: C | W180: A | X180: 31 | Y180: 36 | Z180: 30 | AA180: 45 | AB180: 0
A181: 13 | B181: DADE | C181: 5381 | D181: E.W.F. STIRRUP ELEMENTARY SCHOOL | E181: 5 | F181: 593 | G181: A | I181: NO | J181: 90 | K181: 1 | O181: PREVENT I | P181: NO | Q181: YES | R181: 01 | S181: A | T181: A | U181: A | V181: A | W181: A | X181: 25 | Y181: 30 | Z181: 23 | AA181: 39 | AB181: 0
A182: 13 | B182: DADE | C182: 5421 | D182: SUNSET PARK ELEMENTARY SCHOOL | E182: 5 | F182: 602 | G182: A | I182: NO | J182: 97 | K182: 1 | O182: PREVENT I | P182: NO | Q182: YES | R182: 01 | S182: A | T182: A | U182: A | V182: A | W182: B | X182: 18 | Y182: 24 | Z182: 16 | AA182: 28 | AB182: 0
A183: 13 | B183: DADE | C183: 5431 | D183: SWEETWATER ELEMENTARY SCHOOL | E183: 5 | F183: 554 | G183: A | I183: NO | J183: 79 | K183: 1 | O183: PREVENT II | P183: NO | Q183: YES | R183: 01 | S183: A | T183: A | U183: A | V183: A | W183: A | X183: 30 | Y183: 33 | Z183: 28 | AA183: 31 | AB183: 0
A184: 13 | B184: DADE | C184: 5441 | D184: SYLVANIA HEIGHTS ELEMENTARY SCHOOL | E184: 5 | F184: 604 | G184: A | I184: NO | J184: 79 | K184: 5 | M184: PREVENT I | N184: CORRECT II | O184: CORRECT II | P184: NO | Q184: YES | R184: 01 | S184: A | T184: A | U184: A | V184: B | W184: A | X184: 28 | Y184: 29 | Z184: 32 | AA184: 37 | AB184: 0
A185: 13 | B185: DADE | C185: 5481 | D185: TREASURE ISLAND ELEMENTARY SCHOOL | E185: 5 | F185: 565 | G185: A | I185: NO | J185: 85 | K185: 1 | O185: PREVENT I | P185: NO | Q185: YES | R185: 01 | S185: A | T185: A | U185: B | V185: B | W185: A | X185: 31 | Y185: 26 | Z185: 25 | AA185: 37 | AB185: 0
A186: 13 | B186: DADE | C186: 5521 | D186: TROPICAL ELEMENTARY SCHOOL | E186: 5 | F186: 565 | G186: A | I186: NO | J186: 79 | K186: 6 | L186: PREVENT I | M186: CORRECT I | N186: CORRECT I | O186: CORRECT II | P186: NO | Q186: YES | R186: 01 | S186: A | T186: A | U186: A | V186: C | W186: A | X186: 29 | Y186: 30 | Z186: 32 | AA186: 37 | AB186: 0
A187: 13 | B187: DADE | C187: 5561 | D187: FRANCES S. TUCKER ELEMENTARY SCHOOL | E187: 5 | F187: 539 | G187: A | I187: NO | J187: 87 | K187: 8 | L187: CORRECT II | M187: CORRECT II | N187: CORRECT II | O187: CORRECT I | P187: NO | Q187: YES | R187: 01 | S187: B | T187: A | U187: B | V187: B | W187: B | X187: 35 | Y187: 45 | Z187: 35 | AA187: 53 | AB187: 0
A188: 13 | B188: DADE | C188: 5671 | D188: VINELAND K-8 CENTER | E188: 5 | F188: 625 | G188: A | I188: YES | J188: 100 | K188: 3 | M188: PREVENT I | N188: PREVENT I | O188: PREVENT I | P188: NO | Q188: NO | R188: 04 | S188: A | T188: A | U188: A | V188: A | W188: A | X188: 14 | Y188: 22 | Z188: 19 | AA188: 25 | AB188: 0
A189: 13 | B189: DADE | C189: 5710 | D189: SANDOR WIENER SCHOOL OF OPPORTUNITY | E189: 5 | I189: NO | J189: 95 | K189: 3 | M189: PREVENT I | N189: PREVENT I | O189: PREVENT I | P189: YES | Q189: NO | R189: 04 | X189: 79 | Z189: 84 | AB189: 0
A190: 13 | B190: DADE | C190: 5711 | D190: MAE M. WALTERS ELEMENTARY SCHOOL | E190: 5 | F190: 556 | G190: A | I190: NO | J190: 79 | K190: 7 | L190: CORRECT I | M190: CORRECT I | N190: CORRECT I | O190: CORRECT II | P190: NO | Q190: YES | R190: 01 | S190: A | T190: A | U190: A | V190: A | W190: A | X190: 34 | Y190: 38 | Z190: 32 | AA190: 43 | AB190: 0
A191: 13 | B191: DADE | C191: 5791 | D191: WEST HOMESTEAD ELEMENTARY SCHOOL | E191: 5 | F191: 421 | G191: D | I191: NO | J191: 72 | K191: 8 | L191: CORRECT I | M191: CORRECT II | N191: CORRECT II | O191: CORRECT II | P191: NO | Q191: YES | R191: 01 | S191: D | T191: C | U191: C | V191: F | W191: B | X191: 57 | Y191: 50 | Z191: 50 | AA191: 50 | AB191: 0
A192: 13 | B192: DADE | C192: 5861 | D192: DR. HENRY W. MACK/WEST LITTLE RIVER ELEMENTARY SCHOOL | E192: 5 | F192: 450 | G192: C | I192: NO | J192: 82 | K192: 8 | L192: CORRECT I | M192: CORRECT II | N192: CORRECT II | O192: CORRECT I | P192: NO | Q192: YES | R192: 01 | S192: D | T192: F | U192: C | V192: C | W192: C | X192: 58 | Y192: 60 | Z192: 37 | AA192: 61 | AB192: 0
A193: 13 | B193: DADE | C193: 5901 | D193: CARRIE P. MEEK/WESTVIEW ELEMENTARY SCHOOL | E193: 5 | F193: 474 | G193: C | I193: NO | J193: 85 | K193: 6 | L193: PREVENT I | M193: CORRECT I | N193: CORRECT I | O193: CORRECT I | P193: NO | Q193: YES | R193: 01 | S193: C | T193: C | U193: C | V193: B | W193: C | X193: 53 | Y193: 44 | Z193: 32 | AA193: 48 | AB193: 0
A194: 13 | B194: DADE | C194: 5931 | D194: PHYLLIS WHEATLEY ELEMENTARY SCHOOL | E194: 5 | F194: 585 | G194: A | I194: YES | J194: 100 | K194: 7 | L194: CORRECT II | M194: CORRECT I | N194: CORRECT II | O194: CORRECT I | P194: NO | Q194: YES | R194: 01 | S194: F | T194: C | U194: D | V194: D | W194: C | X194: 39 | Y194: 57 | Z194: 20 | AA194: 65 | AB194: 0
A195: 13 | B195: DADE | C195: 5951 | D195: WHISPERING PINES ELEMENTARY SCHOOL | E195: 5 | F195: 575 | G195: A | I195: NO | J195: 90 | K195: 2 | N195: PREVENT I | O195: PREVENT I | P195: NO | Q195: NO | R195: 01 | S195: A | T195: A | U195: A | V195: A | W195: A | X195: 22 | Y195: 23 | Z195: 23 | AA195: 23 | AB195: 0
A196: 13 | B196: DADE | C196: 5961 | D196: WINSTON PARK K-8 CENTER | E196: 5 | F196: 602 | G196: A | I196: NO | J196: 92 | K196: 2 | N196: PREVENT I | O196: PREVENT I | P196: NO | Q196: YES | R196: 04 | S196: A | T196: A | U196: A | V196: A | W196: A | X196: 21 | Y196: 19 | Z196: 17 | AA196: 23 | AB196: 0
A197: 13 | B197: DADE | C197: 5971 | D197: NATHAN B. YOUNG ELEMENTARY SCHOOL | E197: 5 | F197: 431 | G197: D | I197: NO | J197: 90 | K197: 4 | L197: PREVENT I | M197: PREVENT I | N197: PREVENT II | O197: CORRECT II | P197: NO | Q197: YES | R197: 01 | S197: D | T197: C | U197: C | V197: D | W197: F | X197: 48 | Y197: 64 | Z197: 59 | AA197: 69 | AB197: 0
A198: 13 | B198: DADE | C198: 5981 | D198: DR. EDWARD L. WHIGHAM ELEMENTARY SCHOOL | E198: 5 | F198: 501 | G198: B | I198: NO | J198: 90 | K198: 6 | L198: PREVENT I | M198: CORRECT I | N198: CORRECT II | O198: CORRECT I | P198: NO | Q198: YES | R198: 01 | S198: B | T198: B | U198: B | V198: C | W198: A | X198: 33 | Y198: 38 | Z198: 41 | AA198: 41 | AB198: 0
A199: 13 | B199: DADE | C199: 5991 | D199: CHARLES DAVID WYCHE, JR ELEMENTARY SCHOOL | E199: 5 | F199: 476 | G199: C | I199: NO | J199: 74 | K199: 1 | O199: PREVENT II | P199: NO | Q199: YES | R199: 01 | S199: C | T199: B | U199: C | V199: C | W199: A | X199: 40 | Y199: 31 | Z199: 41 | AA199: 32 | AB199: 0
A200: 13 | B200: DADE | C200: 6008 | D200: LAWRENCE ACADEMY | E200: 5 | F200: 497 | G200: B | I200: NO | J200: 92 | K200: 5 | L200: PREVENT II | M200: PREVENT I | N200: CORRECT II | O200: CORRECT I | P200: YES | Q200: YES | R200: 02 | S200: D | T200: B | U200: C | V200: F | W200: C | X200: 59 | Y200: 62 | Z200: 52 | AA200: 84 | AB200: 0
... 140 more rows

Sheet AYP11 (hidden)
A1: =COLUMN()-1 -> 0 | B1: =COLUMN()-1 -> 1 | C1: 2 | D1: 3 | E1: 4 | F1: 5 | G1: 6 | H1: 7 | I1: 8 | J1: 9 | K1: 10 | L1: 11 | M1: 12 | N1: 13 | O1: 14 | P1: 15 | Q1: 16 | R1: 17 | S1: 18 | T1: 19 | U1: 20 | V1: 21 | W1: 22 | X1: 23 | Y1: 24 | Z1: 25 | AA1: 26 | AB1: 27 | AC1: 28 | AD1: 29 | AE1: 30 | AF1: 31 | AG1: 32 | AH1: 33 | AI1: 34 | AJ1: 35 | AK1: 36 | AL1: 37 | AM1: 38 | AN1: 39 | AO1: 40 | AP1: 41 | AQ1: 42 | AR1: 43 | AS1: 44 | AT1: =COLUMN()-1 -> 45 | AU1: 46
A2: School-Year | B2: School Number | C2: District Name | D2: School Name | E2: Subgroup | F2: Percent Tested | G2: Number Tested | H2: Tested 95% of the Students? | I2: Percent Tested | J2: Number Tested | K2: Tested 95% of the Students? | L2: Percent Proficient | M2: Number with Scores | N2: Improved performance in Writing by 1%? | O2: Graduation Rate | P2: Number included in Graduation Rate | Q2: Increased Graduation Rate by 1%? | R2: Percent Reading Proficient | S2: Reading Proficiency Number with Scores | T2: 79% scoring at or above grade level in Reading? | U2: Percent on track to be Proficient Reading | V2: Reading Growth Model Number with Scores | W2: 79% on track to be Proficient in Reading? | X2: Percent Proficient Mathematics | Y2: Math Proficiency Number with Scores | Z2: 80% scoring at or above grade level in Math? | AA2: Percent on track to be Proficient | AB2: Math Growth Model Number with Scores | AC2: 80% on track to be Proficient in Math? | AD2: 2011 School Grade | AE2: Adequate Yearly Progress (AYP) Status | AF2: Percent Criteria Met | AG2: School Type | AH2: Title I Status | AI2: Charter School | AJ2: Region | AK2: Reading AYP-Method | AL2: Math AYP-Method | AT2: Reading AYP-Method | AU2: Math AYP-Method
A3: 2010-2011 | B3: 0041 | C3: DADE | D3: AIR BASE ELEMENTARY SCHOOL | E3: AMERICAN INDIAN | G3: 1 | H3: NA | J3: 1 | K3: NA | M3: 0 | N3: NA | Q3: NA | S3: 1 | T3: NA | V3: 1 | W3: NA | Y3: 1 | Z3: NA | AB3: 1 | AC3: NA | AD3: A | AE3: NO | AF3: 97 | AG3: 01 | AH3: YES | AI3: NO | AJ3: 5 | AK3: =IF(OR(T3="NA",T3="NO"),T3,(IF(T3="","NA",IF(OR(R3>78,AND(T3="Yes",R3="")),"Yes-AB",IF(W3="NA","Yes-SH","Yes-GM"))))) -> NA | AL3: =IF(OR(Z3="NA",Z3="NO"),Z3,(IF(Z3="","NA",IF(OR(X3>79,AND(Z3="Yes",X3="")),"Yes-AB",IF(AC3="NA","Yes-SH","Yes-GM"))))) -> NA | AT3: =IF(OR(T3="NA",T3="NO"),T3,IF(OR(R3>71,AND(T3="Yes",R3="")),"Yes-AB",IF(W3="NA","Yes-SH","Yes-GM"))) -> NA | AU3: =IF(OR(Z3="NA",Z3="NO"),Z3,IF(OR(X3>73,AND(Z3="Yes",X3="")),"Yes-AB",IF(AC3="NA","Yes-SH","Yes-GM"))) -> NA | AW3: Col Header | AX3: Column | AY3: AYP09-Variables
A4: 2010-2011 | B4: 0070 | C4: DADE | D4: CORAL REEF MONTESSORI ACADEMY CHARTER | E4: AMERICAN INDIAN | G4: 0 | H4: NA | J4: 0 | K4: NA | M4: 0 | N4: NA | Q4: NA | S4: 0 | T4: NA | V4: 0 | W4: NA | Y4: 0 | Z4: NA | AB4: 0 | AC4: NA | AD4: A | AE4: NO | AF4: 87 | AG4: 04 | AH4: NO | AI4: YES | AJ4: 5 | AK4: NA | AL4: NA | AT4: NA | AU4: NA | AW4: B | AX4: 1 | AY4: School Number
A5: 2010-2011 | B5: 0071 | C5: DADE | D5: EUGENIA B. THOMAS K-8 CENTER | E5: AMERICAN INDIAN | G5: 0 | H5: NA | J5: 0 | K5: NA | M5: 0 | N5: NA | Q5: NA | S5: 0 | T5: NA | V5: 0 | W5: NA | Y5: 0 | Z5: NA | AB5: 0 | AC5: NA | AD5: A | AE5: NO | AF5: 82 | AG5: 04 | AH5: NO | AI5: NO | AJ5: 5 | AK5: NA | AL5: NA | AT5: NA | AU5: NA | AW5: C | AX5: 2 | AY5: Reading AYP-Method
A6: 2010-2011 | B6: 0072 | C6: DADE | D6: SUMMERVILLE ADVANTAGE ACADEMY | E6: AMERICAN INDIAN | G6: 0 | H6: NA | J6: 0 | K6: NA | M6: 0 | N6: NA | Q6: NA | S6: 0 | T6: NA | V6: 0 | W6: NA | Y6: 0 | Z6: NA | AB6: 0 | AC6: NA | AD6: A | AE6: NO | AF6: 90 | AG6: 04 | AH6: NO | AI6: YES | AJ6: 5 | AK6: NA | AL6: NA | AT6: NA | AU6: NA | AW6: D | AX6: 3 | AY6: School Name
A7: 2010-2011 | B7: 0073 | C7: DADE | D7: MANDARIN LAKES K-8 ACADEMY | E7: AMERICAN INDIAN | G7: 0 | H7: NA | J7: 0 | K7: NA | M7: 0 | N7: NA | Q7: NA | S7: 0 | T7: NA | V7: 0 | W7: NA | Y7: 0 | Z7: NA | AB7: 0 | AC7: NA | AD7: D | AE7: NO | AF7: 69 | AG7: 04 | AH7: YES | AI7: NO | AJ7: 5 | AK7: NA | AL7: NA | AT7: NA | AU7: NA | AW7: E | AX7: 4 | AY7: Subgroup
A8: 2010-2011 | B8: 0081 | C8: DADE | D8: LENORA BRAYNON SMITH ELEMENTARY | E8: AMERICAN INDIAN | G8: 0 | H8: NA | J8: 0 | K8: NA | M8: 0 | N8: NA | Q8: NA | S8: 0 | T8: NA | V8: 0 | W8: NA | Y8: 0 | Z8: NA | AB8: 0 | AC8: NA | AD8: F | AE8: NO | AF8: 72 | AG8: 01 | AH8: YES | AI8: NO | AJ8: 5 | AK8: NA | AL8: NA | AT8: NA | AU8: NA | AW8: F | AX8: 5 | AY8: Percent Tested
A9: 2010-2011 | B9: 0091 | C9: DADE | D9: BOB GRAHAM EDUCATION CENTER | E9: AMERICAN INDIAN | G9: 0 | H9: NA | J9: 0 | K9: NA | M9: 0 | N9: NA | Q9: NA | S9: 0 | T9: NA | V9: 0 | W9: NA | Y9: 0 | Z9: NA | AB9: 0 | AC9: NA | AD9: A | AE9: NO | AF9: 79 | AG9: 04 | AH9: NO | AI9: NO | AJ9: 5 | AK9: NA | AL9: NA | AT9: NA | AU9: NA | AW9: G | AX9: 6 | AY9: Number Tested
A10: 2010-2011 | B10: 0092 | C10: DADE | D10: SUNNY ISLES BEACH COMMUNITY SCHOOL | E10: AMERICAN INDIAN | G10: 1 | H10: NA | J10: 1 | K10: NA | M10: 0 | N10: NA | Q10: NA | S10: 1 | T10: NA | V10: 1 | W10: NA | Y10: 1 | Z10: NA | AB10: 1 | AC10: NA | AD10: A | AE10: YES | AF10: 100 | AG10: 04 | AH10: NO | AI10: NO | AJ10: 5 | AK10: NA | AL10: NA | AT10: NA | AU10: NA | AW10: H | AX10: 7 | AY10: Tested 95% of the Students?
A11: 2010-2011 | B11: 0100 | C11: DADE | D11: MATER ACADEMY | E11: AMERICAN INDIAN | G11: 0 | H11: NA | J11: 0 | K11: NA | M11: 0 | N11: NA | Q11: NA | S11: 0 | T11: NA | V11: 0 | W11: NA | Y11: 0 | Z11: NA | AB11: 0 | AC11: NA | AD11: A | AE11: YES | AF11: 100 | AG11: 01 | AH11: YES | AI11: YES | AJ11: 5 | AK11: NA | AL11: NA | AT11: NA | AU11: NA | AW11: I | AX11: 8 | AY11: Percent Tested
A12: 2010-2011 | B12: 0101 | C12: DADE | D12: ARCOLA LAKE ELEMENTARY SCHOOL | E12: AMERICAN INDIAN | G12: 0 | H12: NA | J12: 0 | K12: NA | M12: 0 | N12: NA | Q12: NA | S12: 0 | T12: NA | V12: 0 | W12: NA | Y12: 0 | Z12: NA | AB12: 0 | AC12: NA | AD12: B | AE12: NO | AF12: 92 | AG12: 01 | AH12: YES | AI12: NO | AJ12: 5 | AK12: NA | AL12: NA | AT12: NA | AU12: NA | AW12: J | AX12: 9 | AY12: Number Tested
A13: 2010-2011 | B13: 0102 | C13: DADE | D13: MIAMI COMMUNITY CHARTER SCHOOL | E13: AMERICAN INDIAN | G13: 1 | H13: NA | J13: 1 | K13: NA | M13: 0 | N13: NA | Q13: NA | S13: 1 | T13: NA | V13: 1 | W13: NA | Y13: 1 | Z13: NA | AB13: 1 | AC13: NA | AD13: C | AE13: NO | AF13: 79 | AG13: 01 | AH13: YES | AI13: YES | AJ13: 5 | AK13: NA | AL13: NA | AT13: NA | AU13: NA | AW13: K | AX13: 10 | AY13: Tested 95% of the Students?
A14: 2010-2011 | B14: 0111 | C14: DADE | D14: MAYA ANGELOU ELEMENTARY SCHOOL | E14: AMERICAN INDIAN | G14: 0 | H14: NA | J14: 0 | K14: NA | M14: 0 | N14: NA | Q14: NA | S14: 0 | T14: NA | V14: 0 | W14: NA | Y14: 0 | Z14: NA | AB14: 0 | AC14: NA | AD14: C | AE14: NO | AF14: 85 | AG14: 01 | AH14: YES | AI14: NO | AJ14: 5 | AK14: NA | AL14: NA | AT14: NA | AU14: NA | AW14: L | AX14: 11 | AY14: Percent Proficient
A15: 2010-2011 | B15: 0113 | C15: DADE | D15: BALERE LANGUAGE ACADEMY | E15: AMERICAN INDIAN | G15: 0 | H15: NA | J15: 0 | K15: NA | M15: 0 | N15: NA | Q15: NA | S15: 0 | T15: NA | V15: 0 | W15: NA | Y15: 0 | Z15: NA | AB15: 0 | AC15: NA | AD15: A | AE15: NO | AF15: 87 | AG15: 04 | AH15: YES | AI15: YES | AJ15: 5 | AK15: NA | AL15: NA | AT15: NA | AU15: NA | AW15: M | AX15: 12 | AY15: Number with Scores
A16: 2010-2011 | B16: 0121 | C16: DADE | D16: AUBURNDALE ELEMENTARY SCHOOL | E16: AMERICAN INDIAN | G16: 0 | H16: NA | J16: 0 | K16: NA | M16: 0 | N16: NA | Q16: NA | S16: 0 | T16: NA | V16: 0 | W16: NA | Y16: 0 | Z16: NA | AB16: 0 | AC16: NA | AD16: B | AE16: NO | AF16: 74 | AG16: 01 | AH16: YES | AI16: NO | AJ16: 5 | AK16: NA | AL16: NA | AT16: NA | AU16: NA | AW16: N | AX16: 13 | AY16: Improved performance in Writing by 1%?
A17: 2010-2011 | B17: 0122 | C17: DADE | D17: DR. ROLANDO ESPINOSA K-8 CENTER | E17: AMERICAN INDIAN | G17: 0 | H17: NA | J17: 0 | K17: NA | M17: 0 | N17: NA | Q17: NA | S17: 0 | T17: NA | V17: 0 | W17: NA | Y17: 0 | Z17: NA | AB17: 0 | AC17: NA | AD17: A | AE17: NO | AF17: 82 | AG17: 04 | AH17: NO | AI17: NO | AJ17: 5 | AK17: NA | AL17: NA | AT17: NA | AU17: NA | AW17: O | AX17: 14 | AY17: Graduation Rate
A18: 2010-2011 | B18: 0125 | C18: DADE | D18: NORMA BUTLER BOSSARD ELEMENTARY SCHOOL | E18: AMERICAN INDIAN | G18: 0 | H18: NA | J18: 0 | K18: NA | M18: 0 | N18: NA | Q18: NA | S18: 0 | T18: NA | V18: 0 | W18: NA | Y18: 0 | Z18: NA | AB18: 0 | AC18: NA | AD18: A | AE18: NO | AF18: 95 | AG18: 01 | AH18: NO | AI18: NO | AJ18: 5 | AK18: NA | AL18: NA | AT18: NA | AU18: NA | AW18: P | AX18: 15 | AY18: Number included in Graduation Rate
A19: 2010-2011 | B19: 0161 | C19: DADE | D19: AVOCADO ELEMENTARY SCHOOL | E19: AMERICAN INDIAN | G19: 0 | H19: NA | J19: 0 | K19: NA | M19: 0 | N19: NA | Q19: NA | S19: 0 | T19: NA | V19: 0 | W19: NA | Y19: 0 | Z19: NA | AB19: 0 | AC19: NA | AE19: NO | AF19: 82 | AG19: 01 | AH19: YES | AI19: NO | AJ19: 5 | AK19: NA | AL19: NA | AT19: NA | AU19: NA | AW19: Q | AX19: 16 | AY19: Increased Graduation Rate by 1%?
A20: 2010-2011 | B20: 0201 | C20: DADE | D20: BANYAN ELEMENTARY SCHOOL | E20: AMERICAN INDIAN | G20: 0 | H20: NA | J20: 0 | K20: NA | M20: 0 | N20: NA | Q20: NA | S20: 0 | T20: NA | V20: 0 | W20: NA | Y20: 0 | Z20: NA | AB20: 0 | AC20: NA | AD20: B | AE20: NO | AF20: 79 | AG20: 01 | AH20: YES | AI20: NO | AJ20: 5 | AK20: NA | AL20: NA | AT20: NA | AU20: NA | AW20: R | AX20: 17 | AY20: Percent Proficient
A21: 2010-2011 | B21: 0211 | C21: DADE | D21: DR. MANUEL C. BARREIRO ELEMENTARY SCHOOL | E21: AMERICAN INDIAN | G21: 0 | H21: NA | J21: 0 | K21: NA | M21: 0 | N21: NA | Q21: NA | S21: 0 | T21: NA | V21: 0 | W21: NA | Y21: 0 | Z21: NA | AB21: 0 | AC21: NA | AD21: B | AE21: NO | AF21: 95 | AG21: 01 | AH21: YES | AI21: NO | AJ21: 5 | AK21: NA | AL21: NA | AT21: NA | AU21: NA | AW21: S | AX21: 18 | AY21: Number with Scores
A22: 2010-2011 | B22: 0215 | C22: DADE | D22: LAWRENCE ACADEMY ELEMENTARY CHARTER SCHOOL | E22: AMERICAN INDIAN | G22: 0 | H22: NA | J22: 0 | K22: NA | M22: 0 | N22: NA | Q22: NA | S22: 0 | T22: NA | V22: 0 | W22: NA | Y22: 0 | Z22: NA | AB22: 0 | AC22: NA | AD22: F | AE22: NO | AF22: 82 | AG22: 01 | AH22: YES | AI22: YES | AJ22: 5 | AK22: NA | AL22: NA | AT22: NA | AU22: NA | AW22: T | AX22: 19 | AY22: 65% scoring at or above grade level in Reading?
A23: 2010-2011 | B23: 0231 | C23: DADE | D23: AVENTURA WATERWAYS K-8 CENTER | E23: AMERICAN INDIAN | G23: 3 | H23: NA | J23: 3 | K23: NA | M23: 1 | N23: NA | Q23: NA | S23: 3 | T23: NA | V23: 3 | W23: NA | Y23: 3 | Z23: NA | AB23: 3 | AC23: NA | AD23: A | AE23: NO | AF23: 77 | AG23: 04 | AH23: NO | AI23: NO | AJ23: 5 | AK23: NA | AL23: NA | AT23: NA | AU23: NA | AW23: U | AX23: 20 | AY23: Percent on track to be Proficient
A24: 2010-2011 | B24: 0241 | C24: DADE | D24: RUTH K. BROAD BAY HARBOR K-8 CENTER | E24: AMERICAN INDIAN | G24: 0 | H24: NA | J24: 0 | K24: NA | M24: 0 | N24: NA | Q24: NA | S24: 0 | T24: NA | V24: 0 | W24: NA | Y24: 0 | Z24: NA | AB24: 0 | AC24: NA | AD24: A | AE24: YES | AF24: 100 | AG24: 04 | AH24: NO | AI24: NO | AJ24: 5 | AK24: NA | AL24: NA | AT24: NA | AU24: NA | AW24: V | AX24: 21 | AY24: Number with Scores
A25: 2010-2011 | B25: 0251 | C25: DADE | D25: ETHEL KOGER BECKHAM ELEMENTARY | E25: AMERICAN INDIAN | G25: 0 | H25: NA | J25: 0 | K25: NA | M25: 0 | N25: NA | Q25: NA | S25: 0 | T25: NA | V25: 0 | W25: NA | Y25: 0 | Z25: NA | AB25: 0 | AC25: NA | AD25: A | AE25: YES | AF25: 100 | AG25: 01 | AH25: YES | AI25: NO | AJ25: 5 | AK25: NA | AL25: NA | AT25: NA | AU25: NA | AW25: W | AX25: 22 | AY25: 65% on track to be Proficient in Reading?
A26: 2010-2011 | B26: 0261 | C26: DADE | D26: BEL-AIRE ELEMENTARY SCHOOL | E26: AMERICAN INDIAN | G26: 2 | H26: NA | J26: 2 | K26: NA | M26: 1 | N26: NA | Q26: NA | S26: 2 | T26: NA | V26: 2 | W26: NA | Y26: 2 | Z26: NA | AB26: 2 | AC26: NA | AD26: C | AE26: NO | AF26: 72 | AG26: 01 | AH26: YES | AI26: NO | AJ26: 5 | AK26: NA | AL26: NA | AT26: NA | AU26: NA | AW26: X | AX26: 23 | AY26: Percent Proficient
A27: 2010-2011 | B27: 0271 | C27: DADE | D27: BENT TREE ELEMENTARY SCHOOL | E27: AMERICAN INDIAN | G27: 0 | H27: NA | J27: 0 | K27: NA | M27: 0 | N27: NA | Q27: NA | S27: 0 | T27: NA | V27: 0 | W27: NA | Y27: 0 | Z27: NA | AB27: 0 | AC27: NA | AD27: A | AE27: NO | AF27: 95 | AG27: 01 | AH27: YES | AI27: NO | AJ27: 5 | AK27: NA | AL27: NA | AT27: NA | AU27: NA | AW27: Y | AX27: 24 | AY27: Number with Scores
A28: 2010-2011 | B28: 0311 | C28: DADE | D28: GOULDS ELEMENTARY SCHOOL | E28: AMERICAN INDIAN | G28: 0 | H28: NA | J28: 0 | K28: NA | M28: 0 | N28: NA | Q28: NA | S28: 0 | T28: NA | V28: 0 | W28: NA | Y28: 0 | Z28: NA | AB28: 0 | AC28: NA | AD28: A | AE28: NO | AF28: 87 | AG28: 01 | AH28: YES | AI28: NO | AJ28: 5 | AK28: NA | AL28: NA | AT28: NA | AU28: NA | AW28: Z | AX28: 25 | AY28: 68% scoring at or above grade level in Math?
A29: 2010-2011 | B29: 0312 | C29: DADE | D29: MATER GARDENS ACADEMY | E29: AMERICAN INDIAN | G29: 1 | H29: NA | J29: 1 | K29: NA | M29: 0 | N29: NA | Q29: NA | S29: 1 | T29: NA | V29: 1 | W29: NA | Y29: 1 | Z29: NA | AB29: 1 | AC29: NA | AD29: A | AE29: NO | AF29: 92 | AG29: 01 | AH29: NO | AI29: YES | AJ29: 5 | AK29: NA | AL29: NA | AT29: NA | AU29: NA | AW29: AA | AX29: 26 | AY29: Percent on track to be Proficient
A30: 2010-2011 | B30: 0321 | C30: DADE | D30: BISCAYNE ELEMENTARY SCHOOL | E30: AMERICAN INDIAN | G30: 0 | H30: NA | J30: 0 | K30: NA | M30: 0 | N30: NA | Q30: NA | S30: 0 | T30: NA | V30: 0 | W30: NA | Y30: 0 | Z30: NA | AB30: 0 | AC30: NA | AD30: B | AE30: NO | AF30: 79 | AG30: 01 | AH30: YES | AI30: NO | AJ30: 5 | AK30: NA | AL30: NA | AT30: NA | AU30: NA | AW30: AB | AX30: 27 | AY30: Number with Scores
A31: 2010-2011 | B31: 0332 | C31: DADE | D31: SOMERSET ACADEMY (SILVER PALMS) | E31: AMERICAN INDIAN | G31: 2 | H31: NA | J31: 2 | K31: NA | M31: 0 | N31: NA | Q31: NA | S31: 2 | T31: NA | V31: 2 | W31: NA | Y31: 2 | Z31: NA | AB31: 2 | AC31: NA | AD31: B | AE31: NO | AF31: 87 | AG31: 04 | AH31: YES | AI31: YES | AJ31: 5 | AK31: NA | AL31: NA | AT31: NA | AU31: NA | AW31: AC | AX31: 28 | AY31: 68% on track to be Proficient in Math?
A32: 2010-2011 | B32: 0339 | C32: DADE | D32: SOMERSET ACADEMY CHARTER ELEMENTARY SCHOOL (SOUTH HOMESTEAD) | E32: AMERICAN INDIAN | G32: 0 | H32: NA | J32: 0 | K32: NA | M32: 0 | N32: NA | Q32: NA | S32: 0 | T32: NA | V32: 0 | W32: NA | Y32: 0 | Z32: NA | AB32: 0 | AC32: NA | AD32: A | AE32: YES | AF32: 100 | AG32: 01 | AH32: YES | AI32: YES | AJ32: 5 | AK32: NA | AL32: NA | AT32: NA | AU32: NA | AW32: AD | AX32: 29 | AY32: 2009 School Grade
A33: 2010-2011 | B33: 0341 | C33: DADE | D33: ARCHCREEK ELEMENTARY SCHOOL | E33: AMERICAN INDIAN | G33: 1 | H33: NA | J33: 1 | K33: NA | M33: 0 | N33: NA | Q33: NA | S33: 0 | T33: NA | V33: 0 | W33: NA | Y33: 0 | Z33: NA | AB33: 0 | AC33: NA | AD33: A | AE33: NO | AF33: 79 | AG33: 01 | AH33: YES | AI33: NO | AJ33: 5 | AK33: NA | AL33: NA | AT33: NA | AU33: NA | AW33: AE | AX33: 30 | AY33: Adequate Yearly Progress (AYP) Status
A34: 2010-2011 | B34: 0342 | C34: DADE | D34: PINECREST ACADEMY (SOUTH CAMPUS) | E34: AMERICAN INDIAN | G34: 0 | H34: NA | J34: 0 | K34: NA | M34: 0 | N34: NA | Q34: NA | S34: 0 | T34: NA | V34: 0 | W34: NA | Y34: 0 | Z34: NA | AB34: 0 | AC34: NA | AD34: A | AE34: YES | AF34: 100 | AG34: 01 | AH34: NO | AI34: YES | AJ34: 5 | AK34: NA | AL34: NA | AT34: NA | AU34: NA | AW34: AF | AX34: 31 | AY34: School Type
A35: 2010-2011 | B35: 0361 | C35: DADE | D35: BISCAYNE GARDENS ELEMENTARY | E35: AMERICAN INDIAN | G35: 0 | H35: NA | J35: 0 | K35: NA | M35: 0 | N35: NA | Q35: NA | S35: 0 | T35: NA | V35: 0 | W35: NA | Y35: 0 | Z35: NA | AB35: 0 | AC35: NA | AD35: C | AE35: NO | AF35: 79 | AG35: 01 | AH35: YES | AI35: NO | AJ35: 5 | AK35: NA | AL35: NA | AT35: NA | AU35: NA | AW35: AG | AX35: 32 | AY35: Title I Status
A36: 2010-2011 | B36: 0400 | C36: DADE | D36: RENAISSANCE ELEMENTARY CHARTER SCHOOL | E36: AMERICAN INDIAN | G36: 0 | H36: NA | J36: 0 | K36: NA | M36: 0 | N36: NA | Q36: NA | S36: 0 | T36: NA | V36: 0 | W36: NA | Y36: 0 | Z36: NA | AB36: 0 | AC36: NA | AD36: A | AE36: YES | AF36: 100 | AG36: 01 | AH36: NO | AI36: YES | AJ36: 5 | AK36: NA | AL36: NA | AT36: NA | AU36: NA | AW36: AH | AX36: 33 | AY36: Charter School
A37: 2010-2011 | B37: 0401 | C37: DADE | D37: VAN E. BLANTON ELEMENTARY SCHOOL | E37: AMERICAN INDIAN | G37: 0 | H37: NA | J37: 0 | K37: NA | M37: 0 | N37: NA | Q37: NA | S37: 0 | T37: NA | V37: 0 | W37: NA | Y37: 0 | Z37: NA | AB37: 0 | AC37: NA | AD37: A | AE37: NO | AF37: 95 | AG37: 01 | AH37: YES | AI37: NO | AJ37: 5 | AK37: NA | AL37: NA | AT37: NA | AU37: NA | AW37: AT | AX37: 45 | AY37: Reading AYP-Method
A38: 2010-2011 | B38: 0441 | C38: DADE | D38: BLUE LAKES ELEMENTARY SCHOOL | E38: AMERICAN INDIAN | G38: 0 | H38: NA | J38: 0 | K38: NA | M38: 0 | N38: NA | Q38: NA | S38: 0 | T38: NA | V38: 0 | W38: NA | Y38: 0 | Z38: NA | AB38: 0 | AC38: NA | AD38: A | AE38: NO | AF38: 74 | AG38: 01 | AH38: YES | AI38: NO | AJ38: 5 | AK38: NA | AL38: NA | AT38: NA | AU38: NA | AW38: AU | AX38: 46 | AY38: Math AYP-Method
A39: 2010-2011 | B39: 0451 | C39: DADE | D39: DR. BOWMAN FOSTER ASHE ELEMENTARY | E39: AMERICAN INDIAN | G39: 0 | H39: NA | J39: 0 | K39: NA | M39: 0 | N39: NA | Q39: NA | S39: 0 | T39: NA | V39: 0 | W39: NA | Y39: 0 | Z39: NA | AB39: 0 | AC39: NA | AD39: A | AE39: NO | AF39: 79 | AG39: 01 | AH39: YES | AI39: NO | AJ39: 5 | AK39: NA | AL39: NA | AT39: NA | AU39: NA
A40: 2010-2011 | B40: 0461 | C40: DADE | D40: BRENTWOOD ELEMENTARY SCHOOL | E40: AMERICAN INDIAN | G40: 2 | H40: NA | J40: 2 | K40: NA | M40: 1 | N40: NA | Q40: NA | S40: 2 | T40: NA | V40: 2 | W40: NA | Y40: 2 | Z40: NA | AB40: 2 | AC40: NA | AD40: B | AE40: NO | AF40: 92 | AG40: 01 | AH40: YES | AI40: NO | AJ40: 5 | AK40: NA | AL40: NA | AT40: NA | AU40: NA
A41: 2010-2011 | B41: 0481 | C41: DADE | D41: JAMES H. BRIGHT ELEMENTARY | E41: AMERICAN INDIAN | G41: 0 | H41: NA | J41: 0 | K41: NA | M41: 0 | N41: NA | Q41: NA | S41: 0 | T41: NA | V41: 0 | W41: NA | Y41: 0 | Z41: NA | AB41: 0 | AC41: NA | AD41: A | AE41: NO | AF41: 92 | AG41: 01 | AH41: YES | AI41: NO | AJ41: 5 | AK41: NA | AL41: NA | AT41: NA | AU41: NA
A42: 2010-2011 | B42: 0510 | C42: DADE | D42: ARCHIMEDEAN ACADEMY | E42: AMERICAN INDIAN | G42: 0 | H42: NA | J42: 0 | K42: NA | M42: 0 | N42: NA | Q42: NA | S42: 0 | T42: NA | V42: 0 | W42: NA | Y42: 0 | Z42: NA | AB42: 0 | AC42: NA | AD42: A | AE42: YES | AF42: 100 | AG42: 01 | AH42: NO | AI42: YES | AJ42: 5 | AK42: NA | AL42: NA | AT42: NA | AU42: NA
A43: 2010-2011 | B43: 0520 | C43: DADE | D43: SOMERSET ACADEMY CHARTER | E43: AMERICAN INDIAN | G43: 0 | H43: NA | J43: 0 | K43: NA | M43: 0 | N43: NA | Q43: NA | S43: 0 | T43: NA | V43: 0 | W43: NA | Y43: 0 | Z43: NA | AB43: 0 | AC43: NA | AD43: A | AE43: YES | AF43: 100 | AG43: 01 | AH43: NO | AI43: YES | AJ43: 5 | AK43: NA | AL43: NA | AT43: NA | AU43: NA
A44: 2010-2011 | B44: 0521 | C44: DADE | D44: BROADMOOR ELEMENTARY SCHOOL | E44: AMERICAN INDIAN | G44: 1 | H44: NA | J44: 1 | K44: NA | M44: 0 | N44: NA | Q44: NA | S44: 1 | T44: NA | V44: 1 | W44: NA | Y44: 1 | Z44: NA | AB44: 1 | AC44: NA | AD44: C | AE44: NO | AF44: 77 | AG44: 01 | AH44: YES | AI44: NO | AJ44: 5 | AK44: NA | AL44: NA | AT44: NA | AU44: NA
A45: 2010-2011 | B45: 0561 | C45: DADE | D45: W. J. BRYAN ELEMENTARY | E45: AMERICAN INDIAN | G45: 1 | H45: NA | J45: 1 | K45: NA | M45: 0 | N45: NA | Q45: NA | S45: 0 | T45: NA | V45: 0 | W45: NA | Y45: 0 | Z45: NA | AB45: 0 | AC45: NA | AD45: D | AE45: NO | AF45: 85 | AG45: 01 | AH45: YES | AI45: NO | AJ45: 5 | AK45: NA | AL45: NA | AT45: NA | AU45: NA
A46: 2010-2011 | B46: 0600 | C46: DADE | D46: PINECREST PREPARATORY ACADEMY | E46: AMERICAN INDIAN | G46: 0 | H46: NA | J46: 0 | K46: NA | M46: 0 | N46: NA | Q46: NA | S46: 0 | T46: NA | V46: 0 | W46: NA | Y46: 0 | Z46: NA | AB46: 0 | AC46: NA | AD46: A | AE46: YES | AF46: 100 | AG46: 01 | AH46: NO | AI46: YES | AJ46: 5 | AK46: NA | AL46: NA | AT46: NA | AU46: NA
A47: 2010-2011 | B47: 0641 | C47: DADE | D47: BUNCHE PARK ELEMENTARY SCHOOL | E47: AMERICAN INDIAN | G47: 0 | H47: NA | J47: 0 | K47: NA | M47: 0 | N47: NA | Q47: NA | S47: 0 | T47: NA | V47: 0 | W47: NA | Y47: 0 | Z47: NA | AB47: 0 | AC47: NA | AD47: C | AE47: NO | AF47: 87 | AG47: 01 | AH47: YES | AI47: NO | AJ47: 5 | AK47: NA | AL47: NA | AT47: NA | AU47: NA
A48: 2010-2011 | B48: 0651 | C48: DADE | D48: CAMPBELL DRIVE ELEMENTARY SCHOOL | E48: AMERICAN INDIAN | G48: 1 | H48: NA | J48: 1 | K48: NA | M48: 0 | N48: NA | Q48: NA | S48: 1 | T48: NA | V48: 0 | W48: NA | Y48: 1 | Z48: NA | AB48: 0 | AC48: NA | AD48: C | AE48: NO | AF48: 72 | AG48: 01 | AH48: YES | AI48: NO | AJ48: 5 | AK48: NA | AL48: NA | AT48: NA | AU48: NA
A49: 2010-2011 | B49: 0661 | C49: DADE | D49: CARIBBEAN ELEMENTARY SCHOOL | E49: AMERICAN INDIAN | G49: 0 | H49: NA | J49: 0 | K49: NA | M49: 0 | N49: NA | Q49: NA | S49: 0 | T49: NA | V49: 0 | W49: NA | Y49: 0 | Z49: NA | AB49: 0 | AC49: NA | AD49: C | AE49: NO | AF49: 69 | AG49: 01 | AH49: YES | AI49: NO | AJ49: 5 | AK49: NA | AL49: NA | AT49: NA | AU49: NA
A50: 2010-2011 | B50: 0671 | C50: DADE | D50: CALUSA ELEMENTARY SCHOOL | E50: AMERICAN INDIAN | G50: 1 | H50: NA | J50: 1 | K50: NA | M50: 0 | N50: NA | Q50: NA | S50: 1 | T50: NA | V50: 1 | W50: NA | Y50: 1 | Z50: NA | AB50: 1 | AC50: NA | AD50: A | AE50: YES | AF50: 100 | AG50: 01 | AH50: NO | AI50: NO | AJ50: 5 | AK50: NA | AL50: NA | AT50: NA | AU50: NA
A51: 2010-2011 | B51: 0681 | C51: DADE | D51: CAROL CITY ELEMENTARY SCHOOL | E51: AMERICAN INDIAN | G51: 0 | H51: NA | J51: 0 | K51: NA | M51: 0 | N51: NA | Q51: NA | S51: 0 | T51: NA | V51: 0 | W51: NA | Y51: 0 | Z51: NA | AB51: 0 | AC51: NA | AD51: B | AE51: NO | AF51: 90 | AG51: 01 | AH51: YES | AI51: NO | AJ51: 5 | AK51: NA | AL51: NA | AT51: NA | AU51: NA
A52: 2010-2011 | B52: 0721 | C52: DADE | D52: GEORGE W. CARVER ELEMENTARY SCHOOL | E52: AMERICAN INDIAN | G52: 0 | H52: NA | J52: 0 | K52: NA | M52: 0 | N52: NA | Q52: NA | S52: 0 | T52: NA | V52: 0 | W52: NA | Y52: 0 | Z52: NA | AB52: 0 | AC52: NA | AD52: C | AE52: NO | AF52: 79 | AG52: 01 | AH52: YES | AI52: NO | AJ52: 5 | AK52: NA | AL52: NA | AT52: NA | AU52: NA
A53: 2010-2011 | B53: 0761 | C53: DADE | D53: FIENBERG/FISHER K-8 CENTER | E53: AMERICAN INDIAN | G53: 0 | H53: NA | J53: 0 | K53: NA | M53: 0 | N53: NA | Q53: NA | S53: 0 | T53: NA | V53: 0 | W53: NA | Y53: 0 | Z53: NA | AB53: 0 | AC53: NA | AD53: A | AE53: NO | AF53: 74 | AG53: 04 | AH53: YES | AI53: NO | AJ53: 5 | AK53: NA | AL53: NA | AT53: NA | AU53: NA
A54: 2010-2011 | B54: 0771 | C54: DADE | D54: WILLIAM A. CHAPMAN ELEMENTARY SCHOOL | E54: AMERICAN INDIAN | G54: 0 | H54: NA | J54: 0 | K54: NA | M54: 0 | N54: NA | Q54: NA | S54: 0 | T54: NA | V54: 0 | W54: NA | Y54: 0 | Z54: NA | AB54: 0 | AC54: NA | AD54: C | AE54: NO | AF54: 85 | AG54: 01 | AH54: YES | AI54: NO | AJ54: 5 | AK54: NA | AL54: NA | AT54: NA | AU54: NA
A55: 2010-2011 | B55: 0801 | C55: DADE | D55: CITRUS GROVE ELEMENTARY SCHOOL | E55: AMERICAN INDIAN | G55: 0 | H55: NA | J55: 0 | K55: NA | M55: 0 | N55: NA | Q55: NA | S55: 0 | T55: NA | V55: 0 | W55: NA | Y55: 0 | Z55: NA | AB55: 0 | AC55: NA | AD55: C | AE55: NO | AF55: 87 | AG55: 01 | AH55: YES | AI55: NO | AJ55: 5 | AK55: NA | AL55: NA | AT55: NA | AU55: NA
A56: 2010-2011 | B56: 0831 | C56: DADE | D56: CLAUDE PEPPER ELEMENTARY SCHOOL | E56: AMERICAN INDIAN | G56: 0 | H56: NA | J56: 0 | K56: NA | M56: 0 | N56: NA | Q56: NA | S56: 0 | T56: NA | V56: 0 | W56: NA | Y56: 0 | Z56: NA | AB56: 0 | AC56: NA | AD56: A | AE56: NO | AF56: 77 | AG56: 01 | AH56: YES | AI56: NO | AJ56: 5 | AK56: NA | AL56: NA | AT56: NA | AU56: NA
A57: 2010-2011 | B57: 0841 | C57: DADE | D57: COCONUT GROVE ELEMENTARY SCHOOL | E57: AMERICAN INDIAN | G57: 0 | H57: NA | J57: 0 | K57: NA | M57: 0 | N57: NA | Q57: NA | S57: 0 | T57: NA | V57: 0 | W57: NA | Y57: 0 | Z57: NA | AB57: 0 | AC57: NA | AD57: A | AE57: NO | AF57: 90 | AG57: 01 | AH57: YES | AI57: NO | AJ57: 5 | AK57: NA | AL57: NA | AT57: NA | AU57: NA
A58: 2010-2011 | B58: 0861 | C58: DADE | D58: COLONIAL DRIVE ELEMENTARY SCHOOL | E58: AMERICAN INDIAN | G58: 0 | H58: NA | J58: 0 | K58: NA | M58: 0 | N58: NA | Q58: NA | S58: 0 | T58: NA | V58: 0 | W58: NA | Y58: 0 | Z58: NA | AB58: 0 | AC58: NA | AD58: B | AE58: YES | AF58: 100 | AG58: 01 | AH58: YES | AI58: NO | AJ58: 5 | AK58: NA | AL58: NA | AT58: NA | AU58: NA
A59: 2010-2011 | B59: 0881 | C59: DADE | D59: COMSTOCK ELEMENTARY SCHOOL | E59: AMERICAN INDIAN | G59: 0 | H59: NA | J59: 0 | K59: NA | M59: 0 | N59: NA | Q59: NA | S59: 0 | T59: NA | V59: 0 | W59: NA | Y59: 0 | Z59: NA | AB59: 0 | AC59: NA | AD59: F | AE59: NO | AF59: 77 | AG59: 01 | AH59: YES | AI59: NO | AJ59: 5 | AK59: NA | AL59: NA | AT59: NA | AU59: NA
A60: 2010-2011 | B60: 0921 | C60: DADE | D60: NEVA KING COOPER EDUCATIONAL CENTER | E60: AMERICAN INDIAN | G60: 1 | H60: NA | J60: 1 | K60: NA | M60: 1 | N60: NA | P60: 0 | Q60: NA | S60: 1 | T60: NA | V60: 1 | W60: NA | Y60: 1 | Z60: NA | AB60: 1 | AC60: NA | AE60: NO | AF60: 82 | AG60: 04 | AH60: YES | AI60: NO | AJ60: 5 | AK60: NA | AL60: NA | AT60: NA | AU60: NA
A61: 2010-2011 | B61: 0950 | C61: DADE | D61: AVENTURA CITY OF EXCELLENCE SCHOOL | E61: AMERICAN INDIAN | G61: 1 | H61: NA | J61: 1 | K61: NA | M61: 1 | N61: NA | Q61: NA | S61: 1 | T61: NA | V61: 1 | W61: NA | Y61: 1 | Z61: NA | AB61: 1 | AC61: NA | AD61: A | AE61: YES | AF61: 100 | AG61: 04 | AH61: NO | AI61: YES | AJ61: 5 | AK61: NA | AL61: NA | AT61: NA | AU61: NA
A62: 2010-2011 | B62: 0961 | C62: DADE | D62: CORAL GABLES PREPARATORY ACADEMY | E62: AMERICAN INDIAN | G62: 0 | H62: NA | J62: 0 | K62: NA | M62: 0 | N62: NA | Q62: NA | S62: 0 | T62: NA | V62: 0 | W62: NA | Y62: 0 | Z62: NA | AB62: 0 | AC62: NA | AD62: A | AE62: NO | AF62: 95 | AG62: 01 | AH62: NO | AI62: NO | AJ62: 5 | AK62: NA | AL62: NA | AT62: NA | AU62: NA
A63: 2010-2011 | B63: 1001 | C63: DADE | D63: CORAL PARK ELEMENTARY SCHOOL | E63: AMERICAN INDIAN | G63: 0 | H63: NA | J63: 0 | K63: NA | M63: 0 | N63: NA | Q63: NA | S63: 0 | T63: NA | V63: 0 | W63: NA | Y63: 0 | Z63: NA | AB63: 0 | AC63: NA | AD63: A | AE63: NO | AF63: 95 | AG63: 01 | AH63: YES | AI63: NO | AJ63: 5 | AK63: NA | AL63: NA | AT63: NA | AU63: NA
A64: 2010-2011 | B64: 1010 | C64: DADE | D64: THE CHARTER SCHOOL AT WATERSTONE | E64: AMERICAN INDIAN | G64: 4 | H64: NA | J64: 4 | K64: NA | M64: 1 | N64: NA | Q64: NA | S64: 4 | T64: NA | V64: 4 | W64: NA | Y64: 4 | Z64: NA | AB64: 4 | AC64: NA | AD64: A | AE64: NO | AF64: 92 | AG64: 04 | AH64: NO | AI64: YES | AJ64: 5 | AK64: NA | AL64: NA | AT64: NA | AU64: NA
A65: 2010-2011 | B65: 1014 | C65: DADE | D65: ADVANCED LEARNING CHARTER SCHOOL | E65: AMERICAN INDIAN | G65: 0 | H65: NA | J65: 0 | K65: NA | M65: 0 | N65: NA | Q65: NA | S65: 0 | T65: NA | V65: 0 | W65: NA | Y65: 0 | Z65: NA | AB65: 0 | AC65: NA | AD65: A | AE65: NO | AF65: 85 | AG65: 01 | AH65: YES | AI65: YES | AJ65: 5 | AK65: NA | AL65: NA | AT65: NA | AU65: NA
A66: 2010-2011 | B66: 1017 | C66: DADE | D66: MATER ACADEMY OF INTERNATIONAL STUDIES | E66: AMERICAN INDIAN | G66: 0 | H66: NA | J66: 0 | K66: NA | M66: 0 | N66: NA | Q66: NA | S66: 0 | T66: NA | V66: 0 | W66: NA | Y66: 0 | Z66: NA | AB66: 0 | AC66: NA | AD66: C | AE66: NO | AF66: 90 | AG66: 01 | AH66: YES | AI66: YES | AJ66: 5 | AK66: NA | AL66: NA | AT66: NA | AU66: NA
A67: 2010-2011 | B67: 1020 | C67: DADE | D67: YOUTH CO-OP CHARTER SCHOOL | E67: AMERICAN INDIAN | G67: 2 | H67: NA | J67: 2 | K67: NA | M67: 0 | N67: NA | Q67: NA | S67: 2 | T67: NA | V67: 2 | W67: NA | Y67: 2 | Z67: NA | AB67: 2 | AC67: NA | AD67: A | AE67: NO | AF67: 90 | AG67: 04 | AH67: YES | AI67: YES | AJ67: 5 | AK67: =IF(OR(T67="NA",T67="NO"),T67,(IF(T67="","NA",IF(OR(R67>78,AND(T67="Yes",R67="")),"Yes-AB",IF(W67="NA","Yes-SH","Yes-GM"))))) -> NA | AL67: =IF(OR(Z67="NA",Z67="NO"),Z67,(IF(Z67="","NA",IF(OR(X67>79,AND(Z67="Yes",X67="")),"Yes-AB",IF(AC67="NA","Yes-SH","Yes-GM"))))) -> NA | AT67: =IF(OR(T67="NA",T67="NO"),T67,IF(OR(R67>71,AND(T67="Yes",R67="")),"Yes-AB",IF(W67="NA","Yes-SH","Yes-GM"))) -> NA | AU67: =IF(OR(Z67="NA",Z67="NO"),Z67,IF(OR(X67>73,AND(Z67="Yes",X67="")),"Yes-AB",IF(AC67="NA","Yes-SH","Yes-GM"))) -> NA
A68: 2010-2011 | B68: 1041 | C68: DADE | D68: CORAL REEF ELEMENTARY SCHOOL | E68: AMERICAN INDIAN | G68: 0 | H68: NA | J68: 0 | K68: NA | M68: 0 | N68: NA | Q68: NA | S68: 0 | T68: NA | V68: 0 | W68: NA | Y68: 0 | Z68: NA | AB68: 0 | AC68: NA | AD68: A | AE68: NO | AF68: 87 | AG68: 01 | AH68: NO | AI68: NO | AJ68: 5 | AK68: NA | AL68: NA | AT68: NA | AU68: NA
A69: 2010-2011 | B69: 1070 | C69: DADE | D69: SOUTH FLORIDA AUTISM CHARTER SCHOOL INC | E69: AMERICAN INDIAN | G69: 0 | H69: NA | J69: 0 | K69: NA | M69: 0 | N69: NA | Q69: NA | S69: 0 | T69: NA | V69: 0 | W69: NA | Y69: 0 | Z69: NA | AB69: 0 | AC69: NA | AE69: NO | AF69: 82 | AG69: 04 | AH69: NO | AI69: YES | AJ69: 5 | AK69: NA | AL69: NA | AT69: NA | AU69: NA
A70: 2010-2011 | B70: 1081 | C70: DADE | D70: CORAL TERRACE ELEMENTARY SCHOOL | E70: AMERICAN INDIAN | G70: 0 | H70: NA | J70: 0 | K70: NA | M70: 0 | N70: NA | Q70: NA | S70: 0 | T70: NA | V70: 0 | W70: NA | Y70: 0 | Z70: NA | AB70: 0 | AC70: NA | AD70: A | AE70: NO | AF70: 79 | AG70: 01 | AH70: YES | AI70: NO | AJ70: 5 | AK70: NA | AL70: NA | AT70: NA | AU70: NA
A71: 2010-2011 | B71: 1121 | C71: DADE | D71: CORAL WAY K-8 CENTER | E71: AMERICAN INDIAN | G71: 0 | H71: NA | J71: 0 | K71: NA | M71: 0 | N71: NA | Q71: NA | S71: 0 | T71: NA | V71: 0 | W71: NA | Y71: 0 | Z71: NA | AB71: 0 | AC71: NA | AD71: A | AE71: NO | AF71: 74 | AG71: 04 | AH71: YES | AI71: NO | AJ71: 5 | AK71: NA | AL71: NA | AT71: NA | AU71: NA
A72: 2010-2011 | B72: 1161 | C72: DADE | D72: CRESTVIEW ELEMENTARY SCHOOL | E72: AMERICAN INDIAN | G72: 0 | H72: NA | J72: 0 | K72: NA | M72: 0 | N72: NA | Q72: NA | S72: 0 | T72: NA | V72: 0 | W72: NA | Y72: 0 | Z72: NA | AB72: 0 | AC72: NA | AD72: C | AE72: NO | AF72: 85 | AG72: 01 | AH72: YES | AI72: NO | AJ72: 5 | AK72: NA | AL72: NA | AT72: NA | AU72: NA
A73: 2010-2011 | B73: 1241 | C73: DADE | D73: CUTLER RIDGE ELEMENTARY SCHOOL | E73: AMERICAN INDIAN | G73: 1 | H73: NA | J73: 1 | K73: NA | M73: 1 | N73: NA | Q73: NA | S73: 1 | T73: NA | V73: 1 | W73: NA | Y73: 1 | Z73: NA | AB73: 1 | AC73: NA | AD73: A | AE73: NO | AF73: 82 | AG73: 01 | AH73: YES | AI73: NO | AJ73: 5 | AK73: NA | AL73: NA | AT73: NA | AU73: NA
A74: 2010-2011 | B74: 1281 | C74: DADE | D74: CYPRESS ELEMENTARY SCHOOL | E74: AMERICAN INDIAN | G74: 0 | H74: NA | J74: 0 | K74: NA | M74: 0 | N74: NA | Q74: NA | S74: 0 | T74: NA | V74: 0 | W74: NA | Y74: 0 | Z74: NA | AB74: 0 | AC74: NA | AD74: A | AE74: NO | AF74: 97 | AG74: 01 | AH74: YES | AI74: NO | AJ74: 5 | AK74: NA | AL74: NA | AT74: NA | AU74: NA
A75: 2010-2011 | B75: 1331 | C75: DADE | D75: DEVON AIRE K-8 CENTER | E75: AMERICAN INDIAN | G75: 1 | H75: NA | J75: 1 | K75: NA | M75: 0 | N75: NA | Q75: NA | S75: 1 | T75: NA | V75: 1 | W75: NA | Y75: 1 | Z75: NA | AB75: 1 | AC75: NA | AD75: A | AE75: NO | AF75: 90 | AG75: 04 | AH75: NO | AI75: NO | AJ75: 5 | AK75: NA | AL75: NA | AT75: NA | AU75: NA
A76: 2010-2011 | B76: 1361 | C76: DADE | D76: FREDERICK R. DOUGLASS ELEMENTARY | E76: AMERICAN INDIAN | G76: 0 | H76: NA | J76: 0 | K76: NA | M76: 0 | N76: NA | Q76: NA | S76: 0 | T76: NA | V76: 0 | W76: NA | Y76: 0 | Z76: NA | AB76: 0 | AC76: NA | AD76: C | AE76: NO | AF76: 90 | AG76: 01 | AH76: YES | AI76: NO | AJ76: 5 | AK76: NA | AL76: NA | AT76: NA | AU76: NA
A77: 2010-2011 | B77: 1371 | C77: DADE | D77: MARJORY STONEMAN DOUGLAS ELEM | E77: AMERICAN INDIAN | G77: 0 | H77: NA | J77: 0 | K77: NA | M77: 0 | N77: NA | Q77: NA | S77: 0 | T77: NA | V77: 0 | W77: NA | Y77: 0 | Z77: NA | AB77: 0 | AC77: NA | AD77: A | AE77: NO | AF77: 90 | AG77: 01 | AH77: YES | AI77: NO | AJ77: 5 | AK77: NA | AL77: NA | AT77: NA | AU77: NA
A78: 2010-2011 | B78: 1401 | C78: DADE | D78: CHARLES R DREW ELEMENTARY SCHOOL | E78: AMERICAN INDIAN | G78: 0 | H78: NA | J78: 0 | K78: NA | M78: 0 | N78: NA | Q78: NA | S78: 0 | T78: NA | V78: 0 | W78: NA | Y78: 0 | Z78: NA | AB78: 0 | AC78: NA | AD78: A | AE78: NO | AF78: 92 | AG78: 01 | AH78: YES | AI78: NO | AJ78: 5 | AK78: NA | AL78: NA | AT78: NA | AU78: NA
A79: 2010-2011 | B79: 1441 | C79: DADE | D79: PAUL LAURENCE DUNBAR ELEMENTARY SCHOOL | E79: AMERICAN INDIAN | G79: 1 | H79: NA | J79: 1 | K79: NA | M79: 1 | N79: NA | Q79: NA | S79: 1 | T79: NA | V79: 1 | W79: NA | Y79: 1 | Z79: NA | AB79: 1 | AC79: NA | AD79: C | AE79: NO | AF79: 90 | AG79: 01 | AH79: YES | AI79: NO | AJ79: 5 | AK79: NA | AL79: NA | AT79: NA | AU79: NA
A80: 2010-2011 | B80: 1481 | C80: DADE | D80: JOHN G. DUPUIS ELEMENTARY SCHOOL | E80: AMERICAN INDIAN | G80: 1 | H80: NA | J80: 1 | K80: NA | M80: 0 | N80: NA | Q80: NA | S80: 0 | T80: NA | V80: 0 | W80: NA | Y80: 0 | Z80: NA | AB80: 0 | AC80: NA | AD80: A | AE80: NO | AF80: 92 | AG80: 01 | AH80: YES | AI80: NO | AJ80: 5 | AK80: NA | AL80: NA | AT80: NA | AU80: NA
A81: 2010-2011 | B81: 1521 | C81: DADE | D81: AMELIA EARHART ELEMENTARY SCHOOL | E81: AMERICAN INDIAN | G81: 1 | H81: NA | J81: 1 | K81: NA | M81: 0 | N81: NA | Q81: NA | S81: 1 | T81: NA | V81: 1 | W81: NA | Y81: 1 | Z81: NA | AB81: 1 | AC81: NA | AD81: A | AE81: NO | AF81: 85 | AG81: 01 | AH81: YES | AI81: NO | AJ81: 5 | AK81: NA | AL81: NA | AT81: NA | AU81: NA
A82: 2010-2011 | B82: 1561 | C82: DADE | D82: EARLINGTON HEIGHTS ELEMENTARY SCHOOL | E82: AMERICAN INDIAN | G82: 0 | H82: NA | J82: 0 | K82: NA | M82: 0 | N82: NA | Q82: NA | S82: 0 | T82: NA | V82: 0 | W82: NA | Y82: 0 | Z82: NA | AB82: 0 | AC82: NA | AD82: D | AE82: NO | AF82: 82 | AG82: 01 | AH82: YES | AI82: NO | AJ82: 5 | AK82: NA | AL82: NA | AT82: NA | AU82: NA
A83: 2010-2011 | B83: 1601 | C83: DADE | D83: EDISON PARK ELEMENTARY SCHOOL | E83: AMERICAN INDIAN | G83: 0 | H83: NA | J83: 0 | K83: NA | M83: 0 | N83: NA | Q83: NA | S83: 0 | T83: NA | V83: 0 | W83: NA | Y83: 0 | Z83: NA | AB83: 0 | AC83: NA | AD83: D | AE83: NO | AF83: 79 | AG83: 01 | AH83: YES | AI83: NO | AJ83: 5 | AK83: NA | AL83: NA | AT83: NA | AU83: NA
A84: 2010-2011 | B84: 1641 | C84: DADE | D84: EMERSON ELEMENTARY SCHOOL | E84: AMERICAN INDIAN | G84: 0 | H84: NA | J84: 0 | K84: NA | M84: 0 | N84: NA | Q84: NA | S84: 0 | T84: NA | V84: 0 | W84: NA | Y84: 0 | Z84: NA | AB84: 0 | AC84: NA | AD84: A | AE84: NO | AF84: 82 | AG84: 01 | AH84: YES | AI84: NO | AJ84: 5 | AK84: NA | AL84: NA | AT84: NA | AU84: NA
A85: 2010-2011 | B85: 1681 | C85: DADE | D85: LILLIE C. EVANS ELEMENTARY SCHOOL | E85: AMERICAN INDIAN | G85: 1 | H85: NA | J85: 1 | K85: NA | M85: 0 | N85: NA | Q85: NA | S85: 1 | T85: NA | V85: 1 | W85: NA | Y85: 1 | Z85: NA | AB85: 1 | AC85: NA | AD85: A | AE85: NO | AF85: 92 | AG85: 01 | AH85: YES | AI85: NO | AJ85: 5 | AK85: NA | AL85: NA | AT85: NA | AU85: NA
A86: 2010-2011 | B86: 1691 | C86: DADE | D86: CHRISTINA M. EVE ELEMENTARY SCHOOL | E86: AMERICAN INDIAN | G86: 0 | H86: NA | J86: 0 | K86: NA | M86: 0 | N86: NA | Q86: NA | S86: 0 | T86: NA | V86: 0 | W86: NA | Y86: 0 | Z86: NA | AB86: 0 | AC86: NA | AD86: A | AE86: YES | AF86: 100 | AG86: 01 | AH86: NO | AI86: NO | AJ86: 5 | AK86: NA | AL86: NA | AT86: NA | AU86: NA
A87: 2010-2011 | B87: 1721 | C87: DADE | D87: EVERGLADES K-8 CENTER | E87: AMERICAN INDIAN | G87: 0 | H87: NA | J87: 0 | K87: NA | M87: 0 | N87: NA | Q87: NA | S87: 0 | T87: NA | V87: 0 | W87: NA | Y87: 0 | Z87: NA | AB87: 0 | AC87: NA | AD87: A | AE87: NO | AF87: 79 | AG87: 04 | AH87: YES | AI87: NO | AJ87: 5 | AK87: NA | AL87: NA | AT87: NA | AU87: NA
A88: 2010-2011 | B88: 1761 | C88: DADE | D88: DAVID FAIRCHILD ELEMENTARY SCHOOL | E88: AMERICAN INDIAN | G88: 0 | H88: NA | J88: 0 | K88: NA | M88: 0 | N88: NA | Q88: NA | S88: 0 | T88: NA | V88: 0 | W88: NA | Y88: 0 | Z88: NA | AB88: 0 | AC88: NA | AD88: A | AE88: YES | AF88: 100 | AG88: 01 | AH88: NO | AI88: NO | AJ88: 5 | AK88: NA | AL88: NA | AT88: NA | AU88: NA
A89: 2010-2011 | B89: 1801 | C89: DADE | D89: FAIRLAWN ELEMENTARY SCHOOL | E89: AMERICAN INDIAN | G89: 0 | H89: NA | J89: 0 | K89: NA | M89: 0 | N89: NA | Q89: NA | S89: 0 | T89: NA | V89: 0 | W89: NA | Y89: 0 | Z89: NA | AB89: 0 | AC89: NA | AD89: A | AE89: NO | AF89: 97 | AG89: 01 | AH89: YES | AI89: NO | AJ89: 5 | AK89: NA | AL89: NA | AT89: NA | AU89: NA
A90: 2010-2011 | B90: 1811 | C90: DADE | D90: DANTE B. FASCELL ELEMENTARY SCHOOL | E90: AMERICAN INDIAN | G90: 0 | H90: NA | J90: 0 | K90: NA | M90: 0 | N90: NA | Q90: NA | S90: 0 | T90: NA | V90: 0 | W90: NA | Y90: 0 | Z90: NA | AB90: 0 | AC90: NA | AD90: A | AE90: NO | AF90: 97 | AG90: 01 | AH90: YES | AI90: NO | AJ90: 5 | AK90: NA | AL90: NA | AT90: NA | AU90: NA
A91: 2010-2011 | B91: 1841 | C91: DADE | D91: FLAGAMI ELEMENTARY SCHOOL | E91: AMERICAN INDIAN | G91: 0 | H91: NA | J91: 0 | K91: NA | M91: 0 | N91: NA | Q91: NA | S91: 0 | T91: NA | V91: 0 | W91: NA | Y91: 0 | Z91: NA | AB91: 0 | AC91: NA | AD91: A | AE91: NO | AF91: 79 | AG91: 01 | AH91: YES | AI91: NO | AJ91: 5 | AK91: NA | AL91: NA | AT91: NA | AU91: NA
A92: 2010-2011 | B92: 1881 | C92: DADE | D92: HENRY M. FLAGLER ELEMENTARY SCHOOL | E92: AMERICAN INDIAN | G92: 0 | H92: NA | J92: 0 | K92: NA | M92: 0 | N92: NA | Q92: NA | S92: 0 | T92: NA | V92: 0 | W92: NA | Y92: 0 | Z92: NA | AB92: 0 | AC92: NA | AD92: A | AE92: NO | AF92: 87 | AG92: 01 | AH92: YES | AI92: NO | AJ92: 5 | AK92: NA | AL92: NA | AT92: NA | AU92: NA
A93: 2010-2011 | B93: 1921 | C93: DADE | D93: FLAMINGO ELEMENTARY SCHOOL | E93: AMERICAN INDIAN | G93: 0 | H93: NA | J93: 0 | K93: NA | M93: 0 | N93: NA | Q93: NA | S93: 0 | T93: NA | V93: 0 | W93: NA | Y93: 0 | Z93: NA | AB93: 0 | AC93: NA | AD93: A | AE93: NO | AF93: 79 | AG93: 01 | AH93: YES | AI93: NO | AJ93: 5 | AK93: NA | AL93: NA | AT93: NA | AU93: NA
A94: 2010-2011 | B94: 2001 | C94: DADE | D94: FLORIDA CITY ELEMENTARY SCHOOL | E94: AMERICAN INDIAN | G94: 0 | H94: NA | J94: 0 | K94: NA | M94: 0 | N94: NA | Q94: NA | S94: 0 | T94: NA | V94: 0 | W94: NA | Y94: 0 | Z94: NA | AB94: 0 | AC94: NA | AD94: D | AE94: NO | AF94: 82 | AG94: 01 | AH94: YES | AI94: NO | AJ94: 5 | AK94: NA | AL94: NA | AT94: NA | AU94: NA
A95: 2010-2011 | B95: 2003 | C95: DADE | D95: BRIDGEPOINT ACADEMY | E95: AMERICAN INDIAN | G95: 0 | H95: NA | J95: 0 | K95: NA | M95: 0 | N95: NA | Q95: NA | S95: 0 | T95: NA | V95: 0 | W95: NA | Y95: 0 | Z95: NA | AB95: 0 | AC95: NA | AE95: NO | AF95: 95 | AG95: 01 | AH95: NO | AI95: YES | AJ95: 5 | AK95: NA | AL95: NA | AT95: NA | AU95: NA
A96: 2010-2011 | B96: 2006 | C96: DADE | D96: RICHARD ALLEN LEADERSHIP ACADEMY | E96: AMERICAN INDIAN | G96: 0 | H96: NA | J96: 0 | K96: NA | M96: 0 | N96: NA | Q96: NA | S96: 0 | T96: NA | V96: 0 | W96: NA | Y96: 0 | Z96: NA | AB96: 0 | AC96: NA | AD96: C | AE96: NO | AF96: 92 | AG96: 01 | AH96: YES | AI96: YES | AJ96: 5 | AK96: NA | AL96: NA | AT96: NA | AU96: NA
A97: 2010-2011 | B97: 2007 | C97: DADE | D97: SOMERSET ACADEMY ELEMENTARY SCHOOL SOUTH MIAMI CAMPUS | E97: AMERICAN INDIAN | G97: 0 | H97: NA | J97: 0 | K97: NA | M97: 0 | N97: NA | Q97: NA | S97: 0 | T97: NA | V97: 0 | W97: NA | Y97: 0 | Z97: NA | AB97: 0 | AC97: NA | AD97: A | AE97: YES | AF97: 100 | AG97: 01 | AH97: NO | AI97: YES | AJ97: 5 | AK97: NA | AL97: NA | AT97: NA | AU97: NA
A98: 2010-2011 | B98: 2012 | C98: DADE | D98: SOMERSET ARTS ACADEMY | E98: AMERICAN INDIAN | G98: 1 | H98: NA | J98: 1 | K98: NA | M98: 1 | N98: NA | Q98: NA | S98: 1 | T98: NA | V98: 1 | W98: NA | Y98: 1 | Z98: NA | AB98: 1 | AC98: NA | AD98: A | AE98: NO | AF98: 95 | AG98: 01 | AH98: NO | AI98: YES | AJ98: 5 | AK98: NA | AL98: NA | AT98: NA | AU98: NA
A99: 2010-2011 | B99: 2021 | C99: DADE | D99: GLORIA FLOYD ELEMENTARY SCHOOL | E99: AMERICAN INDIAN | G99: 1 | H99: NA | J99: 1 | K99: NA | M99: 0 | N99: NA | Q99: NA | S99: 1 | T99: NA | V99: 1 | W99: NA | Y99: 1 | Z99: NA | AB99: 1 | AC99: NA | AD99: A | AE99: NO | AF99: 79 | AG99: 01 | AH99: YES | AI99: NO | AJ99: 5 | AK99: NA | AL99: NA | AT99: NA | AU99: NA
A100: 2010-2011 | B100: 2041 | C100: DADE | D100: BENJAMIN FRANKLIN ELEMENTARY SCHOOL | E100: AMERICAN INDIAN | G100: 0 | H100: NA | J100: 0 | K100: NA | M100: 0 | N100: NA | Q100: NA | S100: 0 | T100: NA | V100: 0 | W100: NA | Y100: 0 | Z100: NA | AB100: 0 | AC100: NA | AD100: B | AE100: NO | AF100: 87 | AG100: 01 | AH100: YES | AI100: NO | AJ100: 5 | AK100: NA | AL100: NA | AT100: NA | AU100: NA
A101: 2010-2011 | B101: 2060 | C101: DADE | D101: THEODORE R. AND THELMA A. GIBSON CHARTER SCHOOL | E101: AMERICAN INDIAN | G101: 0 | H101: NA | J101: 0 | K101: NA | M101: 0 | N101: NA | P101: 0 | Q101: NA | S101: 0 | T101: NA | V101: 0 | W101: NA | Y101: 0 | Z101: NA | AB101: 0 | AC101: NA | AD101: D | AE101: NO | AF101: 90 | AG101: 04 | AH101: YES | AI101: YES | AJ101: 5 | AK101: NA | AL101: NA | AT101: NA | AU101: NA
A102: 2010-2011 | B102: 2081 | C102: DADE | D102: FULFORD ELEMENTARY SCHOOL | E102: AMERICAN INDIAN | G102: 0 | H102: NA | J102: 0 | K102: NA | M102: 0 | N102: NA | Q102: NA | S102: 0 | T102: NA | V102: 0 | W102: NA | Y102: 0 | Z102: NA | AB102: 0 | AC102: NA | AD102: C | AE102: NO | AF102: 77 | AG102: 01 | AH102: YES | AI102: NO | AJ102: 5 | AK102: NA | AL102: NA | AT102: NA | AU102: NA
A103: 2010-2011 | B103: 2111 | C103: DADE | D103: HIALEAH GARDENS ELEMENTARY SCHOOL | E103: AMERICAN INDIAN | G103: 0 | H103: NA | J103: 0 | K103: NA | M103: 0 | N103: NA | Q103: NA | S103: 0 | T103: NA | V103: 0 | W103: NA | Y103: 0 | Z103: NA | AB103: 0 | AC103: NA | AD103: A | AE103: NO | AF103: 87 | AG103: 01 | AH103: YES | AI103: NO | AJ103: 5 | AK103: NA | AL103: NA | AT103: NA | AU103: NA
A104: 2010-2011 | B104: 2151 | C104: DADE | D104: JACK DAVID GORDON ELEMENTARY SCHOOL | E104: AMERICAN INDIAN | G104: 0 | H104: NA | J104: 0 | K104: NA | M104: 0 | N104: NA | Q104: NA | S104: 0 | T104: NA | V104: 0 | W104: NA | Y104: 0 | Z104: NA | AB104: 0 | AC104: NA | AD104: A | AE104: NO | AF104: 95 | AG104: 01 | AH104: YES | AI104: NO | AJ104: 5 | AK104: NA | AL104: NA | AT104: NA | AU104: NA
A105: 2010-2011 | B105: 2161 | C105: DADE | D105: GOLDEN GLADES ELEMENTARY SCHOOL | E105: AMERICAN INDIAN | G105: 0 | H105: NA | J105: 0 | K105: NA | M105: 0 | N105: NA | Q105: NA | S105: 0 | T105: NA | V105: 0 | W105: NA | Y105: 0 | Z105: NA | AB105: 0 | AC105: NA | AD105: C | AE105: NO | AF105: 87 | AG105: 01 | AH105: YES | AI105: NO | AJ105: 5 | AK105: NA | AL105: NA | AT105: NA | AU105: NA
A106: 2010-2011 | B106: 2181 | C106: DADE | D106: JOELLA GOOD ELEMENTARY SCHOOL | E106: AMERICAN INDIAN | G106: 0 | H106: NA | J106: 0 | K106: NA | M106: 0 | N106: NA | Q106: NA | S106: 0 | T106: NA | V106: 0 | W106: NA | Y106: 0 | Z106: NA | AB106: 0 | AC106: NA | AD106: A | AE106: NO | AF106: 90 | AG106: 01 | AH106: YES | AI106: NO | AJ106: 5 | AK106: NA | AL106: NA | AT106: NA | AU106: NA
A107: 2010-2011 | B107: 2191 | C107: DADE | D107: SPANISH LAKE ELEMENTARY SCHOOL | E107: AMERICAN INDIAN | G107: 0 | H107: NA | J107: 0 | K107: NA | M107: 0 | N107: NA | Q107: NA | S107: 0 | T107: NA | V107: 0 | W107: NA | Y107: 0 | Z107: NA | AB107: 0 | AC107: NA | AD107: A | AE107: NO | AF107: 85 | AG107: 01 | AH107: YES | AI107: NO | AJ107: 5 | AK107: NA | AL107: NA | AT107: NA | AU107: NA
A108: 2010-2011 | B108: 2241 | C108: DADE | D108: GRATIGNY ELEMENTARY SCHOOL | E108: AMERICAN INDIAN | G108: 0 | H108: NA | J108: 0 | K108: NA | M108: 0 | N108: NA | Q108: NA | S108: 0 | T108: NA | V108: 0 | W108: NA | Y108: 0 | Z108: NA | AB108: 0 | AC108: NA | AD108: B | AE108: NO | AF108: 79 | AG108: 01 | AH108: YES | AI108: NO | AJ108: 5 | AK108: NA | AL108: NA | AT108: NA | AU108: NA
A109: 2010-2011 | B109: 2261 | C109: DADE | D109: GREENGLADE ELEMENTARY SCHOOL | E109: AMERICAN INDIAN | G109: 0 | H109: NA | J109: 0 | K109: NA | M109: 0 | N109: NA | Q109: NA | S109: 0 | T109: NA | V109: 0 | W109: NA | Y109: 0 | Z109: NA | AB109: 0 | AC109: NA | AD109: A | AE109: NO | AF109: 85 | AG109: 01 | AH109: YES | AI109: NO | AJ109: 5 | AK109: NA | AL109: NA | AT109: NA | AU109: NA
A110: 2010-2011 | B110: 2281 | C110: DADE | D110: GREYNOLDS PARK ELEMENTARY SCHOOL | E110: AMERICAN INDIAN | G110: 1 | H110: NA | J110: 1 | K110: NA | M110: 0 | N110: NA | Q110: NA | S110: 0 | T110: NA | V110: 0 | W110: NA | Y110: 0 | Z110: NA | AB110: 0 | AC110: NA | AD110: B | AE110: NO | AF110: 77 | AG110: 01 | AH110: YES | AI110: NO | AJ110: 5 | AK110: NA | AL110: NA | AT110: NA | AU110: NA
A111: 2010-2011 | B111: 2321 | C111: DADE | D111: GULFSTREAM ELEMENTARY SCHOOL | E111: AMERICAN INDIAN | G111: 0 | H111: NA | J111: 0 | K111: NA | M111: 0 | N111: NA | Q111: NA | S111: 0 | T111: NA | V111: 0 | W111: NA | Y111: 0 | Z111: NA | AB111: 0 | AC111: NA | AD111: C | AE111: NO | AF111: 74 | AG111: 01 | AH111: YES | AI111: NO | AJ111: 5 | AK111: NA | AL111: NA | AT111: NA | AU111: NA
A112: 2010-2011 | B112: 2331 | C112: DADE | D112: CHARLES R HADLEY ELEMENTARY SCHOOL | E112: AMERICAN INDIAN | G112: 1 | H112: NA | J112: 1 | K112: NA | M112: 0 | N112: NA | Q112: NA | S112: 1 | T112: NA | V112: 1 | W112: NA | Y112: 1 | Z112: NA | AB112: 1 | AC112: NA | AD112: A | AE112: NO | AF112: 90 | AG112: 01 | AH112: YES | AI112: NO | AJ112: 5 | AK112: NA | AL112: NA | AT112: NA | AU112: NA
A113: 2010-2011 | B113: 2341 | C113: DADE | D113: JOE HALL ELEMENTARY SCHOOL | E113: AMERICAN INDIAN | G113: 1 | H113: NA | J113: 1 | K113: NA | M113: 1 | N113: NA | Q113: NA | S113: 1 | T113: NA | V113: 1 | W113: NA | Y113: 1 | Z113: NA | AB113: 1 | AC113: NA | AD113: A | AE113: NO | AF113: 85 | AG113: 01 | AH113: YES | AI113: NO | AJ113: 5 | AK113: NA | AL113: NA | AT113: NA | AU113: NA
A114: 2010-2011 | B114: 2351 | C114: DADE | D114: ENEIDA M. HARTNER ELEMENTARY SCHOOL | E114: AMERICAN INDIAN | G114: 0 | H114: NA | J114: 0 | K114: NA | M114: 0 | N114: NA | Q114: NA | S114: 0 | T114: NA | V114: 0 | W114: NA | Y114: 0 | Z114: NA | AB114: 0 | AC114: NA | AD114: A | AE114: NO | AF114: 79 | AG114: 01 | AH114: YES | AI114: NO | AJ114: 5 | AK114: NA | AL114: NA | AT114: NA | AU114: NA
A115: 2010-2011 | B115: 2361 | C115: DADE | D115: HIALEAH ELEMENTARY SCHOOL | E115: AMERICAN INDIAN | G115: 1 | H115: NA | J115: 1 | K115: NA | M115: 0 | N115: NA | Q115: NA | S115: 1 | T115: NA | V115: 1 | W115: NA | Y115: 1 | Z115: NA | AB115: 1 | AC115: NA | AD115: B | AE115: NO | AF115: 79 | AG115: 01 | AH115: YES | AI115: NO | AJ115: 5 | AK115: NA | AL115: NA | AT115: NA | AU115: NA
A116: 2010-2011 | B116: 2371 | C116: DADE | D116: WEST HIALEAH GARDENS ELEMENTARY SCHOOL | E116: AMERICAN INDIAN | G116: 0 | H116: NA | J116: 0 | K116: NA | M116: 0 | N116: NA | Q116: NA | S116: 0 | T116: NA | V116: 0 | W116: NA | Y116: 0 | Z116: NA | AB116: 0 | AC116: NA | AD116: A | AE116: NO | AF116: 90 | AG116: 01 | AH116: YES | AI116: NO | AJ116: 5 | AK116: NA | AL116: NA | AT116: NA | AU116: NA
A117: 2010-2011 | B117: 2401 | C117: DADE | D117: HIBISCUS ELEMENTARY SCHOOL | E117: AMERICAN INDIAN | G117: 0 | H117: NA | J117: 0 | K117: NA | M117: 0 | N117: NA | Q117: NA | S117: 0 | T117: NA | V117: 0 | W117: NA | Y117: 0 | Z117: NA | AB117: 0 | AC117: NA | AD117: C | AE117: NO | AF117: 95 | AG117: 01 | AH117: YES | AI117: NO | AJ117: 5 | AK117: NA | AL117: NA | AT117: NA | AU117: NA
A118: 2010-2011 | B118: 2441 | C118: DADE | D118: VIRGINIA A BOONE-HIGHLAND OAKS SCHOOL | E118: AMERICAN INDIAN | G118: 0 | H118: NA | J118: 0 | K118: NA | M118: 0 | N118: NA | Q118: NA | S118: 0 | T118: NA | V118: 0 | W118: NA | Y118: 0 | Z118: NA | AB118: 0 | AC118: NA | AD118: A | AE118: YES | AF118: 100 | AG118: 01 | AH118: NO | AI118: NO | AJ118: 5 | AK118: NA | AL118: NA | AT118: NA | AU118: NA
A119: 2010-2011 | B119: 2501 | C119: DADE | D119: HOLMES ELEMENTARY SCHOOL | E119: AMERICAN INDIAN | G119: 0 | H119: NA | J119: 0 | K119: NA | M119: 0 | N119: NA | Q119: NA | S119: 0 | T119: NA | V119: 0 | W119: NA | Y119: 0 | Z119: NA | AB119: 0 | AC119: NA | AD119: C | AE119: NO | AF119: 85 | AG119: 01 | AH119: YES | AI119: NO | AJ119: 5 | AK119: NA | AL119: NA | AT119: NA | AU119: NA
A120: 2010-2011 | B120: 2511 | C120: DADE | D120: ZORA NEALE HURSTON ELEMENTARY SCHOOL | E120: AMERICAN INDIAN | G120: 0 | H120: NA | J120: 0 | K120: NA | M120: 0 | N120: NA | Q120: NA | S120: 0 | T120: NA | V120: 0 | W120: NA | Y120: 0 | Z120: NA | AB120: 0 | AC120: NA | AD120: A | AE120: NO | AF120: 97 | AG120: 01 | AH120: YES | AI120: NO | AJ120: 5 | AK120: NA | AL120: NA | AT120: NA | AU120: NA
A121: 2010-2011 | B121: 2521 | C121: DADE | D121: OLIVER HOOVER ELEMENTARY SCHOOL | E121: AMERICAN INDIAN | G121: 1 | H121: NA | J121: 1 | K121: NA | M121: 0 | N121: NA | Q121: NA | S121: 1 | T121: NA | V121: 1 | W121: NA | Y121: 1 | Z121: NA | AB121: 1 | AC121: NA | AD121: A | AE121: YES | AF121: 100 | AG121: 01 | AH121: YES | AI121: NO | AJ121: 5 | AK121: NA | AL121: NA | AT121: NA | AU121: NA
A122: 2010-2011 | B122: 2531 | C122: DADE | D122: THENA CROWDER ELEMENTARY SCHOOL | E122: AMERICAN INDIAN | G122: 0 | H122: NA | J122: 0 | K122: NA | M122: 0 | N122: NA | Q122: NA | S122: 0 | T122: NA | V122: 0 | W122: NA | Y122: 0 | Z122: NA | AB122: 0 | AC122: NA | AE122: NO | AF122: 95 | AG122: 01 | AH122: YES | AI122: NO | AJ122: 5 | AK122: NA | AL122: NA | AT122: NA | AU122: NA
A123: 2010-2011 | B123: 2541 | C123: DADE | D123: HOWARD DRIVE ELEMENTARY SCHOOL | E123: AMERICAN INDIAN | G123: 2 | H123: NA | J123: 2 | K123: NA | M123: 0 | N123: NA | Q123: NA | S123: 2 | T123: NA | V123: 2 | W123: NA | Y123: 2 | Z123: NA | AB123: 2 | AC123: NA | AD123: B | AE123: NO | AF123: 85 | AG123: 01 | AH123: NO | AI123: NO | AJ123: 5 | AK123: NA | AL123: NA | AT123: NA | AU123: NA
A124: 2010-2011 | B124: 2581 | C124: DADE | D124: MADIE IVES COMMUNITY ELEMENTARY SCHOOL | E124: AMERICAN INDIAN | G124: 1 | H124: NA | J124: 1 | K124: NA | M124: 0 | N124: NA | Q124: NA | S124: 1 | T124: NA | V124: 1 | W124: NA | Y124: 1 | Z124: NA | AB124: 1 | AC124: NA | AD124: A | AE124: YES | AF124: 100 | AG124: 01 | AH124: YES | AI124: NO | AJ124: 5 | AK124: NA | AL124: NA | AT124: NA | AU124: NA
A125: 2010-2011 | B125: 2641 | C125: DADE | D125: KENDALE ELEMENTARY SCHOOL | E125: AMERICAN INDIAN | G125: 0 | H125: NA | J125: 0 | K125: NA | M125: 0 | N125: NA | Q125: NA | S125: 0 | T125: NA | V125: 0 | W125: NA | Y125: 0 | Z125: NA | AB125: 0 | AC125: NA | AD125: A | AE125: NO | AF125: 97 | AG125: 01 | AH125: NO | AI125: NO | AJ125: 5 | AK125: NA | AL125: NA | AT125: NA | AU125: NA
A126: 2010-2011 | B126: 2651 | C126: DADE | D126: KENDALE LAKES ELEMENTARY SCHOOL | E126: AMERICAN INDIAN | G126: 0 | H126: NA | J126: 0 | K126: NA | M126: 0 | N126: NA | Q126: NA | S126: 0 | T126: NA | V126: 0 | W126: NA | Y126: 0 | Z126: NA | AB126: 0 | AC126: NA | AD126: A | AE126: NO | AF126: 95 | AG126: 01 | AH126: YES | AI126: NO | AJ126: 5 | AK126: NA | AL126: NA | AT126: NA | AU126: NA
A127: 2010-2011 | B127: 2661 | C127: DADE | D127: KENSINGTON PARK ELEMENTARY SCHOOL | E127: AMERICAN INDIAN | G127: 0 | H127: NA | J127: 0 | K127: NA | M127: 0 | N127: NA | Q127: NA | S127: 0 | T127: NA | V127: 0 | W127: NA | Y127: 0 | Z127: NA | AB127: 0 | AC127: NA | AD127: B | AE127: NO | AF127: 74 | AG127: 01 | AH127: YES | AI127: NO | AJ127: 5 | AK127: NA | AL127: NA | AT127: NA | AU127: NA
A128: 2010-2011 | B128: 2701 | C128: DADE | D128: KENWOOD K-8 CENTER | E128: AMERICAN INDIAN | G128: 0 | H128: NA | J128: 0 | K128: NA | M128: 0 | N128: NA | Q128: NA | S128: 0 | T128: NA | V128: 0 | W128: NA | Y128: 0 | Z128: NA | AB128: 0 | AC128: NA | AD128: A | AE128: NO | AF128: 79 | AG128: 04 | AH128: NO | AI128: NO | AJ128: 5 | AK128: NA | AL128: NA | AT128: NA | AU128: NA
A129: 2010-2011 | B129: 2741 | C129: DADE | D129: KEY BISCAYNE K-8 CENTER | E129: AMERICAN INDIAN | G129: 0 | H129: NA | J129: 0 | K129: NA | M129: 0 | N129: NA | Q129: NA | S129: 0 | T129: NA | V129: 0 | W129: NA | Y129: 0 | Z129: NA | AB129: 0 | AC129: NA | AD129: A | AE129: NO | AF129: 97 | AG129: 04 | AH129: NO | AI129: NO | AJ129: 5 | AK129: NA | AL129: NA | AT129: NA | AU129: NA
A130: 2010-2011 | B130: 2781 | C130: DADE | D130: KINLOCH PARK ELEMENTARY SCHOOL | E130: AMERICAN INDIAN | G130: 0 | H130: NA | J130: 0 | K130: NA | M130: 0 | N130: NA | Q130: NA | S130: 0 | T130: NA | V130: 0 | W130: NA | Y130: 0 | Z130: NA | AB130: 0 | AC130: NA | AD130: A | AE130: NO | AF130: 79 | AG130: 01 | AH130: YES | AI130: NO | AJ130: 5 | AK130: NA | AL130: NA | AT130: NA | AU130: NA
A131: 2010-2011 | B131: 2801 | C131: DADE | D131: LAKE STEVENS ELEMENTARY SCHOOL | E131: AMERICAN INDIAN | G131: 0 | H131: NA | J131: 0 | K131: NA | M131: 0 | N131: NA | Q131: NA | S131: 0 | T131: NA | V131: 0 | W131: NA | Y131: 0 | Z131: NA | AB131: 0 | AC131: NA | AD131: C | AE131: NO | AF131: 95 | AG131: 01 | AH131: YES | AI131: NO | AJ131: 5 | AK131: =IF(OR(T131="NA",T131="NO"),T131,(IF(T131="","NA",IF(OR(R131>78,AND(T131="Yes",R131="")),"Yes-AB",IF(W131="NA","Yes-SH","Yes-GM"))))) -> NA | AL131: =IF(OR(Z131="NA",Z131="NO"),Z131,(IF(Z131="","NA",IF(OR(X131>79,AND(Z131="Yes",X131="")),"Yes-AB",IF(AC131="NA","Yes-SH","Yes-GM"))))) -> NA | AT131: =IF(OR(T131="NA",T131="NO"),T131,IF(OR(R131>71,AND(T131="Yes",R131="")),"Yes-AB",IF(W131="NA","Yes-SH","Yes-GM"))) -> NA | AU131: =IF(OR(Z131="NA",Z131="NO"),Z131,IF(OR(X131>73,AND(Z131="Yes",X131="")),"Yes-AB",IF(AC131="NA","Yes-SH","Yes-GM"))) -> NA
A132: 2010-2011 | B132: 2821 | C132: DADE | D132: LAKEVIEW ELEMENTARY SCHOOL | E132: AMERICAN INDIAN | G132: 1 | H132: NA | J132: 1 | K132: NA | M132: 1 | N132: NA | Q132: NA | S132: 1 | T132: NA | V132: 0 | W132: NA | Y132: 1 | Z132: NA | AB132: 0 | AC132: NA | AD132: A | AE132: NO | AF132: 82 | AG132: 01 | AH132: YES | AI132: NO | AJ132: 5 | AK132: NA | AL132: NA | AT132: NA | AU132: NA
A133: 2010-2011 | B133: 2861 | C133: DADE | D133: YOUNG WOMENS ACADEMY FOR ACADEMIC AND CIVIC DEVELOPMENT AT J.R.E. LEE OPPORTUNITY SCHOOL | E133: AMERICAN INDIAN | G133: 0 | H133: NA | J133: 0 | K133: NA | M133: 0 | N133: NA | P133: 0 | Q133: NA | S133: 0 | T133: NA | V133: 0 | W133: NA | Y133: 0 | Z133: NA | AB133: 0 | AC133: NA | AE133: NO | AF133: 77 | AG133: 04 | AH133: YES | AI133: NO | AJ133: 5 | AK133: NA | AL133: NA | AT133: NA | AU133: NA
A134: 2010-2011 | B134: 2881 | C134: DADE | D134: LEEWOOD K-8 CENTER | E134: AMERICAN INDIAN | G134: 2 | H134: NA | J134: 2 | K134: NA | M134: 1 | N134: NA | Q134: NA | S134: 2 | T134: NA | V134: 2 | W134: NA | Y134: 2 | Z134: NA | AB134: 2 | AC134: NA | AD134: A | AE134: NO | AF134: 97 | AG134: 04 | AH134: NO | AI134: NO | AJ134: 5 | AK134: NA | AL134: NA | AT134: NA | AU134: NA
A135: 2010-2011 | B135: 2891 | C135: DADE | D135: WILLIAM H. LEHMAN ELEMENTARY SCHOOL | E135: AMERICAN INDIAN | G135: 1 | H135: NA | J135: 1 | K135: NA | M135: 0 | N135: NA | Q135: NA | S135: 1 | T135: NA | V135: 1 | W135: NA | Y135: 1 | Z135: NA | AB135: 1 | AC135: NA | AD135: A | AE135: NO | AF135: 97 | AG135: 01 | AH135: NO | AI135: NO | AJ135: 5 | AK135: NA | AL135: NA | AT135: NA | AU135: NA
A136: 2010-2011 | B136: 2901 | C136: DADE | D136: LEISURE CITY K-8 CENTER | E136: AMERICAN INDIAN | G136: 1 | H136: NA | J136: 1 | K136: NA | M136: 0 | N136: NA | Q136: NA | S136: 1 | T136: NA | V136: 1 | W136: NA | Y136: 1 | Z136: NA | AB136: 1 | AC136: NA | AD136: C | AE136: NO | AF136: 82 | AG136: 04 | AH136: YES | AI136: NO | AJ136: 5 | AK136: NA | AL136: NA | AT136: NA | AU136: NA
A137: 2010-2011 | B137: 2911 | C137: DADE | D137: LINDA LENTIN K-8 CENTER | E137: AMERICAN INDIAN | G137: 0 | H137: NA | J137: 0 | K137: NA | M137: 0 | N137: NA | Q137: NA | S137: 0 | T137: NA | V137: 0 | W137: NA | Y137: 0 | Z137: NA | AB137: 0 | AC137: NA | AD137: A | AE137: NO | AF137: 90 | AG137: 04 | AH137: YES | AI137: NO | AJ137: 5 | AK137: NA | AL137: NA | AT137: NA | AU137: NA
A138: 2010-2011 | B138: 2941 | C138: DADE | D138: LAURA C. SAUNDERS ELEMENTARY SCHOOL | E138: AMERICAN INDIAN | G138: 0 | H138: NA | J138: 0 | K138: NA | M138: 0 | N138: NA | Q138: NA | S138: 0 | T138: NA | V138: 0 | W138: NA | Y138: 0 | Z138: NA | AB138: 0 | AC138: NA | AD138: D | AE138: NO | AF138: 72 | AG138: 01 | AH138: YES | AI138: NO | AJ138: 5 | AK138: NA | AL138: NA | AT138: NA | AU138: NA
A139: 2010-2011 | B139: 2981 | C139: DADE | D139: LIBERTY CITY ELEMENTARY SCHOOL | E139: AMERICAN INDIAN | G139: 0 | H139: NA | J139: 0 | K139: NA | M139: 0 | N139: NA | Q139: NA | S139: 0 | T139: NA | V139: 0 | W139: NA | Y139: 0 | Z139: NA | AB139: 0 | AC139: NA | AD139: C | AE139: NO | AF139: 85 | AG139: 01 | AH139: YES | AI139: NO | AJ139: 5 | AK139: NA | AL139: NA | AT139: NA | AU139: NA
A140: 2010-2011 | B140: 3021 | C140: DADE | D140: JESSE J. MCCRARY, JR. ELEMENTARY SCHOOL | E140: AMERICAN INDIAN | G140: 0 | H140: NA | J140: 0 | K140: NA | M140: 0 | N140: NA | Q140: NA | S140: 0 | T140: NA | V140: 0 | W140: NA | Y140: 0 | Z140: NA | AB140: 0 | AC140: NA | AD140: C | AE140: NO | AF140: 90 | AG140: 01 | AH140: YES | AI140: NO | AJ140: 5 | AK140: NA | AL140: NA | AT140: NA | AU140: NA
A141: 2010-2011 | B141: 3024 | C141: DADE | D141: FLORIDA INTERNATIONAL ELEMENTARY ACADEMY | E141: AMERICAN INDIAN | G141: 0 | H141: NA | J141: 0 | K141: NA | M141: 0 | N141: NA | Q141: NA | S141: 0 | T141: NA | V141: 0 | W141: NA | Y141: 0 | Z141: NA | AB141: 0 | AC141: NA | AD141: F | AE141: NO | AF141: 82 | AG141: 01 | AH141: NO | AI141: YES | AJ141: 5 | AK141: NA | AL141: NA | AT141: NA | AU141: NA
A142: 2010-2011 | B142: 3030 | C142: DADE | D142: DORAL ACADEMY | E142: AMERICAN INDIAN | G142: 1 | H142: NA | J142: 1 | K142: NA | M142: 0 | N142: NA | Q142: NA | S142: 1 | T142: NA | V142: 1 | W142: NA | Y142: 1 | Z142: NA | AB142: 1 | AC142: NA | AD142: A | AE142: YES | AF142: 100 | AG142: 01 | AH142: NO | AI142: YES | AJ142: 5 | AK142: NA | AL142: NA | AT142: NA | AU142: NA
A143: 2010-2011 | B143: 3041 | C143: DADE | D143: LORAH PARK ELEMENTARY SCHOOL | E143: AMERICAN INDIAN | G143: 0 | H143: NA | J143: 0 | K143: NA | M143: 0 | N143: NA | Q143: NA | S143: 0 | T143: NA | V143: 0 | W143: NA | Y143: 0 | Z143: NA | AB143: 0 | AC143: NA | AD143: C | AE143: NO | AF143: 79 | AG143: 01 | AH143: YES | AI143: NO | AJ143: 5 | AK143: NA | AL143: NA | AT143: NA | AU143: NA
A144: 2010-2011 | B144: 3051 | C144: DADE | D144: TOUSSAINT L'OUVERTURE ELEMENTARY | E144: AMERICAN INDIAN | G144: 0 | H144: NA | J144: 0 | K144: NA | M144: 0 | N144: NA | Q144: NA | S144: 0 | T144: NA | V144: 0 | W144: NA | Y144: 0 | Z144: NA | AB144: 0 | AC144: NA | AD144: C | AE144: NO | AF144: 79 | AG144: 01 | AH144: YES | AI144: NO | AJ144: 5 | AK144: NA | AL144: NA | AT144: NA | AU144: NA
A145: 2010-2011 | B145: 3061 | C145: DADE | D145: LUDLAM ELEMENTARY SCHOOL | E145: AMERICAN INDIAN | G145: 2 | H145: NA | J145: 2 | K145: NA | M145: 1 | N145: NA | Q145: NA | S145: 2 | T145: NA | V145: 1 | W145: NA | Y145: 2 | Z145: NA | AB145: 1 | AC145: NA | AD145: A | AE145: NO | AF145: 82 | AG145: 01 | AH145: NO | AI145: NO | AJ145: 5 | AK145: NA | AL145: NA | AT145: NA | AU145: NA
A146: 2010-2011 | B146: 3100 | C146: DADE | D146: MATER ACADEMY EAST CHARTER | E146: AMERICAN INDIAN | G146: 0 | H146: NA | J146: 0 | K146: NA | M146: 0 | N146: NA | Q146: NA | S146: 0 | T146: NA | V146: 0 | W146: NA | Y146: 0 | Z146: NA | AB146: 0 | AC146: NA | AD146: A | AE146: NO | AF146: 97 | AG146: 01 | AH146: YES | AI146: YES | AJ146: 5 | AK146: NA | AL146: NA | AT146: NA | AU146: NA
A147: 2010-2011 | B147: 3101 | C147: DADE | D147: FRANK CRAWFORD MARTIN K-8 CENTER | E147: AMERICAN INDIAN | G147: 2 | H147: NA | J147: 2 | K147: NA | M147: 1 | N147: NA | Q147: NA | S147: 2 | T147: NA | V147: 2 | W147: NA | Y147: 2 | Z147: NA | AB147: 2 | AC147: NA | AD147: A | AE147: YES | AF147: 100 | AG147: 04 | AH147: NO | AI147: NO | AJ147: 5 | AK147: NA | AL147: NA | AT147: NA | AU147: NA
A148: 2010-2011 | B148: 3111 | C148: DADE | D148: WESLEY MATTHEWS ELEMENTARY SCHOOL | E148: AMERICAN INDIAN | G148: 0 | H148: NA | J148: 0 | K148: NA | M148: 0 | N148: NA | Q148: NA | S148: 0 | T148: NA | V148: 0 | W148: NA | Y148: 0 | Z148: NA | AB148: 0 | AC148: NA | AD148: A | AE148: YES | AF148: 100 | AG148: 01 | AH148: YES | AI148: NO | AJ148: 5 | AK148: NA | AL148: NA | AT148: NA | AU148: NA
A149: 2010-2011 | B149: 3141 | C149: DADE | D149: MEADOWLANE ELEMENTARY SCHOOL | E149: AMERICAN INDIAN | G149: 0 | H149: NA | J149: 0 | K149: NA | M149: 0 | N149: NA | Q149: NA | S149: 0 | T149: NA | V149: 0 | W149: NA | Y149: 0 | Z149: NA | AB149: 0 | AC149: NA | AD149: A | AE149: NO | AF149: 79 | AG149: 01 | AH149: YES | AI149: NO | AJ149: 5 | AK149: NA | AL149: NA | AT149: NA | AU149: NA
A150: 2010-2011 | B150: 3181 | C150: DADE | D150: MELROSE ELEMENTARY SCHOOL | E150: AMERICAN INDIAN | G150: 0 | H150: NA | J150: 0 | K150: NA | M150: 0 | N150: NA | Q150: NA | S150: 0 | T150: NA | V150: 0 | W150: NA | Y150: 0 | Z150: NA | AB150: 0 | AC150: NA | AD150: C | AE150: NO | AF150: 77 | AG150: 01 | AH150: YES | AI150: NO | AJ150: 5 | AK150: NA | AL150: NA | AT150: NA | AU150: NA
A151: 2010-2011 | B151: 3191 | C151: DADE | D151: ADA MERRITT K-8 CENTER | E151: AMERICAN INDIAN | G151: 0 | H151: NA | J151: 0 | K151: NA | M151: 0 | N151: NA | Q151: NA | S151: 0 | T151: NA | V151: 0 | W151: NA | Y151: 0 | Z151: NA | AB151: 0 | AC151: NA | AD151: A | AE151: YES | AF151: 100 | AG151: 04 | AH151: NO | AI151: NO | AJ151: 5 | AK151: NA | AL151: NA | AT151: NA | AU151: NA
A152: 2010-2011 | B152: 3241 | C152: DADE | D152: MIAMI GARDENS ELEMENTARY SCHOOL | E152: AMERICAN INDIAN | G152: 0 | H152: NA | J152: 0 | K152: NA | M152: 0 | N152: NA | Q152: NA | S152: 0 | T152: NA | V152: 0 | W152: NA | Y152: 0 | Z152: NA | AB152: 0 | AC152: NA | AD152: B | AE152: NO | AF152: 74 | AG152: 01 | AH152: YES | AI152: NO | AJ152: 5 | AK152: NA | AL152: NA | AT152: NA | AU152: NA
A153: 2010-2011 | B153: 3261 | C153: DADE | D153: MIAMI HEIGHTS ELEMENTARY SCHOOL | E153: AMERICAN INDIAN | G153: 2 | H153: NA | J153: 2 | K153: NA | M153: 0 | N153: NA | Q153: NA | S153: 2 | T153: NA | V153: 2 | W153: NA | Y153: 2 | Z153: NA | AB153: 2 | AC153: NA | AD153: B | AE153: NO | AF153: 74 | AG153: 01 | AH153: YES | AI153: NO | AJ153: 5 | AK153: NA | AL153: NA | AT153: NA | AU153: NA
A154: 2010-2011 | B154: 3281 | C154: DADE | D154: MIAMI LAKES K-8 CENTER | E154: AMERICAN INDIAN | G154: 2 | H154: NA | J154: 2 | K154: NA | M154: 1 | N154: NA | Q154: NA | S154: 2 | T154: NA | V154: 2 | W154: NA | Y154: 2 | Z154: NA | AB154: 2 | AC154: NA | AD154: A | AE154: NO | AF154: 82 | AG154: 04 | AH154: NO | AI154: NO | AJ154: 5 | AK154: NA | AL154: NA | AT154: NA | AU154: NA
A155: 2010-2011 | B155: 3301 | C155: DADE | D155: MIAMI PARK ELEMENTARY SCHOOL | E155: AMERICAN INDIAN | G155: 0 | H155: NA | J155: 0 | K155: NA | M155: 0 | N155: NA | Q155: NA | S155: 0 | T155: NA | V155: 0 | W155: NA | Y155: 0 | Z155: NA | AB155: 0 | AC155: NA | AD155: D | AE155: NO | AF155: 72 | AG155: 01 | AH155: YES | AI155: NO | AJ155: 5 | AK155: NA | AL155: NA | AT155: NA | AU155: NA
A156: 2010-2011 | B156: 3341 | C156: DADE | D156: MIAMI SHORES ELEMENTARY SCHOOL | E156: AMERICAN INDIAN | G156: 1 | H156: NA | J156: 1 | K156: NA | M156: 1 | N156: NA | Q156: NA | S156: 1 | T156: NA | V156: 1 | W156: NA | Y156: 1 | Z156: NA | AB156: 1 | AC156: NA | AD156: A | AE156: NO | AF156: 87 | AG156: 01 | AH156: YES | AI156: NO | AJ156: 5 | AK156: NA | AL156: NA | AT156: NA | AU156: NA
A157: 2010-2011 | B157: 3381 | C157: DADE | D157: MIAMI SPRINGS ELEMENTARY SCHOOL | E157: AMERICAN INDIAN | G157: 0 | H157: NA | J157: 0 | K157: NA | M157: 0 | N157: NA | Q157: NA | S157: 0 | T157: NA | V157: 0 | W157: NA | Y157: 0 | Z157: NA | AB157: 0 | AC157: NA | AD157: A | AE157: NO | AF157: 92 | AG157: 01 | AH157: YES | AI157: NO | AJ157: 5 | AK157: NA | AL157: NA | AT157: NA | AU157: NA
A158: 2010-2011 | B158: 3421 | C158: DADE | D158: MARCUS A. MILAM K-8 CENTER | E158: AMERICAN INDIAN | G158: 0 | H158: NA | J158: 0 | K158: NA | M158: 0 | N158: NA | Q158: NA | S158: 0 | T158: NA | V158: 0 | W158: NA | Y158: 0 | Z158: NA | AB158: 0 | AC158: NA | AD158: B | AE158: NO | AF158: 74 | AG158: 04 | AH158: YES | AI158: NO | AJ158: 5 | AK158: NA | AL158: NA | AT158: NA | AU158: NA
A159: 2010-2011 | B159: 3431 | C159: DADE | D159: PHYLLIS R. MILLER ELEMENTARY SCHOOL | E159: AMERICAN INDIAN | G159: 0 | H159: NA | J159: 0 | K159: NA | M159: 0 | N159: NA | Q159: NA | S159: 0 | T159: NA | V159: 0 | W159: NA | Y159: 0 | Z159: NA | AB159: 0 | AC159: NA | AD159: B | AE159: NO | AF159: 82 | AG159: 01 | AH159: YES | AI159: NO | AJ159: 5 | AK159: NA | AL159: NA | AT159: NA | AU159: NA
A160: 2010-2011 | B160: 3501 | C160: DADE | D160: MORNINGSIDE ELEMENTARY SCHOOL | E160: AMERICAN INDIAN | G160: 0 | H160: NA | J160: 0 | K160: NA | M160: 0 | N160: NA | Q160: NA | S160: 0 | T160: NA | V160: 0 | W160: NA | Y160: 0 | Z160: NA | AB160: 0 | AC160: NA | AD160: A | AE160: NO | AF160: 87 | AG160: 01 | AH160: YES | AI160: NO | AJ160: 5 | AK160: NA | AL160: NA | AT160: NA | AU160: NA
A161: 2010-2011 | B161: 3541 | C161: DADE | D161: ROBERT RUSSA MOTON ELEMENTARY SCHOOL | E161: AMERICAN INDIAN | G161: 0 | H161: NA | J161: 0 | K161: NA | M161: 0 | N161: NA | Q161: NA | S161: 0 | T161: NA | V161: 0 | W161: NA | Y161: 0 | Z161: NA | AB161: 0 | AC161: NA | AD161: D | AE161: NO | AF161: 82 | AG161: 01 | AH161: YES | AI161: NO | AJ161: 5 | AK161: NA | AL161: NA | AT161: NA | AU161: NA
A162: 2010-2011 | B162: 3581 | C162: DADE | D162: MYRTLE GROVE ELEMENTARY SCHOOL | E162: AMERICAN INDIAN | G162: 0 | H162: NA | J162: 0 | K162: NA | M162: 0 | N162: NA | Q162: NA | S162: 0 | T162: NA | V162: 0 | W162: NA | Y162: 0 | Z162: NA | AB162: 0 | AC162: NA | AD162: D | AE162: NO | AF162: 82 | AG162: 01 | AH162: YES | AI162: NO | AJ162: 5 | AK162: NA | AL162: NA | AT162: NA | AU162: NA
A163: 2010-2011 | B163: 3600 | C163: DADE | D163: DOWNTOWN MIAMI CHARTER SCHOOL | E163: AMERICAN INDIAN | G163: 0 | H163: NA | J163: 0 | K163: NA | M163: 0 | N163: NA | Q163: NA | S163: 0 | T163: NA | V163: 0 | W163: NA | Y163: 0 | Z163: NA | AB163: 0 | AC163: NA | AD163: B | AE163: NO | AF163: 90 | AG163: 01 | AH163: YES | AI163: YES | AJ163: 5 | AK163: NA | AL163: NA | AT163: NA | AU163: NA
A164: 2010-2011 | B164: 3610 | C164: DADE | D164: KEYS GATE CHARTER SCHOOL | E164: AMERICAN INDIAN | G164: 2 | H164: NA | J164: 2 | K164: NA | M164: 0 | N164: NA | Q164: NA | S164: 2 | T164: NA | V164: 2 | W164: NA | Y164: 2 | Z164: NA | AB164: 2 | AC164: NA | AD164: B | AE164: NO | AF164: 77 | AG164: 04 | AH164: NO | AI164: YES | AJ164: 5 | AK164: NA | AL164: NA | AT164: NA | AU164: NA
A165: 2010-2011 | B165: 3621 | C165: DADE | D165: COCONUT PALM K-8 ACADEMY | E165: AMERICAN INDIAN | G165: 1 | H165: NA | J165: 1 | K165: NA | M165: 0 | N165: NA | Q165: NA | S165: 1 | T165: NA | V165: 0 | W165: NA | Y165: 1 | Z165: NA | AB165: 0 | AC165: NA | AD165: B | AE165: NO | AF165: 72 | AG165: 04 | AH165: YES | AI165: NO | AJ165: 5 | AK165: NA | AL165: NA | AT165: NA | AU165: NA
A166: 2010-2011 | B166: 3661 | C166: DADE | D166: NATURAL BRIDGE ELEMENTARY SCHOOL | E166: AMERICAN INDIAN | G166: 0 | H166: NA | J166: 0 | K166: NA | M166: 0 | N166: NA | Q166: NA | S166: 0 | T166: NA | V166: 0 | W166: NA | Y166: 0 | Z166: NA | AB166: 0 | AC166: NA | AD166: A | AE166: NO | AF166: 79 | AG166: 01 | AH166: YES | AI166: NO | AJ166: 5 | AK166: NA | AL166: NA | AT166: NA | AU166: NA
A167: 2010-2011 | B167: 3701 | C167: DADE | D167: NORLAND ELEMENTARY SCHOOL | E167: AMERICAN INDIAN | G167: 0 | H167: NA | J167: 0 | K167: NA | M167: 0 | N167: NA | Q167: NA | S167: 0 | T167: NA | V167: 0 | W167: NA | Y167: 0 | Z167: NA | AB167: 0 | AC167: NA | AD167: B | AE167: YES | AF167: 100 | AG167: 01 | AH167: YES | AI167: NO | AJ167: 5 | AK167: NA | AL167: NA | AT167: NA | AU167: NA
A168: 2010-2011 | B168: 3741 | C168: DADE | D168: NORTH BEACH ELEMENTARY SCHOOL | E168: AMERICAN INDIAN | G168: 0 | H168: NA | J168: 0 | K168: NA | M168: 0 | N168: NA | Q168: NA | S168: 0 | T168: NA | V168: 0 | W168: NA | Y168: 0 | Z168: NA | AB168: 0 | AC168: NA | AD168: A | AE168: NO | AF168: 97 | AG168: 01 | AH168: NO | AI168: NO | AJ168: 5 | AK168: NA | AL168: NA | AT168: NA | AU168: NA
A169: 2010-2011 | B169: 3781 | C169: DADE | D169: BARBARA HAWKINS ELEMENTARY SCHOOL | E169: AMERICAN INDIAN | G169: 0 | H169: NA | J169: 0 | K169: NA | M169: 0 | N169: NA | Q169: NA | S169: 0 | T169: NA | V169: 0 | W169: NA | Y169: 0 | Z169: NA | AB169: 0 | AC169: NA | AD169: C | AE169: NO | AF169: 92 | AG169: 01 | AH169: YES | AI169: NO | AJ169: 5 | AK169: NA | AL169: NA | AT169: NA | AU169: NA
A170: 2010-2011 | B170: 3821 | C170: DADE | D170: NORTH COUNTY ELEMENTARY SCHOOL | E170: AMERICAN INDIAN | G170: 0 | H170: NA | J170: 0 | K170: NA | M170: 0 | N170: NA | Q170: NA | S170: 0 | T170: NA | V170: 0 | W170: NA | Y170: 0 | Z170: NA | AB170: 0 | AC170: NA | AD170: C | AE170: YES | AF170: 100 | AG170: 01 | AH170: YES | AI170: NO | AJ170: 5 | AK170: NA | AL170: NA | AT170: NA | AU170: NA
A171: 2010-2011 | B171: 3861 | C171: DADE | D171: NORTH GLADE ELEMENTARY SCHOOL | E171: AMERICAN INDIAN | G171: 0 | H171: NA | J171: 0 | K171: NA | M171: 0 | N171: NA | Q171: NA | S171: 0 | T171: NA | V171: 0 | W171: NA | Y171: 0 | Z171: NA | AB171: 0 | AC171: NA | AD171: A | AE171: NO | AF171: 79 | AG171: 01 | AH171: YES | AI171: NO | AJ171: 5 | AK171: NA | AL171: NA | AT171: NA | AU171: NA
A172: 2010-2011 | B172: 3901 | C172: DADE | D172: NORTH HIALEAH ELEMENTARY SCHOOL | E172: AMERICAN INDIAN | G172: 0 | H172: NA | J172: 0 | K172: NA | M172: 0 | N172: NA | Q172: NA | S172: 0 | T172: NA | V172: 0 | W172: NA | Y172: 0 | Z172: NA | AB172: 0 | AC172: NA | AD172: B | AE172: NO | AF172: 82 | AG172: 01 | AH172: YES | AI172: NO | AJ172: 5 | AK172: NA | AL172: NA | AT172: NA | AU172: NA
A173: 2010-2011 | B173: 3941 | C173: DADE | D173: NORTH MIAMI ELEMENTARY SCHOOL | E173: AMERICAN INDIAN | G173: 1 | H173: NA | J173: 1 | K173: NA | M173: 0 | N173: NA | Q173: NA | S173: 1 | T173: NA | V173: 1 | W173: NA | Y173: 1 | Z173: NA | AB173: 1 | AC173: NA | AD173: C | AE173: NO | AF173: 79 | AG173: 01 | AH173: YES | AI173: NO | AJ173: 5 | AK173: NA | AL173: NA | AT173: NA | AU173: NA
A174: 2010-2011 | B174: 3981 | C174: DADE | D174: NORTH TWIN LAKES ELEMENTARY SCHOOL | E174: AMERICAN INDIAN | G174: 0 | H174: NA | J174: 0 | K174: NA | M174: 0 | N174: NA | Q174: NA | S174: 0 | T174: NA | V174: 0 | W174: NA | Y174: 0 | Z174: NA | AB174: 0 | AC174: NA | AD174: A | AE174: NO | AF174: 85 | AG174: 01 | AH174: YES | AI174: NO | AJ174: 5 | AK174: NA | AL174: NA | AT174: NA | AU174: NA
A175: 2010-2011 | B175: 4000 | C175: DADE | D175: MIAMI CHILDREN'S MUSEUM CHARTER SCHOOL | E175: AMERICAN INDIAN | G175: 0 | H175: NA | J175: 0 | K175: NA | M175: 0 | N175: NA | Q175: NA | S175: 0 | T175: NA | V175: 0 | W175: NA | Y175: 0 | Z175: NA | AB175: 0 | AC175: NA | AE175: NO | AF175: 90 | AG175: 01 | AH175: NO | AI175: YES | AJ175: 5 | AK175: NA | AL175: NA | AT175: NA | AU175: NA
A176: 2010-2011 | B176: 4001 | C176: DADE | D176: NORWOOD ELEMENTARY SCHOOL | E176: AMERICAN INDIAN | G176: 0 | H176: NA | J176: 0 | K176: NA | M176: 0 | N176: NA | Q176: NA | S176: 0 | T176: NA | V176: 0 | W176: NA | Y176: 0 | Z176: NA | AB176: 0 | AC176: NA | AD176: A | AE176: NO | AF176: 95 | AG176: 01 | AH176: YES | AI176: NO | AJ176: 5 | AK176: NA | AL176: NA | AT176: NA | AU176: NA
A177: 2010-2011 | B177: 4021 | C177: DADE | D177: OAK GROVE ELEMENTARY SCHOOL | E177: AMERICAN INDIAN | G177: 0 | H177: NA | J177: 0 | K177: NA | M177: 0 | N177: NA | Q177: NA | S177: 0 | T177: NA | V177: 0 | W177: NA | Y177: 0 | Z177: NA | AB177: 0 | AC177: NA | AD177: B | AE177: NO | AF177: 82 | AG177: 01 | AH177: YES | AI177: NO | AJ177: 5 | AK177: NA | AL177: NA | AT177: NA | AU177: NA
A178: 2010-2011 | B178: 4031 | C178: DADE | D178: GATEWAY ENVIRONMENTAL K-8 LEARNING CENTER | E178: AMERICAN INDIAN | G178: 1 | H178: NA | J178: 1 | K178: NA | M178: 0 | N178: NA | Q178: NA | S178: 1 | T178: NA | V178: 1 | W178: NA | Y178: 1 | Z178: NA | AB178: 1 | AC178: NA | AD178: C | AE178: NO | AF178: 72 | AG178: 01 | AH178: YES | AI178: NO | AJ178: 5 | AK178: NA | AL178: NA | AT178: NA | AU178: NA
A179: 2010-2011 | B179: 4061 | C179: DADE | D179: OJUS ELEMENTARY SCHOOL | E179: AMERICAN INDIAN | G179: 2 | H179: NA | J179: 2 | K179: NA | M179: 0 | N179: NA | Q179: NA | S179: 2 | T179: NA | V179: 2 | W179: NA | Y179: 2 | Z179: NA | AB179: 2 | AC179: NA | AD179: A | AE179: NO | AF179: 87 | AG179: 01 | AH179: YES | AI179: NO | AJ179: 5 | AK179: NA | AL179: NA | AT179: NA | AU179: NA
A180: 2010-2011 | B180: 4071 | C180: DADE | D180: OLINDA ELEMENTARY SCHOOL | E180: AMERICAN INDIAN | G180: 0 | H180: NA | J180: 0 | K180: NA | M180: 0 | N180: NA | Q180: NA | S180: 0 | T180: NA | V180: 0 | W180: NA | Y180: 0 | Z180: NA | AB180: 0 | AC180: NA | AD180: C | AE180: NO | AF180: 97 | AG180: 01 | AH180: YES | AI180: NO | AJ180: 5 | AK180: NA | AL180: NA | AT180: NA | AU180: NA
A181: 2010-2011 | B181: 4091 | C181: DADE | D181: OLYMPIA HEIGHTS ELEMENTARY SCHOOL | E181: AMERICAN INDIAN | G181: 0 | H181: NA | J181: 0 | K181: NA | M181: 0 | N181: NA | Q181: NA | S181: 0 | T181: NA | V181: 0 | W181: NA | Y181: 0 | Z181: NA | AB181: 0 | AC181: NA | AD181: C | AE181: NO | AF181: 74 | AG181: 01 | AH181: YES | AI181: NO | AJ181: 5 | AK181: NA | AL181: NA | AT181: NA | AU181: NA
A182: 2010-2011 | B182: 4121 | C182: DADE | D182: DR. ROBERT B. INGRAM/OPA-LOCKA ELEMENTARY SCHOOL | E182: AMERICAN INDIAN | G182: 0 | H182: NA | J182: 0 | K182: NA | M182: 0 | N182: NA | Q182: NA | S182: 0 | T182: NA | V182: 0 | W182: NA | Y182: 0 | Z182: NA | AB182: 0 | AC182: NA | AD182: D | AE182: NO | AF182: 77 | AG182: 01 | AH182: YES | AI182: NO | AJ182: 5 | AK182: NA | AL182: NA | AT182: NA | AU182: NA
A183: 2010-2011 | B183: 4171 | C183: DADE | D183: ORCHARD VILLA ELEMENTARY SCHOOL | E183: AMERICAN INDIAN | G183: 0 | H183: NA | J183: 0 | K183: NA | M183: 0 | N183: NA | Q183: NA | S183: 0 | T183: NA | V183: 0 | W183: NA | Y183: 0 | Z183: NA | AB183: 0 | AC183: NA | AD183: C | AE183: NO | AF183: 87 | AG183: 01 | AH183: YES | AI183: NO | AJ183: 5 | AK183: NA | AL183: NA | AT183: NA | AU183: NA
A184: 2010-2011 | B184: 4221 | C184: DADE | D184: PALMETTO ELEMENTARY SCHOOL | E184: AMERICAN INDIAN | G184: 0 | H184: NA | J184: 0 | K184: NA | M184: 0 | N184: NA | Q184: NA | S184: 0 | T184: NA | V184: 0 | W184: NA | Y184: 0 | Z184: NA | AB184: 0 | AC184: NA | AD184: A | AE184: NO | AF184: 92 | AG184: 01 | AH184: NO | AI184: NO | AJ184: 5 | AK184: NA | AL184: NA | AT184: NA | AU184: NA
A185: 2010-2011 | B185: 4241 | C185: DADE | D185: PALM LAKES ELEMENTARY SCHOOL | E185: AMERICAN INDIAN | G185: 0 | H185: NA | J185: 0 | K185: NA | M185: 0 | N185: NA | Q185: NA | S185: 0 | T185: NA | V185: 0 | W185: NA | Y185: 0 | Z185: NA | AB185: 0 | AC185: NA | AD185: A | AE185: NO | AF185: 90 | AG185: 01 | AH185: YES | AI185: NO | AJ185: 5 | AK185: NA | AL185: NA | AT185: NA | AU185: NA
A186: 2010-2011 | B186: 4261 | C186: DADE | D186: PALM SPRINGS ELEMENTARY SCHOOL | E186: AMERICAN INDIAN | G186: 0 | H186: NA | J186: 0 | K186: NA | M186: 0 | N186: NA | Q186: NA | S186: 0 | T186: NA | V186: 0 | W186: NA | Y186: 0 | Z186: NA | AB186: 0 | AC186: NA | AD186: A | AE186: NO | AF186: 79 | AG186: 01 | AH186: YES | AI186: NO | AJ186: 5 | AK186: NA | AL186: NA | AT186: NA | AU186: NA
A187: 2010-2011 | B187: 4281 | C187: DADE | D187: PALM SPRINGS NORTH ELEMENTARY SCHOOL | E187: AMERICAN INDIAN | G187: 0 | H187: NA | J187: 0 | K187: NA | M187: 0 | N187: NA | Q187: NA | S187: 0 | T187: NA | V187: 0 | W187: NA | Y187: 0 | Z187: NA | AB187: 0 | AC187: NA | AD187: A | AE187: NO | AF187: 95 | AG187: 01 | AH187: YES | AI187: NO | AJ187: 5 | AK187: NA | AL187: NA | AT187: NA | AU187: NA
A188: 2010-2011 | B188: 4301 | C188: DADE | D188: PARKVIEW ELEMENTARY SCHOOL | E188: AMERICAN INDIAN | G188: 0 | H188: NA | J188: 0 | K188: NA | M188: 0 | N188: NA | Q188: NA | S188: 0 | T188: NA | V188: 0 | W188: NA | Y188: 0 | Z188: NA | AB188: 0 | AC188: NA | AD188: A | AE188: YES | AF188: 100 | AG188: 01 | AH188: YES | AI188: NO | AJ188: 5 | AK188: NA | AL188: NA | AT188: NA | AU188: NA
A189: 2010-2011 | B189: 4341 | C189: DADE | D189: PARKWAY ELEMENTARY SCHOOL | E189: AMERICAN INDIAN | G189: 0 | H189: NA | J189: 0 | K189: NA | M189: 0 | N189: NA | Q189: NA | S189: 0 | T189: NA | V189: 0 | W189: NA | Y189: 0 | Z189: NA | AB189: 0 | AC189: NA | AD189: B | AE189: NO | AF189: 92 | AG189: 01 | AH189: YES | AI189: NO | AJ189: 5 | AK189: NA | AL189: NA | AT189: NA | AU189: NA
A190: 2010-2011 | B190: 4381 | C190: DADE | D190: PERRINE ELEMENTARY SCHOOL | E190: AMERICAN INDIAN | G190: 1 | H190: NA | J190: 1 | K190: NA | M190: 0 | N190: NA | Q190: NA | S190: 1 | T190: NA | V190: 1 | W190: NA | Y190: 1 | Z190: NA | AB190: 1 | AC190: NA | AD190: A | AE190: NO | AF190: 85 | AG190: 01 | AH190: YES | AI190: NO | AJ190: 5 | AK190: NA | AL190: NA | AT190: NA | AU190: NA
A191: 2010-2011 | B191: 4391 | C191: DADE | D191: IRVING & BEATRICE PESKOE ELEMENTARY SCHOOL | E191: AMERICAN INDIAN | G191: 0 | H191: NA | J191: 0 | K191: NA | M191: 0 | N191: NA | Q191: NA | S191: 0 | T191: NA | V191: 0 | W191: NA | Y191: 0 | Z191: NA | AB191: 0 | AC191: NA | AD191: D | AE191: NO | AF191: 67 | AG191: 01 | AH191: YES | AI191: NO | AJ191: 5 | AK191: NA | AL191: NA | AT191: NA | AU191: NA
A192: 2010-2011 | B192: 4401 | C192: DADE | D192: KELSEY L. PHARR ELEMENTARY SCHOOL | E192: AMERICAN INDIAN | G192: 0 | H192: NA | J192: 0 | K192: NA | M192: 0 | N192: NA | Q192: NA | S192: 0 | T192: NA | V192: 0 | W192: NA | Y192: 0 | Z192: NA | AB192: 0 | AC192: NA | AD192: F | AE192: NO | AF192: 72 | AG192: 01 | AH192: YES | AI192: NO | AJ192: 5 | AK192: NA | AL192: NA | AT192: NA | AU192: NA
A193: 2010-2011 | B193: 4421 | C193: DADE | D193: PINECREST ELEMENTARY SCHOOL | E193: AMERICAN INDIAN | G193: 2 | H193: NA | J193: 2 | K193: NA | M193: 0 | N193: NA | Q193: NA | S193: 2 | T193: NA | V193: 2 | W193: NA | Y193: 2 | Z193: NA | AB193: 2 | AC193: NA | AD193: A | AE193: YES | AF193: 100 | AG193: 01 | AH193: NO | AI193: NO | AJ193: 5 | AK193: NA | AL193: NA | AT193: NA | AU193: NA
A194: 2010-2011 | B194: 4441 | C194: DADE | D194: PINE LAKE ELEMENTARY SCHOOL | E194: AMERICAN INDIAN | G194: 1 | H194: NA | J194: 1 | K194: NA | M194: 0 | N194: NA | Q194: NA | S194: 1 | T194: NA | V194: 1 | W194: NA | Y194: 1 | Z194: NA | AB194: 1 | AC194: NA | AD194: B | AE194: NO | AF194: 69 | AG194: 01 | AH194: YES | AI194: NO | AJ194: 5 | AK194: NA | AL194: NA | AT194: NA | AU194: NA
A195: 2010-2011 | B195: 4461 | C195: DADE | D195: PINE VILLA ELEMENTARY SCHOOL | E195: AMERICAN INDIAN | G195: 0 | H195: NA | J195: 0 | K195: NA | M195: 0 | N195: NA | Q195: NA | S195: 0 | T195: NA | V195: 0 | W195: NA | Y195: 0 | Z195: NA | AB195: 0 | AC195: NA | AD195: C | AE195: NO | AF195: 87 | AG195: 01 | AH195: YES | AI195: NO | AJ195: 5 | AK195: =IF(OR(T195="NA",T195="NO"),T195,(IF(T195="","NA",IF(OR(R195>78,AND(T195="Yes",R195="")),"Yes-AB",IF(W195="NA","Yes-SH","Yes-GM"))))) -> NA | AL195: =IF(OR(Z195="NA",Z195="NO"),Z195,(IF(Z195="","NA",IF(OR(X195>79,AND(Z195="Yes",X195="")),"Yes-AB",IF(AC195="NA","Yes-SH","Yes-GM"))))) -> NA | AT195: =IF(OR(T195="NA",T195="NO"),T195,IF(OR(R195>71,AND(T195="Yes",R195="")),"Yes-AB",IF(W195="NA","Yes-SH","Yes-GM"))) -> NA | AU195: =IF(OR(Z195="NA",Z195="NO"),Z195,IF(OR(X195>73,AND(Z195="Yes",X195="")),"Yes-AB",IF(AC195="NA","Yes-SH","Yes-GM"))) -> NA
A196: 2010-2011 | B196: 4491 | C196: DADE | D196: HENRY E.S. REEVES ELEMENTARY SCHOOL | E196: AMERICAN INDIAN | G196: 1 | H196: NA | J196: 1 | K196: NA | M196: 0 | N196: NA | Q196: NA | S196: 1 | T196: NA | V196: 1 | W196: NA | Y196: 1 | Z196: NA | AB196: 1 | AC196: NA | AD196: A | AE196: NO | AF196: 87 | AG196: 01 | AH196: YES | AI196: NO | AJ196: 5 | AK196: NA | AL196: NA | AT196: NA | AU196: NA
A197: 2010-2011 | B197: 4501 | C197: DADE | D197: POINCIANA PARK ELEMENTARY SCHOOL | E197: AMERICAN INDIAN | G197: 0 | H197: NA | J197: 0 | K197: NA | M197: 0 | N197: NA | Q197: NA | S197: 0 | T197: NA | V197: 0 | W197: NA | Y197: 0 | Z197: NA | AB197: 0 | AC197: NA | AD197: C | AE197: NO | AF197: 90 | AG197: 01 | AH197: YES | AI197: NO | AJ197: 5 | AK197: NA | AL197: NA | AT197: NA | AU197: NA
A198: 2010-2011 | B198: 4511 | C198: DADE | D198: DR. GILBERT L. PORTER ELEMENTARY SCHOOL | E198: AMERICAN INDIAN | G198: 0 | H198: NA | J198: 0 | K198: NA | M198: 0 | N198: NA | Q198: NA | S198: 0 | T198: NA | V198: 0 | W198: NA | Y198: 0 | Z198: NA | AB198: 0 | AC198: NA | AD198: A | AE198: NO | AF198: 85 | AG198: 01 | AH198: YES | AI198: NO | AJ198: 5 | AK198: NA | AL198: NA | AT198: NA | AU198: NA
A199: 2010-2011 | B199: 4541 | C199: DADE | D199: RAINBOW PARK ELEMENTARY SCHOOL | E199: AMERICAN INDIAN | G199: 0 | H199: NA | J199: 0 | K199: NA | M199: 0 | N199: NA | Q199: NA | S199: 0 | T199: NA | V199: 0 | W199: NA | Y199: 0 | Z199: NA | AB199: 0 | AC199: NA | AD199: C | AE199: YES | AF199: 100 | AG199: 01 | AH199: YES | AI199: NO | AJ199: 5 | AK199: NA | AL199: NA | AT199: NA | AU199: NA
A200: 2010-2011 | B200: 4581 | C200: DADE | D200: REDLAND ELEMENTARY SCHOOL | E200: AMERICAN INDIAN | G200: 0 | H200: NA | J200: 0 | K200: NA | M200: 0 | N200: NA | Q200: NA | S200: 0 | T200: NA | V200: 0 | W200: NA | Y200: 0 | Z200: NA | AB200: 0 | AC200: NA | AD200: A | AE200: NO | AF200: 97 | AG200: 01 | AH200: YES | AI200: NO | AJ200: 5 | AK200: NA | AL200: NA | AT200: NA | AU200: NA
... 925 more rows

Sheet Mem_All (hidden)
A1: SCHOOL_NUMBER | B1: S_SCHL_NAME | C1: Total Of STUDENT_ID | D1: 00 | E1: 01 | F1: 02 | G1: 03 | H1: 04 | I1: 05 | J1: 06 | K1: 07 | L1: 08 | M1: 09 | N1: 10 | O1: 11 | P1: 12 | Q1: PK
A2: 0041 | B2: AIR BASE ELEMENTARY | C2: 729 | D2: 91 | E2: 122 | F2: 110 | G2: 117 | H2: 127 | I2: 95 | Q2: 67
A3: 0070 | B3: CORAL REEF MONTESSORI ACAD CH | C3: 406 | D3: 63 | E3: 65 | F3: 52 | G3: 52 | H3: 43 | I3: 38 | J3: 38 | K3: 34 | L3: 21
A4: 0071 | B4: EUGENIA B. THOMAS K-8 CENTER | C4: 1611 | D4: 186 | E4: 177 | F4: 163 | G4: 195 | H4: 161 | I4: 175 | J4: 156 | K4: 186 | L4: 174 | Q4: 38
A5: 0072 | B5: SUMMERVILLE CHARTER SCHOOL | C5: 478 | E5: 52 | F5: 77 | G5: 75 | H5: 90 | I5: 23 | J5: 58 | K5: 52 | L5: 51
A6: 0073 | B6: MANDARIN LAKES K-8 CENTER | C6: 1402 | D6: 184 | E6: 186 | F6: 147 | G6: 187 | H6: 151 | I6: 183 | J6: 114 | K6: 142 | L6: 108
A7: 0081 | B7: LENORA B. SMITH ELEMENTARY | C7: 462 | D7: 64 | E7: 75 | F7: 80 | G7: 73 | H7: 61 | I7: 73 | Q7: 36
A8: 0091 | B8: BOB GRAHAM EDUCATION CTR | C8: 1848 | D8: 146 | E8: 161 | F8: 195 | G8: 217 | H8: 208 | I8: 220 | J8: 231 | K8: 239 | L8: 231
A9: 0092 | B9: NORMAN S. EDELCUP/SUNNY ISLES | C9: 1791 | D9: 197 | E9: 214 | F9: 225 | G9: 208 | H9: 173 | I9: 173 | J9: 188 | K9: 214 | L9: 199
A10: 0100 | B10: MATER ACADEMY | C10: 743 | D10: 98 | E10: 146 | F10: 124 | G10: 130 | H10: 125 | I10: 120
A11: 0101 | B11: ARCOLA LAKE ELEMENTARY | C11: 463 | D11: 72 | E11: 80 | F11: 55 | G11: 70 | H11: 75 | I11: 62 | Q11: 49
